Workbook

Sheet 1-MetaPro_2022 (hidden)
A1: Código Dpto | B1: Departamento | C1: Municipio | D1: Divipola | E1: Poblaciòn Menor de 1 año (Meta Programática 2022) | F1: Poblaciòn de 1 año (Meta Programática 2022) | G1: Pob. 5 años (Meta Programática 2022) | H1: Q | I1: DEPARTAMENTO | J1: CODEP | K1: Poblaciòn Menor de 1 año (Meta Programática 2022) | L1: Poblaciòn de 1 año (Meta Programática 2022) | M1: Pob. 5 años (Meta Programática 2022) | N1: R | O1: Poblacion de 9 años DANE | R1: Total fase 1 | S1: Total fase 2 | T1: Gran total Pob Covid-19
A2: 91 | B2: AMAZONAS | C2: Leticia | D2: 91001 | E2: 997 | F2: 1,036 | G2: 1,252 | I2: ANTIOQUIA | J2: 05 | K2: =SUMIF($A$2:$A$1122,J2,$E$2:$E$1122) -> 72,099 | L2: =SUMIF($A$2:$A$1122,J2,$F$2:$F$1122) -> 74,701 | M2: =SUMIF($A$2:$A$1122,J2,$G$2:$G$1122) -> 79,329 | N2: 0 | O2: 14957 | Q2: 05001 | R2: 852,035 | S2: 1,179,004 | T2: =R2+S2 -> 2,031,039 | V2: Rangos de edad | X2: 05001 | Y2: 14957
A3: 91 | B3: AMAZONAS | C3: El Encanto (ANM) | D3: 91263 | E3: 36 | F3: 39 | G3: 45 | I3: ATLANTICO | J3: 08 | K3: =SUMIF($A$3:$A$1122,J3,$E$3:$E$1122) -> 21,197 | L3: =SUMIF($A$3:$A$1122,J3,$F$3:$F$1122) -> 21,565 | M3: =SUMIF($A$3:$A$1122,J3,$G$3:$G$1122) -> 22,982 | O3: 144 | Q3: 05002 | R3: 4,537 | S3: 8,657 | T3: =R3+S3 -> 13,194 | V3: 16 17 | X3: 05002 | Y3: 144
A4: 91 | B4: AMAZONAS | C4: La Chorrera | D4: 91405 | E4: 53 | F4: 58 | G4: 62 | I4: BARRANQUILLA | J4: 08001 | K4: =SUMIF($D$3:$D$1122,J4,$E$3:$E$1122) -> 19,802 | L4: =SUMIF($D$3:$D$1122,J4,$F$3:$F$1122) -> 20,849 | M4: =SUMIF($D$3:$D$1122,J4,$G$3:$G$1122) -> 22,374 | O4: 20 | Q4: 05004 | R4: 453 | S4: 1,171 | T4: 1,624 | V4: 18 - 22 | X4: 05004 | Y4: 20
A5: 91 | B5: AMAZONAS | C5: La Pedrera (ANM) | D5: 91407 | E5: 66 | F5: 83 | G5: 85 | I5: BOGOTA | J5: 11 | K5: =SUMIF($A$3:$A$1122,J5,$E$3:$E$1122) -> 90,967 | L5: =SUMIF($A$3:$A$1122,J5,$F$3:$F$1122) -> 93,996 | M5: =SUMIF($A$3:$A$1122,J5,$G$3:$G$1122) -> 96,930 | O5: 36 | Q5: 05021 | R5: 886 | S5: 1,959 | T5: 2,846 | V5: 23 - 27 | X5: 05021 | Y5: 36
A6: 91 | B6: AMAZONAS | C6: La Victoria (ANM) | D6: 91430 | E6: 10 | F6: 10 | G6: 8 | I6: BOLIVAR | J6: 13 | K6: =SUMIF($A$3:$A$1122,J6,$E$3:$E$1122) -> 18,473 | L6: =SUMIF($A$3:$A$1122,J6,$F$3:$F$1122) -> 19,368 | M6: =SUMIF($A$3:$A$1122,J6,$G$3:$G$1122) -> 20,614 | O6: 210 | Q6: 05030 | R6: 6,171 | S6: 14,239 | T6: 20,410 | V6: 28 - 32 | X6: 05030 | Y6: 210
A7: 91 | B7: AMAZONAS | C7: Miriti - Parana (ANM) | D7: 91460 | E7: 18 | F7: 22 | G7: 30 | I7: CARTAGENA | J7: 13001 | K7: =SUMIF($D$3:$D$1122,J7,$E$3:$E$1122) -> 16,175 | L7: =SUMIF($D$3:$D$1122,J7,$F$3:$F$1122) -> 17,942 | M7: =SUMIF($D$3:$D$1122,J7,$G$3:$G$1122) -> 18,393 | O7: 241 | Q7: 05031 | R7: 4,147 | S7: 11,750 | T7: 15,897 | V7: 33 - 37 | X7: 05031 | Y7: 241
A8: 91 | B8: AMAZONAS | C8: Puerto Alegria (ANM) | D8: 91530 | E8: 15 | F8: 17 | G8: 21 | I8: BOYACA | J8: 15 | K8: =SUMIF($A$3:$A$1122,J8,$E$3:$E$1122) -> 13,730 | L8: =SUMIF($A$3:$A$1122,J8,$F$3:$F$1122) -> 14,484 | M8: =SUMIF($A$3:$A$1122,J8,$G$3:$G$1122) -> 16,894 | O8: 309 | Q8: 05034 | R8: 9,366 | S8: 19,530 | T8: 28,896 | V8: 38 - 42 | X8: 05034 | Y8: 309
A9: 91 | B9: AMAZONAS | C9: Puerto Arica (ANM) | D9: 91536 | E9: 18 | F9: 19 | G9: 23 | I9: CALDAS | J9: 17 | K9: 8,721 | L9: 9,217 | M9: 10,478 | O9: 42 | Q9: 05036 | R9: 1,067 | S9: 2,548 | T9: 3,615 | V9: 43 - 47 | X9: 05036 | Y9: 42
A10: 91 | B10: AMAZONAS | C10: Puerto Nariño | D10: 91540 | E10: 149 | F10: 169 | G10: 195 | I10: CAQUETA | J10: 18 | K10: 6,564 | L10: 6,969 | M10: 7,426 | O10: 99 | Q10: 05038 | R10: 2,198 | S10: 4,921 | T10: 7,119 | V10: 48 - 52 | X10: 05038 | Y10: 99
A11: 91 | B11: AMAZONAS | C11: Puerto Santander (ANM) | D11: 91669 | E11: 37 | F11: 42 | G11: 46 | I11: CAUCA | J11: 19 | K11: 19,592 | L11: 20,262 | M11: 21,724 | O11: 186 | Q11: 05040 | R11: 2,671 | S11: 8,142 | T11: 10,813 | V11: 53 - 57 | X11: 05040 | Y11: 186
A12: 91 | B12: AMAZONAS | C12: Tarapaca (ANM) | D12: 91798 | E12: 78 | F12: 78 | G12: 80 | I12: CESAR | J12: 20 | K12: 22,660 | L12: 23,305 | M12: 24,304 | O12: 205 | Q12: 05042 | R12: 6,000 | S12: 11,957 | T12: 17,957 | V12: 58 - 59 | X12: 05042 | Y12: 205
A13: 05 | B13: ANTIOQUIA | C13: Medellin | D13: 05001 | E13: 25,902 | F13: 26,817 | G13: 28,016 | H13: 0 | I13: CORDOBA | J13: 23 | K13: 27,076 | L13: 27,651 | M13: 29,670 | O13: 62 | Q13: 05044 | R13: 1,358 | S13: 3,057 | T13: 4,415 | X13: 05044 | Y13: 62
A14: 05 | B14: ANTIOQUIA | C14: Abejorral | D14: 05002 | E14: 161 | F14: 167 | G14: 242 | I14: CUNDINAMARCA | J14: 25 | K14: 33,569 | L14: 35,320 | M14: 38,650 | O14: 1170 | Q14: 05045 | R14: 27,992 | S14: 57,526 | T14: 85,518 | X14: 05045 | Y14: 1170
A15: 05 | B15: ANTIOQUIA | C15: Abriaqui | D15: 05004 | E15: 22 | F15: 22 | G15: 27 | I15: CHOCO | J15: 27 | K15: 9,300 | L15: 10,101 | M15: 10,621 | O15: 311 | Q15: 05051 | R15: 5,868 | S15: 12,324 | T15: 18,192 | X15: 05051 | Y15: 311
A16: 05 | B16: ANTIOQUIA | C16: Alejandria | D16: 05021 | E16: 45 | F16: 46 | G16: 58 | I16: HUILA | J16: 41 | K16: 17,459 | L16: 18,058 | M16: 19,914 | O16: 64 | Q16: 05055 | R16: 1,479 | S16: 3,096 | T16: 4,575 | X16: 05055 | Y16: 64
A17: 05 | B17: ANTIOQUIA | C17: Amaga | D17: 05030 | E17: 269 | F17: 276 | G17: 299 | I17: LA GUAJIRA | J17: 44 | K17: 21,111 | L17: 22,144 | M17: 23,063 | O17: 35 | Q17: 05059 | R17: 1,349 | S17: 2,092 | T17: 3,442 | X17: 05059 | Y17: 35
A18: 05 | B18: ANTIOQUIA | C18: Amalfi | D18: 05031 | E18: 279 | F18: 296 | G18: 347 | I18: MAGDALENA | J18: 47 | K18: 16,034 | L18: 16,613 | M18: 17,418 | O18: 352 | Q18: 05079 | R18: 11,340 | S18: 24,777 | T18: 36,117 | X18: 05079 | Y18: 352
A19: 05 | B19: ANTIOQUIA | C19: Andes | D19: 05034 | E19: 444 | F19: 457 | G19: 463 | I19: SANTA MARTA | J19: 47001 | K19: =SUMIF($D$3:$D$1122,J19,$E$3:$E$1122) -> 8,239 | L19: =SUMIF($D$3:$D$1122,J19,$F$3:$F$1122) -> 8,392 | M19: =SUMIF($D$3:$D$1122,J19,$G$3:$G$1122) -> 8,689 | O19: 57 | Q19: 05086 | R19: 839 | S19: 2,658 | T19: 3,497 | X19: 05086 | Y19: 57
A20: 05 | B20: ANTIOQUIA | C20: Angelopolis | D20: 05036 | E20: 58 | F20: 63 | G20: 69 | I20: META | J20: 50 | K20: =SUMIF($A$3:$A$1122,J20,$E$3:$E$1122) -> 14,484 | L20: =SUMIF($A$3:$A$1122,J20,$F$3:$F$1122) -> 15,149 | M20: =SUMIF($A$3:$A$1122,J20,$G$3:$G$1122) -> 16,175 | O20: 3486 | Q20: 05088 | R20: 122,485 | S20: 261,228 | T20: 383,713 | X20: 05088 | Y20: 3486
A21: 05 | B21: ANTIOQUIA | C21: Angostura | D21: 05038 | E21: 120 | F21: 126 | G21: 128 | I21: NARIÑO | J21: 52 | K21: 18,378 | L21: 19,033 | M21: 20,963 | O21: 90 | Q21: 05091 | R21: 1,789 | S21: 4,380 | T21: 6,169 | X21: 05091 | Y21: 90
A22: 05 | B22: ANTIOQUIA | C22: Anori | D22: 05040 | E22: 228 | F22: 249 | G22: 256 | I22: NORTE DE SANTANDER | J22: 54 | K22: 23,159 | L22: 24,048 | M22: 24,180 | O22: 143 | Q22: 05093 | R22: 3,170 | S22: 6,812 | T22: 9,983 | X22: 05093 | Y22: 143
A23: 05 | B23: ANTIOQUIA | C23: Santafe de Antioquia | D23: 05042 | E23: 322 | F23: 322 | G23: 345 | I23: QUINDIO | J23: 63 | K23: 5,298 | L23: 5,665 | M23: 6,156 | O23: 196 | Q23: 05101 | R23: 6,918 | S23: 11,321 | T23: 18,239 | X23: 05101 | Y23: 196
A24: 05 | B24: ANTIOQUIA | C24: Anza | D24: 05044 | E24: 98 | F24: 98 | G24: 98 | I24: RISARALDA | J24: 66 | K24: 9,914 | L24: 10,411 | M24: 11,696 | O24: 78 | Q24: 05107 | R24: 1,169 | S24: 3,399 | T24: 4,568 | X24: 05107 | Y24: 78
A25: 05 | B25: ANTIOQUIA | C25: Apartado | D25: 05045 | E25: 2,103 | F25: 2,167 | G25: 2,211 | I25: SANTANDER | J25: 68 | K25: 28,187 | L25: 28,679 | M25: 31,095 | O25: 94 | Q25: 05113 | R25: 1,459 | S25: 4,043 | T25: 5,502 | X25: 05113 | Y25: 94
A26: 05 | B26: ANTIOQUIA | C26: Arboletes | D26: 05051 | E26: 485 | F26: 487 | G26: 570 | I26: SUCRE | J26: 70 | K26: 13,943 | L26: 14,842 | M26: 15,586 | O26: 336 | Q26: 05120 | R26: 3,992 | S26: 12,035 | T26: 16,027 | X26: 05120 | Y26: 336
A27: 05 | B27: ANTIOQUIA | C27: Argelia | D27: 05055 | E27: 104 | F27: 107 | G27: 110 | I27: TOLIMA | J27: 73 | K27: 15,759 | L27: 16,478 | M27: 18,368 | O27: 79 | Q27: 05125 | R27: 1,492 | S27: 3,638 | T27: 5,130 | X27: 05125 | Y27: 79
A28: 05 | B28: ANTIOQUIA | C28: Armenia | D28: 05059 | E28: 30 | F28: 33 | G28: 37 | I28: VALLE DEL CAUCA | J28: 76 | K28: 49,048 | L28: 51,056 | M28: 54,407 | O28: 466 | Q28: 05129 | R28: 26,740 | S28: 39,205 | T28: 65,945 | X28: 05129 | Y28: 466
A29: 05 | B29: ANTIOQUIA | C29: Barbosa | D29: 05079 | E29: 429 | F29: 443 | G29: 465 | I29: BUENAVENTURA | J29: 76109 | K29: =SUMIF($D$3:$D$1122,J29,$E$3:$E$1122) -> 4,570 | L29: =SUMIF($D$3:$D$1122,J29,$F$3:$F$1122) -> 4,637 | M29: =SUMIF($D$3:$D$1122,J29,$G$3:$G$1122) -> 5,304 | O29: 88 | Q29: 05134 | R29: 1,397 | S29: 3,824 | T29: 5,221 | X29: 05134 | Y29: 88
A30: 05 | B30: ANTIOQUIA | C30: Belmira | D30: 05086 | E30: 54 | F30: 56 | G30: 67 | I30: ARAUCA | J30: 81 | K30: =SUMIF($A$3:$A$1122,J30,$E$3:$E$1122) -> 5,184 | L30: =SUMIF($A$3:$A$1122,J30,$F$3:$F$1122) -> 5,350 | M30: =SUMIF($A$3:$A$1122,J30,$G$3:$G$1122) -> 5,180 | O30: 135 | Q30: 05138 | R30: 3,430 | S30: 6,465 | T30: 9,895 | X30: 05138 | Y30: 135
A31: 05 | B31: ANTIOQUIA | C31: Bello | D31: 05088 | E31: 4,661 | F31: 4,770 | G31: 5,037 | I31: CASANARE | J31: 85 | K31: 6,518 | L31: 6,820 | M31: 7,061 | O31: 31 | Q31: 05142 | R31: 1,151 | S31: 1,892 | T31: 3,043 | X31: 05142 | Y31: 31
A32: 05 | B32: ANTIOQUIA | C32: Betania | D32: 05091 | E32: 92 | F32: 95 | G32: 107 | I32: PUTUMAYO | J32: 86 | K32: 4,725 | L32: 4,933 | M32: 5,239 | O32: 31 | Q32: 05145 | R32: 1,227 | S32: 1,998 | T32: 3,225 | X32: 05145 | Y32: 31
A33: 05 | B33: ANTIOQUIA | C33: Betulia | D33: 05093 | E33: 208 | F33: 219 | G33: 240 | I33: SAN ANDRES ISLAS | J33: 88 | K33: 727 | L33: 764 | M33: 883 | O33: 514 | Q33: 05147 | R33: 9,392 | S33: 22,491 | T33: 31,883 | X33: 05147 | Y33: 514
A34: 05 | B34: ANTIOQUIA | C34: Ciudad Bolivar | D34: 05101 | E34: 286 | F34: 288 | G34: 334 | I34: AMAZONAS | J34: 91 | K34: 480 | L34: 537 | M34: 595 | O34: 473 | Q34: 05148 | R34: 10,882 | S34: 28,287 | T34: 39,169 | X34: 05148 | Y34: 473
A35: 05 | B35: ANTIOQUIA | C35: Briceño | D35: 05107 | E35: 94 | F35: 104 | G35: 115 | I35: GUAINIA | J35: 94 | K35: 922 | L35: 998 | M35: 1,024 | O35: 22 | Q35: 05150 | R35: 997 | S35: 1,774 | T35: 2,771 | X35: 05150 | Y35: 22
A36: 05 | B36: ANTIOQUIA | C36: Buritica | D36: 05113 | E36: 104 | F36: 109 | G36: 116 | I36: GUAVIARE | J36: 95 | K36: 1,347 | L36: 1,401 | M36: 1,470 | O36: 933 | Q36: 05154 | R36: 19,196 | S36: 40,808 | T36: 60,004 | X36: 05154 | Y36: 933
A37: 05 | B37: ANTIOQUIA | C37: Caceres | D37: 05120 | E37: 432 | F37: 447 | G37: 471 | I37: VAUPES | J37: 97 | K37: 700 | L37: 723 | M37: 779 | O37: 602 | Q37: 05172 | R37: 11,833 | S37: 25,868 | T37: 37,701 | X37: 05172 | Y37: 602
A38: 05 | B38: ANTIOQUIA | C38: Caicedo | D38: 05125 | E38: 113 | F38: 113 | G38: 134 | I38: VICHADA | J38: 99 | K38: 1,663 | L38: 1,715 | M38: 1,850 | O38: 71 | Q38: 05190 | R38: 2,762 | S38: 4,285 | T38: 7,047 | X38: 05190 | Y38: 71
A39: 05 | B39: ANTIOQUIA | C39: Caldas | D39: 05129 | E39: 776 | F39: 816 | G39: 849 | O39: 124 | Q39: 05197 | R39: 3,406 | S39: 6,102 | T39: 9,507 | X39: 05197 | Y39: 124
A40: 05 | B40: ANTIOQUIA | C40: Campamento | D40: 05134 | E40: 87 | F40: 88 | G40: 109 | I40: TOTAL NACIONAL | K40: =SUM(K2:K38) -> 647,774 | L40: =SUM(L2:L38) -> 674,176 | M40: =SUM(M2:M38) -> 717,484 | O40: 30 | Q40: 05206 | R40: 1,075 | S40: 1,999 | T40: 3,074 | X40: 05206 | Y40: 30
A41: 05 | B41: ANTIOQUIA | C41: Cañasgordas | D41: 05138 | E41: 169 | F41: 174 | G41: 187 | O41: 170 | Q41: 05209 | R41: 4,273 | S41: 9,348 | T41: 13,621 | X41: 05209 | Y41: 170
A42: 05 | B42: ANTIOQUIA | C42: Caracoli | D42: 05142 | E42: 53 | F42: 54 | G42: 55 | O42: 458 | Q42: 05212 | R42: 20,820 | S42: 38,560 | T42: 59,380 | X42: 05212 | Y42: 458
A43: 05 | B43: ANTIOQUIA | C43: Caramanta | D43: 05145 | E43: 42 | F43: 43 | G43: 45 | O43: 264 | Q43: 05234 | R43: 3,755 | S43: 9,133 | T43: 12,888 | X43: 05234 | Y43: 264
A44: 05 | B44: ANTIOQUIA | C44: Carepa | D44: 05147 | E44: 953 | F44: 963 | G44: 957 | O44: 156 | Q44: 05237 | R44: 4,706 | S44: 8,783 | T44: 13,489 | X44: 05237 | Y44: 156
A45: 05 | B45: ANTIOQUIA | C45: El Carmen de Viboral | D45: 05148 | E45: 619 | F45: 625 | G45: 651 | O45: 82 | Q45: 05240 | R45: 3,017 | S45: 5,066 | T45: 8,083 | X45: 05240 | Y45: 82
A46: 05 | B46: ANTIOQUIA | C46: Carolina | D46: 05150 | E46: 23 | F46: 29 | G46: 33 | O46: 609 | Q46: 05250 | R46: 8,836 | S46: 22,021 | T46: 30,856 | X46: 05250 | Y46: 609
A47: 05 | B47: ANTIOQUIA | C47: Caucasia | D47: 05154 | E47: 1,552 | F47: 1,633 | G47: 1,671 | O47: 102 | Q47: 05264 | R47: 1,830 | S47: 5,266 | T47: 7,097 | X47: 05264 | Y47: 102
A48: 05 | B48: ANTIOQUIA | C48: Chigorodo | D48: 05172 | E48: 1,150 | F48: 1,197 | G48: 1,236 | O48: 1070 | Q48: 05266 | R48: 78,507 | S48: 113,186 | T48: 191,693 | X48: 05266 | Y48: 1070
A49: 05 | B49: ANTIOQUIA | C49: Cisneros | D49: 05190 | E49: 126 | F49: 141 | G49: 138 | O49: 165 | Q49: 05282 | R49: 5,036 | S49: 10,716 | T49: 15,752 | X49: 05282 | Y49: 165
A50: 05 | B50: ANTIOQUIA | C50: Cocorna | D50: 05197 | E50: 179 | F50: 184 | G50: 213 | O50: 205 | Q50: 05284 | R50: 4,371 | S50: 8,286 | T50: 12,657 | X50: 05284 | Y50: 205
A51: 05 | B51: ANTIOQUIA | C51: Concepcion | D51: 05206 | E51: 38 | F51: 38 | G51: 50 | O51: 53 | Q51: 05306 | R51: 946 | S51: 2,400 | T51: 3,346 | X51: 05306 | Y51: 53
A52: 05 | B52: ANTIOQUIA | C52: Concordia | D52: 05209 | E52: 191 | F52: 198 | G52: 208 | O52: 333 | Q52: 05308 | R52: 14,245 | S52: 25,297 | T52: 39,542 | X52: 05308 | Y52: 333
A53: 05 | B53: ANTIOQUIA | C53: Copacabana | D53: 05212 | E53: 536 | F53: 551 | G53: 660 | O53: 71 | Q53: 05310 | R53: 2,081 | S53: 4,236 | T53: 6,317 | X53: 05310 | Y53: 71
A54: 05 | B54: ANTIOQUIA | C54: Dabeiba | D54: 05234 | E54: 339 | F54: 390 | G54: 431 | O54: 83 | Q54: 05313 | R54: 2,197 | S54: 3,937 | T54: 6,134 | X54: 05313 | Y54: 83
A55: 05 | B55: ANTIOQUIA | C55: Don Matias | D55: 05237 | E55: 203 | F55: 230 | G55: 240 | O55: 54 | Q55: 05315 | R55: 1,224 | S55: 2,902 | T55: 4,127 | X55: 05315 | Y55: 54
A56: 05 | B56: ANTIOQUIA | C56: Ebejico | D56: 05240 | E56: 94 | F56: 99 | G56: 111 | O56: 350 | Q56: 05318 | R56: 11,195 | S56: 26,300 | T56: 37,495 | X56: 05318 | Y56: 350
A57: 05 | B57: ANTIOQUIA | C57: El Bagre | D57: 05250 | E57: 905 | F57: 944 | G57: 1,088 | O57: 59 | Q57: 05321 | R57: 1,383 | S57: 3,861 | T57: 5,243 | X57: 05321 | Y57: 59
A58: 05 | B58: ANTIOQUIA | C58: Entrerrios | D58: 05264 | E58: 132 | F58: 145 | G58: 147 | O58: 33 | Q58: 05347 | R58: 1,274 | S58: 2,338 | T58: 3,612 | X58: 05347 | Y58: 33
A59: 05 | B59: ANTIOQUIA | C59: Envigado | D59: 05266 | E59: 1,354 | F59: 1,399 | G59: 1,578 | O59: 42 | Q59: 05353 | R59: 1,153 | S59: 2,385 | T59: 3,538 | X59: 05353 | Y59: 42
A60: 05 | B60: ANTIOQUIA | C60: Fredonia | D60: 05282 | E60: 171 | F60: 172 | G60: 192 | O60: 1572 | Q60: 05360 | R60: 90,187 | S60: 137,249 | T60: 227,436 | X60: 05360 | Y60: 1572
A61: 05 | B61: ANTIOQUIA | C61: Frontino | D61: 05284 | E61: 324 | F61: 378 | G61: 417 | O61: 214 | Q61: 05361 | R61: 4,105 | S61: 12,873 | T61: 16,978 | X61: 05361 | Y61: 214
A62: 05 | B62: ANTIOQUIA | C62: Giraldo | D62: 05306 | E62: 84 | F62: 83 | G62: 104 | O62: 101 | Q62: 05364 | R62: 3,672 | S62: 6,365 | T62: 10,038 | X62: 05364 | Y62: 101
A63: 05 | B63: ANTIOQUIA | C63: Girardota | D63: 05308 | E63: 491 | F63: 520 | G63: 542 | O63: 87 | Q63: 05368 | R63: 3,335 | S63: 5,875 | T63: 9,210 | X63: 05368 | Y63: 87
A64: 05 | B64: ANTIOQUIA | C64: Gomez Plata | D64: 05310 | E64: 76 | F64: 79 | G64: 85 | O64: 439 | Q64: 05376 | R64: 20,119 | S64: 31,403 | T64: 51,522 | X64: 05376 | Y64: 439
A65: 05 | B65: ANTIOQUIA | C65: Granada | D65: 05313 | E65: 151 | F65: 147 | G65: 153 | O65: 420 | Q65: 05380 | R65: 14,845 | S65: 35,816 | T65: 50,660 | X65: 05380 | Y65: 420
A66: 05 | B66: ANTIOQUIA | C66: Guadalupe | D66: 05315 | E66: 74 | F66: 74 | G66: 75 | O66: 61 | Q66: 05390 | R66: 1,507 | S66: 3,910 | T66: 5,417 | X66: 05390 | Y66: 61
A67: 05 | B67: ANTIOQUIA | C67: Guarne | D67: 05318 | E67: 425 | F67: 451 | G67: 464 | O67: 165 | Q67: 05400 | R67: 4,480 | S67: 10,073 | T67: =R67+S67 -> 14,554 | X67: 05400 | Y67: 165
A68: 05 | B68: ANTIOQUIA | C68: Guatape | D68: 05321 | E68: 89 | F68: 93 | G68: 106 | O68: 78 | Q68: 05411 | R68: 2,241 | S68: 4,216 | T68: 6,457 | X68: 05411 | Y68: 78
A69: 05 | B69: ANTIOQUIA | C69: Heliconia | D69: 05347 | E69: 48 | F69: 49 | G69: 55 | O69: 73 | Q69: 05425 | R69: 1,917 | S69: 3,409 | T69: 5,326 | X69: 05425 | Y69: 73
A70: 05 | B70: ANTIOQUIA | C70: Hispania | D70: 05353 | E70: 51 | F70: 51 | G70: 62 | O70: 486 | Q70: 05440 | R70: 14,104 | S70: 30,774 | T70: 44,877 | X70: 05440 | Y70: 486
A71: 05 | B71: ANTIOQUIA | C71: Itagui | D71: 05360 | E71: 2,684 | F71: 2,759 | G71: 2,992 | O71: 48 | Q71: 05467 | R71: 1,599 | S71: 2,764 | T71: 4,363 | X71: 05467 | Y71: 48
A72: 05 | B72: ANTIOQUIA | C72: Ituango | D72: 05361 | E72: 259 | F72: 265 | G72: 329 | O72: 72 | Q72: 05475 | R72: 509 | S72: 1,866 | T72: 2,375 | X72: 05475 | Y72: 72
A73: 05 | B73: ANTIOQUIA | C73: Jardin | D73: 05364 | E73: 142 | F73: 147 | G73: 173 | O73: 164 | Q73: 05480 | R73: 2,557 | S73: 5,767 | T73: 8,324 | X73: 05480 | Y73: 164
A74: 05 | B74: ANTIOQUIA | C74: Jerico | D74: 05368 | E74: 98 | F74: 98 | G74: 128 | O74: 84 | Q74: 05483 | R74: 2,325 | S74: 4,039 | T74: 6,364 | X74: 05483 | Y74: 84
A75: 05 | B75: ANTIOQUIA | C75: La Ceja | D75: 05376 | E75: 673 | F75: 679 | G75: 787 | O75: 504 | Q75: 05490 | R75: 7,817 | S75: 17,647 | T75: 25,463 | X75: 05490 | Y75: 504
A76: 05 | B76: ANTIOQUIA | C76: La Estrella | D76: 05380 | E76: 514 | F76: 563 | G76: 535 | O76: 315 | Q76: 05495 | R76: 3,843 | S76: 10,902 | T76: 14,744 | X76: 05495 | Y76: 315
A77: 05 | B77: ANTIOQUIA | C77: La Pintada | D77: 05390 | E77: 116 | F77: 115 | G77: 124 | O77: 26 | Q77: 05501 | R77: 579 | S77: 1,306 | T77: 1,886 | X77: 05501 | Y77: 26
A78: 05 | B78: ANTIOQUIA | C78: La Union | D78: 05400 | E78: 268 | F78: 270 | G78: 298 | O78: 160 | Q78: 05541 | R78: 4,065 | S78: 9,433 | T78: 13,498 | X78: 05541 | Y78: 160
A79: 05 | B79: ANTIOQUIA | C79: Liborina | D79: 05411 | E79: 96 | F79: 96 | G79: 122 | O79: 75 | Q79: 05543 | R79: 1,423 | S79: 3,384 | T79: 4,807 | X79: 05543 | Y79: 75
A80: 05 | B80: ANTIOQUIA | C80: Maceo | D80: 05425 | E80: 101 | F80: 108 | G80: 116 | O80: 70 | Q80: 05576 | R80: 1,914 | S80: 3,651 | T80: 5,564 | X80: 05576 | Y80: 70
A81: 05 | B81: ANTIOQUIA | C81: Marinilla | D81: 05440 | E81: 764 | F81: 781 | G81: 774 | O81: 318 | Q81: 05579 | R81: 9,295 | S81: 18,220 | T81: 27,515 | X81: 05579 | Y81: 318
A82: 05 | B82: ANTIOQUIA | C82: Montebello | D82: 05467 | E82: 56 | F82: 63 | G82: 66 | O82: 120 | Q82: 05585 | R82: 2,387 | S82: 6,196 | T82: 8,583 | X82: 05585 | Y82: 120
A83: 05 | B83: ANTIOQUIA | C83: Murindo | D83: 05475 | E83: 123 | F83: 125 | G83: 146 | O83: 152 | Q83: 05591 | R83: 2,248 | S83: 8,661 | T83: 10,909 | X83: 05591 | Y83: 152
A84: 05 | B84: ANTIOQUIA | C84: Mutata | D84: 05480 | E84: 506 | F84: 509 | G84: 536 | O84: 290 | Q84: 05604 | R84: 3,851 | S84: 12,687 | T84: 16,537 | X84: 05604 | Y84: 290
A85: 05 | B85: ANTIOQUIA | C85: Nariño | D85: 05483 | E85: 125 | F85: 126 | G85: 142 | O85: 147 | Q85: 05607 | R85: 4,165 | S85: 11,178 | T85: 15,343 | X85: 05607 | Y85: 147
A86: 05 | B86: ANTIOQUIA | C86: Necocli | D86: 05490 | E86: 914 | F86: 987 | G86: 1,098 | O86: 843 | Q86: 05615 | R86: 47,762 | S86: 66,586 | T86: 114,348 | X86: 05615 | Y86: 843
A87: 05 | B87: ANTIOQUIA | C87: Nechi | D87: 05495 | E87: 447 | F87: 460 | G87: 511 | O87: 88 | Q87: 05628 | R87: 1,440 | S87: 3,835 | T87: 5,275 | X87: 05628 | Y87: 88
A88: 05 | B88: ANTIOQUIA | C88: Olaya | D88: 05501 | E88: 26 | F88: 27 | G88: 33 | O88: 414 | Q88: 05631 | R88: 23,139 | S88: 42,443 | T88: 65,582 | X88: 05631 | Y88: 414
A89: 05 | B89: ANTIOQUIA | C89: Peñol | D89: 05541 | E89: 245 | F89: 246 | G89: 258 | O89: 150 | Q89: 05642 | R89: 3,601 | S89: 7,909 | T89: 11,510 | X89: 05642 | Y89: 150
A90: 05 | B90: ANTIOQUIA | C90: Peque | D90: 05543 | E90: 105 | F90: 105 | G90: 123 | O90: 69 | Q90: 05647 | R90: 1,187 | S90: 3,027 | T90: 4,214 | X90: 05647 | Y90: 69
A91: 05 | B91: ANTIOQUIA | C91: Pueblorrico | D91: 05576 | E91: 90 | F91: 93 | G91: 105 | O91: 130 | Q91: 05649 | R91: 2,938 | S91: 6,627 | T91: 9,565 | X91: 05649 | Y91: 130
A92: 05 | B92: ANTIOQUIA | C92: Puerto Berrio | D92: 05579 | E92: 547 | F92: 551 | G92: 593 | O92: 58 | Q92: 05652 | R92: 1,299 | S92: 2,309 | T92: 3,608 | X92: 05652 | Y92: 58
A93: 05 | B93: ANTIOQUIA | C93: Puerto Nare | D93: 05585 | E93: 134 | F93: 136 | G93: 137 | O93: 122 | Q93: 05656 | R93: 2,991 | S93: 7,115 | T93: 10,106 | X93: 05656 | Y93: 122
A94: 05 | B94: ANTIOQUIA | C94: Puerto Triunfo | D94: 05591 | E94: 218 | F94: 228 | G94: 229 | O94: 42 | Q94: 05658 | R94: 614 | S94: 1,644 | T94: 2,258 | X94: 05658 | Y94: 42
A95: 05 | B95: ANTIOQUIA | C95: Remedios | D95: 05604 | E95: 472 | F95: 479 | G95: 481 | O95: 243 | Q95: 05659 | R95: 3,229 | S95: 8,306 | T95: 11,535 | X95: 05659 | Y95: 243
A96: 05 | B96: ANTIOQUIA | C96: Retiro | D96: 05607 | E96: 116 | F96: 132 | G96: 143 | O96: 124 | Q96: 05660 | R96: 2,630 | S96: 5,434 | T96: 8,064 | X96: 05660 | Y96: 124
A97: 05 | B97: ANTIOQUIA | C97: Rionegro | D97: 05615 | E97: 1,672 | F97: 1,776 | G97: 1,920 | O97: 178 | Q97: 05664 | R97: 4,746 | S97: 10,382 | T97: 15,128 | X97: 05664 | Y97: 178
A98: 05 | B98: ANTIOQUIA | C98: Sabanalarga | D98: 05628 | E98: 120 | F98: 121 | G98: 136 | O98: 329 | Q98: 05665 | R98: 5,651 | S98: 13,308 | T98: 18,960 | X98: 05665 | Y98: 329
A99: 05 | B99: ANTIOQUIA | C99: Sabaneta | D99: 05631 | E99: 572 | F99: 616 | G99: 663 | O99: 112 | Q99: 05667 | R99: 3,240 | S99: 6,670 | T99: 9,910 | X99: 05667 | Y99: 112
A100: 05 | B100: ANTIOQUIA | C100: Salgar | D100: 05642 | E100: 170 | F100: 170 | G100: 189 | O100: 180 | Q100: 05670 | R100: 4,210 | S100: 9,182 | T100: 13,392 | X100: 05670 | Y100: 180
A101: 05 | B101: ANTIOQUIA | C101: San Andres de Cuerquia | D101: 05647 | E101: 90 | F101: 93 | G101: 99 | O101: 160 | Q101: 05674 | R101: 3,449 | S101: 9,844 | T101: 13,293 | X101: 05674 | Y101: 160
A102: 05 | B102: ANTIOQUIA | C102: San Carlos | D102: 05649 | E102: 168 | F102: 181 | G102: 202 | O102: 173 | Q102: 05679 | R102: 5,970 | S102: 11,620 | T102: 17,589 | X102: 05679 | Y102: 173
A103: 05 | B103: ANTIOQUIA | C103: San Francisco | D103: 05652 | E103: 80 | F103: 80 | G103: 112 | O103: 318 | Q103: 05686 | R103: 7,278 | S103: 16,924 | T103: 24,203 | X103: 05686 | Y103: 318
A104: 05 | B104: ANTIOQUIA | C104: San Jeronimo | D104: 05656 | E104: 152 | F104: 158 | G104: 168 | O104: 90 | Q104: 05690 | R104: 2,181 | S104: 5,267 | T104: 7,448 | X104: 05690 | Y104: 90
A105: 05 | B105: ANTIOQUIA | C105: San Jose de La Montaña | D105: 05658 | E105: 49 | F105: 50 | G105: 52 | O105: 315 | Q105: 05697 | R105: 5,678 | S105: 15,481 | T105: 21,159 | X105: 05697 | Y105: 315
A106: 05 | B106: ANTIOQUIA | C106: San Juan de Uraba | D106: 05659 | E106: 409 | F106: 416 | G106: 444 | O106: 358 | Q106: 05736 | R106: 5,876 | S106: 17,463 | T106: 23,340 | X106: 05736 | Y106: 358
A107: 05 | B107: ANTIOQUIA | C107: San Luis | D107: 05660 | E107: 210 | F107: 223 | G107: 239 | O107: 289 | Q107: 05756 | R107: 7,405 | S107: 15,881 | T107: 23,286 | X107: 05756 | Y107: 289
A108: 05 | B108: ANTIOQUIA | C108: San Pedro | D108: 05664 | E108: 307 | F108: 332 | G108: 361 | O108: 114 | Q108: 05761 | R108: 2,978 | S108: 6,760 | T108: 9,738 | X108: 05761 | Y108: 114
A109: 05 | B109: ANTIOQUIA | C109: San Pedro de Uraba | D109: 05665 | E109: 555 | F109: 554 | G109: 554 | O109: 108 | Q109: 05789 | R109: 4,078 | S109: 6,930 | T109: 11,009 | X109: 05789 | Y109: 108
A110: 05 | B110: ANTIOQUIA | C110: San Rafael | D110: 05667 | E110: 168 | F110: 171 | G110: 193 | O110: 316 | Q110: 05790 | R110: 4,404 | S110: 11,523 | T110: 15,927 | X110: 05790 | Y110: 316
A111: 05 | B111: ANTIOQUIA | C111: San Roque | D111: 05670 | E111: 214 | F111: 226 | G111: 237 | O111: 45 | Q111: 05792 | R111: 1,298 | S111: 2,738 | T111: 4,037 | X111: 05792 | Y111: 45
A112: 05 | B112: ANTIOQUIA | C112: San Vicente | D112: 05674 | E112: 174 | F112: 176 | G112: 192 | O112: 70 | Q112: 05809 | R112: 2,313 | S112: 4,609 | T112: 6,922 | X112: 05809 | Y112: 70
A113: 05 | B113: ANTIOQUIA | C113: Santa Barbara | D113: 05679 | E113: 186 | F113: 189 | G113: 200 | O113: 47 | Q113: 05819 | R113: 893 | S113: 2,100 | T113: 2,994 | X113: 05819 | Y113: 47
A114: 05 | B114: ANTIOQUIA | C114: Santa Rosa de Osos | D114: 05686 | E114: 454 | F114: 479 | G114: 518 | O114: 1426 | Q114: 05837 | R114: 21,519 | S114: 53,907 | T114: 75,425 | X114: 05837 | Y114: 1426
A115: 05 | B115: ANTIOQUIA | C115: Santo Domingo | D115: 05690 | E115: 64 | F115: 75 | G115: 100 | O115: 63 | Q115: 05842 | R115: 1,349 | S115: 2,796 | T115: 4,145 | X115: 05842 | Y115: 63
A116: 05 | B116: ANTIOQUIA | C116: El Santuario | D116: 05697 | E116: 510 | F116: 520 | G116: 518 | O116: 293 | Q116: 05847 | R116: 5,560 | S116: 12,830 | T116: 18,391 | X116: 05847 | Y116: 293
A117: 05 | B117: ANTIOQUIA | C117: Segovia | D117: 05736 | E117: 619 | F117: 635 | G117: 668 | O117: 144 | Q117: 05854 | R117: 2,307 | S117: 5,902 | T117: 8,209 | X117: 05854 | Y117: 144
A118: 05 | B118: ANTIOQUIA | C118: Sonson | D118: 05756 | E118: 404 | F118: 416 | G118: 421 | O118: 40 | Q118: 05856 | R118: 1,411 | S118: 2,799 | T118: 4,210 | X118: 05856 | Y118: 40
A119: 05 | B119: ANTIOQUIA | C119: Sopetran | D119: 05761 | E119: 146 | F119: 148 | G119: 148 | O119: 101 | Q119: 05858 | R119: 2,711 | S119: 5,219 | T119: 7,930 | X119: 05858 | Y119: 101
A120: 05 | B120: ANTIOQUIA | C120: Tamesis | D120: 05789 | E120: 134 | F120: 134 | G120: 156 | O120: 73 | Q120: 05861 | R120: 2,726 | S120: 5,211 | T120: 7,937 | X120: 05861 | Y120: 73
A121: 05 | B121: ANTIOQUIA | C121: Taraza | D121: 05790 | E121: 461 | F121: 495 | G121: 519 | O121: 120 | Q121: 05873 | R121: 1,009 | S121: 3,526 | T121: 4,535 | X121: 05873 | Y121: 120
A122: 05 | B122: ANTIOQUIA | C122: Tarso | D122: 05792 | E122: 63 | F122: 67 | G122: 77 | O122: 65 | Q122: 05885 | R122: 1,369 | S122: 3,274 | T122: 4,643 | X122: 05885 | Y122: 65
A123: 05 | B123: ANTIOQUIA | C123: Titiribi | D123: 05809 | E123: 64 | F123: 72 | G123: 83 | O123: 376 | Q123: 05887 | R123: 9,807 | S123: 18,676 | T123: 28,483 | X123: 05887 | Y123: 376
A124: 05 | B124: ANTIOQUIA | C124: Toledo | D124: 05819 | E124: 58 | F124: 58 | G124: 78 | O124: 194 | Q124: 05890 | R124: 4,815 | S124: 9,850 | T124: 14,665 | X124: 05890 | Y124: 194
A125: 05 | B125: ANTIOQUIA | C125: Turbo | D125: 05837 | E125: 2,627 | F125: 2,649 | G125: 2,720 | O125: 210 | Q125: 05893 | R125: 1,865 | S125: 8,280 | T125: 10,145 | X125: 05893 | Y125: 210
A126: 05 | B126: ANTIOQUIA | C126: Uramita | D126: 05842 | E126: 79 | F126: 87 | G126: 106 | O126: 287 | Q126: 05895 | R126: 3,807 | S126: 10,413 | T126: 14,220 | X126: 05895 | Y126: 287
A127: 05 | B127: ANTIOQUIA | C127: Urrao | D127: 05847 | E127: 400 | F127: 439 | G127: 489 | O127: 9732 | Q127: 08001 | R127: 416,579 | S127: 567,749 | T127: 984,328 | X127: 08001 | Y127: 9732
A128: 05 | B128: ANTIOQUIA | C128: Valdivia | D128: 05854 | E128: 226 | F128: 237 | G128: 270 | O128: 560 | Q128: 08078 | R128: 13,718 | S128: 29,383 | T128: 43,102 | X128: 08078 | Y128: 560
A129: 05 | B129: ANTIOQUIA | C129: Valparaiso | D129: 05856 | E129: 50 | F129: 53 | G129: 55 | O129: 223 | Q129: 08137 | R129: 5,156 | S129: 9,896 | T129: 15,052 | X129: 08137 | Y129: 223
A130: 05 | B130: ANTIOQUIA | C130: Vegachi | D130: 05858 | E130: 188 | F130: 193 | G130: 197 | O130: 162 | Q130: 08141 | R130: 2,810 | S130: 7,280 | T130: 10,091 | X130: 08141 | Y130: 162
A131: 05 | B131: ANTIOQUIA | C131: Venecia | D131: 05861 | E131: 112 | F131: 112 | G131: 116 | O131: 609 | Q131: 08296 | R131: 8,307 | S131: 29,393 | T131: =R131+S131 -> 37,700 | X131: 08296 | Y131: 609
A132: 05 | B132: ANTIOQUIA | C132: Vigia del Fuerte | D132: 05873 | E132: 136 | F132: 163 | G132: 186 | O132: 182 | Q132: 08372 | R132: 3,454 | S132: 10,013 | T132: 13,467 | X132: 08372 | Y132: 182
A133: 05 | B133: ANTIOQUIA | C133: Yali | D133: 05885 | E133: 69 | F133: 69 | G133: 97 | O133: 294 | Q133: 08421 | R133: 5,554 | S133: 12,729 | T133: 18,283 | X133: 08421 | Y133: 294
A134: 05 | B134: ANTIOQUIA | C134: Yarumal | D134: 05887 | E134: 534 | F134: 557 | G134: 582 | O134: 1289 | Q134: 08433 | R134: 21,923 | S134: 61,301 | T134: 83,224 | X134: 08433 | Y134: 1289
A135: 05 | B135: ANTIOQUIA | C135: Yolombo | D135: 05890 | E135: 201 | F135: 209 | G135: 230 | O135: 213 | Q135: 08436 | R135: 3,518 | S135: 8,943 | T135: 12,461 | X135: 08436 | Y135: 213
A136: 05 | B136: ANTIOQUIA | C136: Yondo | D136: 05893 | E136: 278 | F136: 285 | G136: 318 | O136: 264 | Q136: 08520 | R136: 4,215 | S136: 13,606 | T136: 17,822 | X136: 08520 | Y136: 264
A137: 05 | B137: ANTIOQUIA | C137: Zaragoza | D137: 05895 | E137: 439 | F137: 454 | G137: 463 | O137: 57 | Q137: 08549 | R137: 908 | S137: 3,104 | T137: 4,012 | X137: 08549 | Y137: 57
A138: 81 | B138: ARAUCA | C138: Arauca | D138: 81001 | E138: 1,632 | F138: 1,651 | G138: 1,558 | O138: 176 | Q138: 08558 | R138: 3,243 | S138: 8,416 | T138: 11,658 | X138: 08558 | Y138: 176
A139: 81 | B139: ARAUCA | C139: Arauquita | D139: 81065 | E139: 1,001 | F139: 1,014 | G139: 976 | O139: 246 | Q139: 08560 | R139: 3,824 | S139: 10,963 | T139: 14,787 | X139: 08560 | Y139: 246
A140: 81 | B140: ARAUCA | C140: Cravo Norte | D140: 81220 | E140: 87 | F140: 90 | G140: 85 | O140: 415 | Q140: 08573 | R140: 7,524 | S140: 24,128 | T140: 31,651 | X140: 08573 | Y140: 415
A141: 81 | B141: ARAUCA | C141: Fortul | D141: 81300 | E141: 426 | F141: 435 | G141: 413 | O141: 265 | Q141: 08606 | R141: 5,134 | S141: 11,797 | T141: 16,930 | X141: 08606 | Y141: 265
A142: 81 | B142: ARAUCA | C142: Puerto Rondon | D142: 81591 | E142: 93 | F142: 93 | G142: 91 | O142: 312 | Q142: 08634 | R142: 5,711 | S142: 15,444 | T142: 21,155 | X142: 08634 | Y142: 312
A143: 81 | B143: ARAUCA | C143: Saravena | D143: 81736 | E143: 926 | F143: 1,009 | G143: 1,042 | O143: 892 | Q143: 08638 | R143: 25,710 | S143: 42,968 | T143: 68,678 | X143: 08638 | Y143: 892
A144: 81 | B144: ARAUCA | C144: Tame | D144: 81794 | E144: 1,019 | F144: 1,058 | G144: 1,015 | O144: 168 | Q144: 08675 | R144: 2,364 | S144: 7,246 | T144: 9,610 | X144: 08675 | Y144: 168
B145: ATLANTICO | C145: Barranquilla | D145: 08001 | E145: 19,802 | F145: 20,849 | G145: 22,374 | O145: 257 | Q145: 08685 | R145: 6,719 | S145: 14,129 | T145: 20,849 | X145: 08685 | Y145: 257
A146: 08 | B146: ATLANTICO | C146: Baranoa | D146: 08078 | E146: 890 | F146: 901 | G146: 957 | O146: 5571 | Q146: 08758 | R146: 124,036 | S146: 300,070 | T146: 424,106 | X146: 08758 | Y146: 5571
A147: 08 | B147: ATLANTICO | C147: Campo de La Cruz | D147: 08137 | E147: 408 | F147: 423 | G147: 467 | O147: 123 | Q147: 08770 | R147: 2,014 | S147: 5,389 | T147: 7,403 | X147: 08770 | Y147: 123
A148: 08 | B148: ATLANTICO | C148: Candelaria | D148: 08141 | E148: 308 | F148: 305 | G148: 301 | O148: 156 | Q148: 08832 | R148: 2,300 | S148: 8,269 | T148: 10,568 | X148: 08832 | Y148: 156
A149: 08 | B149: ATLANTICO | C149: Galapa | D149: 08296 | E149: 915 | F149: 978 | G149: 1,006 | O149: 106 | Q149: 08849 | R149: 1,728 | S149: 5,758 | T149: 7,486 | X149: 08849 | Y149: 106
A150: 08 | B150: ATLANTICO | C150: Juan de Acosta | D150: 08372 | E150: 298 | F150: 302 | G150: 309 | O150: 47156 | Q150: 11001 | R150: 2,143,019 | S150: 3,649,791 | T150: 5,792,809 | X150: 11001 | Y150: 47156
A151: 08 | B151: ATLANTICO | C151: Luruaco | D151: 08421 | E151: 554 | F151: 540 | G151: 548 | O151: 8174 | Q151: 13001 | R151: 279,776 | S151: 459,114 | T151: 738,890 | X151: 13001 | Y151: 8174
A152: 08 | B152: ATLANTICO | C152: Malambo | D152: 08433 | E152: 2,154 | F152: 2,268 | G152: 2,304 | O152: 239 | Q152: 13006 | R152: 4,662 | S152: 10,203 | T152: 14,865 | X152: 13006 | Y152: 239
A153: 08 | B153: ATLANTICO | C153: Manati | D153: 08436 | E153: 347 | F153: 376 | G153: 413 | O153: 132 | Q153: 13030 | R153: 1,665 | S153: 4,616 | T153: 6,281 | X153: 13030 | Y153: 132
A154: 08 | B154: ATLANTICO | C154: Palmar de Varela | D154: 08520 | E154: 487 | F154: 496 | G154: 510 | O154: 79 | Q154: 13042 | R154: 1,180 | S154: 3,172 | T154: 4,352 | X154: 13042 | Y154: 79
A155: 08 | B155: ATLANTICO | C155: Piojo | D155: 08549 | E155: 66 | F155: 73 | G155: 79 | O155: 665 | Q155: 13052 | R155: 13,401 | S155: 31,835 | T155: 45,235 | X155: 13052 | Y155: 665
A156: 08 | B156: ATLANTICO | C156: Polonuevo | D156: 08558 | E156: 272 | F156: 262 | G156: 280 | O156: 77 | Q156: 13062 | R156: 2,028 | S156: 3,668 | T156: 5,696 | X156: 13062 | Y156: 77
A157: 08 | B157: ATLANTICO | C157: Ponedera | D157: 08560 | E157: 422 | F157: 426 | G157: 438 | O157: 169 | Q157: 13074 | R157: 2,640 | S157: 6,094 | T157: 8,734 | X157: 13074 | Y157: 169
A158: 08 | B158: ATLANTICO | C158: Puerto Colombia | D158: 08573 | E158: 474 | F158: 481 | G158: 481 | O158: 215 | Q158: 13140 | R158: 4,922 | S158: 9,656 | T158: 14,578 | X158: 13140 | Y158: 215
A159: 08 | B159: ATLANTICO | C159: Repelon | D159: 08606 | E159: 512 | F159: 512 | G159: 531 | O159: 84 | Q159: 13160 | R159: 953 | S159: 3,732 | T159: 4,684 | X159: 13160 | Y159: 84
A160: 08 | B160: ATLANTICO | C160: Sabanagrande | D160: 08634 | E160: 470 | F160: 497 | G160: 512 | O160: 150 | Q160: 13188 | R160: 2,669 | S160: 5,818 | T160: 8,487 | X160: 13188 | Y160: 150
A161: 08 | B161: ATLANTICO | C161: Sabanalarga | D161: 08638 | E161: 1,456 | F161: 1,494 | G161: 1,645 | O161: 145 | Q161: 13212 | R161: 2,929 | S161: 6,880 | T161: 9,809 | X161: 13212 | Y161: 145
A162: 08 | B162: ATLANTICO | C162: Santa Lucia | D162: 08675 | E162: 251 | F162: 251 | G162: 276 | O162: 152 | Q162: 13222 | R162: 2,320 | S162: 6,525 | T162: 8,845 | X162: 13222 | Y162: 152
A163: 08 | B163: ATLANTICO | C163: Santo Tomas | D163: 08685 | E163: 435 | F163: 444 | G163: 455 | O163: 660 | Q163: 13244 | R163: 15,759 | S163: 30,471 | T163: 46,231 | X163: 13244 | Y163: 660
A164: 08 | B164: ATLANTICO | C164: Soledad | D164: 08758 | E164: 9,998 | F164: 10,042 | G164: 10,950 | O164: 71 | Q164: 13248 | R164: 2,018 | S164: 3,750 | T164: 5,768 | X164: 13248 | Y164: 71
A165: 08 | B165: ATLANTICO | C165: Suan | D165: 08770 | E165: 206 | F165: 212 | G165: 214 | O165: 84 | Q165: 13268 | R165: 1,397 | S165: 3,171 | T165: 4,568 | X165: 13268 | Y165: 84
A166: 08 | B166: ATLANTICO | C166: Tubara | D166: 08832 | E166: 143 | F166: 148 | G166: 159 | O166: 146 | Q166: 13300 | R166: 2,349 | S166: 5,140 | T166: 7,489 | X166: 13300 | Y166: 146
A167: 08 | B167: ATLANTICO | C167: Usiacuri | D167: 08849 | E167: 131 | F167: 134 | G167: 147 | O167: 1293 | Q167: 13430 | R167: 34,432 | S167: 59,035 | T167: 93,467 | X167: 13430 | Y167: 1293
A168: 11 | B168: BOGOTA | C168: Bogota, D.C. | D168: 11001 | E168: 90,967 | F168: 93,996 | G168: 96,930 | O168: 262 | Q168: 13433 | R168: 5,399 | S168: 12,478 | T168: 17,877 | X168: 13433 | Y168: 262
B169: BOLIVAR | C169: Cartagena | D169: 13001 | E169: 16,175 | F169: 17,942 | G169: 18,393 | O169: 101 | Q169: 13440 | R169: 2,296 | S169: 4,373 | T169: 6,669 | X169: 13440 | Y169: 101
A170: 13 | B170: BOLIVAR | C170: Achi | D170: 13006 | E170: 352 | F170: 388 | G170: 412 | O170: 481 | Q170: 13442 | R170: 9,252 | S170: 19,976 | T170: 29,228 | X170: 13442 | Y170: 481
A171: 13 | B171: BOLIVAR | C171: Altos del Rosario | D171: 13030 | E171: 203 | F171: 229 | G171: 235 | O171: 179 | Q171: 13458 | R171: 1,736 | S171: 7,350 | T171: 9,086 | X171: 13458 | Y171: 179
A172: 13 | B172: BOLIVAR | C172: Arenal | D172: 13042 | E172: 153 | F172: 161 | G172: 187 | O172: 453 | Q172: 13468 | R172: 12,276 | S172: 19,101 | T172: 31,377 | X172: 13468 | Y172: 453
A173: 13 | B173: BOLIVAR | C173: Arjona | D173: 13052 | E173: 1,108 | F173: 1,202 | G173: 1,215 | O173: 229 | Q173: 13473 | R173: 2,517 | S173: 9,774 | T173: 12,290 | X173: 13473 | Y173: 229
A174: 13 | B174: BOLIVAR | C174: Arroyohondo | D174: 13062 | E174: 151 | F174: 144 | G174: 161 | O174: 105 | Q174: 13490 | R174: 813 | S174: 4,165 | T174: 4,978 | X174: 13490 | Y174: 105
A175: 13 | B175: BOLIVAR | C175: Barranco de Loba | D175: 13074 | E175: 349 | F175: 365 | G175: 390 | O175: 258 | Q175: 13549 | R175: 4,182 | S175: 10,077 | T175: 14,259 | X175: 13549 | Y175: 258
A176: 13 | B176: BOLIVAR | C176: Calamar | D176: 13140 | E176: 366 | F176: 400 | G176: 430 | O176: 81 | Q176: 13580 | R176: 971 | S176: 2,960 | T176: 3,931 | X176: 13580 | Y176: 81
A177: 13 | B177: BOLIVAR | C177: Cantagallo | D177: 13160 | E177: 130 | F177: 130 | G177: 149 | O177: 95 | Q177: 13600 | R177: 1,583 | S177: 4,500 | T177: 6,083 | X177: 13600 | Y177: 95
A178: 13 | B178: BOLIVAR | C178: Cicuco | D178: 13188 | E178: 315 | F178: 317 | G178: 327 | O178: 75 | Q178: 13620 | R178: 1,858 | S178: 3,613 | T178: 5,472 | X178: 13620 | Y178: 75
A179: 13 | B179: BOLIVAR | C179: Cordoba | D179: 13212 | E179: 225 | F179: 255 | G179: 251 | O179: 170 | Q179: 13647 | R179: 3,485 | S179: 8,119 | T179: 11,604 | X179: 13647 | Y179: 170
A180: 13 | B180: BOLIVAR | C180: Clemencia | D180: 13222 | E180: 259 | F180: 266 | G180: 283 | O180: 129 | Q180: 13650 | R180: 2,289 | S180: 5,140 | T180: 7,429 | X180: 13650 | Y180: 129
A181: 13 | B181: BOLIVAR | C181: El Carmen de Bolivar | D181: 13244 | E181: 1,145 | F181: 1,250 | G181: 1,372 | O181: 216 | Q181: 13654 | R181: 5,770 | S181: 10,241 | T181: 16,010 | X181: 13654 | Y181: 216
A182: 13 | B182: BOLIVAR | C182: El Guamo | D182: 13248 | E182: 132 | F182: 132 | G182: 137 | O182: 108 | Q182: 13655 | R182: 1,788 | S182: 4,350 | T182: 6,138 | X182: 13655 | Y182: 108
A183: 13 | B183: BOLIVAR | C183: El Peñon | D183: 13268 | E183: 132 | F183: 132 | G183: 150 | O183: 315 | Q183: 13657 | R183: 8,995 | S183: 16,402 | T183: 25,398 | X183: 13657 | Y183: 315
A184: 13 | B184: BOLIVAR | C184: Hatillo de Loba | D184: 13300 | E184: 313 | F184: 317 | G184: 332 | O184: 150 | Q184: 13667 | R184: 2,699 | S184: 5,978 | T184: 8,676 | X184: 13667 | Y184: 150
A185: 13 | B185: BOLIVAR | C185: Magangue | D185: 13430 | E185: 2,054 | F185: 2,199 | G185: 2,481 | O185: 312 | Q185: 13670 | R185: 3,269 | S185: 12,077 | T185: 15,346 | X185: 13670 | Y185: 312
A186: 13 | B186: BOLIVAR | C186: Mahates | D186: 13433 | E186: 416 | F186: 431 | G186: 456 | O186: 137 | Q186: 13673 | R186: 2,361 | S186: 6,361 | T186: 8,722 | X186: 13673 | Y186: 137
A187: 13 | B187: BOLIVAR | C187: Margarita | D187: 13440 | E187: 134 | F187: 140 | G187: 155 | O187: 212 | Q187: 13683 | R187: 3,548 | S187: 9,742 | T187: 13,290 | X187: 13683 | Y187: 212
A188: 13 | B188: BOLIVAR | C188: Maria La Baja | D188: 13442 | E188: 906 | F188: 956 | G188: 989 | O188: 356 | Q188: 13688 | R188: 3,778 | S188: 14,946 | T188: 18,724 | X188: 13688 | Y188: 356
A189: 13 | B189: BOLIVAR | C189: Montecristo | D189: 13458 | E189: 212 | F189: 224 | G189: 247 | O189: 183 | Q189: 13744 | R189: 2,623 | S189: 8,156 | T189: 10,778 | X189: 13744 | Y189: 183
A190: 13 | B190: BOLIVAR | C190: Mompos | D190: 13468 | E190: 915 | F190: 918 | G190: 947 | O190: 91 | Q190: 13760 | R190: 2,111 | S190: 4,639 | T190: 6,750 | X190: 13760 | Y190: 91
A191: 13 | B191: BOLIVAR | C191: Morales | D191: 13473 | E191: 260 | F191: 262 | G191: 313 | O191: 139 | Q191: 13780 | R191: 2,481 | S191: 5,365 | T191: 7,847 | X191: 13780 | Y191: 139
A192: 13 | B192: BOLIVAR | C192: Norosi | D192: 13490 | E192: 121 | F192: 147 | G192: 154 | O192: 222 | Q192: 13810 | R192: 2,771 | S192: 7,497 | T192: 10,268 | X192: 13810 | Y192: 222
A193: 13 | B193: BOLIVAR | C193: Pinillos | D193: 13549 | E193: 413 | F193: 451 | G193: 475 | O193: 942 | Q193: 13836 | R193: 17,740 | S193: 50,579 | T193: 68,319 | X193: 13836 | Y193: 942
A194: 13 | B194: BOLIVAR | C194: Regidor | D194: 13580 | E194: 168 | F194: 170 | G194: 175 | O194: 146 | Q194: 13838 | R194: 2,806 | S194: 7,599 | T194: 10,406 | X194: 13838 | Y194: 146
A195: 13 | B195: BOLIVAR | C195: Rio Viejo | D195: 13600 | E195: 166 | F195: 166 | G195: 174 | O195: 246 | Q195: 13873 | R195: 3,874 | S195: 10,723 | T195: =R195+S195 -> 14,596 | X195: 13873 | Y195: 246
A196: 13 | B196: BOLIVAR | C196: San Cristobal | D196: 13620 | E196: 125 | F196: 126 | G196: 139 | O196: 108 | Q196: 13894 | R196: 2,354 | S196: 5,147 | T196: 7,500 | X196: 13894 | Y196: 108
A197: 13 | B197: BOLIVAR | C197: San Estanislao | D197: 13647 | E197: 242 | F197: 254 | G197: 301 | O197: 1255 | Q197: 15001 | R197: 49,409 | S197: 83,161 | T197: 132,569 | X197: 15001 | Y197: 1255
A198: 13 | B198: BOLIVAR | C198: San Fernando | D198: 13650 | E198: 180 | F198: 194 | G198: 204 | O198: 10 | Q198: 15022 | R198: 490 | S198: 703 | T198: 1,193 | X198: 15022 | Y198: 10
A199: 13 | B199: BOLIVAR | C199: San Jacinto | D199: 13654 | E199: 361 | F199: 378 | G199: 404 | O199: 138 | Q199: 15047 | R199: 2,905 | S199: 6,522 | T199: 9,426 | X199: 15047 | Y199: 138
A200: 13 | B200: BOLIVAR | C200: San Jacinto del Cauca | D200: 13655 | E200: 142 | F200: 150 | G200: 192 | O200: 49 | Q200: 15051 | R200: 994 | S200: 2,561 | T200: 3,555 | X200: 15051 | Y200: 49
... 924 more rows

Sheet 1_PLANTILLA_MENSUAL
E1: =D1+1 -> 1 | F1: 2 | G1: 3 | H1: =G1+1 -> 4 | I1: =H1+1 -> 5 | J1: =I1+1 -> 6 | K1: =J1+1 -> 7 | L1: =K1+1 -> 8 | M1: =L1+1 -> 9 | N1: =M1+1 -> 10 | O1: =N1+1 -> 11 | P1: =O1+1 -> 12 | Q1: =P1+1 -> 13 | R1: =Q1+1 -> 14 | S1: =R1+1 -> 15 | T1: =S1+1 -> 16 | U1: =T1+1 -> 17 | V1: =U1+1 -> 18 | W1: =V1+1 -> 19 | X1: =W1+1 -> 20 | Y1: =X1+1 -> 21 | Z1: =Y1+1 -> 22 | AA1: =Z1+1 -> 23 | AB1: =AA1+1 -> 24 | AC1: =#REF!+1 ->  | AD1: =AC1+1 ->  | AE1: =AD1+1 ->  | AF1: =AE1+1 ->  | AG1: =AF1+1 ->  | AH1: =AG1+1 ->  | AJ1: =AH1+1 ->  | AK1: =AJ1+1 ->  | AL1: =AK1+1 ->  | AN1: =AL1+1 ->  | AO1: =AN1+1 ->  | AP1: =AO1+1 ->  | AR1: =AP1+1 ->  | AS1: =AR1+1 ->  | AT1: =AS1+1 ->  | AV1: =AT1+1 ->  | AW1: =AV1+1 ->  | AX1: =AW1+1 ->  | AZ1: =AX1+1 ->  | BA1: =AZ1+1 ->  | BB1: =BA1+1 ->  | BC1: =BB1+1 ->  | BD1: =BC1+1 ->  | BE1: =BD1+1 ->  | BF1: =BE1+1 ->  | BG1: =BF1+1 ->  | BH1: =BG1+1 ->  | BI1: =BH1+1 ->  | BJ1: =BI1+1 ->  | BK1: =BJ1+1 ->  | BL1: =BK1+1 ->  | BM1: =BL1+1 ->  | BN1: =BM1+1 ->  | BP1: =#REF!+1 ->  | BQ1: =BP1+1 ->  | BR1: =BQ1+1 ->  | BS1: =BR1+1 ->  | BT1: =BS1+1 ->  | BU1: =BT1+1 ->  | BV1: =BU1+1 ->  | BW1: =BV1+1 ->  | BX1: =BW1+1 ->  | BY1: =BX1+1 ->  | BZ1: =BY1+1 ->  | CA1: =BZ1+1 ->  | CB1: =CA1+1 ->  | CC1: =CB1+1 ->  | CD1: =CC1+1 ->  | CE1: =CD1+1 ->  | CF1: =CE1+1 ->  | CG1: =CF1+1 ->  | CH1: =CG1+1 ->  | CI1: =CH1+1 ->  | CJ1: =CI1+1 ->  | CK1: =CJ1+1 ->  | CL1: =CK1+1 ->  | CM1: =CL1+1 ->  | CN1: =CM1+1 ->  | CO1: =CN1+1 ->  | CP1: =CO1+1 ->  | CQ1: =CP1+1 ->  | CR1: =CQ1+1 ->  | CS1: =CO1+1 ->  | CT1: =CS1+1 ->  | CU1: =CT1+1 ->  | CV1: =#REF!+1 ->  | CW1: =CV1+1 ->  | CX1: =#REF!+1 ->  | CY1: =CX1+1 ->  | CZ1: =CY1+1 ->  | DA1: =CZ1+1 ->  | DB1: =DA1+1 ->  | DC1: =DB1+1 ->  | DD1: =DC1+1 ->  | DE1: =DD1+1 ->  | DF1: =#REF!+1 ->  | DG1: =DF1+1 ->  | DH1: =DG1+1 ->  | DI1: =DH1+1 ->  | DJ1: =DI1+1 ->  | DK1: =DJ1+1 ->  | DL1: =DK1+1 ->  | DM1: =DL1+1 ->  | DN1: =DM1+1 ->  | DO1: =DN1+1 ->  | DP1: =DO1+1 ->  | DQ1: =DK1+1 ->  | DR1: =#REF!+1 ->  | DS1: =#REF!+1 ->  | DT1: =#REF!+1 ->  | DU1: =#REF!+1 ->  | DV1: =DU1+1 ->  | DW1: =DV1+1 ->  | DX1: =DW1+1 ->  | DY1: =DX1+1 ->  | DZ1: =DY1+1 ->  | EA1: =DZ1+1 ->  | EB1: =EA1+1 ->  | EC1: =EB1+1 ->  | ED1: =EC1+1 ->  | EE1: =ED1+1 ->  | EF1: =EE1+1 ->  | EG1: =EF1+1 ->  | EH1: =EG1+1 ->  | EI1: =EH1+1 ->  | EJ1: =EI1+1 ->  | EK1: =EJ1+1 ->  | EL1: =EK1+1 ->  | EM1: =EL1+1 ->  | EN1: =EM1+1 ->  | EO1: =EN1+1 ->  | EP1: =EO1+1 ->  | EQ1: =EP1+1 ->  | ER1: =EQ1+1 ->  | ES1: =ER1+1 ->  | ET1: =ES1+1 ->  | EU1: =ET1+1 ->  | EV1: =EU1+1 ->  | EW1: =EV1+1 ->  | EX1: =EW1+1 ->  | EY1: =EX1+1 ->  | EZ1: =EY1+1 ->  | FA1: =EZ1+1 ->  | FB1: =FA1+1 ->  | FC1: =FB1+1 ->  | FD1: =FC1+1 ->  | FE1: =FD1+1 ->  | FF1: =FE1+1 ->  | FG1: =FF1+1 ->  | FH1: =FG1+1 ->  | FI1: =FH1+1 ->  | FJ1: =FI1+1 ->  | FK1: =FJ1+1 ->  | FL1: =FK1+1 ->  | FM1: =FL1+1 ->  | FN1: =FM1+1 ->  | FO1: =FN1+1 ->  | FP1: =FO1+1 ->  | FQ1: =FP1+1 ->  | FR1: =FQ1+1 ->  | FS1: =FR1+1 ->  | FT1: =FS1+1 ->  | FU1: =FT1+1 ->  | FV1: =FU1+1 ->  | FW1: =FV1+1 ->  | FX1: =FW1+1 ->  | FY1: =FX1+1 ->  | FZ1: =FY1+1 ->  | GA1: =FZ1+1 ->  | GB1: =GA1+1 ->  | GC1: =GB1+1 ->  | GD1: =GC1+1 ->  | GE1: =GD1+1 ->  | GF1: =GE1+1 ->  | GG1: =GF1+1 ->  | GH1: =GG1+1 ->  | GI1: =GH1+1 ->  | GJ1: =GI1+1 ->  | GK1: =GJ1+1 ->  | GL1: =GK1+1 ->  | GM1: =GL1+1 ->  | GN1: =GM1+1 ->  | GO1: =GN1+1 ->  | GP1: =GO1+1 ->  | GQ1: =GP1+1 ->  | GR1: =GQ1+1 ->  | GS1: =GR1+1 ->  | GT1: =GS1+1 ->  | GU1: =GT1+1 ->  | GV1: =GU1+1 ->  | GW1: =GV1+1 ->  | GX1: =GW1+1 ->  | GY1: =GX1+1 ->  | GZ1: =GY1+1 ->  | HA1: =GZ1+1 ->  | HB1: =HA1+1 ->  | HC1: =HB1+1 ->  | HD1: =HC1+1 ->  | HE1: =HD1+1 ->  | HF1: =HE1+1 ->  | HG1: =HF1+1 ->  | HH1: =HG1+1 ->  | HI1: =HH1+1 ->  | HJ1: =HI1+1 ->  | HK1: =HJ1+1 ->  | HL1: =HK1+1 ->  | HM1: =HL1+1 ->  | HN1: =HM1+1 ->  | HO1: =HN1+1 ->  | HP1: =HO1+1 ->  | HQ1: =HP1+1 ->  | HR1: =HQ1+1 ->  | HS1: =HL1+1 ->  | HT1: =HS1+1 ->  | HU1: =HT1+1 ->  | HV1: =HU1+1 ->  | HW1: =HV1+1 ->  | HX1: =HW1+1 ->  | HY1: =HX1+1 ->  | HZ1: =HY1+1 ->  | IA1: =HZ1+1 ->  | IB1: =HZ1+1 ->  | ID1: =IC1+1 ->  | IE1: =ID1+1 ->  | IF1: =IE1+1 ->  | IG1: =IF1+1 ->  | IH1: =IG1+1 ->  | II1: =IG1+1 ->  | IK1: =IJ1+1 ->  | IL1: =IK1+1 ->  | IM1: =IL1+1 ->  | IN1: =IM1+1 ->  | IO1: =IN1+1 ->  | IP1: =IO1+1 ->  | IQ1: =IP1+1 ->  | IR1: =IQ1+1 ->  | IS1: =IR1+1 ->  | IT1: =IS1+1 ->  | IU1: =IT1+1 ->  | IV1: =IU1+1 ->  | IX1: =IV1+1 ->  | IY1: =IX1+1 ->  | IZ1: =IY1+1 ->  | JA1: =IZ1+1 ->  | JB1: =JA1+1 ->  | JC1: =JB1+1 ->  | JD1: =JC1+1 ->  | JE1: =JD1+1 ->  | JF1: =JE1+1 ->  | JG1: =JF1+1 ->  | JH1: =JG1+1 ->  | JI1: =JH1+1 ->  | JJ1: =JI1+1 ->  | JK1: =JJ1+1 ->  | JL1: =JK1+1 ->  | JM1: =JL1+1 ->  | JN1: =JM1+1 ->  | JO1: =JN1+1 ->  | JP1: =JO1+1 ->  | JQ1: =JP1+1 ->  | JR1: =JQ1+1 ->  | JS1: =JR1+1 ->  | JT1: =JS1+1 ->  | JU1: =JT1+1 ->  | JV1: =JU1+1 ->  | JW1: =JV1+1 ->  | JX1: =JW1+1 ->  | JY1: =JX1+1 ->  | JZ1: =JY1+1 ->  | KA1: =JZ1+1 ->  | KB1: =KA1+1 ->  | KC1: =KA1+1 ->  | KE1: =#REF!+1 ->  | KF1: =KE1+1 ->  | KG1: =KF1+1 ->  | KH1: =KG1+1 ->  | KI1: =KH1+1 ->  | KJ1: =KI1+1 ->  | KK1: =KI1+1 ->  | KM1: =KL1+1 ->  | KN1: =KM1+1 ->  | KO1: =KM1+1 ->  | KQ1: =#REF!+1 ->  | KR1: =KQ1+1 ->  | KS1: =KR1+1 ->  | KT1: =KS1+1 ->  | KU1: =KT1+1 ->  | KV1: =KU1+1 ->  | KW1: =KV1+1 ->  | KX1: =KW1+1 ->  | KY1: =KX1+1 ->  | KZ1: =KY1+1 ->  | LA1: =KZ1+1 ->  | LB1: =LA1+1 ->  | LC1: =LB1+1 ->  | LD1: =LC1+1 ->  | LE1: =LD1+1 ->  | LF1: =LE1+1 ->  | LG1: =LF1+1 ->  | LH1: =LG1+1 ->  | LI1: =LH1+1 ->  | LJ1: =LI1+1 ->  | LK1: =LJ1+1 ->  | LL1: =LK1+1 ->  | LM1: =LL1+1 ->  | LN1: =LM1+1 ->  | LO1: =LN1+1 ->  | LP1: =LO1+1 ->  | LQ1: =LP1+1 ->  | LR1: =LQ1+1 ->  | LS1: =LR1+1 ->  | LT1: =LS1+1 ->  | LU1: =LT1+1 ->  | LV1: =LU1+1 ->  | LW1: =LV1+1 ->  | LX1: =LW1+1 ->  | LY1: =LX1+1 ->  | LZ1: =LY1+1 ->  | MA1: =LZ1+1 ->  | MB1: =MA1+1 ->  | MC1: =MB1+1 ->  | MD1: =MC1+1 ->  | ME1: =MD1+1 ->  | MF1: =ME1+1 ->  | MG1: =MF1+1 ->  | MH1: =MG1+1 ->  | MI1: =MH1+1 ->  | MJ1: =MI1+1 ->  | MK1: =MJ1+1 ->  | ML1: =MK1+1 ->  | MM1: =ML1+1 ->  | MN1: =MM1+1 ->  | MO1: =MN1+1 ->  | MP1: =MO1+1 ->  | MQ1: =MP1+1 ->  | MR1: =MQ1+1 ->  | MS1: =MR1+1 ->  | MT1: =MS1+1 ->  | MU1: =MT1+1 ->  | MV1: =MU1+1 ->  | MW1: =MV1+1 ->  | MX1: =MW1+1 ->  | MY1: =MX1+1 ->  | MZ1: =MY1+1 ->  | NA1: =MZ1+1 ->  | NB1: =NA1+1 ->  | NC1: =NB1+1 ->  | ND1: =NC1+1 ->  | NE1: =ND1+1 ->  | NF1: =NE1+1 ->  | NG1: =NF1+1 ->  | NH1: =#REF!+1 ->  | NI1: =NH1+1 ->  | NJ1: =NI1+1 ->  | NK1: =NJ1+1 ->  | NL1: =NK1+1 ->  | NM1: =NL1+1 ->  | NN1: =NM1+1 ->  | NO1: =NN1+1 ->  | NP1: =#REF!+1 ->  | NQ1: =NP1+1 ->  | NR1: =#REF!+1 ->  | NS1: =NQ1+1 ->  | NU1: =#REF!+1 ->  | NV1: =#REF!+1 ->  | NW1: =#REF!+1 ->  | NX1: =NW1+1 ->  | NY1: =NX1+1 ->  | NZ1: =#REF!+1 ->  | OA1: =NZ1+1 ->  | OB1: =#REF!+1 ->  | OC1: =OB1+1 ->  | OD1: =OC1+1 ->  | OE1: =OD1+1 ->  | OF1: =OE1+1 ->  | OG1: =OF1+1 ->  | OH1: =OG1+1 ->  | OI1: =OH1+1 ->  | OJ1: =OI1+1 ->  | OK1: =OJ1+1 ->  | OL1: =OK1+1 ->  | OM1: =OL1+1 ->  | ON1: =OM1+1 ->  | OO1: =ON1+1 ->  | OP1: =OO1+1 ->  | OQ1: =OP1+1 ->  | OR1: =OQ1+1 ->  | OS1: =OR1+1 ->  | OT1: =OS1+1 ->  | OU1: =OT1+1 ->  | OV1: =OU1+1 ->  | OW1: =OV1+1 ->  | OX1: =OW1+1 ->  | OY1: =OX1+1 ->  | OZ1: =OY1+1 ->  | PA1: =OZ1+1 ->  | PB1: =PA1+1 ->  | PC1: =PB1+1 ->  | PD1: =#REF!+1 ->  | PE1: =PD1+1 ->  | PF1: =PE1+1 ->  | PG1: =PF1+1 ->  | PH1: =PG1+1 ->  | PI1: =PH1+1 ->  | PJ1: =PI1+1 ->  | PK1: =PJ1+1 ->  | PL1: =PK1+1 ->  | PM1: =PL1+1 ->  | PN1: =PM1+1 ->  | PO1: =PN1+1 ->  | PP1: =PO1+1 ->  | PQ1: =PP1+1 ->  | PR1: =PQ1+1 ->  | PS1: =PR1+1 ->  | PT1: =PS1+1 ->  | PU1: =PT1+1 ->  | PV1: =PU1+1 ->  | PW1: =PV1+1 ->  | PX1: =PW1+1 ->  | PY1: =PX1+1 ->  | PZ1: =PY1+1 ->  | QA1: =#REF!+1 ->  | QB1: =QA1+1 ->  | QE1: 0 | QX1: . | RU1: 0
A2: NOMBRE DEPARTAMENTO: | D2: BOGOTA | E2: CODIGO DEPARTAMENTO: | G2: =VLOOKUP(D2,Tabla2[[DEPARTAMENTO]:[CODEP]],2,0) -> 11
A3: AÑO: | D3: 2022 | QC3: . | RU3: .
A4: MES DE REPORTE | D4: Julio | F4: VACUNAS PAI | S4: VACUNAS PAI | BV4: VACUNAS PAI | DF4: VACUNAS PAI | EM4: VACUNAS PAI | FI4: VACUNAS PAI | GN4: VACUNAS PAI | HE4: VACUNAS PAI | LU4: VACUNAS PAI | PB4: VACUNAS PAI | PY4: VACUNAS PAI
A5: MUNICIPIO | D5: REGIMEN / GRUPO ETNICO | E5: BCG | I5: HEPATITIS B | AF5: HEPATITIS B (RESOLUCION. 0459/2012 y Circular 031/2014) | BL5: POBLACION PRIORIZADA PARA HEPATITIS B (Entidades Territoriales priorizados ) | BP5: ANTIPOLIO INACTIVADA (VIP) | CX5: POLIO ORAL - VOP | DF5: PENTAVALENTE DPT - HB - Hib | DQ5: PENTAVALENTE DPT - HB - Hib (CUANDO EL MINISTERIO LA AUTORICE) | DU5: DPT | EU5: DTPa Acelular Pediatrica | FZ5: TOXOIDE TETANICO-DIFTERICO PEDIATRICO (TD) | HE5: ROTAVIRUS | HG5: NEUMOCOCO CONJUGADA DECAVALENTE | HM5: NEUMOCOCO CONJUGADA TRECEVALENTE | HS5: SRP (TRIPLE VIRAL) | IK5: SR (DOBLE VIRAL) | JB5: FIEBRE AMARILLA DOSIS UNICA | JU5: HEPATITIS A (Cohorte de nacidos a partir de 1 de enero de 2012) | KE5: VARICELA (Cohorte de nacidos a partir de 1 de julio de 2014) | KQ5: TOXOIDE TETANICO-DIFTERICO DE ADULTOS (Td) | MV5: Tdap ACELULAR | NH5: INFLUENZA | NW5: MENINGOCOCO (PARA USO EN BROTES) | OC5: V P H | PF5: ANTIRRABICA HUMANA PRE/POST-EXPOSICION | PT5: INMUNOGLOBULINA ANTI HEPATITIS B | PY5: INMUNOGLOBULINAS/ANTITOXINAS TETÁNICAS | QA5: ANTI TOXINA DIFTERICA (Suero heterólogo)
E6: NIÑO O NIÑA RECIEN NACIDO (DE 0 HASTA 29 DÍAS) | F6: NIÑO O NIÑA MENOR DE UN AÑO (A PARTIR DE 30 DIAS HASTA 11 MESES 29 DIAS) | G6: POBLACION INDIGENA Y RURAL DISPERSA (DE 1 AÑO A 5 AÑOS, 11 MESES, 29 DIAS) | H6: CONTACTOS DE HANSEN (LEPRA) OTRAS EDADES | I6: RECIEN NACIDO (HASTA 29 DÍAS) | K6: DE 2 A 11 MESES 29 DÍAS | N6: DE 1 AÑO | Q6: DE 2 AÑOS | T6: DE 3 AÑOS | W6: DE 4 AÑOS | Z6: DE 5 AÑOS | AC6: DE 6 a 18 AÑOS (ICBF) | AF6: DE 1 AÑO | AJ6: DE 2 AÑOS | AN6: DE 3 AÑOS | AR6: DE 4 AÑOS | AV6: DE 5 AÑOS | AZ6: 6 A 14 AÑOS | BD6: DE 15 AÑOS A 17 AÑOS | BH6: DE 18 AÑOS Y MAS | BP6: < DE 1 AÑO | BS6: DE 1 AÑO | BV6: DE 2 AÑOS | BY6: DE 3 AÑOS | CB6: DE 4 AÑOS | CE6: DE 5 AÑOS | CH6: AL AÑO DE LA 3ra DOSIS (De 18 a 23 meses) | CI6: DE 2 AÑOS | CJ6: DE 3 AÑOS | CK6: DE 4 AÑOS | CL6: DE 5 AÑOS | CM6: 3 AÑOS | CN6: 4 AÑOS | CO6: 5 AÑOS | CP6: DE 6 AÑOS | CS6: DE 7 A 17 AÑOS (AUTORIZADAS POR EL MINISTERIO) | CV6: DE 18 A 60 AÑOS (AUTORIZADAS POR EL MINISTERIO) | CX6: AL AÑO DE LA 3ra DOSIS (De 18 a 23 meses) | CY6: DE 2 AÑOS | CZ6: DE 3 AÑOS | DA6: DE 4 AÑOS | DB6: DE 5 AÑOS | DC6: 3 AÑOS | DD6: 4 AÑOS | DE6: 5 AÑOS | DF6: < DE 1 AÑO | DI6: DE 1 AÑO | DL6: AL AÑO DE LA 3ra DOSIS (De 18 a 23 meses) | DM6: DE 2 AÑOS | DN6: DE 3 AÑOS | DO6: DE 4 AÑOS | DP6: DE 5 AÑOS | DQ6: DE 2 AÑOS | DR6: DE 3 AÑOS | DS6: DE 4 AÑOS | DT6: DE 5 AÑOS | DU6: < DE 1 AÑO | DX6: DE 1 AÑO | EA6: DE 2 AÑOS | ED6: DE 3 AÑOS | EG6: DE 4 AÑOS | EJ6: DE 5 AÑOS | EM6: AL AÑO DE LA 3ra DOSIS (De 18 a 23 meses) | EN6: DE 2 AÑOS | EO6: DE 3 AÑOS | EP6: DE 4 AÑOS | EQ6: DE 5 AÑOS | ER6: 3 AÑOS | ES6: 4 AÑOS | ET6: 5 AÑOS | EU6: < DE 1 AÑO | EX6: DE 1 AÑO | FA6: DE 2 AÑOS | FD6: DE 3 AÑOS | FG6: DE 4 AÑOS | FJ6: DE 5 AÑOS | FM6: AL AÑO DE LA 3ra DOSIS (De 18 a 23 meses) | FN6: DE 2 AÑOS | FO6: DE 3 AÑOS | FP6: DE 4 AÑOS | FQ6: DE 5 AÑOS | FR6: 3 AÑOS | FS6: 4 AÑOS | FT6: 5 AÑOS | FU6: DE 6 AÑOS | FZ6: < DE 1 AÑO | GC6: DE 1 AÑO | GF6: DE 2 AÑOS | GI6: DE 3 AÑOS | GL6: DE 4 AÑOS | GO6: DE 5 AÑOS | GR6: AL AÑO DE LA 3ra DOSIS (De 18 a 23 meses) | GS6: DE 2 AÑOS | GT6: DE 3 AÑOS | GU6: DE 4 AÑOS | GV6: DE 5 AÑOS | GW6: 3 AÑOS | GX6: 4 AÑOS | GY6: 5 AÑOS | GZ6: DE 6 AÑOS | HE6: DE 2 MESES A 3 MESES y 21 DIAS | HF6: DE 4 MESES A 11 MESES y 29 DIAS | HG6: DE 2 A 11 MESES 29 DIAS | HI6: DE 12 MESES A 23 MESES | HJ6: DE 12 A 23 MESES | HL6: DE 24 MESES A 5 AÑOS | HM6: DE 2 A 11 MESES 29 DIAS | HO6: DE 12 MESES A 23 MESES | HP6: DE 12 A 23 MESES | HR6: DE 24 MESES A 5 AÑOS | HS6: PRIMERA DOSIS | ID6: DOSIS DE REFUERZO | IK6: DOSIS CERO | IL6: DOSIS UNICA | JB6: DE 1 AÑO | JC6: DE 2 AÑOS | JD6: DE 3 AÑOS | JE6: DE 4 AÑOS | JF6: DE 5 AÑOS | JG6: DE 6 AÑOS | JH6: DE 7 AÑOS | JI6: DE 8 AÑOS | JJ6: DE 9 AÑOS | JK6: DE 10 AÑOS | JL6: DE 11 AÑOS | JM6: DE 12 AÑOS | JN6: DE 13 a 14 AÑOS | JO6: DE 15 a 17 AÑOS | JP6: 18 A 30 AÑOS | JQ6: 31 A 40 AÑOS | JR6: 41 A 50 AÑOS | JS6: 51 A 59 AÑOS | JT6: SOLO EN SITUACIÓN DE BROTE | JU6: DOSIS ÚNICA | KE6: PRIMERA DOSIS | KM6: REFUERZO | KQ6: NIÑOS Y NIÑAS DE 7 A 9 AÑOS | KV6: GESTANTES DE 9 AÑOS A 17 AÑOS | LA6: GESTANTES DE 18 AÑOS Y MAS | LF6: REFUERZOS GESTANTES 15 A 49 AÑOS | LJ6: MUJERES EN EDAD FERTIL (MEF) DE 10 AÑOS A 17 AÑOS | LO6: MUJERES EN EDAD FERTIL (MEF) DE 18 A 49 AÑOS | LT6: REFUERZOS MEF DE 15 A 49 AÑOS | LX6: HOMBRES DE 10 A 17 AÑOS | MC6: HOMBRES DE 18 A 49 AÑOS | MH6: REFUERZOS HOMBRES DE 15 A 49 AÑOS | ML6: OTROS DE 50 A 59 AÑOS | MQ6: OTROS DE 60 AÑOS Y MAS | MV6: DE 9 A 17 AÑOS GESTANTES de acuerdo al lineamiento | NB6: DE 18 Y MAS AÑOS GESTANTES de acuerdo al lineamiento | NH6: DE 6 MESES A 11 MESES | NJ6: DE 12 MESES A 23 MESES | NM6: 24 A 35 MESES | NP6: DE 60 Y MAS AÑOS | NQ6: GESTANTES A PARTIR DE LA SEMANA 14 | NR6: DE 3 A 8 AÑOS (Poblaciones autorizadas de acuerdo con los lineamientos emitidos por el MSPS ) | NU6: DE 9 A 17 AÑOS (Poblaciones autorizadas de acuerdo con los lineamientos emitidos por el MSPS ) | NV6: DE 18 A 59 AÑOS (Poblaciones autorizadas de acuerdo con los lineamientos emitidos por el MSPS ) | NW6: DE 6 A 11 MESES | NZ6: 12 A 23 MESES | OB6: MAYORES DE 2 AÑOS | OC6: 9 AÑOS | OF6: 10 AÑOS | OI6: 11 AÑOS | OL6: 12 AÑOS | OO6: 13 AÑOS | OR6: 14 AÑOS | OU6: 15 AÑOS | OX6: 16 AÑOS | PA6: 17 AÑOS | PD6: 18 AÑOS a 26 AÑOS | PF6: ESQUEMA PRE EXPOSICIÓN OPCION 1 (I.D.) (Se aplica previa autorización del Ministerio) | PH6: ESQUEMA PRE EXPOSICIÓN OPCION 2 (I.M.) (Se aplica previa autorización del Ministerio) | PJ6: ESQUEMA POST EXPOSICION Número de dosis aplicadas | PN6: ESQUEMA POST EXPOSICION ACORTADO (ZAGREB) Número de dosis aplicadas | PQ6: TOTAL DE ESQUEMAS POST EXPOSICION (USUARIOS CON ESQUEMA DE VACUNACION COMPLETO) | PR6: INMUNOGLOBULINA ANTIRRÁBICA (Número de frascos utilizados) | PS6: No. De personas que recibieron inmunoglobulina antirrabica. | PT6: RECIEN NACIDO (Hijo de Madre Antigenos + para HB) | PW6: (RESOLUCION 0459/2012- circular 031/14) | PY6: INMUNOGLOBULINA ANTI TETANICA (Suero homólogo) | QD6: codepcomure | QE6: DOSIS APLICADAS POR BIOLOGICOS | QW6: FLU | RG6: ANTI RABICA HUMANA PRE/POST-EXPOSICION | RN6: INMUNO GLOBULINA ANTI HEPATITIS B | RQ6: (RESOLUCION 0459/2012- circular 031/14) | RS6: ANTI TOXINA TETANICA
A7: Nº | B7: COD DANE MPIO | C7: NOMBRE MUNICIPIO/ IPS | I7: RECIEN NACIDO (Primeras 12 Horas) | J7: RECIEN NACIDO Entre 12 horas y 29 dias | K7: 1a | L7: 2a | M7: 3a | N7: 1a | O7: 2a | P7: 3a | Q7: 1a | R7: 2a | S7: 3a | T7: 1a | U7: 2a | V7: 3a | W7: 1a | X7: 2a | Y7: 3a | Z7: 1a | AA7: 2a | AB7: 3a | AC7: 1a | AD7: 2a | AE7: 3a | AF7: 1a | AG7: 2a | AH7: 3a | AI7: Adicional | AJ7: 1a | AK7: 2a | AL7: 3a | AM7: Adicional | AN7: 1a | AO7: 2a | AP7: 3a | AQ7: Adicional | AR7: 1a | AS7: 2a | AT7: 3a | AU7: Adicional | AV7: 1a | AW7: 2a | AX7: 3a | AY7: Adicional | AZ7: 1a | BA7: 2a | BB7: 3a | BC7: Adicional | BD7: 1a | BE7: 2a | BF7: 3a | BG7: Adicional | BH7: 1a | BI7: 2a | BJ7: 3a | BK7: Adicional | BL7: 1a | BM7: 2a | BN7: 3a | BO7: adicional | BP7: 1a | BQ7: 2a | BR7: 3a | BS7: 1a | BT7: 2a | BU7: 3a | BV7: 1a | BW7: 2a | BX7: 3a | BY7: 1a | BZ7: 2a | CA7: 3a | CB7: 1a | CC7: 2a | CD7: 3a | CE7: 1a | CF7: 2a | CG7: 3a | CH7: Primer Refuerzo | CM7: Segundo Refuerzo | CO7: Segundo Refuerzo | CP7: 1a | CQ7: 2a | CR7: 3a | CS7: 1a | CT7: 2a | CU7: 3a | CV7: 1a | CW7: 2a | CX7: 1er REF. | DC7: 2° REF. | DF7: 1a | DG7: 2a | DH7: 3a | DI7: 1a | DJ7: 2a | DK7: 3a | DL7: 1er REF de acuerdo a lineamiento | DQ7: 1a | DR7: 1a | DS7: 1a | DT7: 1a | DU7: 1a | DV7: 2a | DW7: 3a | DX7: 1a | DY7: 2a | DZ7: 3a | EA7: 1a | EB7: 2a | EC7: 3a | ED7: 1a | EE7: 2a | EF7: 3a | EG7: 1a | EH7: 2a | EI7: 3a | EJ7: 1a | EK7: 2a | EL7: 3a | EM7: 1er REF. | ER7: 2° REF. | EU7: 1a | EV7: 2a | EW7: 3a | EX7: 1a | EY7: 2a | EZ7: 3a | FA7: 1a | FB7: 2a | FC7: 3a | FD7: 1a | FE7: 2a | FF7: 3a | FG7: 1a | FH7: 2a | FI7: 3a | FJ7: 1a | FK7: 2a | FL7: 3a | FM7: 1er REF. | FR7: 2° REF. | FU7: 1a | FV7: 2a | FW7: 3a | FX7: 1er REF. | FY7: 2° REF. | FZ7: 1a | GA7: 2a | GB7: 3a | GC7: 1a | GD7: 2a | GE7: 3a | GF7: 1a | GG7: 2a | GH7: 3a | GI7: 1a | GJ7: 2a | GK7: 3a | GL7: 1a | GM7: 2a | GN7: 3a | GO7: 1a | GP7: 2a | GQ7: 3a | GR7: 1er REF. | GW7: 2° REF. | GZ7: 1a | HA7: 2a | HB7: 3a | HC7: 1er REF. | HD7: 2° REF. | HE7: 1a | HF7: 2a | HG7: 1a | HH7: 2a | HI7: REF. | HJ7: 1a | HK7: 2a | HL7: ÚNICA | HM7: 1a | HN7: 2a | HO7: REF. | HP7: 1a | HQ7: 2a | HR7: ÚNICA | HS7: DE 1 AÑO | HT7: DE 2 AÑOS | HU7: DE 3 AÑOS | HV7: DE 4 AÑOS | HW7: DE 5 AÑOS | HX7: DE 6 AÑOS | HY7: DE 7 AÑOS | HZ7: DE 8 AÑOS | IA7: DE 9 AÑOS | IB7: DE 10 AÑOS | IC7: DE 11 AÑOS | ID7: DE 5 AÑOS | IE7: DE 6 AÑOS | IF7: DE 7 AÑOS | IG7: DE 8 AÑOS | IH7: DE 9 AÑOS | II7: DE 10 AÑOS | IJ7: DE 11 AÑOS | IK7: SR * 6 a 11 MESES 29 DIAS | IL7: DE 1 AÑO | IM7: DE 2 AÑOS | IN7: DE 3 AÑOS | IO7: DE 4 AÑOS | IP7: DE 5 AÑOS | IQ7: DE 6 AÑOS | IR7: DE 7 AÑOS | IS7: DE 8 AÑOS | IT7: DE 9 AÑOS | IU7: DE 10 AÑOS | IV7: DE 11 AÑOS | IW7: DE 12 a 14 AÑOS | IX7: DE 15 a 17 AÑOS | IY7: 18 A 30 AÑOS | IZ7: 31 A 40 AÑOS | JA7: 41 Y MAS AÑOS | JT7: 6 meses a 11 meses (Con Autorizacion del MSPS de acuerdo a Lineamientos) | JU7: DE 1 AÑO | JV7: DE 2 AÑOS | JW7: DE 3 AÑOS | JX7: DE 4 AÑOS | JY7: DE 5 AÑOS | JZ7: DE 6 AÑOS | KA7: DE 7 AÑOS | KB7: DE 8 AÑOS | KC7: DE 9 AÑOS | KD7: DE 10 AÑOS | KE7: DE 1 AÑO | KF7: DE 2 AÑOS | KG7: DE 3 AÑOS | KH7: DE 4 AÑOS | KI7: DE 5 AÑOS | KJ7: DE 6 AÑOS | KK7: DE 7 AÑOS | KL7: DE 8 AÑOS | KM7: DE 5 AÑOS (aplicadas a partir del 1 de julio de 2019) | KN7: DE 6 AÑOS (aplicadas a partir del 1 de julio de 2019) | KO7: DE 7 AÑOS (aplicadas a partir del 1 de julio de 2019) | KP7: DE 8 AÑOS (aplicadas a partir del 1 de julio de 2019) | KQ7: Td1 | KR7: Td2 | KS7: Td3 | KT7: Ref 1 | KU7: Ref 2 | KV7: Td1 | KW7: Td2 | KX7: Td3 | KY7: Td4 | KZ7: Td5 | LA7: Td1 | LB7: Td2 | LC7: Td3 | LD7: Td4 | LE7: Td5 | LF7: REF. 1 | LG7: REF. 2 | LH7: REF. 3 | LI7: REF. 4 | LJ7: Td1 | LK7: Td2 | LL7: Td3 | LM7: Td4 | LN7: Td5 | LO7: Td1 | LP7: Td2 | LQ7: Td3 | LR7: Td4 | LS7: Td5 | LT7: REF. 1 | LU7: REF. 2 | LV7: REF. 3 | LW7: REF. 4 | LX7: Td1 | LY7: Td2 | LZ7: Td3 | MA7: Td4 | MB7: Td5 | MC7: Td1 | MD7: Td2 | ME7: Td3 | MF7: Td4 | MG7: Td5 | MH7: REF. 1 | MI7: REF. 2 | MJ7: REF. 3 | MK7: REF. 4 | ML7: Td1 | MM7: Td2 | MN7: Td3 | MO7: Td4 | MP7: Td5 | MQ7: Td1 | MR7: Td2 | MS7: Td3 | MT7: Td4 | MU7: Td5 | MV7: U DOSIS EN C/EMBARAZO | MW7: Corresponde a Td1 | MX7: Corresponde a Td2 | MY7: Corresponde a Td3 | MZ7: Corresponde a Td4 | NA7: Corresponde a Td5 | NB7: U DOSIS EN C/EMBARAZO | NC7: Corresponde a Td1 | ND7: Corresponde a Td2 | NE7: Corresponde a Td3 | NF7: Corresponde a Td4 | NG7: Corresponde a Td5 | NH7: 1a | NI7: 2a | NJ7: 1a | NK7: 2a | NL7: ÚNICA | NM7: 1a | NN7: 2a | NO7: ÚNICA | NP7: ÚNICA | NQ7: ÚNICA | NR7: 1a | NS7: 2a | NT7: ÚNICA | NU7: ÚNICA | NV7: ÚNICA | NW7: 1a | NX7: 2a | NY7: 3a | NZ7: 1a | OA7: 2a | OB7: ÚNICA | OC7: 1a | OD7: 2a | OE7: 3a | OF7: 1a | OG7: 2a | OH7: 3a | OI7: 1a | OJ7: 2a | OK7: 3a | OL7: 1a | OM7: 2a | ON7: 3a | OO7: 1a | OP7: 2a | OQ7: 3a | OR7: 1a | OS7: 2a | OT7: 3a | OU7: 1a | OV7: 2a | OW7: 3a | OX7: 1a | OY7: 2a | OZ7: 3a | PA7: 1a | PB7: 2a | PC7: 3a | PD7: 2a | PE7: 3a | PF7: 1a. y 2a día 0 | PG7: 3a y 4a. día 7 | PH7: 1a . día 0 | PI7: 2a. día 7 | PJ7: 1a. día 0 | PK7: 2a. dia 3 | PL7: 3a. día 7 | PM7: 4a . día 14 | PN7: 1era. y 2da dosis 0,0 | PO7: 3a. día 7 | PP7: 4a. día 21 | PQ7: Número de usuarios | PT7: Número de frascos utilizados | PU7: N° recién nacidos que recibieron dosis de Ig en las primeras 12 horas | PV7: N° recién nacidos que recibieron dosis de Ig despues de las primeras 12 horas | PW7: Número de frascos utilizados | PX7: N° Personas que recibieron dosis de Ig | PY7: Número de frascos utilizados | PZ7: N° Personas que recibieron dosis de Ig | QA7: Número de frascos utilizados | QB7: N° Personas que recibieron dosis de antitoxina | QC7: TOTAL DOSIS | QE7: BCG | QF7: HEPATITIS B | QG7: ANTIPOLIO INACTIVADA (VIP) PARENTERAL | QH7: ANTIPOLIO (VOP) ORAL | QI7: PENTAVALENTE DPT - HB - Hib | QJ7: DPT | QK7: DTPa Acelular Pediatrica | QL7: TOXOIDE TETANICO-DIFTERICO PEDIATRICO (TD) | QM7: ROTAVIRUS | QN7: NEUMOCOCO CONJUGADA DECAVALENTE | QO7: NEUMOCOCO CONJUGADA TRECEVALENTE | QP7: SRP (TRIPLE VIRAL) | QQ7: SR | QR7: FIEBRE AMARILLA | QS7: HEPATITIS A | QT7: VARICELA | QU7: TOXOIDE TETANICO-DIFTERICO DE ADULTOS (Td) | QV7: dTpa. ACELULAR | QW7: DE 6 MESES A 23 MESES | QX7: DE 12 MESES A 23 MESES | QY7: 24 A 35 MESES | QZ7: DE 60 AÑOS Y MAS | RA7: Gestantes a partir de la semana 14 | RB7: DE 3 A 8 AÑOS (Poblaciones autorizadas de acuerdo con los lineamientos emitidos por el MSPS ) | RC7: DE 9 A 17 AÑOS (Poblaciones autorizadas de acuerdo con los lineamientos emitidos por el MSPS ) | RD7: DE 18 A 59 AÑOS (Poblaciones autorizadas de acuerdo con los lineamientos emitidos por el MSPS ) | RE7: MENINGOCOCO (PARA USO EN BROTES) ÚNICA | RF7: V. P. H. | RG7: ESQUEMA PRE EXPOSICIÓN OPCION 1 (I.D.) (Se aplica previa autorización del Ministerio) | RH7: ESQUEMA PRE EXPOSICIÓN OPCION 2 (I.M.) | RI7: ESQUEMA POST EXPOSICION Número de dosis aplicadas | RJ7: ESQUEMA POST EXPOSICION ACORTADO (ZAGREB) Número de dosis aplicadas | RK7: TOTAL DE ESQUEMAS POST EXPOSICION (USUARIOS CON ESQUEMA DE VACUNACION COMPLETO) | RL7: INMUNOGLOBULINA ANTIRRÁBICA (Número de frascos utilizados) | RM7: TOTAL DE ESQUEMAS POST EXPOSICION (USUARIOS CON ESQUEMA DE VACUNACION COMPLETO) | RN7: RECIEN NACIDO (Hijo de Madre Antigenos + para HB) Número de frascos utilizados | RO7: N° recién nacidos que recibieron dosis de Ig en las primeras 12 horas | RP7: N° recién nacidos que recibieron dosis de Ig despues de las primeras 12 horas | RQ7: Número de frascos utilizados | RR7: N° Personas que recibieron dosis de Ig | RS7: Número de frascos utilizados | RT7: N° Personas que recibieron dosis de Ig | RU7: ANTI TOXINA DIFTERICA (Suero heterólogo) Número de frascos utilizados | RV7: N° Personas que recibieron dosis de antitoxina | RW7: TOTAL DOSIS
C8: Bogotá | D8: FEMENINO | E8: 3,369 | F8: 68 | G8: 12 | H8: 6 | I8: 3,401 | J8: 101 | K8: 1 | L8: 1 | M8: 0 | N8: 0 | O8: 20 | P8: 56 | Q8: 2 | R8: 4 | S8: 21 | T8: 5 | U8: 2 | V8: 15 | W8: 2 | X8: 1 | Y8: 11 | Z8: 0 | AA8: 3 | AB8: 9 | AC8: 0 | AD8: 0 | AE8: 0 | AF8: 0 | AG8: 0 | AH8: 0 | AI8: 0 | AJ8: 0 | AK8: 0 | AL8: 0 | AM8: 0 | AN8: 0 | AO8: 0 | AP8: 0 | AQ8: 0 | AR8: 0 | AS8: 0 | AT8: 0 | AU8: 0 | AV8: 0 | AW8: 0 | AX8: 0 | AY8: 0 | AZ8: 13 | BA8: 0 | BB8: 1 | BC8: 0 | BD8: 3 | BE8: 0 | BF8: 0 | BG8: 0 | BH8: 12 | BI8: 2 | BJ8: 0 | BK8: 0 | BL8: 297 | BM8: 61 | BN8: 38 | BO8: 0 | BP8: 2,258 | BQ8: 2,203 | BR8: 2,424 | BS8: 2 | BT8: 20 | BU8: 61 | BV8: 3 | BW8: 4 | BX8: 18 | BY8: 4 | BZ8: 2 | CA8: 14 | CB8: 2 | CC8: 1 | CD8: 10 | CE8: 1 | CF8: 1 | CG8: 7 | CH8: 2,221 | CI8: 174 | CJ8: 52 | CK8: 26 | CL8: 40 | CM8: 0 | CN8: 0 | CO8: 36 | CP8: 0 | CQ8: 0 | CR8: 27 | CS8: 0 | CT8: 0 | CU8: 1 | CV8: 0 | CW8: 0 | CX8: 31 | CY8: 7 | CZ8: 0 | DA8: 2 | DB8: 1 | DC8: 0 | DD8: 0 | DE8: 3,334 | DF8: 2,257 | DG8: 2,199 | DH8: 2,426 | DI8: 2 | DJ8: 0 | DK8: 0 | DL8: 0 | DM8: 0 | DN8: 0 | DO8: 0 | DP8: 0 | DQ8: 0 | DR8: 0 | DS8: 0 | DT8: 0 | DU8: 0 | DV8: 0 | DW8: 0 | DX8: 2 | DY8: 21 | DZ8: 58 | EA8: 2 | EB8: 4 | EC8: 19 | ED8: 5 | EE8: 1 | EF8: 15 | EG8: 2 | EH8: 1 | EI8: 11 | EJ8: 0 | EK8: 2 | EL8: 9 | EM8: 2,245 | EN8: 183 | EO8: 53 | EP8: 30 | EQ8: 35 | ER8: 0 | ES8: 0 | ET8: 3,346 | EU8: 1 | EV8: 1 | EW8: 0 | EX8: 0 | EY8: 0 | EZ8: 0 | FA8: 0 | FB8: 0 | FC8: 0 | FD8: 0 | FE8: 1 | FF8: 0 | FG8: 0 | FH8: 0 | FI8: 0 | FJ8: 0 | FK8: 0 | FL8: 0 | FM8: 7 | FN8: 0 | FO8: 0 | FP8: 0 | FQ8: 0 | FR8: 0 | FS8: 0 | FT8: 16 | FU8: 0 | FV8: 0 | FW8: 0 | FX8: 0 | FY8: 6 | FZ8: 0 | GA8: 0 | GB8: 0 | GC8: 0 | GD8: 0 | GE8: 0 | GF8: 0 | GG8: 0 | GH8: 0 | GI8: 0 | GJ8: 0 | GK8: 0 | GL8: 0 | GM8: 0 | GN8: 0 | GO8: 0 | GP8: 0 | GQ8: 0 | GR8: 0 | GS8: 0 | GT8: 0 | GU8: 0 | GV8: 0 | GW8: 0 | GX8: 0 | GY8: 0 | GZ8: 0 | HA8: 0 | HB8: 0 | HC8: 0 | HD8: 0 | HE8: 2,521 | HF8: 2,440 | HG8: 403 | HH8: 2,451 | HI8: 2,575 | HJ8: 43 | HK8: 50 | HL8: 153 | HM8: 2,255 | HN8: 0 | HO8: 0 | HP8: 0 | HQ8: 0 | HR8: 0 | HS8: 2,609 | HT8: 28 | HU8: 18 | HV8: 12 | HW8: 4 | HX8: 2 | HY8: 1 | HZ8: 0 | IA8: 0 | IB8: 0 | IC8: 0 | ID8: 3,515 | IE8: 50 | IF8: 28 | IG8: 7 | IH8: 10 | II8: 3 | IJ8: 0 | IK8: 19 | IL8: 217 | IM8: 28 | IN8: 68 | IO8: 89 | IP8: 105 | IQ8: 111 | IR8: 99 | IS8: 76 | IT8: 82 | IU8: 74 | IV8: 77 | IW8: 97 | IX8: 70 | IY8: 651 | IZ8: 317 | JA8: 234 | JB8: 2,420 | JC8: 171 | JD8: 49 | JE8: 33 | JF8: 34 | JG8: 10 | JH8: 6 | JI8: 6 | JJ8: 5 | JK8: 3 | JL8: 6 | JM8: 6 | JN8: 29 | JO8: 80 | JP8: 1,689 | JQ8: 762 | JR8: 472 | JS8: 340 | JT8: 0 | JU8: 2,722 | JV8: 51 | JW8: 51 | JX8: 40 | JY8: 46 | JZ8: 30 | KA8: 10 | KB8: 8 | KC8: 7 | KD8: 1 | KE8: 2,634 | KF8: 48 | KG8: 51 | KH8: 40 | KI8: 49 | KJ8: 29 | KK8: 9 | KL8: 2 | KM8: 3,479 | KN8: 42 | KO8: 37 | KP8: 0 | KQ8: 7 | KR8: 0 | KS8: 0 | KT8: 0 | KU8: 19 | KV8: 97 | KW8: 31 | KX8: 0 | KY8: 3 | KZ8: 1 | LA8: 1,921 | LB8: 879 | LC8: 373 | LD8: 257 | LE8: 138 | LF8: 17 | LG8: 0 | LH8: 0 | LI8: 0 | LJ8: 595 | LK8: 291 | LL8: 92 | LM8: 24 | LN8: 5 | LO8: 2,240 | LP8: 1,513 | LQ8: 1,815 | LR8: 1,140 | LS8: 816 | LT8: 173 | LU8: 0 | LV8: 0 | LW8: 0 | LX8: 0 | LY8: 0 | LZ8: 0 | MA8: 0 | MB8: 0 | MC8: 0 | MD8: 0 | ME8: 0 | MF8: 0 | MG8: 0 | MH8: 0 | MI8: 0 | MJ8: 0 | MK8: 0 | ML8: 4 | MM8: 3 | MN8: 0 | MO8: 2 | MP8: 4 | MQ8: 3 | MR8: 1 | MS8: 1 | MT8: 0 | MU8: 1 | MV8: 29 | MW8: 49 | MX8: 69 | MY8: 5 | MZ8: 1 | NA8: 0 | NB8: 1,280 | NC8: 838 | ND8: 1,542 | NE8: 508 | NF8: 382 | NG8: 237 | NH8: 3,456 | NI8: 3,570 | NJ8: 1,798 | NK8: 1,605 | NL8: 2,877 | NM8: 36 | NN8: 20 | NO8: 211 | NP8: 30,293 | NQ8: 6,438 | NR8: 4 | NS8: 0 | NT8: 918 | NU8: 951 | NV8: 13,480 | NW8: 0 | NX8: 0 | NY8: 0 | NZ8: 0 | OA8: 0 | OB8: 1 | OC8: 1,550 | OD8: 343 | OE8: 0 | OF8: 649 | OG8: 551 | OH8: 0 | OI8: 601 | OJ8: 510 | OK8: 0 | OL8: 502 | OM8: 393 | ON8: 2 | OO8: 440 | OP8: 346 | OQ8: 0 | OR8: 425 | OS8: 281 | OT8: 1 | OU8: 468 | OV8: 271 | OW8: 0 | OX8: 339 | OY8: 228 | OZ8: 0 | PA8: 179 | PB8: 202 | PC8: 1 | PD8: 47 | PE8: 0 | PF8: 0 | PG8: 0 | PH8: 0 | PI8: 0 | PJ8: 0 | PK8: 0 | PL8: 0 | PM8: 0 | PN8: 585 | PO8: 206 | PP8: 155 | PQ8: 155 | PR8: 182 | PS8: 51 | PT8: 1 | PU8: 0 | PV8: 1 | PW8: 36 | PX8: 24 | PY8: 0 | PZ8: 0 | QA8: 8 | QB8: 1 | QC8: =SUM(E8:QB8)-(PQ8+PS8+PU8+PV8+PX8) -> 163,150 | QE8: =SUM(E8:H8) -> 3,455.0 | QF8: =SUM(I8:BO8) -> 4,082.0 | QG8: =SUM(BP8:CW8) -> 9,612.0 | QH8: =SUM(CX8:DE8) -> 3,375.0 | QI8: =SUM(DF8:DT8) -> 6,884.0 | QJ8: =SUM(DU8:ET8) -> 6,044.0 | QK8: =SUM(EU8:FY8) -> 32.0 | QL8: =SUM(FZ8:HD8) -> 0.0 | QM8: =SUM(HE8:HF8) -> 4,961.0 | QN8: =SUM(HG8:HL8) -> 5,675.0 | QO8: =SUM(HM8:HR8) -> 2,255.0 | QP8: =SUM(HS8:IJ8) -> 6,287.0 | QQ8: =SUM(IK8:JA8) -> 2,414.0 | QR8: =SUM(JB8:JT8) -> 6,121.0 | QS8: =SUM(JU8:KD8) -> 2,966.0 | QT8: =SUM(KE8:KP8) -> 6,420.0 | QU8: =SUM(KQ8:MU8) -> 12,466.0 | QV8: =SUM(MV8:NG8) -> 4,940.0 | QW8: =SUM(NH8:NI8) -> 7,026.0 | QX8: =SUM(NJ8:NL8) -> 6,280.0 | QY8: =SUM(NM8:NO8) -> 267.0 | QZ8: =SUM(NP8) -> 30,293.0 | RA8: 6,438.0 | RB8: =SUM(NR8:NT8) -> 922.0 | RC8: =SUM(NU8) -> 951.0 | RD8: =SUM(NV8) -> 13,480.0 | RE8: =SUM(NW8:OB8) -> 1.0 | RF8: =SUM(OC8:PE8) -> 8,329.0 | RG8: =SUM(PF8:PG8) -> 0.0 | RH8: =SUM(PH8:PI8) -> 0.0 | RI8: =SUM(PJ8:PM8) -> 0.0 | RJ8: =SUM(PN8:PP8) -> 946.0 | RK8: =SUM(PQ8) -> 155.0 | RL8: =SUM(PR8) -> 182.0 | RM8: =SUM(PS8) -> 51.0 | RN8: =SUM(PT8:PV8) -> 2.0 | RO8: =SUM(PV8) -> 1.0 | RP8: =SUM(PV8) -> 1.0 | RQ8: 36.0 | RR8: 24.0 | RS8: 0.0 | RT8: 0.0 | RU8: 8.0 | RV8: 1.0 | RW8: =SUM(QE8:RU8)-SUM(RI8:RM8)-SUM(RQ8:RT8) -> 161,988
D9: MASCULINO | E9: 3,161 | F9: 93 | G9: 10 | H9: 4 | I9: 3,114 | J9: 109 | K9: 1 | L9: 0 | M9: 1 | N9: 2 | O9: 24 | P9: 39 | Q9: 4 | R9: 8 | S9: 15 | T9: 3 | U9: 7 | V9: 4 | W9: 1 | X9: 1 | Y9: 5 | Z9: 1 | AA9: 2 | AB9: 4 | AC9: 0 | AD9: 0 | AE9: 0 | AF9: 0 | AG9: 0 | AH9: 0 | AI9: 0 | AJ9: 0 | AK9: 0 | AL9: 0 | AM9: 0 | AN9: 0 | AO9: 0 | AP9: 0 | AQ9: 0 | AR9: 0 | AS9: 0 | AT9: 0 | AU9: 0 | AV9: 0 | AW9: 0 | AX9: 0 | AY9: 0 | AZ9: 1 | BA9: 0 | BB9: 0 | BC9: 0 | BD9: 0 | BE9: 0 | BF9: 0 | BG9: 0 | BH9: 2 | BI9: 0 | BJ9: 0 | BK9: 0 | BL9: 274 | BM9: 44 | BN9: 25 | BO9: 7 | BP9: 2,396 | BQ9: 2,226 | BR9: 2,475 | BS9: 10 | BT9: 24 | BU9: 41 | BV9: 4 | BW9: 8 | BX9: 15 | BY9: 3 | BZ9: 7 | CA9: 5 | CB9: 0 | CC9: 1 | CD9: 5 | CE9: 0 | CF9: 3 | CG9: 4 | CH9: 2,230 | CI9: 207 | CJ9: 50 | CK9: 22 | CL9: 39 | CM9: 0 | CN9: 0 | CO9: 31 | CP9: 1 | CQ9: 0 | CR9: 23 | CS9: 0 | CT9: 0 | CU9: 7 | CV9: 0 | CW9: 0 | CX9: 23 | CY9: 3 | CZ9: 0 | DA9: 0 | DB9: 2 | DC9: 0 | DD9: 0 | DE9: 3,586 | DF9: 2,389 | DG9: 2,228 | DH9: 2,469 | DI9: 7 | DJ9: 0 | DK9: 0 | DL9: 0 | DM9: 0 | DN9: 0 | DO9: 0 | DP9: 0 | DQ9: 0 | DR9: 0 | DS9: 0 | DT9: 0 | DU9: 0 | DV9: 0 | DW9: 0 | DX9: 4 | DY9: 24 | DZ9: 39 | EA9: 4 | EB9: 8 | EC9: 13 | ED9: 3 | EE9: 7 | EF9: 3 | EG9: 1 | EH9: 1 | EI9: 4 | EJ9: 0 | EK9: 3 | EL9: 4 | EM9: 2,242 | EN9: 211 | EO9: 54 | EP9: 26 | EQ9: 34 | ER9: 0 | ES9: 0 | ET9: 3,600 | EU9: 1 | EV9: 0 | EW9: 4 | EX9: 0 | EY9: 0 | EZ9: 0 | FA9: 0 | FB9: 0 | FC9: 1 | FD9: 0 | FE9: 0 | FF9: 0 | FG9: 0 | FH9: 0 | FI9: 0 | FJ9: 0 | FK9: 0 | FL9: 0 | FM9: 10 | FN9: 2 | FO9: 1 | FP9: 0 | FQ9: 0 | FR9: 0 | FS9: 0 | FT9: 11 | FU9: 0 | FV9: 0 | FW9: 0 | FX9: 1 | FY9: 5 | FZ9: 0 | GA9: 0 | GB9: 0 | GC9: 0 | GD9: 0 | GE9: 0 | GF9: 0 | GG9: 0 | GH9: 0 | GI9: 0 | GJ9: 0 | GK9: 0 | GL9: 0 | GM9: 0 | GN9: 0 | GO9: 0 | GP9: 0 | GQ9: 0 | GR9: 0 | GS9: 0 | GT9: 0 | GU9: 0 | GV9: 0 | GW9: 0 | GX9: 0 | GY9: 0 | GZ9: 0 | HA9: 0 | HB9: 0 | HC9: 0 | HD9: 0 | HE9: 2,613 | HF9: 2,487 | HG9: 486 | HH9: 2,498 | HI9: 2,682 | HJ9: 48 | HK9: 52 | HL9: 145 | HM9: 2,251 | HN9: 0 | HO9: 0 | HP9: 0 | HQ9: 0 | HR9: 0 | HS9: 2,732 | HT9: 26 | HU9: 16 | HV9: 6 | HW9: 8 | HX9: 4 | HY9: 3 | HZ9: 0 | IA9: 0 | IB9: 0 | IC9: 0 | ID9: 3,785 | IE9: 47 | IF9: 28 | IG9: 14 | IH9: 5 | II9: 9 | IJ9: 2 | IK9: 17 | IL9: 163 | IM9: 44 | IN9: 74 | IO9: 102 | IP9: 86 | IQ9: 125 | IR9: 110 | IS9: 102 | IT9: 111 | IU9: 94 | IV9: 75 | IW9: 92 | IX9: 65 | IY9: 323 | IZ9: 203 | JA9: 107 | JB9: 2,389 | JC9: 195 | JD9: 51 | JE9: 18 | JF9: 37 | JG9: 8 | JH9: 5 | JI9: 4 | JJ9: 7 | JK9: 4 | JL9: 6 | JM9: 8 | JN9: 20 | JO9: 59 | JP9: 1,578 | JQ9: 889 | JR9: 450 | JS9: 265 | JT9: 0 | JU9: 2,838 | JV9: 53 | JW9: 44 | JX9: 37 | JY9: 44 | JZ9: 31 | KA9: 26 | KB9: 9 | KC9: 5 | KD9: 2 | KE9: 2,762 | KF9: 50 | KG9: 43 | KH9: 33 | KI9: 48 | KJ9: 30 | KK9: 22 | KL9: 1 | KM9: 3,745 | KN9: 47 | KO9: 20 | KP9: 0 | KQ9: 7 | KR9: 0 | KS9: 0 | KT9: 2 | KU9: 27 | KV9: 0 | KW9: 0 | KX9: 0 | KY9: 0 | KZ9: 0 | LA9: 1 | LB9: 0 | LC9: 0 | LD9: 0 | LE9: 0 | LF9: 0 | LG9: 0 | LH9: 0 | LI9: 0 | LJ9: 0 | LK9: 0 | LL9: 0 | LM9: 0 | LN9: 0 | LO9: 0 | LP9: 0 | LQ9: 0 | LR9: 0 | LS9: 0 | LT9: 0 | LU9: 0 | LV9: 0 | LW9: 0 | LX9: 21 | LY9: 1 | LZ9: 0 | MA9: 0 | MB9: 1 | MC9: 269 | MD9: 52 | ME9: 23 | MF9: 4 | MG9: 0 | MH9: 1 | MI9: 0 | MJ9: 0 | MK9: 0 | ML9: 8 | MM9: 0 | MN9: 0 | MO9: 0 | MP9: 1 | MQ9: 7 | MR9: 0 | MS9: 0 | MT9: 0 | MU9: 1 | MV9: 0 | MW9: 0 | MX9: 0 | MY9: 0 | MZ9: 0 | NA9: 0 | NB9: 0 | NC9: 0 | ND9: 1 | NE9: 0 | NF9: 0 | NG9: 0 | NH9: 3,554 | NI9: 3,726 | NJ9: 1,965 | NK9: 1,572 | NL9: 2,825 | NM9: 43 | NN9: 27 | NO9: 288 | NP9: 20,177 | NQ9: 2 | NR9: 5 | NS9: 0 | NT9: 1,111 | NU9: 778 | NV9: 8,724 | NW9: 0 | NX9: 0 | NY9: 0 | NZ9: 0 | OA9: 0 | OB9: 1 | OC9: 6 | OD9: 0 | OE9: 0 | OF9: 1 | OG9: 3 | OH9: 0 | OI9: 3 | OJ9: 0 | OK9: 0 | OL9: 4 | OM9: 0 | ON9: 0 | OO9: 1 | OP9: 1 | OQ9: 0 | OR9: 3 | OS9: 0 | OT9: 0 | OU9: 1 | OV9: 0 | OW9: 0 | OX9: 0 | OY9: 2 | OZ9: 0 | PA9: 0 | PB9: 0 | PC9: 0 | PD9: 0 | PE9: 0 | PF9: 0 | PG9: 0 | PH9: 0 | PI9: 0 | PJ9: 0 | PK9: 0 | PL9: 0 | PM9: 0 | PN9: 562 | PO9: 221 | PP9: 127 | PQ9: 127 | PR9: 203 | PS9: 50 | PT9: 2 | PU9: 1 | PV9: 1 | PW9: 6 | PX9: 2 | PY9: 2 | PZ9: 1 | QA9: 0 | QB9: 0 | QC9: =SUM(E9:QB9)-(PQ9+PS9+PU9+PV9+PX9) -> 117,928 | QE9: =SUM(E9:H9) -> 3,268.0 | QF9: =SUM(I9:BO9) -> 3,698.0 | QG9: =SUM(BP9:CW9) -> 9,837.0 | QH9: =SUM(CX9:DE9) -> 3,614.0 | QI9: =SUM(DF9:DT9) -> 7,093.0 | QJ9: =SUM(DU9:ET9) -> 6,285.0 | QK9: =SUM(EU9:FY9) -> 36.0 | QL9: =SUM(FZ9:HD9) -> 0.0 | QM9: =SUM(HE9:HF9) -> 5,100.0 | QN9: =SUM(HG9:HL9) -> 5,911.0 | QO9: =SUM(HM9:HR9) -> 2,251.0 | QP9: =SUM(HS9:IJ9) -> 6,685.0 | QQ9: =SUM(IK9:JA9) -> 1,893.0 | QR9: =SUM(JB9:JT9) -> 5,993.0 | QS9: =SUM(JU9:KD9) -> 3,089.0 | QT9: =SUM(KE9:KP9) -> 6,801.0 | QU9: =SUM(KQ9:MU9) -> 426.0 | QV9: =SUM(MV9:NG9) -> 1.0 | QW9: =SUM(NH9:NI9) -> 7,280.0 | QX9: =SUM(NJ9:NL9) -> 6,362.0 | QY9: =SUM(NM9:NO9) -> 358.0 | QZ9: =SUM(NP9) -> 20,177.0 | RA9: =SUM(NQ9) -> 2.0 | RB9: =SUM(NR9:NT9) -> 1,116.0 | RC9: =SUM(NU9) -> 778.0 | RD9: =SUM(NV9) -> 8,724.0 | RE9: =SUM(NW9:OB9) -> 1.0 | RF9: =SUM(OC9:PE9) -> 25.0 | RG9: =SUM(PF9:PG9) -> 0.0 | RH9: =SUM(PH9:PI9) -> 0.0 | RI9: =SUM(PJ9:PM9) -> 0.0 | RJ9: =SUM(PN9:PP9) -> 910.0 | RK9: =SUM(PQ9) -> 127.0 | RL9: =SUM(PR9) -> 203.0 | RM9: =SUM(PS9) -> 50.0 | RN9: =SUM(PT9:PV9) -> 4.0 | RO9: =SUM(PV9) -> 1.0 | RP9: =SUM(PV9) -> 1.0 | RQ9: =SUM(PW9) -> 6.0 | RR9: =SUM(PX9) -> 2.0 | RS9: =SUM(PY9) -> 2.0 | RT9: =SUM(PZ9) -> 1.0 | RU9: =SUM(QA9) -> 0.0 | RV9: =SUM(QB9) -> 0.0 | RW9: =SUM(QE9:RU9)-SUM(RI9:RM9)-SUM(RQ9:RT9) -> 116,810
D10: OTRO | E10: 1 | F10: 0 | G10: 0 | H10: 0 | I10: 1 | J10: 0 | K10: 0 | L10: 0 | M10: 0 | N10: 0 | O10: 0 | P10: 0 | Q10: 0 | R10: 0 | S10: 0 | T10: 0 | U10: 0 | V10: 0 | W10: 0 | X10: 0 | Y10: 0 | Z10: 0 | AA10: 0 | AB10: 0 | AC10: 0 | AD10: 0 | AE10: 0 | AF10: 0 | AG10: 0 | AH10: 0 | AI10: 0 | AJ10: 0 | AK10: 0 | AL10: 0 | AM10: 0 | AN10: 0 | AO10: 0 | AP10: 0 | AQ10: 0 | AR10: 0 | AS10: 0 | AT10: 0 | AU10: 0 | AV10: 0 | AW10: 0 | AX10: 0 | AY10: 0 | AZ10: 0 | BA10: 0 | BB10: 0 | BC10: 0 | BD10: 0 | BE10: 0 | BF10: 0 | BG10: 0 | BH10: 0 | BI10: 0 | BJ10: 0 | BK10: 0 | BL10: 0 | BM10: 0 | BN10: 0 | BO10: 0 | BP10: 0 | BQ10: 0 | BR10: 0 | BS10: 0 | BT10: 0 | BU10: 0 | BV10: 0 | BW10: 0 | BX10: 0 | BY10: 0 | BZ10: 0 | CA10: 0 | CB10: 0 | CC10: 0 | CD10: 0 | CE10: 0 | CF10: 0 | CG10: 0 | CH10: 0 | CI10: 0 | CJ10: 0 | CK10: 0 | CL10: 0 | CM10: 0 | CN10: 0 | CO10: 0 | CP10: 0 | CQ10: 0 | CR10: 0 | CS10: 0 | CT10: 0 | CU10: 0 | CV10: 0 | CW10: 0 | CX10: 0 | CY10: 0 | CZ10: 0 | DA10: 0 | DB10: 0 | DC10: 0 | DD10: 0 | DE10: 0 | DF10: 0 | DG10: 0 | DH10: 0 | DI10: 0 | DJ10: 0 | DK10: 0 | DL10: 0 | DM10: 0 | DN10: 0 | DO10: 0 | DP10: 0 | DQ10: 0 | DR10: 0 | DS10: 0 | DT10: 0 | DU10: 0 | DV10: 0 | DW10: 0 | DX10: 0 | DY10: 0 | DZ10: 0 | EA10: 0 | EB10: 0 | EC10: 0 | ED10: 0 | EE10: 0 | EF10: 0 | EG10: 0 | EH10: 0 | EI10: 0 | EJ10: 0 | EK10: 0 | EL10: 0 | EM10: 0 | EN10: 0 | EO10: 0 | EP10: 0 | EQ10: 0 | ER10: 0 | ES10: 0 | ET10: 0 | EU10: 0 | EV10: 0 | EW10: 0 | EX10: 0 | EY10: 0 | EZ10: 0 | FA10: 0 | FB10: 0 | FC10: 0 | FD10: 0 | FE10: 0 | FF10: 0 | FG10: 0 | FH10: 0 | FI10: 0 | FJ10: 0 | FK10: 0 | FL10: 0 | FM10: 0 | FN10: 0 | FO10: 0 | FP10: 0 | FQ10: 0 | FR10: 0 | FS10: 0 | FT10: 0 | FU10: 0 | FV10: 0 | FW10: 0 | FX10: 0 | FY10: 0 | FZ10: 0 | GA10: 0 | GB10: 0 | GC10: 0 | GD10: 0 | GE10: 0 | GF10: 0 | GG10: 0 | GH10: 0 | GI10: 0 | GJ10: 0 | GK10: 0 | GL10: 0 | GM10: 0 | GN10: 0 | GO10: 0 | GP10: 0 | GQ10: 0 | GR10: 0 | GS10: 0 | GT10: 0 | GU10: 0 | GV10: 0 | GW10: 0 | GX10: 0 | GY10: 0 | GZ10: 0 | HA10: 0 | HB10: 0 | HC10: 0 | HD10: 0 | HE10: 0 | HF10: 0 | HG10: 0 | HH10: 0 | HI10: 0 | HJ10: 0 | HK10: 0 | HL10: 1 | HM10: 0 | HN10: 0 | HO10: 0 | HP10: 0 | HQ10: 0 | HR10: 0 | HS10: 0 | HT10: 0 | HU10: 0 | HV10: 0 | HW10: 0 | HX10: 0 | HY10: 0 | HZ10: 0 | IA10: 0 | IB10: 0 | IC10: 0 | ID10: 0 | IE10: 0 | IF10: 0 | IG10: 0 | IH10: 0 | II10: 0 | IJ10: 0 | IK10: 0 | IL10: 0 | IM10: 0 | IN10: 0 | IO10: 0 | IP10: 0 | IQ10: 0 | IR10: 0 | IS10: 0 | IT10: 0 | IU10: 0 | IV10: 0 | IW10: 0 | IX10: 0 | IY10: 0 | IZ10: 0 | JA10: 0 | JB10: 0 | JC10: 0 | JD10: 0 | JE10: 0 | JF10: 0 | JG10: 0 | JH10: 0 | JI10: 0 | JJ10: 0 | JK10: 0 | JL10: 0 | JM10: 0 | JN10: 0 | JO10: 0 | JP10: 0 | JQ10: 1 | JR10: 0 | JS10: 0 | JT10: 0 | JU10: 0 | JV10: 0 | JW10: 1 | JX10: 0 | JY10: 0 | JZ10: 0 | KA10: 0 | KB10: 0 | KC10: 0 | KD10: 0 | KE10: 0 | KF10: 0 | KG10: 1 | KH10: 0 | KI10: 0 | KJ10: 0 | KK10: 0 | KL10: 0 | KM10: 0 | KN10: 0 | KO10: 0 | KP10: 0 | KQ10: 0 | KR10: 0 | KS10: 0 | KT10: 0 | KU10: 0 | KV10: 0 | KW10: 0 | KX10: 0 | KY10: 0 | KZ10: 0 | LA10: 0 | LB10: 0 | LC10: 0 | LD10: 0 | LE10: 0 | LF10: 0 | LG10: 0 | LH10: 0 | LI10: 0 | LJ10: 0 | LK10: 0 | LL10: 0 | LM10: 0 | LN10: 0 | LO10: 0 | LP10: 0 | LQ10: 0 | LR10: 0 | LS10: 0 | LT10: 0 | LU10: 0 | LV10: 0 | LW10: 0 | LX10: 0 | LY10: 0 | LZ10: 0 | MA10: 0 | MB10: 0 | MC10: 0 | MD10: 0 | ME10: 0 | MF10: 0 | MG10: 0 | MH10: 0 | MI10: 0 | MJ10: 0 | MK10: 0 | ML10: 0 | MM10: 0 | MN10: 0 | MO10: 0 | MP10: 0 | MQ10: 0 | MR10: 0 | MS10: 0 | MT10: 0 | MU10: 0 | MV10: 0 | MW10: 0 | MX10: 0 | MY10: 0 | MZ10: 0 | NA10: 0 | NB10: 0 | NC10: 0 | ND10: 0 | NE10: 0 | NF10: 0 | NG10: 0 | NH10: 0 | NI10: 1 | NJ10: 0 | NK10: 0 | NL10: 0 | NM10: 0 | NN10: 0 | NO10: 0 | NP10: 2 | NQ10: 0 | NR10: 0 | NS10: 0 | NT10: 0 | NU10: 0 | NV10: 1 | NW10: 0 | NX10: 0 | NY10: 0 | NZ10: 0 | OA10: 0 | OB10: 0 | OC10: 0 | OD10: 0 | OE10: 0 | OF10: 0 | OG10: 0 | OH10: 0 | OI10: 0 | OJ10: 0 | OK10: 0 | OL10: 0 | OM10: 0 | ON10: 0 | OO10: 0 | OP10: 0 | OQ10: 0 | OR10: 0 | OS10: 0 | OT10: 0 | OU10: 0 | OV10: 0 | OW10: 0 | OX10: 0 | OY10: 0 | OZ10: 0 | PA10: 0 | PB10: 0 | PC10: 0 | PD10: 0 | PE10: 0 | PF10: 0 | PG10: 0 | PH10: 0 | PI10: 0 | PJ10: 0 | PK10: 0 | PL10: 0 | PM10: 0 | PN10: 0 | PO10: 0 | PP10: 0 | PQ10: 0 | PR10: 0 | PS10: 0 | PT10: 0 | PU10: 0 | PV10: 0 | PW10: 0 | PX10: 0 | PY10: 0 | PZ10: 0 | QA10: 0 | QB10: 0 | QC10: 10 | QE10: 1.0 | QF10: 1.0 | QG10: 0.0 | QH10: 0.0 | QI10: 0.0 | QJ10: 0.0 | QK10: 0.0 | QL10: 0.0 | QM10: 0.0 | QN10: 1.0 | QO10: 0.0 | QP10: 0.0 | QQ10: 0.0 | QR10: 1.0 | QS10: 1.0 | QT10: 1.0 | QU10: 0.0 | QV10: 0.0 | QW10: 1.0 | QX10: 0.0 | QY10: 0.0 | QZ10: 2.0 | RA10: 0.0 | RB10: 0.0 | RC10: 0.0 | RD10: 1.0 | RE10: 0.0 | RF10: 0.0 | RG10: 0.0 | RH10: 0.0 | RI10: 0.0 | RJ10: 0.0 | RK10: 0.0 | RL10: 0.0 | RM10: 0.0 | RN10: 0.0 | RO10: 0.0 | RP10: 0.0 | RQ10: 0.0 | RR10: 0.0 | RS10: 0.0 | RT10: 0.0 | RU10: 0.0 | RV10: 0.0 | RW10: 10
D11: TOTAL GENERO | E11: 6,531 | F11: 161 | G11: 22 | H11: 10 | I11: 6,516 | J11: 210 | K11: 2 | L11: 1 | M11: 1 | N11: 2 | O11: 44 | P11: 95 | Q11: 6 | R11: 12 | S11: 36 | T11: 8 | U11: 9 | V11: 19 | W11: 3 | X11: 2 | Y11: 16 | Z11: 1 | AA11: 5 | AB11: 13 | AC11: 0 | AD11: 0 | AE11: 0 | AF11: 0 | AG11: 0 | AH11: 0 | AI11: 0 | AJ11: 0 | AK11: 0 | AL11: 0 | AM11: 0 | AN11: 0 | AO11: 0 | AP11: 0 | AQ11: 0 | AR11: 0 | AS11: 0 | AT11: 0 | AU11: 0 | AV11: 0 | AW11: 0 | AX11: 0 | AY11: 0 | AZ11: 14 | BA11: 0 | BB11: 1 | BC11: 0 | BD11: 3 | BE11: 0 | BF11: 0 | BG11: 0 | BH11: 14 | BI11: 2 | BJ11: 0 | BK11: 0 | BL11: 571 | BM11: 105 | BN11: 63 | BO11: 7 | BP11: 4,654 | BQ11: 4,429 | BR11: 4,899 | BS11: 12 | BT11: 44 | BU11: 102 | BV11: 7 | BW11: 12 | BX11: 33 | BY11: 7 | BZ11: 9 | CA11: 19 | CB11: 2 | CC11: 2 | CD11: 15 | CE11: 1 | CF11: 4 | CG11: 11 | CH11: 4,451 | CI11: 381 | CJ11: 102 | CK11: 48 | CL11: 79 | CM11: 0 | CN11: 0 | CO11: 67 | CP11: 1 | CQ11: 0 | CR11: 50 | CS11: 0 | CT11: 0 | CU11: 8 | CV11: 0 | CW11: 0 | CX11: 54 | CY11: 10 | CZ11: 0 | DA11: 2 | DB11: 3 | DC11: 0 | DD11: 0 | DE11: 6,920 | DF11: 4,646 | DG11: 4,427 | DH11: 4,895 | DI11: 9 | DJ11: 0 | DK11: 0 | DL11: 0 | DM11: 0 | DN11: 0 | DO11: 0 | DP11: 0 | DQ11: 0 | DR11: 0 | DS11: 0 | DT11: 0 | DU11: 0 | DV11: 0 | DW11: 0 | DX11: 6 | DY11: 45 | DZ11: 97 | EA11: 6 | EB11: 12 | EC11: 32 | ED11: 8 | EE11: 8 | EF11: 18 | EG11: 3 | EH11: 2 | EI11: 15 | EJ11: 0 | EK11: 5 | EL11: 13 | EM11: 4,487 | EN11: 394 | EO11: 107 | EP11: 56 | EQ11: 69 | ER11: 0 | ES11: 0 | ET11: 6,946 | EU11: 2 | EV11: 1 | EW11: 4 | EX11: 0 | EY11: 0 | EZ11: 0 | FA11: 0 | FB11: 0 | FC11: 1 | FD11: 0 | FE11: 1 | FF11: 0 | FG11: 0 | FH11: 0 | FI11: 0 | FJ11: 0 | FK11: 0 | FL11: 0 | FM11: 17 | FN11: 2 | FO11: 1 | FP11: 0 | FQ11: 0 | FR11: 0 | FS11: 0 | FT11: 27 | FU11: 0 | FV11: 0 | FW11: 0 | FX11: 1 | FY11: 11 | FZ11: 0 | GA11: 0 | GB11: 0 | GC11: 0 | GD11: 0 | GE11: 0 | GF11: 0 | GG11: 0 | GH11: 0 | GI11: 0 | GJ11: 0 | GK11: 0 | GL11: 0 | GM11: 0 | GN11: 0 | GO11: 0 | GP11: 0 | GQ11: 0 | GR11: 0 | GS11: 0 | GT11: 0 | GU11: 0 | GV11: 0 | GW11: 0 | GX11: 0 | GY11: 0 | GZ11: 0 | HA11: 0 | HB11: 0 | HC11: 0 | HD11: 0 | HE11: 5,134 | HF11: 4,927 | HG11: 889 | HH11: 4,949 | HI11: 5,257 | HJ11: 91 | HK11: 102 | HL11: 299 | HM11: 4,506 | HN11: 0 | HO11: 0 | HP11: 0 | HQ11: 0 | HR11: 0 | HS11: 5,341 | HT11: 54 | HU11: 34 | HV11: 18 | HW11: 12 | HX11: 6 | HY11: 4 | HZ11: 0 | IA11: 0 | IB11: 0 | IC11: 0 | ID11: 7,300 | IE11: 97 | IF11: 56 | IG11: 21 | IH11: 15 | II11: 12 | IJ11: 2 | IK11: 36 | IL11: 380 | IM11: 72 | IN11: 142 | IO11: 191 | IP11: 191 | IQ11: 236 | IR11: 209 | IS11: 178 | IT11: 193 | IU11: 168 | IV11: 152 | IW11: 189 | IX11: 135 | IY11: 974 | IZ11: 520 | JA11: 341 | JB11: 4,809 | JC11: 366 | JD11: 100 | JE11: 51 | JF11: 71 | JG11: 18 | JH11: 11 | JI11: 10 | JJ11: 12 | JK11: 7 | JL11: 12 | JM11: 14 | JN11: 49 | JO11: 139 | JP11: 3,267 | JQ11: 1,652 | JR11: 922 | JS11: 605 | JT11: 0 | JU11: 5,560 | JV11: 104 | JW11: 96 | JX11: 77 | JY11: 90 | JZ11: 61 | KA11: 36 | KB11: 17 | KC11: 12 | KD11: 3 | KE11: 5,396 | KF11: 98 | KG11: 95 | KH11: 73 | KI11: 97 | KJ11: 59 | KK11: 31 | KL11: 3 | KM11: 7,224 | KN11: 89 | KO11: 57 | KP11: 0 | KQ11: 14 | KR11: 0 | KS11: 0 | KT11: 2 | KU11: 46 | KV11: 97 | KW11: 31 | KX11: 0 | KY11: 3 | KZ11: 1 | LA11: 1,922 | LB11: 879 | LC11: 373 | LD11: 257 | LE11: 138 | LF11: 17 | LG11: 0 | LH11: 0 | LI11: 0 | LJ11: 595 | LK11: 291 | LL11: 92 | LM11: 24 | LN11: 5 | LO11: 2,240 | LP11: 1,513 | LQ11: 1,815 | LR11: 1,140 | LS11: 816 | LT11: 173 | LU11: 0 | LV11: 0 | LW11: 0 | LX11: 21 | LY11: 1 | LZ11: 0 | MA11: 0 | MB11: 1 | MC11: 269 | MD11: 52 | ME11: 23 | MF11: 4 | MG11: 0 | MH11: 1 | MI11: 0 | MJ11: 0 | MK11: 0 | ML11: 12 | MM11: 3 | MN11: 0 | MO11: 2 | MP11: 5 | MQ11: 10 | MR11: 1 | MS11: 1 | MT11: 0 | MU11: 2 | MV11: 29 | MW11: 49 | MX11: 69 | MY11: 5 | MZ11: 1 | NA11: 0 | NB11: 1,280 | NC11: 838 | ND11: 1,543 | NE11: 508 | NF11: 382 | NG11: 237 | NH11: 7,010 | NI11: 7,297 | NJ11: 3,763 | NK11: 3,177 | NL11: 5,702 | NM11: 79 | NN11: 47 | NO11: 499 | NP11: 50,472 | NQ11: 6,440 | NR11: 9 | NS11: 0 | NT11: 2,029 | NU11: 1,729 | NV11: 22,205 | NW11: 0 | NX11: 0 | NY11: 0 | NZ11: 0 | OA11: 0 | OB11: 2 | OC11: 1,556 | OD11: 343 | OE11: 0 | OF11: 650 | OG11: 554 | OH11: 0 | OI11: 604 | OJ11: 510 | OK11: 0 | OL11: 506 | OM11: 393 | ON11: 2 | OO11: 441 | OP11: 347 | OQ11: 0 | OR11: 428 | OS11: 281 | OT11: 1 | OU11: 469 | OV11: 271 | OW11: 0 | OX11: 339 | OY11: 230 | OZ11: 0 | PA11: 179 | PB11: 202 | PC11: 1 | PD11: 47 | PE11: 0 | PF11: 0 | PG11: 0 | PH11: 0 | PI11: 0 | PJ11: 0 | PK11: 0 | PL11: 0 | PM11: 0 | PN11: 1,147 | PO11: 427 | PP11: 282 | PQ11: 282 | PR11: 385 | PS11: 101 | PT11: 3 | PU11: 1 | PV11: 2 | PW11: 42 | PX11: 26 | PY11: 2 | PZ11: 1 | QA11: 8 | QB11: 1 | QC11: =SUM(QC8:QC10) -> 281,088 | QE11: =SUM(QE8:QE10) -> 6,724.0 | QF11: =SUM(QF8:QF10) -> 7,781.0 | QG11: 19,449.0 | QH11: 6,989.0 | QI11: 13,977.0 | QJ11: 12,329.0 | QK11: 68.0 | QL11: 0.0 | QM11: 10,061.0 | QN11: 11,587.0 | QO11: =SUM(QO8:QO10) -> 4,506.0 | QP11: 12,972.0 | QQ11: 4,307.0 | QR11: 12,115.0 | QS11: 6,056.0 | QT11: 13,222.0 | QU11: 12,892.0 | QV11: 4,941.0 | QW11: 14,307.0 | QX11: 12,642.0 | QY11: 625.0 | QZ11: 50,472.0 | RA11: 6,440.0 | RB11: =SUM(RB8:RB10) -> 2,038.0 | RC11: 1,729.0 | RD11: 22,205.0 | RE11: 2.0 | RF11: 8,354.0 | RG11: 0.0 | RH11: 0.0 | RI11: 0.0 | RJ11: 1,856.0 | RK11: =SUM(RK8:RK10) -> 282.0 | RL11: 385.0 | RM11: 101.0 | RN11: 6.0 | RO11: 2.0 | RP11: 2.0 | RQ11: 42.0 | RR11: 26.0 | RS11: 2.0 | RT11: 1.0 | RU11: 8.0 | RV11: 1.0 | RW11: =SUM(RW8:RW10) -> 278,808
D12: CONTRIBUTIVO | E12: 4,943 | F12: 116 | G12: 1 | H12: 2 | I12: 4,942 | J12: 133 | K12: 2 | L12: 0 | M12: 0 | N12: 1 | O12: 10 | P12: 17 | Q12: 0 | R12: 1 | S12: 8 | T12: 2 | U12: 2 | V12: 1 | W12: 1 | X12: 0 | Y12: 2 | Z12: 0 | AA12: 1 | AB12: 1 | AC12: 0 | AD12: 0 | AE12: 0 | AF12: 0 | AG12: 0 | AH12: 0 | AI12: 0 | AJ12: 0 | AK12: 0 | AL12: 0 | AM12: 0 | AN12: 0 | AO12: 0 | AP12: 0 | AQ12: 0 | AR12: 0 | AS12: 0 | AT12: 0 | AU12: 0 | AV12: 0 | AW12: 0 | AX12: 0 | AY12: 0 | AZ12: 13 | BA12: 0 | BB12: 0 | BC12: 0 | BD12: 1 | BE12: 0 | BF12: 0 | BG12: 0 | BH12: 10 | BI12: 1 | BJ12: 0 | BK12: 0 | BL12: 233 | BM12: 53 | BN12: 36 | BO12: 6 | BP12: 3,223 | BQ12: 3,076 | BR12: 3,467 | BS12: 1 | BT12: 10 | BU12: 19 | BV12: 1 | BW12: 1 | BX12: 7 | BY12: 2 | BZ12: 2 | CA12: 2 | CB12: 1 | CC12: 0 | CD12: 0 | CE12: 0 | CF12: 0 | CG12: 1 | CH12: 3,222 | CI12: 173 | CJ12: 33 | CK12: 19 | CL12: 28 | CM12: 0 | CN12: 0 | CO12: 52 | CP12: 0 | CQ12: 0 | CR12: 19 | CS12: 0 | CT12: 0 | CU12: 3 | CV12: 0 | CW12: 0 | CX12: 27 | CY12: 5 | CZ12: 0 | DA12: 1 | DB12: 0 | DC12: 0 | DD12: 0 | DE12: 5,357 | DF12: 3,217 | DG12: 3,076 | DH12: 3,462 | DI12: 0 | DJ12: 0 | DK12: 0 | DL12: 0 | DM12: 0 | DN12: 0 | DO12: 0 | DP12: 0 | DQ12: 0 | DR12: 0 | DS12: 0 | DT12: 0 | DU12: 0 | DV12: 0 | DW12: 0 | DX12: 3 | DY12: 10 | DZ12: 17 | EA12: 0 | EB12: 1 | EC12: 6 | ED12: 2 | EE12: 1 | EF12: 1 | EG12: 1 | EH12: 0 | EI12: 1 | EJ12: 0 | EK12: 0 | EL12: 1 | EM12: 3,236 | EN12: 177 | EO12: 34 | EP12: 20 | EQ12: 25 | ER12: 0 | ES12: 0 | ET12: 5,381 | EU12: 2 | EV12: 1 | EW12: 2 | EX12: 0 | EY12: 0 | EZ12: 0 | FA12: 0 | FB12: 0 | FC12: 1 | FD12: 0 | FE12: 1 | FF12: 0 | FG12: 0 | FH12: 0 | FI12: 0 | FJ12: 0 | FK12: 0 | FL12: 0 | FM12: 12 | FN12: 2 | FO12: 0 | FP12: 0 | FQ12: 0 | FR12: 0 | FS12: 0 | FT12: 20 | FU12: 0 | FV12: 0 | FW12: 0 | FX12: 0 | FY12: 6 | FZ12: 0 | GA12: 0 | GB12: 0 | GC12: 0 | GD12: 0 | GE12: 0 | GF12: 0 | GG12: 0 | GH12: 0 | GI12: 0 | GJ12: 0 | GK12: 0 | GL12: 0 | GM12: 0 | GN12: 0 | GO12: 0 | GP12: 0 | GQ12: 0 | GR12: 0 | GS12: 0 | GT12: 0 | GU12: 0 | GV12: 0 | GW12: 0 | GX12: 0 | GY12: 0 | GZ12: 0 | HA12: 0 | HB12: 0 | HC12: 0 | HD12: 0 | HE12: 3,743 | HF12: 3,613 | HG12: 521 | HH12: 3,565 | HI12: 3,773 | HJ12: 3 | HK12: 10 | HL12: 21 | HM12: 3,384 | HN12: 0 | HO12: 0 | HP12: 0 | HQ12: 0 | HR12: 0 | HS12: 3,764 | HT12: 14 | HU12: 7 | HV12: 3 | HW12: 3 | HX12: 0 | HY12: 0 | HZ12: 0 | IA12: 0 | IB12: 0 | IC12: 0 | ID12: 5,660 | IE12: 37 | IF12: 18 | IG12: 5 | IH12: 7 | II12: 4 | IJ12: 1 | IK12: 16 | IL12: 263 | IM12: 49 | IN12: 89 | IO12: 116 | IP12: 119 | IQ12: 139 | IR12: 143 | IS12: 120 | IT12: 126 | IU12: 109 | IV12: 105 | IW12: 109 | IX12: 74 | IY12: 695 | IZ12: 375 | JA12: 228 | JB12: 3,565 | JC12: 186 | JD12: 42 | JE12: 24 | JF12: 32 | JG12: 6 | JH12: 3 | JI12: 4 | JJ12: 4 | JK12: 1 | JL12: 7 | JM12: 10 | JN12: 30 | JO12: 102 | JP12: 2,658 | JQ12: 1,353 | JR12: 728 | JS12: 486 | JT12: 0 | JU12: 3,939 | JV12: 16 | JW12: 9 | JX12: 4 | JY12: 8 | JZ12: 3 | KA12: 2 | KB12: 0 | KC12: 1 | KD12: 1 | KE12: 3,791 | KF12: 13 | KG12: 8 | KH12: 4 | KI12: 20 | KJ12: 1 | KK12: 2 | KL12: 0 | KM12: 5,626 | KN12: 40 | KO12: 18 | KP12: 0 | KQ12: 8 | KR12: 0 | KS12: 0 | KT12: 0 | KU12: 12 | KV12: 53 | KW12: 10 | KX12: 0 | KY12: 1 | KZ12: 0 | LA12: 1,488 | LB12: 653 | LC12: 303 | LD12: 214 | LE12: 123 | LF12: 12 | LG12: 0 | LH12: 0 | LI12: 0 | LJ12: 464 | LK12: 231 | LL12: 71 | LM12: 18 | LN12: 5 | LO12: 1,769 | LP12: 1,218 | LQ12: 1,450 | LR12: 957 | LS12: 675 | LT12: 136 | LU12: 0 | LV12: 0 | LW12: 0 | LX12: 12 | LY12: 1 | LZ12: 0 | MA12: 0 | MB12: 0 | MC12: 178 | MD12: 0 | ME12: 0 | MF12: 0 | MG12: 0 | MH12: 0 | MI12: 0 | MJ12: 0 | MK12: 0 | ML12: 10 | MM12: 1 | MN12: 0 | MO12: 2 | MP12: 2 | MQ12: 6 | MR12: 0 | MS12: 1 | MT12: 0 | MU12: 2 | MV12: 13 | MW12: 21 | MX12: 32 | MY12: 2 | MZ12: 1 | NA12: 0 | NB12: 1,054 | NC12: 542 | ND12: 1,235 | NE12: 419 | NF12: 317 | NG12: 210 | NH12: 5,107 | NI12: 5,452 | NJ12: 2,541 | NK12: 2,213 | NL12: 4,318 | NM12: 37 | NN12: 27 | NO12: 344 | NP12: 38,394 | NQ12: 5,022 | NR12: 2 | NS12: 0 | NT12: 1,397 | NU12: 1,129 | NV12: 16,280 | NW12: 0 | NX12: 0 | NY12: 0 | NZ12: 0 | OA12: 0 | OB12: 0 | OC12: 1,236 | OD12: 290 | OE12: 0 | OF12: 504 | OG12: 447 | OH12: 0 | OI12: 488 | OJ12: 406 | OK12: 0 | OL12: 398 | OM12: 307 | ON12: 2 | OO12: 345 | OP12: 274 | OQ12: 0 | OR12: 311 | OS12: 212 | OT12: 1 | OU12: 350 | OV12: 220 | OW12: 0 | OX12: 255 | OY12: 174 | OZ12: 0 | PA12: 122 | PB12: 167 | PC12: 1 | PD12: 33 | PE12: 0 | PF12: 0 | PG12: 0 | PH12: 0 | PI12: 0 | PJ12: 0 | PK12: 0 | PL12: 0 | PM12: 0 | PN12: 893 | PO12: 335 | PP12: 215 | PQ12: 215 | PR12: 265 | PS12: 65 | PT12: 1 | PU12: 1 | PV12: 1 | PW12: 32 | PX12: 16 | PY12: 2 | PZ12: 1 | QA12: 0 | QB12: 0 | QC12: =SUM(E12:QB12)-(PQ12+PS12+PU12+PV12+PX12) -> 206,270 | QE12: =SUM(E12:H12) -> 5,062.0 | QF12: =SUM(I12:BO12) -> 5,477.0 | QG12: =SUM(BP12:CW12) -> 13,362.0 | QH12: =SUM(CX12:DE12) -> 5,390.0 | QI12: =SUM(DF12:DT12) -> 9,755.0 | QJ12: =SUM(DU12:ET12) -> 8,917.0 | QK12: =SUM(EU12:FY12) -> 47.0 | QL12: =SUM(FZ12:HD12) -> 0.0 | QM12: =SUM(HE12:HF12) -> 7,356.0 | QN12: =SUM(HG12:HL12) -> 7,893.0 | QO12: =SUM(HM12:HR12) -> 3,384.0 | QP12: =SUM(HS12:IJ12) -> 9,523.0 | QQ12: =SUM(IK12:JA12) -> 2,875.0 | QR12: =SUM(JB12:JT12) -> 9,241.0 | QS12: =SUM(JU12:KD12) -> 3,983.0 | QT12: =SUM(KE12:KP12) -> 9,523.0 | QU12: =SUM(KQ12:MU12) -> 10,086.0 | QV12: =SUM(MV12:NG12) -> 3,846.0 | QW12: =SUM(NH12:NI12) -> 10,559.0 | QX12: =SUM(NJ12:NL12) -> 9,072.0 | QY12: =SUM(NM12:NO12) -> 408.0 | QZ12: =SUM(NP12) -> 38,394.0 | RA12: =SUM(NQ12) -> 5,022.0 | RB12: =SUM(NR12:NT12) -> 1,399.0 | RC12: =SUM(NU12) -> 1,129.0 | RD12: =SUM(NV12) -> 16,280.0 | RE12: =SUM(NW12:OB12) -> 0.0 | RF12: =SUM(OC12:PE12) -> 6,543.0 | RG12: =SUM(PF12:PG12) -> 0.0 | RH12: =SUM(PH12:PI12) -> 0.0 | RI12: =SUM(PJ12:PM12) -> 0.0 | RJ12: =SUM(PN12:PP12) -> 1,443.0 | RK12: =SUM(PQ12) -> 215.0 | RL12: =SUM(PR12) -> 265.0 | RM12: =SUM(PS12) -> 65.0 | RN12: =SUM(PT12:PV12) -> 3.0 | RO12: =SUM(PV12) -> 1.0 | RP12: =SUM(PV12) -> 1.0 | RQ12: =SUM(PW12) -> 32.0 | RR12: =SUM(PX12) -> 16.0 | RS12: =SUM(PY12) -> 2.0 | RT12: =SUM(PZ12) -> 1.0 | RU12: =SUM(QA12) -> 0.0 | RV12: =SUM(QB12) -> 0.0 | RW12: =SUM(QE12:RU12)-SUM(RI12:RM12)-SUM(RQ12:RT12) -> 204,531
D13: SUBSIDIADO | E13: 938 | F13: 26 | G13: 3 | H13: 3 | I13: 952 | J13: 11 | K13: 0 | L13: 0 | M13: 1 | N13: 0 | O13: 11 | P13: 29 | Q13: 0 | R13: 3 | S13: 10 | T13: 2 | U13: 0 | V13: 3 | W13: 0 | X13: 1 | Y13: 2 | Z13: 0 | AA13: 2 | AB13: 2 | AC13: 0 | AD13: 0 | AE13: 0 | AF13: 0 | AG13: 0 | AH13: 0 | AI13: 0 | AJ13: 0 | AK13: 0 | AL13: 0 | AM13: 0 | AN13: 0 | AO13: 0 | AP13: 0 | AQ13: 0 | AR13: 0 | AS13: 0 | AT13: 0 | AU13: 0 | AV13: 0 | AW13: 0 | AX13: 0 | AY13: 0 | AZ13: 0 | BA13: 0 | BB13: 1 | BC13: 0 | BD13: 2 | BE13: 0 | BF13: 0 | BG13: 0 | BH13: 2 | BI13: 1 | BJ13: 0 | BK13: 0 | BL13: 208 | BM13: 21 | BN13: 12 | BO13: 1 | BP13: 969 | BQ13: 956 | BR13: 1,036 | BS13: 2 | BT13: 11 | BU13: 32 | BV13: 0 | BW13: 4 | BX13: 9 | BY13: 2 | BZ13: 0 | CA13: 2 | CB13: 0 | CC13: 1 | CD13: 2 | CE13: 0 | CF13: 2 | CG13: 1 | CH13: 946 | CI13: 114 | CJ13: 23 | CK13: 10 | CL13: 16 | CM13: 0 | CN13: 0 | CO13: 8 | CP13: 0 | CQ13: 0 | CR13: 6 | CS13: 0 | CT13: 0 | CU13: 1 | CV13: 0 | CW13: 0 | CX13: 14 | CY13: 2 | CZ13: 0 | DA13: 0 | DB13: 0 | DC13: 0 | DD13: 0 | DE13: 961 | DF13: 969 | DG13: 954 | DH13: 1,036 | DI13: 2 | DJ13: 0 | DK13: 0 | DL13: 0 | DM13: 0 | DN13: 0 | DO13: 0 | DP13: 0 | DQ13: 0 | DR13: 0 | DS13: 0 | DT13: 0 | DU13: 0 | DV13: 0 | DW13: 0 | DX13: 1 | DY13: 11 | DZ13: 29 | EA13: 0 | EB13: 3 | EC13: 10 | ED13: 2 | EE13: 0 | EF13: 2 | EG13: 0 | EH13: 1 | EI13: 2 | EJ13: 0 | EK13: 2 | EL13: 2 | EM13: 953 | EN13: 115 | EO13: 23 | EP13: 12 | EQ13: 13 | ER13: 0 | ES13: 0 | ET13: 963 | EU13: 0 | EV13: 0 | EW13: 2 | EX13: 0 | EY13: 0 | EZ13: 0 | FA13: 0 | FB13: 0 | FC13: 0 | FD13: 0 | FE13: 0 | FF13: 0 | FG13: 0 | FH13: 0 | FI13: 0 | FJ13: 0 | FK13: 0 | FL13: 0 | FM13: 5 | FN13: 0 | FO13: 0 | FP13: 0 | FQ13: 0 | FR13: 0 | FS13: 0 | FT13: 5 | FU13: 0 | FV13: 0 | FW13: 0 | FX13: 1 | FY13: 1 | FZ13: 0 | GA13: 0 | GB13: 0 | GC13: 0 | GD13: 0 | GE13: 0 | GF13: 0 | GG13: 0 | GH13: 0 | GI13: 0 | GJ13: 0 | GK13: 0 | GL13: 0 | GM13: 0 | GN13: 0 | GO13: 0 | GP13: 0 | GQ13: 0 | GR13: 0 | GS13: 0 | GT13: 0 | GU13: 0 | GV13: 0 | GW13: 0 | GX13: 0 | GY13: 0 | GZ13: 0 | HA13: 0 | HB13: 0 | HC13: 0 | HD13: 0 | HE13: 942 | HF13: 939 | HG13: 197 | HH13: 964 | HI13: 1,112 | HJ13: 5 | HK13: 20 | HL13: 26 | HM13: 781 | HN13: 0 | HO13: 0 | HP13: 0 | HQ13: 0 | HR13: 0 | HS13: 1,120 | HT13: 8 | HU13: 2 | HV13: 1 | HW13: 3 | HX13: 0 | HY13: 2 | HZ13: 0 | IA13: 0 | IB13: 0 | IC13: 0 | ID13: 985 | IE13: 16 | IF13: 7 | IG13: 4 | IH13: 3 | II13: 1 | IJ13: 0 | IK13: 16 | IL13: 87 | IM13: 17 | IN13: 25 | IO13: 33 | IP13: 34 | IQ13: 37 | IR13: 28 | IS13: 20 | IT13: 31 | IU13: 19 | IV13: 18 | IW13: 45 | IX13: 46 | IY13: 157 | IZ13: 87 | JA13: 71 | JB13: 949 | JC13: 111 | JD13: 20 | JE13: 6 | JF13: 12 | JG13: 2 | JH13: 2 | JI13: 0 | JJ13: 1 | JK13: 1 | JL13: 0 | JM13: 0 | JN13: 4 | JO13: 14 | JP13: 185 | JQ13: 65 | JR13: 44 | JS13: 29 | JT13: 0 | JU13: 1,127 | JV13: 14 | JW13: 6 | JX13: 7 | JY13: 14 | JZ13: 5 | KA13: 3 | KB13: 2 | KC13: 4 | KD13: 0 | KE13: 1,124 | KF13: 14 | KG13: 8 | KH13: 7 | KI13: 18 | KJ13: 7 | KK13: 3 | KL13: 0 | KM13: 975 | KN13: 15 | KO13: 8 | KP13: 0 | KQ13: 4 | KR13: 0 | KS13: 0 | KT13: 1 | KU13: 8 | KV13: 29 | KW13: 13 | KX13: 0 | KY13: 2 | KZ13: 1 | LA13: 285 | LB13: 155 | LC13: 48 | LD13: 33 | LE13: 13 | LF13: 5 | LG13: 0 | LH13: 0 | LI13: 0 | LJ13: 62 | LK13: 38 | LL13: 12 | LM13: 6 | LN13: 0 | LO13: 259 | LP13: 161 | LQ13: 205 | LR13: 117 | LS13: 97 | LT13: 28 | LU13: 0 | LV13: 0 | LW13: 0 | LX13: 6 | LY13: 0 | LZ13: 0 | MA13: 0 | MB13: 0 | MC13: 52 | MD13: 8 | ME13: 5 | MF13: 1 | MG13: 0 | MH13: 0 | MI13: 0 | MJ13: 0 | MK13: 0 | ML13: 2 | MM13: 2 | MN13: 0 | MO13: 0 | MP13: 2 | MQ13: 4 | MR13: 1 | MS13: 0 | MT13: 0 | MU13: 0 | MV13: 13 | MW13: 17 | MX13: 27 | MY13: 3 | MZ13: 0 | NA13: 0 | NB13: 169 | NC13: 165 | ND13: 200 | NE13: 68 | NF13: 43 | NG13: 17 | NH13: 1,379 | NI13: 1,407 | NJ13: 817 | NK13: 693 | NL13: 1,055 | NM13: 16 | NN13: 10 | NO13: 90 | NP13: 8,154 | NQ13: 923 | NR13: 2 | NS13: 0 | NT13: 302 | NU13: 319 | NV13: 3,883 | NW13: 0 | NX13: 0 | NY13: 0 | NZ13: 0 | OA13: 0 | OB13: 1 | OC13: 203 | OD13: 28 | OE13: 0 | OF13: 73 | OG13: 60 | OH13: 0 | OI13: 58 | OJ13: 54 | OK13: 0 | OL13: 59 | OM13: 51 | ON13: 0 | OO13: 46 | OP13: 37 | OQ13: 0 | OR13: 73 | OS13: 38 | OT13: 0 | OU13: 63 | OV13: 26 | OW13: 0 | OX13: 52 | OY13: 29 | OZ13: 0 | PA13: 22 | PB13: 19 | PC13: 0 | PD13: 10 | PE13: 0 | PF13: 0 | PG13: 0 | PH13: 0 | PI13: 0 | PJ13: 0 | PK13: 0 | PL13: 0 | PM13: 0 | PN13: 148 | PO13: 58 | PP13: 38 | PQ13: 38 | PR13: 100 | PS13: 29 | PT13: 1 | PU13: 0 | PV13: 0 | PW13: 7 | PX13: 7 | PY13: 0 | PZ13: 0 | QA13: 8 | QB13: 1 | QC13: 48,011 | QE13: 970.0 | QF13: 1,277.0 | QG13: 4,153.0 | QH13: 977.0 | QI13: 2,961.0 | QJ13: 2,144.0 | QK13: 14.0 | QL13: 0.0 | QM13: 1,881.0 | QN13: 2,324.0 | QO13: 781.0 | QP13: 2,152.0 | QQ13: 771.0 | QR13: 1,445.0 | QS13: 1,182.0 | QT13: 2,179.0 | QU13: 1,665.0 | QV13: 722.0 | QW13: 2,786.0 | QX13: 2,565.0 | QY13: 116.0 | QZ13: 8,154.0 | RA13: 923.0 | RB13: 304.0 | RC13: 319.0 | RD13: 3,883.0 | RE13: 1.0 | RF13: 1,001.0 | RG13: 0.0 | RH13: 0.0 | RI13: 0.0 | RJ13: 244.0 | RK13: 38.0 | RL13: 100.0 | RM13: 29.0 | RN13: 1.0 | RO13: 0.0 | RP13: 0.0 | RQ13: 7.0 | RR13: 7.0 | RS13: 0.0 | RT13: 0.0 | RU13: 8.0 | RV13: 1.0 | RW13: 47,659
D14: POBRE NO ASEGURADO | E14: 341 | F14: 12 | G14: 18 | H14: 5 | I14: 346 | J14: 27 | K14: 0 | L14: 1 | M14: 0 | N14: 1 | O14: 23 | P14: 47 | Q14: 6 | R14: 8 | S14: 18 | T14: 4 | U14: 7 | V14: 15 | W14: 2 | X14: 1 | Y14: 11 | Z14: 1 | AA14: 2 | AB14: 10 | AC14: 0 | AD14: 0 | AE14: 0 | AF14: 0 | AG14: 0 | AH14: 0 | AI14: 0 | AJ14: 0 | AK14: 0 | AL14: 0 | AM14: 0 | AN14: 0 | AO14: 0 | AP14: 0 | AQ14: 0 | AR14: 0 | AS14: 0 | AT14: 0 | AU14: 0 | AV14: 0 | AW14: 0 | AX14: 0 | AY14: 0 | AZ14: 0 | BA14: 0 | BB14: 0 | BC14: 0 | BD14: 0 | BE14: 0 | BF14: 0 | BG14: 0 | BH14: 2 | BI14: 0 | BJ14: 0 | BK14: 0 | BL14: 126 | BM14: 31 | BN14: 13 | BO14: 0 | BP14: 345 | BQ14: 262 | BR14: 267 | BS14: 9 | BT14: 23 | BU14: 46 | BV14: 6 | BW14: 7 | BX14: 17 | BY14: 3 | BZ14: 7 | CA14: 15 | CB14: 1 | CC14: 1 | CD14: 12 | CE14: 1 | CF14: 2 | CG14: 9 | CH14: 155 | CI14: 89 | CJ14: 44 | CK14: 19 | CL14: 33 | CM14: 0 | CN14: 0 | CO14: 4 | CP14: 1 | CQ14: 0 | CR14: 25 | CS14: 0 | CT14: 0 | CU14: 4 | CV14: 0 | CW14: 0 | CX14: 3 | CY14: 2 | CZ14: 0 | DA14: 1 | DB14: 2 | DC14: 0 | DD14: 0 | DE14: 332 | DF14: 344 | DG14: 262 | DH14: 268 | DI14: 7 | DJ14: 0 | DK14: 0 | DL14: 0 | DM14: 0 | DN14: 0 | DO14: 0 | DP14: 0 | DQ14: 0 | DR14: 0 | DS14: 0 | DT14: 0 | DU14: 0 | DV14: 0 | DW14: 0 | DX14: 2 | DY14: 24 | DZ14: 48 | EA14: 6 | EB14: 8 | EC14: 16 | ED14: 4 | EE14: 7 | EF14: 15 | EG14: 2 | EH14: 1 | EI14: 11 | EJ14: 0 | EK14: 3 | EL14: 10 | EM14: 158 | EN14: 97 | EO14: 48 | EP14: 24 | EQ14: 29 | ER14: 0 | ES14: 0 | ET14: 331 | EU14: 0 | EV14: 0 | EW14: 0 | EX14: 0 | EY14: 0 | EZ14: 0 | FA14: 0 | FB14: 0 | FC14: 0 | FD14: 0 | FE14: 0 | FF14: 0 | FG14: 0 | FH14: 0 | FI14: 0 | FJ14: 0 | FK14: 0 | FL14: 0 | FM14: 0 | FN14: 0 | FO14: 1 | FP14: 0 | FQ14: 0 | FR14: 0 | FS14: 0 | FT14: 0 | FU14: 0 | FV14: 0 | FW14: 0 | FX14: 0 | FY14: 2 | FZ14: 0 | GA14: 0 | GB14: 0 | GC14: 0 | GD14: 0 | GE14: 0 | GF14: 0 | GG14: 0 | GH14: 0 | GI14: 0 | GJ14: 0 | GK14: 0 | GL14: 0 | GM14: 0 | GN14: 0 | GO14: 0 | GP14: 0 | GQ14: 0 | GR14: 0 | GS14: 0 | GT14: 0 | GU14: 0 | GV14: 0 | GW14: 0 | GX14: 0 | GY14: 0 | GZ14: 0 | HA14: 0 | HB14: 0 | HC14: 0 | HD14: 0 | HE14: 314 | HF14: 221 | HG14: 147 | HH14: 266 | HI14: 205 | HJ14: 82 | HK14: 72 | HL14: 251 | HM14: 238 | HN14: 0 | HO14: 0 | HP14: 0 | HQ14: 0 | HR14: 0 | HS14: 295 | HT14: 32 | HU14: 25 | HV14: 14 | HW14: 6 | HX14: 6 | HY14: 2 | HZ14: 0 | IA14: 0 | IB14: 0 | IC14: 0 | ID14: 376 | IE14: 41 | IF14: 30 | IG14: 12 | IH14: 4 | II14: 7 | IJ14: 1 | IK14: 2 | IL14: 20 | IM14: 4 | IN14: 24 | IO14: 34 | IP14: 30 | IQ14: 44 | IR14: 27 | IS14: 28 | IT14: 28 | IU14: 30 | IV14: 19 | IW14: 28 | IX14: 15 | IY14: 97 | IZ14: 41 | JA14: 31 | JB14: 147 | JC14: 64 | JD14: 36 | JE14: 21 | JF14: 25 | JG14: 10 | JH14: 6 | JI14: 6 | JJ14: 7 | JK14: 5 | JL14: 5 | JM14: 3 | JN14: 13 | JO14: 23 | JP14: 327 | JQ14: 148 | JR14: 89 | JS14: 61 | JT14: 0 | JU14: 326 | JV14: 74 | JW14: 80 | JX14: 66 | JY14: 68 | JZ14: 53 | KA14: 31 | KB14: 15 | KC14: 7 | KD14: 2 | KE14: 322 | KF14: 71 | KG14: 78 | KH14: 62 | KI14: 59 | KJ14: 51 | KK14: 25 | KL14: 3 | KM14: 355 | KN14: 31 | KO14: 28 | KP14: 0 | KQ14: 2 | KR14: 0 | KS14: 0 | KT14: 1 | KU14: 25 | KV14: 13 | KW14: 7 | KX14: 0 | KY14: 0 | KZ14: 0 | LA14: 115 | LB14: 48 | LC14: 7 | LD14: 5 | LE14: 1 | LF14: 0 | LG14: 0 | LH14: 0 | LI14: 0 | LJ14: 16 | LK14: 5 | LL14: 1 | LM14: 0 | LN14: 0 | LO14: 119 | LP14: 56 | LQ14: 99 | LR14: 24 | LS14: 14 | LT14: 3 | LU14: 0 | LV14: 0 | LW14: 0 | LX14: 3 | LY14: 0 | LZ14: 0 | MA14: 0 | MB14: 1 | MC14: 28 | MD14: 1 | ME14: 1 | MF14: 0 | MG14: 0 | MH14: 0 | MI14: 0 | MJ14: 0 | MK14: 0 | ML14: 0 | MM14: 0 | MN14: 0 | MO14: 0 | MP14: 1 | MQ14: 0 | MR14: 0 | MS14: 0 | MT14: 0 | MU14: 0 | MV14: 2 | MW14: 11 | MX14: 10 | MY14: 0 | MZ14: 0 | NA14: 0 | NB14: 31 | NC14: 107 | ND14: 72 | NE14: 8 | NF14: 8 | NG14: 3 | NH14: 338 | NI14: 203 | NJ14: 310 | NK14: 172 | NL14: 117 | NM14: 23 | NN14: 8 | NO14: 35 | NP14: 446 | NQ14: 340 | NR14: 3 | NS14: 0 | NT14: 207 | NU14: 136 | NV14: 985 | NW14: 0 | NX14: 0 | NY14: 0 | NZ14: 0 | OA14: 0 | OB14: 0 | OC14: 54 | OD14: 11 | OE14: 0 | OF14: 34 | OG14: 15 | OH14: 0 | OI14: 24 | OJ14: 16 | OK14: 0 | OL14: 28 | OM14: 12 | ON14: 0 | OO14: 16 | OP14: 5 | OQ14: 0 | OR14: 17 | OS14: 6 | OT14: 0 | OU14: 19 | OV14: 8 | OW14: 0 | OX14: 10 | OY14: 1 | OZ14: 0 | PA14: 16 | PB14: 1 | PC14: 0 | PD14: 2 | PE14: 0 | PF14: 0 | PG14: 0 | PH14: 0 | PI14: 0 | PJ14: 0 | PK14: 0 | PL14: 0 | PM14: 0 | PN14: 32 | PO14: 6 | PP14: 3 | PQ14: 3 | PR14: 13 | PS14: 4 | PT14: 1 | PU14: 0 | PV14: 1 | PW14: 3 | PX14: 3 | PY14: 0 | PZ14: 0 | QA14: 0 | QB14: 0 | QC14: 15,029 | QE14: 376.0 | QF14: 702.0 | QG14: 1,407.0 | QH14: 340.0 | QI14: 881.0 | QJ14: 844.0 | QK14: 3.0 | QL14: 0.0 | QM14: 535.0 | QN14: 1,023.0 | QO14: 238.0 | QP14: 851.0 | QQ14: 502.0 | QR14: 996.0 | QS14: 722.0 | QT14: 1,085.0 | QU14: 596.0 | QV14: 252.0 | QW14: 541.0 | QX14: 599.0 | QY14: 66.0 | QZ14: 446.0 | RA14: 340.0 | RB14: 210.0 | RC14: 136.0 | RD14: 985.0 | RE14: 0.0 | RF14: 295.0 | RG14: 0.0 | RH14: 0.0 | RI14: 0.0 | RJ14: 41.0 | RK14: 3.0 | RL14: 13.0 | RM14: 4.0 | RN14: 2.0 | RO14: 1.0 | RP14: 1.0 | RQ14: 3.0 | RR14: 3.0 | RS14: 0.0 | RT14: 0.0 | RU14: 0.0 | RV14: 0.0 | RW14: 14,975
D15: REGIMEN ESPECIAL | E15: 309 | F15: 7 | G15: 0 | H15: 0 | I15: 276 | J15: 39 | K15: 0 | L15: 0 | M15: 0 | N15: 0 | O15: 0 | P15: 2 | Q15: 0 | R15: 0 | S15: 0 | T15: 0 | U15: 0 | V15: 0 | W15: 0 | X15: 0 | Y15: 1 | Z15: 0 | AA15: 0 | AB15: 0 | AC15: 0 | AD15: 0 | AE15: 0 | AF15: 0 | AG15: 0 | AH15: 0 | AI15: 0 | AJ15: 0 | AK15: 0 | AL15: 0 | AM15: 0 | AN15: 0 | AO15: 0 | AP15: 0 | AQ15: 0 | AR15: 0 | AS15: 0 | AT15: 0 | AU15: 0 | AV15: 0 | AW15: 0 | AX15: 0 | AY15: 0 | AZ15: 1 | BA15: 0 | BB15: 0 | BC15: 0 | BD15: 0 | BE15: 0 | BF15: 0 | BG15: 0 | BH15: 0 | BI15: 0 | BJ15: 0 | BK15: 0 | BL15: 4 | BM15: 0 | BN15: 2 | BO15: 0 | BP15: 117 | BQ15: 135 | BR15: 129 | BS15: 0 | BT15: 0 | BU15: 5 | BV15: 0 | BW15: 0 | BX15: 0 | BY15: 0 | BZ15: 0 | CA15: 0 | CB15: 0 | CC15: 0 | CD15: 1 | CE15: 0 | CF15: 0 | CG15: 0 | CH15: 128 | CI15: 5 | CJ15: 2 | CK15: 0 | CL15: 2 | CM15: 0 | CN15: 0 | CO15: 3 | CP15: 0 | CQ15: 0 | CR15: 0 | CS15: 0 | CT15: 0 | CU15: 0 | CV15: 0 | CW15: 0 | CX15: 10 | CY15: 1 | CZ15: 0 | DA15: 0 | DB15: 1 | DC15: 0 | DD15: 0 | DE15: 270 | DF15: 116 | DG15: 135 | DH15: 129 | DI15: 0 | DJ15: 0 | DK15: 0 | DL15: 0 | DM15: 0 | DN15: 0 | DO15: 0 | DP15: 0 | DQ15: 0 | DR15: 0 | DS15: 0 | DT15: 0 | DU15: 0 | DV15: 0 | DW15: 0 | DX15: 0 | DY15: 0 | DZ15: 3 | EA15: 0 | EB15: 0 | EC15: 0 | ED15: 0 | EE15: 0 | EF15: 0 | EG15: 0 | EH15: 0 | EI15: 1 | EJ15: 0 | EK15: 0 | EL15: 0 | EM15: 140 | EN15: 5 | EO15: 2 | EP15: 0 | EQ15: 2 | ER15: 0 | ES15: 0 | ET15: 271 | EU15: 0 | EV15: 0 | EW15: 0 | EX15: 0 | EY15: 0 | EZ15: 0 | FA15: 0 | FB15: 0 | FC15: 0 | FD15: 0 | FE15: 0 | FF15: 0 | FG15: 0 | FH15: 0 | FI15: 0 | FJ15: 0 | FK15: 0 | FL15: 0 | FM15: 0 | FN15: 0 | FO15: 0 | FP15: 0 | FQ15: 0 | FR15: 0 | FS15: 0 | FT15: 2 | FU15: 0 | FV15: 0 | FW15: 0 | FX15: 0 | FY15: 2 | FZ15: 0 | GA15: 0 | GB15: 0 | GC15: 0 | GD15: 0 | GE15: 0 | GF15: 0 | GG15: 0 | GH15: 0 | GI15: 0 | GJ15: 0 | GK15: 0 | GL15: 0 | GM15: 0 | GN15: 0 | GO15: 0 | GP15: 0 | GQ15: 0 | GR15: 0 | GS15: 0 | GT15: 0 | GU15: 0 | GV15: 0 | GW15: 0 | GX15: 0 | GY15: 0 | GZ15: 0 | HA15: 0 | HB15: 0 | HC15: 0 | HD15: 0 | HE15: 135 | HF15: 154 | HG15: 24 | HH15: 154 | HI15: 167 | HJ15: 1 | HK15: 0 | HL15: 1 | HM15: 103 | HN15: 0 | HO15: 0 | HP15: 0 | HQ15: 0 | HR15: 0 | HS15: 162 | HT15: 0 | HU15: 0 | HV15: 0 | HW15: 0 | HX15: 0 | HY15: 0 | HZ15: 0 | IA15: 0 | IB15: 0 | IC15: 0 | ID15: 279 | IE15: 3 | IF15: 1 | IG15: 0 | IH15: 1 | II15: 0 | IJ15: 0 | IK15: 2 | IL15: 10 | IM15: 2 | IN15: 4 | IO15: 8 | IP15: 8 | IQ15: 16 | IR15: 11 | IS15: 10 | IT15: 8 | IU15: 10 | IV15: 10 | IW15: 7 | IX15: 0 | IY15: 25 | IZ15: 17 | JA15: 11 | JB15: 148 | JC15: 5 | JD15: 2 | JE15: 0 | JF15: 2 | JG15: 0 | JH15: 0 | JI15: 0 | JJ15: 0 | JK15: 0 | JL15: 0 | JM15: 1 | JN15: 2 | JO15: 0 | JP15: 97 | JQ15: 86 | JR15: 61 | JS15: 29 | JT15: 0 | JU15: 168 | JV15: 0 | JW15: 1 | JX15: 0 | JY15: 0 | JZ15: 0 | KA15: 0 | KB15: 0 | KC15: 0 | KD15: 0 | KE15: 159 | KF15: 0 | KG15: 1 | KH15: 0 | KI15: 0 | KJ15: 0 | KK15: 1 | KL15: 0 | KM15: 268 | KN15: 3 | KO15: 3 | KP15: 0 | KQ15: 0 | KR15: 0 | KS15: 0 | KT15: 0 | KU15: 1 | KV15: 2 | KW15: 1 | KX15: 0 | KY15: 0 | KZ15: 0 | LA15: 34 | LB15: 23 | LC15: 15 | LD15: 5 | LE15: 1 | LF15: 0 | LG15: 0 | LH15: 0 | LI15: 0 | LJ15: 53 | LK15: 17 | LL15: 8 | LM15: 0 | LN15: 0 | LO15: 93 | LP15: 78 | LQ15: 61 | LR15: 42 | LS15: 30 | LT15: 6 | LU15: 0 | LV15: 0 | LW15: 0 | LX15: 0 | LY15: 0 | LZ15: 0 | MA15: 0 | MB15: 0 | MC15: 11 | MD15: 43 | ME15: 17 | MF15: 3 | MG15: 0 | MH15: 1 | MI15: 0 | MJ15: 0 | MK15: 0 | ML15: 0 | MM15: 0 | MN15: 0 | MO15: 0 | MP15: 0 | MQ15: 0 | MR15: 0 | MS15: 0 | MT15: 0 | MU15: 0 | MV15: 1 | MW15: 0 | MX15: 0 | MY15: 0 | MZ15: 0 | NA15: 0 | NB15: 26 | NC15: 24 | ND15: 36 | NE15: 13 | NF15: 14 | NG15: 7 | NH15: 186 | NI15: 235 | NJ15: 95 | NK15: 99 | NL15: 212 | NM15: 3 | NN15: 2 | NO15: 30 | NP15: 3,478 | NQ15: 155 | NR15: 2 | NS15: 0 | NT15: 123 | NU15: 145 | NV15: 1,057 | NW15: 0 | NX15: 0 | NY15: 0 | NZ15: 0 | OA15: 0 | OB15: 1 | OC15: 63 | OD15: 14 | OE15: 0 | OF15: 39 | OG15: 32 | OH15: 0 | OI15: 34 | OJ15: 34 | OK15: 0 | OL15: 21 | OM15: 23 | ON15: 0 | OO15: 34 | OP15: 31 | OQ15: 0 | OR15: 27 | OS15: 25 | OT15: 0 | OU15: 37 | OV15: 17 | OW15: 0 | OX15: 22 | OY15: 26 | OZ15: 0 | PA15: 19 | PB15: 15 | PC15: 0 | PD15: 2 | PE15: 0 | PF15: 0 | PG15: 0 | PH15: 0 | PI15: 0 | PJ15: 0 | PK15: 0 | PL15: 0 | PM15: 0 | PN15: 74 | PO15: 28 | PP15: 26 | PQ15: 26 | PR15: 7 | PS15: 3 | PT15: 0 | PU15: 0 | PV15: 0 | PW15: 0 | PX15: 0 | PY15: 0 | PZ15: 0 | QA15: 0 | QB15: 0 | QC15: 11,778 | QE15: 316.0 | QF15: 325.0 | QG15: 527.0 | QH15: 282.0 | QI15: 380.0 | QJ15: 424.0 | QK15: 4.0 | QL15: 0.0 | QM15: 289.0 | QN15: 347.0 | QO15: 103.0 | QP15: 446.0 | QQ15: 159.0 | QR15: 433.0 | QS15: 169.0 | QT15: 435.0 | QU15: 545.0 | QV15: 121.0 | QW15: 421.0 | QX15: 406.0 | QY15: 35.0 | QZ15: 3,478.0 | RA15: 155.0 | RB15: 125.0 | RC15: 145.0 | RD15: 1,057.0 | RE15: 1.0 | RF15: 515.0 | RG15: 0.0 | RH15: 0.0 | RI15: 0.0 | RJ15: 128.0 | RK15: 26.0 | RL15: 7.0 | RM15: 3.0 | RN15: 0.0 | RO15: 0.0 | RP15: 0.0 | RQ15: 0.0 | RR15: 0.0 | RS15: 0.0 | RT15: 0.0 | RU15: 0.0 | RV15: 0.0 | RW15: 11,643
D16: TOTAL REGIMEN | E16: 6,531 | F16: 161 | G16: 22 | H16: 10 | I16: 6,516 | J16: 210 | K16: 2 | L16: 1 | M16: 1 | N16: 2 | O16: 44 | P16: 95 | Q16: 6 | R16: 12 | S16: 36 | T16: 8 | U16: 9 | V16: 19 | W16: 3 | X16: 2 | Y16: 16 | Z16: 1 | AA16: 5 | AB16: 13 | AC16: 0 | AD16: 0 | AE16: 0 | AF16: 0 | AG16: 0 | AH16: 0 | AI16: 0 | AJ16: 0 | AK16: 0 | AL16: 0 | AM16: 0 | AN16: 0 | AO16: 0 | AP16: 0 | AQ16: 0 | AR16: 0 | AS16: 0 | AT16: 0 | AU16: 0 | AV16: 0 | AW16: 0 | AX16: 0 | AY16: 0 | AZ16: 14 | BA16: 0 | BB16: 1 | BC16: 0 | BD16: 3 | BE16: 0 | BF16: 0 | BG16: 0 | BH16: 14 | BI16: 2 | BJ16: 0 | BK16: 0 | BL16: 571 | BM16: 105 | BN16: 63 | BO16: 7 | BP16: 4,654 | BQ16: 4,429 | BR16: 4,899 | BS16: 12 | BT16: 44 | BU16: 102 | BV16: 7 | BW16: 12 | BX16: 33 | BY16: 7 | BZ16: 9 | CA16: 19 | CB16: 2 | CC16: 2 | CD16: 15 | CE16: 1 | CF16: 4 | CG16: 11 | CH16: 4,451 | CI16: 381 | CJ16: 102 | CK16: 48 | CL16: 79 | CM16: 0 | CN16: 0 | CO16: 67 | CP16: 1 | CQ16: 0 | CR16: 50 | CS16: 0 | CT16: 0 | CU16: 8 | CV16: 0 | CW16: 0 | CX16: 54 | CY16: 10 | CZ16: 0 | DA16: 2 | DB16: 3 | DC16: 0 | DD16: 0 | DE16: 6,920 | DF16: 4,646 | DG16: 4,427 | DH16: 4,895 | DI16: 9 | DJ16: 0 | DK16: 0 | DL16: 0 | DM16: 0 | DN16: 0 | DO16: 0 | DP16: 0 | DQ16: 0 | DR16: 0 | DS16: 0 | DT16: 0 | DU16: 0 | DV16: 0 | DW16: 0 | DX16: 6 | DY16: 45 | DZ16: 97 | EA16: 6 | EB16: 12 | EC16: 32 | ED16: 8 | EE16: 8 | EF16: 18 | EG16: 3 | EH16: 2 | EI16: 15 | EJ16: 0 | EK16: 5 | EL16: 13 | EM16: 4,487 | EN16: 394 | EO16: 107 | EP16: 56 | EQ16: 69 | ER16: 0 | ES16: 0 | ET16: 6,946 | EU16: 2 | EV16: 1 | EW16: 4 | EX16: 0 | EY16: 0 | EZ16: 0 | FA16: 0 | FB16: 0 | FC16: 1 | FD16: 0 | FE16: 1 | FF16: 0 | FG16: 0 | FH16: 0 | FI16: 0 | FJ16: 0 | FK16: 0 | FL16: 0 | FM16: 17 | FN16: 2 | FO16: 1 | FP16: 0 | FQ16: 0 | FR16: 0 | FS16: 0 | FT16: 27 | FU16: 0 | FV16: 0 | FW16: 0 | FX16: 1 | FY16: 11 | FZ16: 0 | GA16: 0 | GB16: 0 | GC16: 0 | GD16: 0 | GE16: 0 | GF16: 0 | GG16: 0 | GH16: 0 | GI16: 0 | GJ16: 0 | GK16: 0 | GL16: 0 | GM16: 0 | GN16: 0 | GO16: 0 | GP16: 0 | GQ16: 0 | GR16: 0 | GS16: 0 | GT16: 0 | GU16: 0 | GV16: 0 | GW16: 0 | GX16: 0 | GY16: 0 | GZ16: 0 | HA16: 0 | HB16: 0 | HC16: 0 | HD16: 0 | HE16: 5,134 | HF16: 4,927 | HG16: 889 | HH16: 4,949 | HI16: 5,257 | HJ16: 91 | HK16: 102 | HL16: 299 | HM16: 4,506 | HN16: 0 | HO16: 0 | HP16: 0 | HQ16: 0 | HR16: 0 | HS16: 5,341 | HT16: 54 | HU16: 34 | HV16: 18 | HW16: 12 | HX16: 6 | HY16: 4 | HZ16: 0 | IA16: 0 | IB16: 0 | IC16: 0 | ID16: 7,300 | IE16: 97 | IF16: 56 | IG16: 21 | IH16: 15 | II16: 12 | IJ16: 2 | IK16: 36 | IL16: 380 | IM16: 72 | IN16: 142 | IO16: 191 | IP16: 191 | IQ16: 236 | IR16: 209 | IS16: 178 | IT16: 193 | IU16: 168 | IV16: 152 | IW16: 189 | IX16: 135 | IY16: 974 | IZ16: 520 | JA16: 341 | JB16: 4,809 | JC16: 366 | JD16: 100 | JE16: 51 | JF16: 71 | JG16: 18 | JH16: 11 | JI16: 10 | JJ16: 12 | JK16: 7 | JL16: 12 | JM16: 14 | JN16: 49 | JO16: 139 | JP16: 3,267 | JQ16: 1,652 | JR16: 922 | JS16: 605 | JT16: 0 | JU16: 5,560 | JV16: 104 | JW16: 96 | JX16: 77 | JY16: 90 | JZ16: 61 | KA16: 36 | KB16: 17 | KC16: 12 | KD16: 3 | KE16: 5,396 | KF16: 98 | KG16: 95 | KH16: 73 | KI16: 97 | KJ16: 59 | KK16: 31 | KL16: 3 | KM16: 7,224 | KN16: 89 | KO16: 57 | KP16: 0 | KQ16: 14 | KR16: 0 | KS16: 0 | KT16: 2 | KU16: 46 | KV16: 97 | KW16: 31 | KX16: 0 | KY16: 3 | KZ16: 1 | LA16: 1,922 | LB16: 879 | LC16: 373 | LD16: 257 | LE16: 138 | LF16: 17 | LG16: 0 | LH16: 0 | LI16: 0 | LJ16: 595 | LK16: 291 | LL16: 92 | LM16: 24 | LN16: 5 | LO16: 2,240 | LP16: 1,513 | LQ16: 1,815 | LR16: 1,140 | LS16: 816 | LT16: 173 | LU16: 0 | LV16: 0 | LW16: 0 | LX16: 21 | LY16: 1 | LZ16: 0 | MA16: 0 | MB16: 1 | MC16: 269 | MD16: 52 | ME16: 23 | MF16: 4 | MG16: 0 | MH16: 1 | MI16: 0 | MJ16: 0 | MK16: 0 | ML16: 12 | MM16: 3 | MN16: 0 | MO16: 2 | MP16: 5 | MQ16: 10 | MR16: 1 | MS16: 1 | MT16: 0 | MU16: 2 | MV16: 29 | MW16: 49 | MX16: 69 | MY16: 5 | MZ16: 1 | NA16: 0 | NB16: 1,280 | NC16: 838 | ND16: 1,543 | NE16: 508 | NF16: 382 | NG16: 237 | NH16: 7,010 | NI16: 7,297 | NJ16: 3,763 | NK16: 3,177 | NL16: 5,702 | NM16: 79 | NN16: 47 | NO16: 499 | NP16: 50,472 | NQ16: 6,440 | NR16: 9 | NS16: 0 | NT16: 2,029 | NU16: 1,729 | NV16: 22,205 | NW16: 0 | NX16: 0 | NY16: 0 | NZ16: 0 | OA16: 0 | OB16: 2 | OC16: 1,556 | OD16: 343 | OE16: 0 | OF16: 650 | OG16: 554 | OH16: 0 | OI16: 604 | OJ16: 510 | OK16: 0 | OL16: 506 | OM16: 393 | ON16: 2 | OO16: 441 | OP16: 347 | OQ16: 0 | OR16: 428 | OS16: 281 | OT16: 1 | OU16: 469 | OV16: 271 | OW16: 0 | OX16: 339 | OY16: 230 | OZ16: 0 | PA16: 179 | PB16: 202 | PC16: 1 | PD16: 47 | PE16: 0 | PF16: 0 | PG16: 0 | PH16: 0 | PI16: 0 | PJ16: 0 | PK16: 0 | PL16: 0 | PM16: 0 | PN16: 1,147 | PO16: 427 | PP16: 282 | PQ16: 282 | PR16: 385 | PS16: 101 | PT16: 3 | PU16: 1 | PV16: 2 | PW16: 42 | PX16: 26 | PY16: 2 | PZ16: 1 | QA16: 8 | QB16: 1 | QC16: =SUM(QC12:QC15) -> 281,088 | QE16: =SUM(QE12:QE15) -> 6,724.0 | QF16: =SUM(QF12:QF15) -> 7,781.0 | QG16: 19,449.0 | QH16: 6,989.0 | QI16: 13,977.0 | QJ16: 12,329.0 | QK16: 68.0 | QL16: 0.0 | QM16: 10,061.0 | QN16: 11,587.0 | QO16: =SUM(QO12:QO15) -> 4,506.0 | QP16: 12,972.0 | QQ16: 4,307.0 | QR16: 12,115.0 | QS16: 6,056.0 | QT16: 13,222.0 | QU16: 12,892.0 | QV16: 4,941.0 | QW16: 14,307.0 | QX16: 12,642.0 | QY16: 625.0 | QZ16: 50,472.0 | RA16: 6,440.0 | RB16: =SUM(RB12:RB15) -> 2,038.0 | RC16: 1,729.0 | RD16: 22,205.0 | RE16: 2.0 | RF16: 8,354.0 | RG16: 0.0 | RH16: 0.0 | RI16: 0.0 | RJ16: 1,856.0 | RK16: =SUM(RK12:RK15) -> 282.0 | RL16: 385.0 | RM16: 101.0 | RN16: 6.0 | RO16: 2.0 | RP16: 2.0 | RQ16: 42.0 | RR16: 26.0 | RS16: 2.0 | RT16: 1.0 | RU16: 8.0 | RV16: 1.0 | RW16: =SUM(RW12:RW15) -> 278,808
D17: INDIGENA | E17: 2 | F17: 0 | G17: 0 | H17: 0 | I17: 3 | J17: 0 | K17: 0 | L17: 0 | M17: 0 | N17: 0 | O17: 2 | P17: 2 | Q17: 0 | R17: 0 | S17: 1 | T17: 0 | U17: 0 | V17: 0 | W17: 0 | X17: 0 | Y17: 0 | Z17: 0 | AA17: 0 | AB17: 0 | AC17: 0 | AD17: 0 | AE17: 0 | AF17: 0 | AG17: 0 | AH17: 0 | AI17: 0 | AJ17: 0 | AK17: 0 | AL17: 0 | AM17: 0 | AN17: 0 | AO17: 0 | AP17: 0 | AQ17: 0 | AR17: 0 | AS17: 0 | AT17: 0 | AU17: 0 | AV17: 0 | AW17: 0 | AX17: 0 | AY17: 0 | AZ17: 0 | BA17: 0 | BB17: 0 | BC17: 0 | BD17: 0 | BE17: 0 | BF17: 0 | BG17: 0 | BH17: 0 | BI17: 0 | BJ17: 0 | BK17: 0 | BL17: 1 | BM17: 0 | BN17: 0 | BO17: 0 | BP17: 6 | BQ17: 4 | BR17: 14 | BS17: 0 | BT17: 2 | BU17: 2 | BV17: 0 | BW17: 0 | BX17: 1 | BY17: 0 | BZ17: 0 | CA17: 0 | CB17: 0 | CC17: 0 | CD17: 0 | CE17: 0 | CF17: 0 | CG17: 0 | CH17: 14 | CI17: 1 | CJ17: 0 | CK17: 0 | CL17: 0 | CM17: 0 | CN17: 0 | CO17: 0 | CP17: 0 | CQ17: 0 | CR17: 0 | CS17: 0 | CT17: 0 | CU17: 0 | CV17: 0 | CW17: 0 | CX17: 1 | CY17: 0 | CZ17: 0 | DA17: 0 | DB17: 0 | DC17: 0 | DD17: 0 | DE17: 13 | DF17: 6 | DG17: 4 | DH17: 14 | DI17: 0 | DJ17: 0 | DK17: 0 | DL17: 0 | DM17: 0 | DN17: 0 | DO17: 0 | DP17: 0 | DQ17: 0 | DR17: 0 | DS17: 0 | DT17: 0 | DU17: 0 | DV17: 0 | DW17: 0 | DX17: 0 | DY17: 2 | DZ17: 2 | EA17: 0 | EB17: 0 | EC17: 1 | ED17: 0 | EE17: 0 | EF17: 0 | EG17: 0 | EH17: 0 | EI17: 0 | EJ17: 0 | EK17: 0 | EL17: 0 | EM17: 15 | EN17: 1 | EO17: 0 | EP17: 0 | EQ17: 0 | ER17: 0 | ES17: 0 | ET17: 13 | EU17: 0 | EV17: 0 | EW17: 0 | EX17: 0 | EY17: 0 | EZ17: 0 | FA17: 0 | FB17: 0 | FC17: 0 | FD17: 0 | FE17: 0 | FF17: 0 | FG17: 0 | FH17: 0 | FI17: 0 | FJ17: 0 | FK17: 0 | FL17: 0 | FM17: 0 | FN17: 0 | FO17: 0 | FP17: 0 | FQ17: 0 | FR17: 0 | FS17: 0 | FT17: 0 | FU17: 0 | FV17: 0 | FW17: 0 | FX17: 0 | FY17: 0 | FZ17: 0 | GA17: 0 | GB17: 0 | GC17: 0 | GD17: 0 | GE17: 0 | GF17: 0 | GG17: 0 | GH17: 0 | GI17: 0 | GJ17: 0 | GK17: 0 | GL17: 0 | GM17: 0 | GN17: 0 | GO17: 0 | GP17: 0 | GQ17: 0 | GR17: 0 | GS17: 0 | GT17: 0 | GU17: 0 | GV17: 0 | GW17: 0 | GX17: 0 | GY17: 0 | GZ17: 0 | HA17: 0 | HB17: 0 | HC17: 0 | HD17: 0 | HE17: 6 | HF17: 3 | HG17: 1 | HH17: 5 | HI17: 10 | HJ17: 0 | HK17: 3 | HL17: 0 | HM17: 5 | HN17: 0 | HO17: 0 | HP17: 0 | HQ17: 0 | HR17: 0 | HS17: 11 | HT17: 0 | HU17: 0 | HV17: 0 | HW17: 0 | HX17: 0 | HY17: 0 | HZ17: 0 | IA17: 0 | IB17: 0 | IC17: 0 | ID17: 13 | IE17: 0 | IF17: 0 | IG17: 0 | IH17: 0 | II17: 0 | IJ17: 0 | IK17: 0 | IL17: 1 | IM17: 1 | IN17: 0 | IO17: 0 | IP17: 0 | IQ17: 0 | IR17: 0 | IS17: 0 | IT17: 0 | IU17: 0 | IV17: 0 | IW17: 0 | IX17: 0 | IY17: 2 | IZ17: 1 | JA17: 0 | JB17: 17 | JC17: 1 | JD17: 0 | JE17: 0 | JF17: 0 | JG17: 0 | JH17: 0 | JI17: 0 | JJ17: 0 | JK17: 0 | JL17: 0 | JM17: 0 | JN17: 0 | JO17: 0 | JP17: 4 | JQ17: 1 | JR17: 0 | JS17: 0 | JT17: 0 | JU17: 11 | JV17: 0 | JW17: 0 | JX17: 0 | JY17: 0 | JZ17: 0 | KA17: 0 | KB17: 0 | KC17: 0 | KD17: 0 | KE17: 11 | KF17: 0 | KG17: 0 | KH17: 0 | KI17: 1 | KJ17: 0 | KK17: 0 | KL17: 0 | KM17: 12 | KN17: 0 | KO17: 0 | KP17: 0 | KQ17: 0 | KR17: 0 | KS17: 0 | KT17: 0 | KU17: 0 | KV17: 0 | KW17: 0 | KX17: 0 | KY17: 0 | KZ17: 0 | LA17: 0 | LB17: 2 | LC17: 0 | LD17: 1 | LE17: 2 | LF17: 0 | LG17: 0 | LH17: 0 | LI17: 0 | LJ17: 2 | LK17: 1 | LL17: 0 | LM17: 0 | LN17: 0 | LO17: 2 | LP17: 0 | LQ17: 1 | LR17: 1 | LS17: 3 | LT17: 0 | LU17: 0 | LV17: 0 | LW17: 0 | LX17: 0 | LY17: 0 | LZ17: 0 | MA17: 0 | MB17: 0 | MC17: 1 | MD17: 1 | ME17: 0 | MF17: 0 | MG17: 0 | MH17: 0 | MI17: 0 | MJ17: 0 | MK17: 0 | ML17: 0 | MM17: 0 | MN17: 0 | MO17: 0 | MP17: 0 | MQ17: 0 | MR17: 0 | MS17: 0 | MT17: 0 | MU17: 0 | MV17: 0 | MW17: 0 | MX17: 0 | MY17: 0 | MZ17: 0 | NA17: 0 | NB17: 3 | NC17: 3 | ND17: 2 | NE17: 1 | NF17: 0 | NG17: 0 | NH17: 15 | NI17: 9 | NJ17: 11 | NK17: 6 | NL17: 16 | NM17: 1 | NN17: 0 | NO17: 3 | NP17: 28 | NQ17: 9 | NR17: 0 | NS17: 0 | NT17: 16 | NU17: 3 | NV17: 28 | NW17: 0 | NX17: 0 | NY17: 0 | NZ17: 0 | OA17: 0 | OB17: 0 | OC17: 2 | OD17: 0 | OE17: 0 | OF17: 2 | OG17: 0 | OH17: 0 | OI17: 1 | OJ17: 1 | OK17: 0 | OL17: 1 | OM17: 1 | ON17: 0 | OO17: 0 | OP17: 0 | OQ17: 0 | OR17: 0 | OS17: 0 | OT17: 0 | OU17: 0 | OV17: 0 | OW17: 0 | OX17: 0 | OY17: 2 | OZ17: 0 | PA17: 1 | PB17: 0 | PC17: 0 | PD17: 0 | PE17: 0 | PF17: 0 | PG17: 0 | PH17: 0 | PI17: 0 | PJ17: 0 | PK17: 0 | PL17: 0 | PM17: 0 | PN17: 2 | PO17: 1 | PP17: 0 | PQ17: 0 | PR17: 6 | PS17: 1 | PT17: 0 | PU17: 0 | PV17: 0 | PW17: 0 | PX17: 0 | PY17: 0 | PZ17: 0 | QA17: 0 | QB17: 0 | QC17: =SUM(E17:QB17)-(PQ17+PS17+PU17+PV17+PX17) -> 438 | QE17: =SUM(E17:H17) -> 2.0 | QF17: =SUM(I17:BO17) -> 9.0 | QG17: =SUM(BP17:CW17) -> 44.0 | QH17: =SUM(CX17:DE17) -> 14.0 | QI17: =SUM(DF17:DT17) -> 24.0 | QJ17: =SUM(DU17:ET17) -> 34.0 | QK17: =SUM(EU17:FY17) -> 0.0 | QL17: =SUM(FZ17:HD17) -> 0.0 | QM17: =SUM(HE17:HF17) -> 9.0 | QN17: =SUM(HG17:HL17) -> 19.0 | QO17: =SUM(HM17:HR17) -> 5.0 | QP17: =SUM(HS17:IJ17) -> 24.0 | QQ17: =SUM(IK17:JA17) -> 5.0 | QR17: =SUM(JB17:JT17) -> 23.0 | QS17: =SUM(JU17:KD17) -> 11.0 | QT17: =SUM(KE17:KP17) -> 24.0 | QU17: =SUM(KQ17:MU17) -> 17.0 | QV17: =SUM(MV17:NG17) -> 9.0 | QW17: =SUM(NH17:NI17) -> 24.0 | QX17: =SUM(NJ17:NL17) -> 33.0 | QY17: =SUM(NM17:NO17) -> 4.0 | QZ17: =SUM(NP17) -> 28.0 | RA17: =SUM(NQ17) -> 9.0 | RB17: =SUM(NR17:NT17) -> 16.0 | RC17: =SUM(NU17) -> 3.0 | RD17: =SUM(NV17) -> 28.0 | RE17: =SUM(NW17:OB17) -> 0.0 | RF17: =SUM(OC17:PE17) -> 11.0 | RG17: =SUM(PF17:PG17) -> 0.0 | RH17: =SUM(PH17:PI17) -> 0.0 | RI17: =SUM(PJ17:PM17) -> 0.0 | RJ17: =SUM(PN17:PP17) -> 3.0 | RK17: =SUM(PQ17) -> 0.0 | RL17: =SUM(PR17) -> 6.0 | RM17: =SUM(PS17) -> 1.0 | RN17: =SUM(PT17:PV17) -> 0.0 | RO17: =SUM(PV17) -> 0.0 | RP17: =SUM(PV17) -> 0.0 | RQ17: =SUM(PW17) -> 0.0 | RR17: =SUM(PX17) -> 0.0 | RS17: =SUM(PY17) -> 0.0 | RT17: =SUM(PZ17) -> 0.0 | RU17: =SUM(QA17) -> 0.0 | RV17: =SUM(QB17) -> 0.0 | RW17: =SUM(QE17:RU17)-SUM(RI17:RM17)-SUM(RQ17:RT17) -> 429
D18: ROM (GITANO) | E18: 0 | F18: 0 | G18: 0 | H18: 0 | I18: 0 | J18: 0 | K18: 0 | L18: 0 | M18: 0 | N18: 0 | O18: 0 | P18: 0 | Q18: 0 | R18: 0 | S18: 0 | T18: 0 | U18: 0 | V18: 0 | W18: 0 | X18: 0 | Y18: 0 | Z18: 0 | AA18: 0 | AB18: 0 | AC18: 0 | AD18: 0 | AE18: 0 | AF18: 0 | AG18: 0 | AH18: 0 | AI18: 0 | AJ18: 0 | AK18: 0 | AL18: 0 | AM18: 0 | AN18: 0 | AO18: 0 | AP18: 0 | AQ18: 0 | AR18: 0 | AS18: 0 | AT18: 0 | AU18: 0 | AV18: 0 | AW18: 0 | AX18: 0 | AY18: 0 | AZ18: 0 | BA18: 0 | BB18: 0 | BC18: 0 | BD18: 0 | BE18: 0 | BF18: 0 | BG18: 0 | BH18: 0 | BI18: 0 | BJ18: 0 | BK18: 0 | BL18: 0 | BM18: 0 | BN18: 0 | BO18: 0 | BP18: 0 | BQ18: 1 | BR18: 0 | BS18: 0 | BT18: 0 | BU18: 0 | BV18: 0 | BW18: 0 | BX18: 0 | BY18: 0 | BZ18: 0 | CA18: 0 | CB18: 0 | CC18: 0 | CD18: 0 | CE18: 0 | CF18: 0 | CG18: 0 | CH18: 0 | CI18: 0 | CJ18: 0 | CK18: 0 | CL18: 0 | CM18: 0 | CN18: 0 | CO18: 0 | CP18: 0 | CQ18: 0 | CR18: 0 | CS18: 0 | CT18: 0 | CU18: 0 | CV18: 0 | CW18: 0 | CX18: 0 | CY18: 0 | CZ18: 0 | DA18: 0 | DB18: 0 | DC18: 0 | DD18: 0 | DE18: 0 | DF18: 0 | DG18: 1 | DH18: 0 | DI18: 0 | DJ18: 0 | DK18: 0 | DL18: 0 | DM18: 0 | DN18: 0 | DO18: 0 | DP18: 0 | DQ18: 0 | DR18: 0 | DS18: 0 | DT18: 0 | DU18: 0 | DV18: 0 | DW18: 0 | DX18: 0 | DY18: 0 | DZ18: 0 | EA18: 0 | EB18: 0 | EC18: 0 | ED18: 0 | EE18: 0 | EF18: 0 | EG18: 0 | EH18: 0 | EI18: 0 | EJ18: 0 | EK18: 0 | EL18: 0 | EM18: 0 | EN18: 0 | EO18: 0 | EP18: 0 | EQ18: 0 | ER18: 0 | ES18: 0 | ET18: 0 | EU18: 0 | EV18: 0 | EW18: 0 | EX18: 0 | EY18: 0 | EZ18: 0 | FA18: 0 | FB18: 0 | FC18: 0 | FD18: 0 | FE18: 0 | FF18: 0 | FG18: 0 | FH18: 0 | FI18: 0 | FJ18: 0 | FK18: 0 | FL18: 0 | FM18: 0 | FN18: 0 | FO18: 0 | FP18: 0 | FQ18: 0 | FR18: 0 | FS18: 0 | FT18: 0 | FU18: 0 | FV18: 0 | FW18: 0 | FX18: 0 | FY18: 0 | FZ18: 0 | GA18: 0 | GB18: 0 | GC18: 0 | GD18: 0 | GE18: 0 | GF18: 0 | GG18: 0 | GH18: 0 | GI18: 0 | GJ18: 0 | GK18: 0 | GL18: 0 | GM18: 0 | GN18: 0 | GO18: 0 | GP18: 0 | GQ18: 0 | GR18: 0 | GS18: 0 | GT18: 0 | GU18: 0 | GV18: 0 | GW18: 0 | GX18: 0 | GY18: 0 | GZ18: 0 | HA18: 0 | HB18: 0 | HC18: 0 | HD18: 0 | HE18: 0 | HF18: 1 | HG18: 0 | HH18: 1 | HI18: 0 | HJ18: 0 | HK18: 0 | HL18: 0 | HM18: 0 | HN18: 0 | HO18: 0 | HP18: 0 | HQ18: 0 | HR18: 0 | HS18: 0 | HT18: 0 | HU18: 0 | HV18: 0 | HW18: 0 | HX18: 0 | HY18: 0 | HZ18: 0 | IA18: 0 | IB18: 0 | IC18: 0 | ID18: 0 | IE18: 0 | IF18: 0 | IG18: 0 | IH18: 0 | II18: 0 | IJ18: 0 | IK18: 0 | IL18: 0 | IM18: 0 | IN18: 0 | IO18: 0 | IP18: 0 | IQ18: 0 | IR18: 0 | IS18: 0 | IT18: 0 | IU18: 0 | IV18: 0 | IW18: 0 | IX18: 0 | IY18: 0 | IZ18: 0 | JA18: 0 | JB18: 0 | JC18: 0 | JD18: 0 | JE18: 0 | JF18: 0 | JG18: 0 | JH18: 0 | JI18: 0 | JJ18: 0 | JK18: 0 | JL18: 0 | JM18: 0 | JN18: 0 | JO18: 0 | JP18: 0 | JQ18: 0 | JR18: 0 | JS18: 0 | JT18: 0 | JU18: 0 | JV18: 0 | JW18: 0 | JX18: 0 | JY18: 0 | JZ18: 0 | KA18: 0 | KB18: 0 | KC18: 0 | KD18: 0 | KE18: 0 | KF18: 0 | KG18: 0 | KH18: 0 | KI18: 0 | KJ18: 0 | KK18: 0 | KL18: 0 | KM18: 0 | KN18: 0 | KO18: 0 | KP18: 0 | KQ18: 0 | KR18: 0 | KS18: 0 | KT18: 0 | KU18: 0 | KV18: 0 | KW18: 0 | KX18: 0 | KY18: 0 | KZ18: 0 | LA18: 0 | LB18: 0 | LC18: 0 | LD18: 0 | LE18: 0 | LF18: 0 | LG18: 0 | LH18: 0 | LI18: 0 | LJ18: 0 | LK18: 0 | LL18: 0 | LM18: 0 | LN18: 0 | LO18: 0 | LP18: 0 | LQ18: 0 | LR18: 0 | LS18: 0 | LT18: 0 | LU18: 0 | LV18: 0 | LW18: 0 | LX18: 0 | LY18: 0 | LZ18: 0 | MA18: 0 | MB18: 0 | MC18: 0 | MD18: 0 | ME18: 0 | MF18: 0 | MG18: 0 | MH18: 0 | MI18: 0 | MJ18: 0 | MK18: 0 | ML18: 0 | MM18: 0 | MN18: 0 | MO18: 0 | MP18: 0 | MQ18: 0 | MR18: 0 | MS18: 0 | MT18: 0 | MU18: 0 | MV18: 0 | MW18: 0 | MX18: 0 | MY18: 0 | MZ18: 0 | NA18: 0 | NB18: 0 | NC18: 0 | ND18: 0 | NE18: 0 | NF18: 0 | NG18: 0 | NH18: 0 | NI18: 0 | NJ18: 0 | NK18: 0 | NL18: 0 | NM18: 0 | NN18: 0 | NO18: 0 | NP18: 2 | NQ18: 0 | NR18: 0 | NS18: 0 | NT18: 0 | NU18: 0 | NV18: 2 | NW18: 0 | NX18: 0 | NY18: 0 | NZ18: 0 | OA18: 0 | OB18: 0 | OC18: 0 | OD18: 0 | OE18: 0 | OF18: 0 | OG18: 0 | OH18: 0 | OI18: 0 | OJ18: 0 | OK18: 0 | OL18: 0 | OM18: 0 | ON18: 0 | OO18: 0 | OP18: 0 | OQ18: 0 | OR18: 0 | OS18: 0 | OT18: 0 | OU18: 0 | OV18: 0 | OW18: 0 | OX18: 0 | OY18: 0 | OZ18: 0 | PA18: 0 | PB18: 0 | PC18: 0 | PD18: 0 | PE18: 0 | PF18: 0 | PG18: 0 | PH18: 0 | PI18: 0 | PJ18: 0 | PK18: 0 | PL18: 0 | PM18: 0 | PN18: 0 | PO18: 0 | PP18: 0 | PQ18: 0 | PR18: 0 | PS18: 0 | PT18: 0 | PU18: 0 | PV18: 0 | PW18: 0 | PX18: 0 | PY18: 0 | PZ18: 0 | QA18: 0 | QB18: 0 | QC18: 8 | QE18: 0.0 | QF18: 0.0 | QG18: 1.0 | QH18: 0.0 | QI18: 1.0 | QJ18: 0.0 | QK18: 0.0 | QL18: 0.0 | QM18: 1.0 | QN18: 1.0 | QO18: 0.0 | QP18: 0.0 | QQ18: 0.0 | QR18: 0.0 | QS18: 0.0 | QT18: 0.0 | QU18: 0.0 | QV18: 0.0 | QW18: 0.0 | QX18: 0.0 | QY18: 0.0 | QZ18: 2.0 | RA18: 0.0 | RB18: 0.0 | RC18: 0.0 | RD18: 2.0 | RE18: 0.0 | RF18: 0.0 | RG18: 0.0 | RH18: 0.0 | RI18: 0.0 | RJ18: 0.0 | RK18: 0.0 | RL18: 0.0 | RM18: 0.0 | RN18: 0.0 | RO18: 0.0 | RP18: 0.0 | RQ18: 0.0 | RR18: 0.0 | RS18: 0.0 | RT18: 0.0 | RU18: 0.0 | RV18: 0.0 | RW18: 8
D19: RAIZAL | E19: 0 | F19: 0 | G19: 0 | H19: 0 | I19: 0 | J19: 0 | K19: 0 | L19: 0 | M19: 0 | N19: 0 | O19: 0 | P19: 0 | Q19: 0 | R19: 0 | S19: 0 | T19: 0 | U19: 0 | V19: 0 | W19: 0 | X19: 0 | Y19: 0 | Z19: 0 | AA19: 0 | AB19: 0 | AC19: 0 | AD19: 0 | AE19: 0 | AF19: 0 | AG19: 0 | AH19: 0 | AI19: 0 | AJ19: 0 | AK19: 0 | AL19: 0 | AM19: 0 | AN19: 0 | AO19: 0 | AP19: 0 | AQ19: 0 | AR19: 0 | AS19: 0 | AT19: 0 | AU19: 0 | AV19: 0 | AW19: 0 | AX19: 0 | AY19: 0 | AZ19: 0 | BA19: 0 | BB19: 0 | BC19: 0 | BD19: 0 | BE19: 0 | BF19: 0 | BG19: 0 | BH19: 0 | BI19: 0 | BJ19: 0 | BK19: 0 | BL19: 0 | BM19: 0 | BN19: 0 | BO19: 0 | BP19: 0 | BQ19: 0 | BR19: 0 | BS19: 0 | BT19: 0 | BU19: 0 | BV19: 0 | BW19: 0 | BX19: 0 | BY19: 0 | BZ19: 0 | CA19: 0 | CB19: 0 | CC19: 0 | CD19: 0 | CE19: 0 | CF19: 0 | CG19: 0 | CH19: 1 | CI19: 0 | CJ19: 0 | CK19: 0 | CL19: 0 | CM19: 0 | CN19: 0 | CO19: 0 | CP19: 0 | CQ19: 0 | CR19: 0 | CS19: 0 | CT19: 0 | CU19: 0 | CV19: 0 | CW19: 0 | CX19: 0 | CY19: 0 | CZ19: 0 | DA19: 0 | DB19: 0 | DC19: 0 | DD19: 0 | DE19: 0 | DF19: 0 | DG19: 0 | DH19: 0 | DI19: 0 | DJ19: 0 | DK19: 0 | DL19: 0 | DM19: 0 | DN19: 0 | DO19: 0 | DP19: 0 | DQ19: 0 | DR19: 0 | DS19: 0 | DT19: 0 | DU19: 0 | DV19: 0 | DW19: 0 | DX19: 0 | DY19: 0 | DZ19: 0 | EA19: 0 | EB19: 0 | EC19: 0 | ED19: 0 | EE19: 0 | EF19: 0 | EG19: 0 | EH19: 0 | EI19: 0 | EJ19: 0 | EK19: 0 | EL19: 0 | EM19: 1 | EN19: 0 | EO19: 0 | EP19: 0 | EQ19: 0 | ER19: 0 | ES19: 0 | ET19: 0 | EU19: 0 | EV19: 0 | EW19: 0 | EX19: 0 | EY19: 0 | EZ19: 0 | FA19: 0 | FB19: 0 | FC19: 0 | FD19: 0 | FE19: 0 | FF19: 0 | FG19: 0 | FH19: 0 | FI19: 0 | FJ19: 0 | FK19: 0 | FL19: 0 | FM19: 0 | FN19: 0 | FO19: 0 | FP19: 0 | FQ19: 0 | FR19: 0 | FS19: 0 | FT19: 0 | FU19: 0 | FV19: 0 | FW19: 0 | FX19: 0 | FY19: 0 | FZ19: 0 | GA19: 0 | GB19: 0 | GC19: 0 | GD19: 0 | GE19: 0 | GF19: 0 | GG19: 0 | GH19: 0 | GI19: 0 | GJ19: 0 | GK19: 0 | GL19: 0 | GM19: 0 | GN19: 0 | GO19: 0 | GP19: 0 | GQ19: 0 | GR19: 0 | GS19: 0 | GT19: 0 | GU19: 0 | GV19: 0 | GW19: 0 | GX19: 0 | GY19: 0 | GZ19: 0 | HA19: 0 | HB19: 0 | HC19: 0 | HD19: 0 | HE19: 0 | HF19: 0 | HG19: 0 | HH19: 0 | HI19: 0 | HJ19: 0 | HK19: 0 | HL19: 0 | HM19: 0 | HN19: 0 | HO19: 0 | HP19: 0 | HQ19: 0 | HR19: 0 | HS19: 0 | HT19: 0 | HU19: 0 | HV19: 0 | HW19: 0 | HX19: 0 | HY19: 0 | HZ19: 0 | IA19: 0 | IB19: 0 | IC19: 0 | ID19: 0 | IE19: 0 | IF19: 0 | IG19: 0 | IH19: 0 | II19: 0 | IJ19: 0 | IK19: 0 | IL19: 0 | IM19: 0 | IN19: 0 | IO19: 0 | IP19: 0 | IQ19: 0 | IR19: 0 | IS19: 0 | IT19: 0 | IU19: 0 | IV19: 0 | IW19: 0 | IX19: 0 | IY19: 0 | IZ19: 0 | JA19: 0 | JB19: 1 | JC19: 0 | JD19: 0 | JE19: 0 | JF19: 0 | JG19: 0 | JH19: 0 | JI19: 0 | JJ19: 0 | JK19: 0 | JL19: 0 | JM19: 0 | JN19: 0 | JO19: 0 | JP19: 0 | JQ19: 0 | JR19: 0 | JS19: 0 | JT19: 0 | JU19: 0 | JV19: 0 | JW19: 0 | JX19: 0 | JY19: 0 | JZ19: 0 | KA19: 0 | KB19: 0 | KC19: 0 | KD19: 0 | KE19: 0 | KF19: 0 | KG19: 0 | KH19: 0 | KI19: 0 | KJ19: 0 | KK19: 0 | KL19: 0 | KM19: 0 | KN19: 0 | KO19: 0 | KP19: 0 | KQ19: 0 | KR19: 0 | KS19: 0 | KT19: 0 | KU19: 0 | KV19: 0 | KW19: 0 | KX19: 0 | KY19: 0 | KZ19: 0 | LA19: 0 | LB19: 0 | LC19: 0 | LD19: 0 | LE19: 0 | LF19: 0 | LG19: 0 | LH19: 0 | LI19: 0 | LJ19: 0 | LK19: 0 | LL19: 0 | LM19: 0 | LN19: 0 | LO19: 0 | LP19: 0 | LQ19: 0 | LR19: 0 | LS19: 1 | LT19: 0 | LU19: 0 | LV19: 0 | LW19: 0 | LX19: 0 | LY19: 0 | LZ19: 0 | MA19: 0 | MB19: 0 | MC19: 0 | MD19: 0 | ME19: 0 | MF19: 0 | MG19: 0 | MH19: 0 | MI19: 0 | MJ19: 0 | MK19: 0 | ML19: 0 | MM19: 0 | MN19: 0 | MO19: 0 | MP19: 0 | MQ19: 0 | MR19: 0 | MS19: 0 | MT19: 0 | MU19: 0 | MV19: 0 | MW19: 0 | MX19: 0 | MY19: 0 | MZ19: 0 | NA19: 0 | NB19: 0 | NC19: 0 | ND19: 0 | NE19: 0 | NF19: 0 | NG19: 0 | NH19: 0 | NI19: 0 | NJ19: 0 | NK19: 1 | NL19: 1 | NM19: 0 | NN19: 0 | NO19: 0 | NP19: 0 | NQ19: 0 | NR19: 0 | NS19: 0 | NT19: 0 | NU19: 0 | NV19: 2 | NW19: 0 | NX19: 0 | NY19: 0 | NZ19: 0 | OA19: 0 | OB19: 0 | OC19: 0 | OD19: 0 | OE19: 0 | OF19: 0 | OG19: 0 | OH19: 0 | OI19: 0 | OJ19: 0 | OK19: 0 | OL19: 0 | OM19: 0 | ON19: 0 | OO19: 0 | OP19: 0 | OQ19: 0 | OR19: 0 | OS19: 0 | OT19: 0 | OU19: 0 | OV19: 0 | OW19: 0 | OX19: 0 | OY19: 0 | OZ19: 0 | PA19: 0 | PB19: 0 | PC19: 0 | PD19: 0 | PE19: 0 | PF19: 0 | PG19: 0 | PH19: 0 | PI19: 0 | PJ19: 0 | PK19: 0 | PL19: 0 | PM19: 0 | PN19: 0 | PO19: 0 | PP19: 0 | PQ19: 0 | PR19: 0 | PS19: 0 | PT19: 0 | PU19: 0 | PV19: 0 | PW19: 0 | PX19: 0 | PY19: 0 | PZ19: 0 | QA19: 0 | QB19: 0 | QC19: 8 | QE19: 0.0 | QF19: 0.0 | QG19: 1.0 | QH19: 0.0 | QI19: 0.0 | QJ19: 1.0 | QK19: 0.0 | QL19: 0.0 | QM19: 0.0 | QN19: 0.0 | QO19: 0.0 | QP19: 0.0 | QQ19: 0.0 | QR19: 1.0 | QS19: 0.0 | QT19: 0.0 | QU19: 1.0 | QV19: 0.0 | QW19: 0.0 | QX19: 2.0 | QY19: 0.0 | QZ19: 0.0 | RA19: 0.0 | RB19: 0.0 | RC19: 0.0 | RD19: 2.0 | RE19: 0.0 | RF19: 0.0 | RG19: 0.0 | RH19: 0.0 | RI19: 0.0 | RJ19: 0.0 | RK19: 0.0 | RL19: 0.0 | RM19: 0.0 | RN19: 0.0 | RO19: 0.0 | RP19: 0.0 | RQ19: 0.0 | RR19: 0.0 | RS19: 0.0 | RT19: 0.0 | RU19: 0.0 | RV19: 0.0 | RW19: 8
D20: PALENQUERO | E20: 1 | F20: 0 | G20: 0 | H20: 0 | I20: 1 | J20: 0 | K20: 0 | L20: 0 | M20: 0 | N20: 0 | O20: 0 | P20: 0 | Q20: 0 | R20: 0 | S20: 0 | T20: 0 | U20: 0 | V20: 0 | W20: 0 | X20: 0 | Y20: 0 | Z20: 0 | AA20: 0 | AB20: 0 | AC20: 0 | AD20: 0 | AE20: 0 | AF20: 0 | AG20: 0 | AH20: 0 | AI20: 0 | AJ20: 0 | AK20: 0 | AL20: 0 | AM20: 0 | AN20: 0 | AO20: 0 | AP20: 0 | AQ20: 0 | AR20: 0 | AS20: 0 | AT20: 0 | AU20: 0 | AV20: 0 | AW20: 0 | AX20: 0 | AY20: 0 | AZ20: 0 | BA20: 0 | BB20: 0 | BC20: 0 | BD20: 0 | BE20: 0 | BF20: 0 | BG20: 0 | BH20: 0 | BI20: 0 | BJ20: 0 | BK20: 0 | BL20: 0 | BM20: 0 | BN20: 0 | BO20: 0 | BP20: 0 | BQ20: 0 | BR20: 0 | BS20: 0 | BT20: 0 | BU20: 0 | BV20: 0 | BW20: 0 | BX20: 0 | BY20: 0 | BZ20: 0 | CA20: 0 | CB20: 0 | CC20: 0 | CD20: 0 | CE20: 0 | CF20: 0 | CG20: 0 | CH20: 0 | CI20: 0 | CJ20: 0 | CK20: 0 | CL20: 0 | CM20: 0 | CN20: 0 | CO20: 0 | CP20: 0 | CQ20: 0 | CR20: 0 | CS20: 0 | CT20: 0 | CU20: 0 | CV20: 0 | CW20: 0 | CX20: 0 | CY20: 0 | CZ20: 0 | DA20: 0 | DB20: 0 | DC20: 0 | DD20: 0 | DE20: 2 | DF20: 0 | DG20: 0 | DH20: 0 | DI20: 0 | DJ20: 0 | DK20: 0 | DL20: 0 | DM20: 0 | DN20: 0 | DO20: 0 | DP20: 0 | DQ20: 0 | DR20: 0 | DS20: 0 | DT20: 0 | DU20: 0 | DV20: 0 | DW20: 0 | DX20: 0 | DY20: 0 | DZ20: 0 | EA20: 0 | EB20: 0 | EC20: 0 | ED20: 0 | EE20: 0 | EF20: 0 | EG20: 0 | EH20: 0 | EI20: 0 | EJ20: 0 | EK20: 0 | EL20: 0 | EM20: 0 | EN20: 0 | EO20: 0 | EP20: 0 | EQ20: 0 | ER20: 0 | ES20: 0 | ET20: 2 | EU20: 0 | EV20: 0 | EW20: 0 | EX20: 0 | EY20: 0 | EZ20: 0 | FA20: 0 | FB20: 0 | FC20: 0 | FD20: 0 | FE20: 0 | FF20: 0 | FG20: 0 | FH20: 0 | FI20: 0 | FJ20: 0 | FK20: 0 | FL20: 0 | FM20: 0 | FN20: 0 | FO20: 0 | FP20: 0 | FQ20: 0 | FR20: 0 | FS20: 0 | FT20: 0 | FU20: 0 | FV20: 0 | FW20: 0 | FX20: 0 | FY20: 0 | FZ20: 0 | GA20: 0 | GB20: 0 | GC20: 0 | GD20: 0 | GE20: 0 | GF20: 0 | GG20: 0 | GH20: 0 | GI20: 0 | GJ20: 0 | GK20: 0 | GL20: 0 | GM20: 0 | GN20: 0 | GO20: 0 | GP20: 0 | GQ20: 0 | GR20: 0 | GS20: 0 | GT20: 0 | GU20: 0 | GV20: 0 | GW20: 0 | GX20: 0 | GY20: 0 | GZ20: 0 | HA20: 0 | HB20: 0 | HC20: 0 | HD20: 0 | HE20: 0 | HF20: 0 | HG20: 0 | HH20: 0 | HI20: 5 | HJ20: 0 | HK20: 0 | HL20: 0 | HM20: 0 | HN20: 0 | HO20: 0 | HP20: 0 | HQ20: 0 | HR20: 0 | HS20: 5 | HT20: 0 | HU20: 0 | HV20: 0 | HW20: 0 | HX20: 0 | HY20: 0 | HZ20: 0 | IA20: 0 | IB20: 0 | IC20: 0 | ID20: 2 | IE20: 0 | IF20: 0 | IG20: 0 | IH20: 0 | II20: 0 | IJ20: 0 | IK20: 0 | IL20: 0 | IM20: 0 | IN20: 0 | IO20: 0 | IP20: 0 | IQ20: 0 | IR20: 1 | IS20: 0 | IT20: 0 | IU20: 0 | IV20: 0 | IW20: 0 | IX20: 0 | IY20: 0 | IZ20: 0 | JA20: 0 | JB20: 0 | JC20: 0 | JD20: 0 | JE20: 0 | JF20: 0 | JG20: 0 | JH20: 0 | JI20: 0 | JJ20: 0 | JK20: 0 | JL20: 0 | JM20: 0 | JN20: 0 | JO20: 0 | JP20: 1 | JQ20: 0 | JR20: 0 | JS20: 0 | JT20: 0 | JU20: 5 | JV20: 0 | JW20: 0 | JX20: 0 | JY20: 0 | JZ20: 0 | KA20: 0 | KB20: 0 | KC20: 0 | KD20: 0 | KE20: 5 | KF20: 0 | KG20: 0 | KH20: 0 | KI20: 0 | KJ20: 0 | KK20: 0 | KL20: 0 | KM20: 2 | KN20: 0 | KO20: 0 | KP20: 0 | KQ20: 0 | KR20: 0 | KS20: 0 | KT20: 0 | KU20: 0 | KV20: 0 | KW20: 0 | KX20: 0 | KY20: 0 | KZ20: 0 | LA20: 0 | LB20: 0 | LC20: 0 | LD20: 0 | LE20: 0 | LF20: 0 | LG20: 0 | LH20: 0 | LI20: 0 | LJ20: 0 | LK20: 0 | LL20: 0 | LM20: 0 | LN20: 0 | LO20: 1 | LP20: 0 | LQ20: 0 | LR20: 2 | LS20: 2 | LT20: 0 | LU20: 0 | LV20: 0 | LW20: 0 | LX20: 0 | LY20: 0 | LZ20: 0 | MA20: 0 | MB20: 0 | MC20: 0 | MD20: 0 | ME20: 0 | MF20: 0 | MG20: 0 | MH20: 0 | MI20: 0 | MJ20: 0 | MK20: 0 | ML20: 0 | MM20: 0 | MN20: 0 | MO20: 0 | MP20: 0 | MQ20: 0 | MR20: 0 | MS20: 0 | MT20: 0 | MU20: 0 | MV20: 0 | MW20: 0 | MX20: 0 | MY20: 0 | MZ20: 0 | NA20: 0 | NB20: 0 | NC20: 0 | ND20: 1 | NE20: 0 | NF20: 0 | NG20: 0 | NH20: 0 | NI20: 1 | NJ20: 2 | NK20: 2 | NL20: 0 | NM20: 0 | NN20: 0 | NO20: 0 | NP20: 7 | NQ20: 0 | NR20: 0 | NS20: 0 | NT20: 0 | NU20: 1 | NV20: 4 | NW20: 0 | NX20: 0 | NY20: 0 | NZ20: 0 | OA20: 0 | OB20: 0 | OC20: 1 | OD20: 0 | OE20: 0 | OF20: 0 | OG20: 1 | OH20: 0 | OI20: 0 | OJ20: 0 | OK20: 0 | OL20: 0 | OM20: 0 | ON20: 0 | OO20: 0 | OP20: 0 | OQ20: 0 | OR20: 0 | OS20: 1 | OT20: 0 | OU20: 0 | OV20: 0 | OW20: 0 | OX20: 0 | OY20: 0 | OZ20: 0 | PA20: 0 | PB20: 0 | PC20: 0 | PD20: 0 | PE20: 0 | PF20: 0 | PG20: 0 | PH20: 0 | PI20: 0 | PJ20: 0 | PK20: 0 | PL20: 0 | PM20: 0 | PN20: 0 | PO20: 0 | PP20: 0 | PQ20: 0 | PR20: 0 | PS20: 0 | PT20: 0 | PU20: 0 | PV20: 0 | PW20: 0 | PX20: 0 | PY20: 0 | PZ20: 0 | QA20: 0 | QB20: 0 | QC20: 58 | QE20: 1.0 | QF20: 1.0 | QG20: 0.0 | QH20: 2.0 | QI20: 0.0 | QJ20: 2.0 | QK20: 0.0 | QL20: 0.0 | QM20: 0.0 | QN20: 5.0 | QO20: 0.0 | QP20: 7.0 | QQ20: 1.0 | QR20: 1.0 | QS20: 5.0 | QT20: 7.0 | QU20: 5.0 | QV20: 1.0 | QW20: 1.0 | QX20: 4.0 | QY20: 0.0 | QZ20: 7.0 | RA20: 0.0 | RB20: 0.0 | RC20: 1.0 | RD20: 4.0 | RE20: 0.0 | RF20: 3.0 | RG20: 0.0 | RH20: 0.0 | RI20: 0.0 | RJ20: 0.0 | RK20: 0.0 | RL20: 0.0 | RM20: 0.0 | RN20: 0.0 | RO20: 0.0 | RP20: 0.0 | RQ20: 0.0 | RR20: 0.0 | RS20: 0.0 | RT20: 0.0 | RU20: 0.0 | RV20: 0.0 | RW20: 58
D21: NEGRO(A), MULATO (A), AFROCOLOMBIANO (A) | E21: 17 | F21: 1 | G21: 0 | H21: 0 | I21: 15 | J21: 2 | K21: 0 | L21: 0 | M21: 0 | N21: 0 | O21: 0 | P21: 0 | Q21: 0 | R21: 0 | S21: 1 | T21: 0 | U21: 0 | V21: 0 | W21: 0 | X21: 0 | Y21: 0 | Z21: 0 | AA21: 0 | AB21: 0 | AC21: 0 | AD21: 0 | AE21: 0 | AF21: 0 | AG21: 0 | AH21: 0 | AI21: 0 | AJ21: 0 | AK21: 0 | AL21: 0 | AM21: 0 | AN21: 0 | AO21: 0 | AP21: 0 | AQ21: 0 | AR21: 0 | AS21: 0 | AT21: 0 | AU21: 0 | AV21: 0 | AW21: 0 | AX21: 0 | AY21: 0 | AZ21: 0 | BA21: 0 | BB21: 0 | BC21: 0 | BD21: 1 | BE21: 0 | BF21: 0 | BG21: 0 | BH21: 0 | BI21: 0 | BJ21: 0 | BK21: 0 | BL21: 1 | BM21: 0 | BN21: 0 | BO21: 0 | BP21: 8 | BQ21: 8 | BR21: 12 | BS21: 0 | BT21: 0 | BU21: 0 | BV21: 0 | BW21: 0 | BX21: 1 | BY21: 0 | BZ21: 0 | CA21: 0 | CB21: 0 | CC21: 0 | CD21: 0 | CE21: 0 | CF21: 0 | CG21: 0 | CH21: 17 | CI21: 1 | CJ21: 0 | CK21: 0 | CL21: 0 | CM21: 0 | CN21: 0 | CO21: 0 | CP21: 0 | CQ21: 0 | CR21: 0 | CS21: 0 | CT21: 0 | CU21: 0 | CV21: 0 | CW21: 0 | CX21: 0 | CY21: 0 | CZ21: 0 | DA21: 0 | DB21: 0 | DC21: 0 | DD21: 0 | DE21: 18 | DF21: 8 | DG21: 8 | DH21: 12 | DI21: 0 | DJ21: 0 | DK21: 0 | DL21: 0 | DM21: 0 | DN21: 0 | DO21: 0 | DP21: 0 | DQ21: 0 | DR21: 0 | DS21: 0 | DT21: 0 | DU21: 0 | DV21: 0 | DW21: 0 | DX21: 0 | DY21: 0 | DZ21: 0 | EA21: 0 | EB21: 0 | EC21: 1 | ED21: 0 | EE21: 0 | EF21: 0 | EG21: 0 | EH21: 0 | EI21: 0 | EJ21: 0 | EK21: 0 | EL21: 0 | EM21: 17 | EN21: 1 | EO21: 0 | EP21: 0 | EQ21: 0 | ER21: 0 | ES21: 0 | ET21: 18 | EU21: 0 | EV21: 0 | EW21: 0 | EX21: 0 | EY21: 0 | EZ21: 0 | FA21: 0 | FB21: 0 | FC21: 0 | FD21: 0 | FE21: 0 | FF21: 0 | FG21: 0 | FH21: 0 | FI21: 0 | FJ21: 0 | FK21: 0 | FL21: 0 | FM21: 0 | FN21: 0 | FO21: 0 | FP21: 0 | FQ21: 0 | FR21: 0 | FS21: 0 | FT21: 0 | FU21: 0 | FV21: 0 | FW21: 0 | FX21: 0 | FY21: 0 | FZ21: 0 | GA21: 0 | GB21: 0 | GC21: 0 | GD21: 0 | GE21: 0 | GF21: 0 | GG21: 0 | GH21: 0 | GI21: 0 | GJ21: 0 | GK21: 0 | GL21: 0 | GM21: 0 | GN21: 0 | GO21: 0 | GP21: 0 | GQ21: 0 | GR21: 0 | GS21: 0 | GT21: 0 | GU21: 0 | GV21: 0 | GW21: 0 | GX21: 0 | GY21: 0 | GZ21: 0 | HA21: 0 | HB21: 0 | HC21: 0 | HD21: 0 | HE21: 8 | HF21: 7 | HG21: 2 | HH21: 7 | HI21: 13 | HJ21: 0 | HK21: 0 | HL21: 1 | HM21: 14 | HN21: 0 | HO21: 0 | HP21: 0 | HQ21: 0 | HR21: 0 | HS21: 13 | HT21: 0 | HU21: 0 | HV21: 0 | HW21: 0 | HX21: 0 | HY21: 0 | HZ21: 0 | IA21: 0 | IB21: 0 | IC21: 0 | ID21: 19 | IE21: 0 | IF21: 0 | IG21: 0 | IH21: 0 | II21: 0 | IJ21: 0 | IK21: 0 | IL21: 0 | IM21: 0 | IN21: 0 | IO21: 1 | IP21: 1 | IQ21: 0 | IR21: 1 | IS21: 0 | IT21: 0 | IU21: 0 | IV21: 0 | IW21: 0 | IX21: 0 | IY21: 0 | IZ21: 0 | JA21: 0 | JB21: 17 | JC21: 0 | JD21: 0 | JE21: 0 | JF21: 0 | JG21: 0 | JH21: 0 | JI21: 0 | JJ21: 1 | JK21: 0 | JL21: 0 | JM21: 0 | JN21: 0 | JO21: 1 | JP21: 2 | JQ21: 3 | JR21: 0 | JS21: 0 | JT21: 0 | JU21: 13 | JV21: 1 | JW21: 0 | JX21: 0 | JY21: 0 | JZ21: 0 | KA21: 0 | KB21: 0 | KC21: 0 | KD21: 0 | KE21: 13 | KF21: 1 | KG21: 0 | KH21: 0 | KI21: 0 | KJ21: 0 | KK21: 0 | KL21: 0 | KM21: 19 | KN21: 0 | KO21: 0 | KP21: 0 | KQ21: 0 | KR21: 0 | KS21: 0 | KT21: 0 | KU21: 0 | KV21: 1 | KW21: 0 | KX21: 0 | KY21: 0 | KZ21: 0 | LA21: 7 | LB21: 3 | LC21: 1 | LD21: 0 | LE21: 0 | LF21: 0 | LG21: 0 | LH21: 0 | LI21: 0 | LJ21: 0 | LK21: 2 | LL21: 1 | LM21: 0 | LN21: 0 | LO21: 7 | LP21: 2 | LQ21: 3 | LR21: 3 | LS21: 1 | LT21: 0 | LU21: 0 | LV21: 0 | LW21: 0 | LX21: 0 | LY21: 0 | LZ21: 0 | MA21: 0 | MB21: 0 | MC21: 1 | MD21: 1 | ME21: 0 | MF21: 0 | MG21: 0 | MH21: 0 | MI21: 0 | MJ21: 0 | MK21: 0 | ML21: 0 | MM21: 0 | MN21: 0 | MO21: 0 | MP21: 0 | MQ21: 0 | MR21: 0 | MS21: 0 | MT21: 0 | MU21: 0 | MV21: 0 | MW21: 0 | MX21: 0 | MY21: 0 | MZ21: 0 | NA21: 0 | NB21: 2 | NC21: 4 | ND21: 5 | NE21: 2 | NF21: 1 | NG21: 0 | NH21: 14 | NI21: 20 | NJ21: 10 | NK21: 11 | NL21: 19 | NM21: 0 | NN21: 0 | NO21: 1 | NP21: 34 | NQ21: 20 | NR21: 0 | NS21: 0 | NT21: 1 | NU21: 3 | NV21: 34 | NW21: 0 | NX21: 0 | NY21: 0 | NZ21: 0 | OA21: 0 | OB21: 0 | OC21: 5 | OD21: 0 | OE21: 0 | OF21: 1 | OG21: 3 | OH21: 0 | OI21: 1 | OJ21: 0 | OK21: 0 | OL21: 2 | OM21: 4 | ON21: 0 | OO21: 1 | OP21: 0 | OQ21: 0 | OR21: 2 | OS21: 2 | OT21: 0 | OU21: 3 | OV21: 0 | OW21: 0 | OX21: 0 | OY21: 2 | OZ21: 0 | PA21: 0 | PB21: 0 | PC21: 0 | PD21: 0 | PE21: 0 | PF21: 0 | PG21: 0 | PH21: 0 | PI21: 0 | PJ21: 0 | PK21: 0 | PL21: 0 | PM21: 0 | PN21: 6 | PO21: 1 | PP21: 1 | PQ21: 1 | PR21: 9 | PS21: 2 | PT21: 0 | PU21: 0 | PV21: 0 | PW21: 0 | PX21: 0 | PY21: 0 | PZ21: 0 | QA21: 0 | QB21: 0 | QC21: 583 | QE21: 18.0 | QF21: 20.0 | QG21: 47.0 | QH21: 18.0 | QI21: 28.0 | QJ21: 37.0 | QK21: 0.0 | QL21: 0.0 | QM21: 15.0 | QN21: 23.0 | QO21: 14.0 | QP21: 32.0 | QQ21: 3.0 | QR21: 24.0 | QS21: 14.0 | QT21: 33.0 | QU21: 33.0 | QV21: 14.0 | QW21: 34.0 | QX21: 40.0 | QY21: 1.0 | QZ21: 34.0 | RA21: 20.0 | RB21: 1.0 | RC21: 3.0 | RD21: 34.0 | RE21: 0.0 | RF21: 26.0 | RG21: 0.0 | RH21: 0.0 | RI21: 0.0 | RJ21: 8.0 | RK21: 1.0 | RL21: 9.0 | RM21: 2.0 | RN21: 0.0 | RO21: 0.0 | RP21: 0.0 | RQ21: 0.0 | RR21: 0.0 | RS21: 0.0 | RT21: 0.0 | RU21: 0.0 | RV21: 0.0 | RW21: 566
D22: SIN PERTENENCIA ETNICA | E22: 6,511 | F22: 160 | G22: 22 | H22: 10 | I22: 6,497 | J22: 208 | K22: 2 | L22: 1 | M22: 1 | N22: 2 | O22: 42 | P22: 93 | Q22: 6 | R22: 12 | S22: 34 | T22: 8 | U22: 9 | V22: 19 | W22: 3 | X22: 2 | Y22: 16 | Z22: 1 | AA22: 5 | AB22: 13 | AC22: 0 | AD22: 0 | AE22: 0 | AF22: 0 | AG22: 0 | AH22: 0 | AI22: 0 | AJ22: 0 | AK22: 0 | AL22: 0 | AM22: 0 | AN22: 0 | AO22: 0 | AP22: 0 | AQ22: 0 | AR22: 0 | AS22: 0 | AT22: 0 | AU22: 0 | AV22: 0 | AW22: 0 | AX22: 0 | AY22: 0 | AZ22: 14 | BA22: 0 | BB22: 1 | BC22: 0 | BD22: 2 | BE22: 0 | BF22: 0 | BG22: 0 | BH22: 14 | BI22: 2 | BJ22: 0 | BK22: 0 | BL22: 569 | BM22: 105 | BN22: 63 | BO22: 7 | BP22: 4,640 | BQ22: 4,416 | BR22: 4,873 | BS22: 12 | BT22: 42 | BU22: 100 | BV22: 7 | BW22: 12 | BX22: 31 | BY22: 7 | BZ22: 9 | CA22: 19 | CB22: 2 | CC22: 2 | CD22: 15 | CE22: 1 | CF22: 4 | CG22: 11 | CH22: 4,419 | CI22: 379 | CJ22: 102 | CK22: 48 | CL22: 79 | CM22: 0 | CN22: 0 | CO22: 67 | CP22: 1 | CQ22: 0 | CR22: 50 | CS22: 0 | CT22: 0 | CU22: 8 | CV22: 0 | CW22: 0 | CX22: 53 | CY22: 10 | CZ22: 0 | DA22: 2 | DB22: 3 | DC22: 0 | DD22: 0 | DE22: 6,887 | DF22: 4,632 | DG22: 4,414 | DH22: 4,869 | DI22: 9 | DJ22: 0 | DK22: 0 | DL22: 0 | DM22: 0 | DN22: 0 | DO22: 0 | DP22: 0 | DQ22: 0 | DR22: 0 | DS22: 0 | DT22: 0 | DU22: 0 | DV22: 0 | DW22: 0 | DX22: 6 | DY22: 43 | DZ22: 95 | EA22: 6 | EB22: 12 | EC22: 30 | ED22: 8 | EE22: 8 | EF22: 18 | EG22: 3 | EH22: 2 | EI22: 15 | EJ22: 0 | EK22: 5 | EL22: 13 | EM22: 4,454 | EN22: 392 | EO22: 107 | EP22: 56 | EQ22: 69 | ER22: 0 | ES22: 0 | ET22: 6,913 | EU22: 2 | EV22: 1 | EW22: 4 | EX22: 0 | EY22: 0 | EZ22: 0 | FA22: 0 | FB22: 0 | FC22: 1 | FD22: 0 | FE22: 1 | FF22: 0 | FG22: 0 | FH22: 0 | FI22: 0 | FJ22: 0 | FK22: 0 | FL22: 0 | FM22: 17 | FN22: 2 | FO22: 1 | FP22: 0 | FQ22: 0 | FR22: 0 | FS22: 0 | FT22: 27 | FU22: 0 | FV22: 0 | FW22: 0 | FX22: 1 | FY22: 11 | FZ22: 0 | GA22: 0 | GB22: 0 | GC22: 0 | GD22: 0 | GE22: 0 | GF22: 0 | GG22: 0 | GH22: 0 | GI22: 0 | GJ22: 0 | GK22: 0 | GL22: 0 | GM22: 0 | GN22: 0 | GO22: 0 | GP22: 0 | GQ22: 0 | GR22: 0 | GS22: 0 | GT22: 0 | GU22: 0 | GV22: 0 | GW22: 0 | GX22: 0 | GY22: 0 | GZ22: 0 | HA22: 0 | HB22: 0 | HC22: 0 | HD22: 0 | HE22: 5,120 | HF22: 4,916 | HG22: 886 | HH22: 4,936 | HI22: 5,229 | HJ22: 91 | HK22: 99 | HL22: 298 | HM22: 4,487 | HN22: 0 | HO22: 0 | HP22: 0 | HQ22: 0 | HR22: 0 | HS22: 5,312 | HT22: 54 | HU22: 34 | HV22: 18 | HW22: 12 | HX22: 6 | HY22: 4 | HZ22: 0 | IA22: 0 | IB22: 0 | IC22: 0 | ID22: 7,266 | IE22: 97 | IF22: 56 | IG22: 21 | IH22: 15 | II22: 12 | IJ22: 2 | IK22: 36 | IL22: 379 | IM22: 71 | IN22: 142 | IO22: 190 | IP22: 190 | IQ22: 236 | IR22: 207 | IS22: 178 | IT22: 193 | IU22: 168 | IV22: 152 | IW22: 189 | IX22: 135 | IY22: 972 | IZ22: 519 | JA22: 341 | JB22: 4,774 | JC22: 365 | JD22: 100 | JE22: 51 | JF22: 71 | JG22: 18 | JH22: 11 | JI22: 10 | JJ22: 11 | JK22: 7 | JL22: 12 | JM22: 14 | JN22: 49 | JO22: 138 | JP22: 3,260 | JQ22: 1,648 | JR22: 922 | JS22: 605 | JT22: 0 | JU22: 5,531 | JV22: 103 | JW22: 96 | JX22: 77 | JY22: 90 | JZ22: 61 | KA22: 36 | KB22: 17 | KC22: 12 | KD22: 3 | KE22: 5,367 | KF22: 97 | KG22: 95 | KH22: 73 | KI22: 96 | KJ22: 59 | KK22: 31 | KL22: 3 | KM22: 7,191 | KN22: 89 | KO22: 57 | KP22: 0 | KQ22: 14 | KR22: 0 | KS22: 0 | KT22: 2 | KU22: 46 | KV22: 96 | KW22: 31 | KX22: 0 | KY22: 3 | KZ22: 1 | LA22: 1,915 | LB22: 874 | LC22: 372 | LD22: 256 | LE22: 136 | LF22: 17 | LG22: 0 | LH22: 0 | LI22: 0 | LJ22: 593 | LK22: 288 | LL22: 91 | LM22: 24 | LN22: 5 | LO22: 2,230 | LP22: 1,511 | LQ22: 1,811 | LR22: 1,134 | LS22: 809 | LT22: 173 | LU22: 0 | LV22: 0 | LW22: 0 | LX22: 21 | LY22: 1 | LZ22: 0 | MA22: 0 | MB22: 1 | MC22: 267 | MD22: 50 | ME22: 23 | MF22: 4 | MG22: 0 | MH22: 1 | MI22: 0 | MJ22: 0 | MK22: 0 | ML22: 12 | MM22: 3 | MN22: 0 | MO22: 2 | MP22: 5 | MQ22: 10 | MR22: 1 | MS22: 1 | MT22: 0 | MU22: 2 | MV22: 29 | MW22: 49 | MX22: 69 | MY22: 5 | MZ22: 1 | NA22: 0 | NB22: 1,275 | NC22: 831 | ND22: 1,535 | NE22: 505 | NF22: 381 | NG22: 237 | NH22: 6,981 | NI22: 7,267 | NJ22: 3,740 | NK22: 3,157 | NL22: 5,666 | NM22: 78 | NN22: 47 | NO22: 495 | NP22: 50,401 | NQ22: 6,411 | NR22: 9 | NS22: 0 | NT22: 2,012 | NU22: 1,722 | NV22: 22,135 | NW22: 0 | NX22: 0 | NY22: 0 | NZ22: 0 | OA22: 0 | OB22: 2 | OC22: 1,548 | OD22: 343 | OE22: 0 | OF22: 647 | OG22: 550 | OH22: 0 | OI22: 602 | OJ22: 509 | OK22: 0 | OL22: 503 | OM22: 388 | ON22: 2 | OO22: 440 | OP22: 347 | OQ22: 0 | OR22: 426 | OS22: 278 | OT22: 1 | OU22: 466 | OV22: 271 | OW22: 0 | OX22: 339 | OY22: 226 | OZ22: 0 | PA22: 178 | PB22: 202 | PC22: 1 | PD22: 47 | PE22: 0 | PF22: 0 | PG22: 0 | PH22: 0 | PI22: 0 | PJ22: 0 | PK22: 0 | PL22: 0 | PM22: 0 | PN22: 1,139 | PO22: 425 | PP22: 281 | PQ22: 281 | PR22: 370 | PS22: 98 | PT22: 3 | PU22: 1 | PV22: 2 | PW22: 42 | PX22: 26 | PY22: 2 | PZ22: 1 | QA22: 8 | QB22: 1 | QC22: 279,993 | QE22: 6,703.0 | QF22: 7,751.0 | QG22: 19,356.0 | QH22: 6,955.0 | QI22: 13,924.0 | QJ22: 12,255.0 | QK22: 68.0 | QL22: 0.0 | QM22: 10,036.0 | QN22: 11,539.0 | QO22: 4,487.0 | QP22: 12,909.0 | QQ22: 4,298.0 | QR22: 12,066.0 | QS22: 6,026.0 | QT22: 13,158.0 | QU22: 12,836.0 | QV22: 4,917.0 | QW22: 14,248.0 | QX22: 12,563.0 | QY22: 620.0 | QZ22: 50,401.0 | RA22: 6,411.0 | RB22: 2,021.0 | RC22: 1,722.0 | RD22: 22,135.0 | RE22: 2.0 | RF22: 8,314.0 | RG22: 0.0 | RH22: 0.0 | RI22: 0.0 | RJ22: 1,845.0 | RK22: 281.0 | RL22: 370.0 | RM22: 98.0 | RN22: 6.0 | RO22: 2.0 | RP22: 2.0 | RQ22: 42.0 | RR22: 26.0 | RS22: 2.0 | RT22: 1.0 | RU22: 8.0 | RV22: 1.0 | RW22: 277,739
D23: TOTAL ETNICOS | E23: 6,531 | F23: 161 | G23: 22 | H23: 10 | I23: 6,516 | J23: 210 | K23: 2 | L23: 1 | M23: 1 | N23: 2 | O23: 44 | P23: 95 | Q23: 6 | R23: 12 | S23: 36 | T23: 8 | U23: 9 | V23: 19 | W23: 3 | X23: 2 | Y23: 16 | Z23: 1 | AA23: 5 | AB23: 13 | AC23: 0 | AD23: 0 | AE23: 0 | AF23: 0 | AG23: 0 | AH23: 0 | AI23: 0 | AJ23: 0 | AK23: 0 | AL23: 0 | AM23: 0 | AN23: 0 | AO23: 0 | AP23: 0 | AQ23: 0 | AR23: 0 | AS23: 0 | AT23: 0 | AU23: 0 | AV23: 0 | AW23: 0 | AX23: 0 | AY23: 0 | AZ23: 14 | BA23: 0 | BB23: 1 | BC23: 0 | BD23: 3 | BE23: 0 | BF23: 0 | BG23: 0 | BH23: 14 | BI23: 2 | BJ23: 0 | BK23: 0 | BL23: 571 | BM23: 105 | BN23: 63 | BO23: 7 | BP23: 4,654 | BQ23: 4,429 | BR23: 4,899 | BS23: 12 | BT23: 44 | BU23: 102 | BV23: 7 | BW23: 12 | BX23: 33 | BY23: 7 | BZ23: 9 | CA23: 19 | CB23: 2 | CC23: 2 | CD23: 15 | CE23: 1 | CF23: 4 | CG23: 11 | CH23: 4,451 | CI23: 381 | CJ23: 102 | CK23: 48 | CL23: 79 | CM23: 0 | CN23: 0 | CO23: 67 | CP23: 1 | CQ23: 0 | CR23: 50 | CS23: 0 | CT23: 0 | CU23: 8 | CV23: 0 | CW23: 0 | CX23: 54 | CY23: 10 | CZ23: 0 | DA23: 2 | DB23: 3 | DC23: 0 | DD23: 0 | DE23: 6,920 | DF23: 4,646 | DG23: 4,427 | DH23: 4,895 | DI23: 9 | DJ23: 0 | DK23: 0 | DL23: 0 | DM23: 0 | DN23: 0 | DO23: 0 | DP23: 0 | DQ23: 0 | DR23: 0 | DS23: 0 | DT23: 0 | DU23: 0 | DV23: 0 | DW23: 0 | DX23: 6 | DY23: 45 | DZ23: 97 | EA23: 6 | EB23: 12 | EC23: 32 | ED23: 8 | EE23: 8 | EF23: 18 | EG23: 3 | EH23: 2 | EI23: 15 | EJ23: 0 | EK23: 5 | EL23: 13 | EM23: 4,487 | EN23: 394 | EO23: 107 | EP23: 56 | EQ23: 69 | ER23: 0 | ES23: 0 | ET23: 6,946 | EU23: 2 | EV23: 1 | EW23: 4 | EX23: 0 | EY23: 0 | EZ23: 0 | FA23: 0 | FB23: 0 | FC23: 1 | FD23: 0 | FE23: 1 | FF23: 0 | FG23: 0 | FH23: 0 | FI23: 0 | FJ23: 0 | FK23: 0 | FL23: 0 | FM23: 17 | FN23: 2 | FO23: 1 | FP23: 0 | FQ23: 0 | FR23: 0 | FS23: 0 | FT23: 27 | FU23: 0 | FV23: 0 | FW23: 0 | FX23: 1 | FY23: 11 | FZ23: 0 | GA23: 0 | GB23: 0 | GC23: 0 | GD23: 0 | GE23: 0 | GF23: 0 | GG23: 0 | GH23: 0 | GI23: 0 | GJ23: 0 | GK23: 0 | GL23: 0 | GM23: 0 | GN23: 0 | GO23: 0 | GP23: 0 | GQ23: 0 | GR23: 0 | GS23: 0 | GT23: 0 | GU23: 0 | GV23: 0 | GW23: 0 | GX23: 0 | GY23: 0 | GZ23: 0 | HA23: 0 | HB23: 0 | HC23: 0 | HD23: 0 | HE23: 5,134 | HF23: 4,927 | HG23: 889 | HH23: 4,949 | HI23: 5,257 | HJ23: 91 | HK23: 102 | HL23: 299 | HM23: 4,506 | HN23: 0 | HO23: 0 | HP23: 0 | HQ23: 0 | HR23: 0 | HS23: 5,341 | HT23: 54 | HU23: 34 | HV23: 18 | HW23: 12 | HX23: 6 | HY23: 4 | HZ23: 0 | IA23: 0 | IB23: 0 | IC23: 0 | ID23: 7,300 | IE23: 97 | IF23: 56 | IG23: 21 | IH23: 15 | II23: 12 | IJ23: 2 | IK23: 36 | IL23: 380 | IM23: 72 | IN23: 142 | IO23: 191 | IP23: 191 | IQ23: 236 | IR23: 209 | IS23: 178 | IT23: 193 | IU23: 168 | IV23: 152 | IW23: 189 | IX23: 135 | IY23: 974 | IZ23: 520 | JA23: 341 | JB23: 4,809 | JC23: 366 | JD23: 100 | JE23: 51 | JF23: 71 | JG23: 18 | JH23: 11 | JI23: 10 | JJ23: 12 | JK23: 7 | JL23: 12 | JM23: 14 | JN23: 49 | JO23: 139 | JP23: 3,267 | JQ23: 1,652 | JR23: 922 | JS23: 605 | JT23: 0 | JU23: 5,560 | JV23: 104 | JW23: 96 | JX23: 77 | JY23: 90 | JZ23: 61 | KA23: 36 | KB23: 17 | KC23: 12 | KD23: 3 | KE23: 5,396 | KF23: 98 | KG23: 95 | KH23: 73 | KI23: 97 | KJ23: 59 | KK23: 31 | KL23: 3 | KM23: 7,224 | KN23: 89 | KO23: 57 | KP23: 0 | KQ23: 14 | KR23: 0 | KS23: 0 | KT23: 2 | KU23: 46 | KV23: 97 | KW23: 31 | KX23: 0 | KY23: 3 | KZ23: 1 | LA23: 1,922 | LB23: 879 | LC23: 373 | LD23: 257 | LE23: 138 | LF23: 17 | LG23: 0 | LH23: 0 | LI23: 0 | LJ23: 595 | LK23: 291 | LL23: 92 | LM23: 24 | LN23: 5 | LO23: 2,240 | LP23: 1,513 | LQ23: 1,815 | LR23: 1,140 | LS23: 816 | LT23: 173 | LU23: 0 | LV23: 0 | LW23: 0 | LX23: 21 | LY23: 1 | LZ23: 0 | MA23: 0 | MB23: 1 | MC23: 269 | MD23: 52 | ME23: 23 | MF23: 4 | MG23: 0 | MH23: 1 | MI23: 0 | MJ23: 0 | MK23: 0 | ML23: 12 | MM23: 3 | MN23: 0 | MO23: 2 | MP23: 5 | MQ23: 10 | MR23: 1 | MS23: 1 | MT23: 0 | MU23: 2 | MV23: 29 | MW23: 49 | MX23: 69 | MY23: 5 | MZ23: 1 | NA23: 0 | NB23: 1,280 | NC23: 838 | ND23: 1,543 | NE23: 508 | NF23: 382 | NG23: 237 | NH23: 7,010 | NI23: 7,297 | NJ23: 3,763 | NK23: 3,177 | NL23: 5,702 | NM23: 79 | NN23: 47 | NO23: 499 | NP23: 50,472 | NQ23: 6,440 | NR23: 9 | NS23: 0 | NT23: 2,029 | NU23: 1,729 | NV23: 22,205 | NW23: 0 | NX23: 0 | NY23: 0 | NZ23: 0 | OA23: 0 | OB23: 2 | OC23: 1,556 | OD23: 343 | OE23: 0 | OF23: 650 | OG23: 554 | OH23: 0 | OI23: 604 | OJ23: 510 | OK23: 0 | OL23: 506 | OM23: 393 | ON23: 2 | OO23: 441 | OP23: 347 | OQ23: 0 | OR23: 428 | OS23: 281 | OT23: 1 | OU23: 469 | OV23: 271 | OW23: 0 | OX23: 339 | OY23: 230 | OZ23: 0 | PA23: 179 | PB23: 202 | PC23: 1 | PD23: 47 | PE23: 0 | PF23: 0 | PG23: 0 | PH23: 0 | PI23: 0 | PJ23: 0 | PK23: 0 | PL23: 0 | PM23: 0 | PN23: 1,147 | PO23: 427 | PP23: 282 | PQ23: 282 | PR23: 385 | PS23: 101 | PT23: 3 | PU23: 1 | PV23: 2 | PW23: 42 | PX23: 26 | PY23: 2 | PZ23: 1 | QA23: 8 | QB23: 1 | QC23: =SUM(QC17:QC22) -> 281,088 | QE23: =SUM(QE17:QE22) -> 6,724.0 | QF23: =SUM(QF17:QF22) -> 7,781.0 | QG23: 19,449.0 | QH23: 6,989.0 | QI23: 13,977.0 | QJ23: 12,329.0 | QK23: 68.0 | QL23: 0.0 | QM23: 10,061.0 | QN23: 11,587.0 | QO23: =SUM(QO17:QO22) -> 4,506.0 | QP23: 12,972.0 | QQ23: 4,307.0 | QR23: 12,115.0 | QS23: 6,056.0 | QT23: 13,222.0 | QU23: 12,892.0 | QV23: 4,941.0 | QW23: 14,307.0 | QX23: 12,642.0 | QY23: 625.0 | QZ23: 50,472.0 | RA23: 6,440.0 | RB23: =SUM(RB17:RB22) -> 2,038.0 | RC23: 1,729.0 | RD23: 22,205.0 | RE23: 2.0 | RF23: 8,354.0 | RG23: 0.0 | RH23: 0.0 | RI23: 0.0 | RJ23: 1,856.0 | RK23: =SUM(RK17:RK22) -> 282.0 | RL23: 385.0 | RM23: 101.0 | RN23: 6.0 | RO23: 2.0 | RP23: 2.0 | RQ23: 42.0 | RR23: 26.0 | RS23: 2.0 | RT23: 1.0 | RU23: 8.0 | RV23: 1.0 | RW23: =SUM(RW17:RW22) -> 278,808
D24: EN SITUACION DE DESPLAZADO | E24: 0 | F24: 0 | G24: 0 | H24: 0 | I24: 0 | J24: 0 | K24: 0 | L24: 0 | M24: 0 | N24: 0 | O24: 0 | P24: 0 | Q24: 0 | R24: 0 | S24: 0 | T24: 0 | U24: 0 | V24: 0 | W24: 0 | X24: 0 | Y24: 0 | Z24: 0 | AA24: 0 | AB24: 0 | AC24: 0 | AD24: 0 | AE24: 0 | AF24: 0 | AG24: 0 | AH24: 0 | AI24: 0 | AJ24: 0 | AK24: 0 | AL24: 0 | AM24: 0 | AN24: 0 | AO24: 0 | AP24: 0 | AQ24: 0 | AR24: 0 | AS24: 0 | AT24: 0 | AU24: 0 | AV24: 0 | AW24: 0 | AX24: 0 | AY24: 0 | AZ24: 0 | BA24: 0 | BB24: 0 | BC24: 0 | BD24: 0 | BE24: 0 | BF24: 0 | BG24: 0 | BH24: 0 | BI24: 0 | BJ24: 0 | BK24: 0 | BL24: 0 | BM24: 0 | BN24: 0 | BO24: 0 | BP24: 0 | BQ24: 0 | BR24: 0 | BS24: 0 | BT24: 0 | BU24: 0 | BV24: 0 | BW24: 0 | BX24: 0 | BY24: 0 | BZ24: 0 | CA24: 0 | CB24: 0 | CC24: 0 | CD24: 0 | CE24: 0 | CF24: 0 | CG24: 0 | CH24: 0 | CI24: 0 | CJ24: 0 | CK24: 0 | CL24: 0 | CM24: 0 | CN24: 0 | CO24: 0 | CP24: 0 | CQ24: 0 | CR24: 0 | CS24: 0 | CT24: 0 | CU24: 0 | CV24: 0 | CW24: 0 | CX24: 0 | CY24: 0 | CZ24: 0 | DA24: 0 | DB24: 0 | DC24: 0 | DD24: 0 | DE24: 0 | DF24: 0 | DG24: 0 | DH24: 0 | DI24: 0 | DJ24: 0 | DK24: 0 | DL24: 0 | DM24: 0 | DN24: 0 | DO24: 0 | DP24: 0 | DQ24: 0 | DR24: 0 | DS24: 0 | DT24: 0 | DU24: 0 | DV24: 0 | DW24: 0 | DX24: 0 | DY24: 0 | DZ24: 0 | EA24: 0 | EB24: 0 | EC24: 0 | ED24: 0 | EE24: 0 | EF24: 0 | EG24: 0 | EH24: 0 | EI24: 0 | EJ24: 0 | EK24: 0 | EL24: 0 | EM24: 0 | EN24: 0 | EO24: 0 | EP24: 0 | EQ24: 0 | ER24: 0 | ES24: 0 | ET24: 0 | EU24: 0 | EV24: 0 | EW24: 0 | EX24: 0 | EY24: 0 | EZ24: 0 | FA24: 0 | FB24: 0 | FC24: 0 | FD24: 0 | FE24: 0 | FF24: 0 | FG24: 0 | FH24: 0 | FI24: 0 | FJ24: 0 | FK24: 0 | FL24: 0 | FM24: 0 | FN24: 0 | FO24: 0 | FP24: 0 | FQ24: 0 | FR24: 0 | FS24: 0 | FT24: 0 | FU24: 0 | FV24: 0 | FW24: 0 | FX24: 0 | FY24: 0 | FZ24: 0 | GA24: 0 | GB24: 0 | GC24: 0 | GD24: 0 | GE24: 0 | GF24: 0 | GG24: 0 | GH24: 0 | GI24: 0 | GJ24: 0 | GK24: 0 | GL24: 0 | GM24: 0 | GN24: 0 | GO24: 0 | GP24: 0 | GQ24: 0 | GR24: 0 | GS24: 0 | GT24: 0 | GU24: 0 | GV24: 0 | GW24: 0 | GX24: 0 | GY24: 0 | GZ24: 0 | HA24: 0 | HB24: 0 | HC24: 0 | HD24: 0 | HE24: 0 | HF24: 0 | HG24: 0 | HH24: 0 | HI24: 0 | HJ24: 0 | HK24: 0 | HL24: 0 | HM24: 0 | HN24: 0 | HO24: 0 | HP24: 0 | HQ24: 0 | HR24: 0 | HS24: 0 | HT24: 0 | HU24: 0 | HV24: 0 | HW24: 0 | HX24: 0 | HY24: 0 | HZ24: 0 | IA24: 0 | IB24: 0 | IC24: 0 | ID24: 0 | IE24: 0 | IF24: 0 | IG24: 0 | IH24: 0 | II24: 0 | IJ24: 0 | IK24: 0 | IL24: 0 | IM24: 0 | IN24: 0 | IO24: 0 | IP24: 0 | IQ24: 0 | IR24: 0 | IS24: 0 | IT24: 0 | IU24: 0 | IV24: 0 | IW24: 0 | IX24: 0 | IY24: 0 | IZ24: 0 | JA24: 0 | JB24: 0 | JC24: 0 | JD24: 0 | JE24: 0 | JF24: 0 | JG24: 0 | JH24: 0 | JI24: 0 | JJ24: 0 | JK24: 0 | JL24: 0 | JM24: 0 | JN24: 0 | JO24: 0 | JP24: 0 | JQ24: 0 | JR24: 0 | JS24: 0 | JT24: 0 | JU24: 0 | JV24: 0 | JW24: 0 | JX24: 0 | JY24: 0 | JZ24: 0 | KA24: 0 | KB24: 0 | KC24: 0 | KD24: 0 | KE24: 0 | KF24: 0 | KG24: 0 | KH24: 0 | KI24: 0 | KJ24: 0 | KK24: 0 | KL24: 0 | KM24: 0 | KN24: 0 | KO24: 0 | KP24: 0 | KQ24: 0 | KR24: 0 | KS24: 0 | KT24: 0 | KU24: 0 | KV24: 0 | KW24: 0 | KX24: 0 | KY24: 0 | KZ24: 0 | LA24: 0 | LB24: 0 | LC24: 0 | LD24: 0 | LE24: 0 | LF24: 0 | LG24: 0 | LH24: 0 | LI24: 0 | LJ24: 0 | LK24: 0 | LL24: 0 | LM24: 0 | LN24: 0 | LO24: 0 | LP24: 0 | LQ24: 0 | LR24: 0 | LS24: 0 | LT24: 0 | LU24: 0 | LV24: 0 | LW24: 0 | LX24: 0 | LY24: 0 | LZ24: 0 | MA24: 0 | MB24: 0 | MC24: 0 | MD24: 0 | ME24: 0 | MF24: 0 | MG24: 0 | MH24: 0 | MI24: 0 | MJ24: 0 | MK24: 0 | ML24: 0 | MM24: 0 | MN24: 0 | MO24: 0 | MP24: 0 | MQ24: 0 | MR24: 0 | MS24: 0 | MT24: 0 | MU24: 0 | MV24: 0 | MW24: 0 | MX24: 0 | MY24: 0 | MZ24: 0 | NA24: 0 | NB24: 0 | NC24: 0 | ND24: 0 | NE24: 0 | NF24: 0 | NG24: 0 | NH24: 0 | NI24: 0 | NJ24: 0 | NK24: 0 | NL24: 0 | NM24: 0 | NN24: 0 | NO24: 0 | NP24: 0 | NQ24: 0 | NR24: 0 | NS24: 0 | NT24: 0 | NU24: 0 | NV24: 0 | NW24: 0 | NX24: 0 | NY24: 0 | NZ24: 0 | OA24: 0 | OB24: 0 | OC24: 0 | OD24: 0 | OE24: 0 | OF24: 0 | OG24: 0 | OH24: 0 | OI24: 0 | OJ24: 0 | OK24: 0 | OL24: 0 | OM24: 0 | ON24: 0 | OO24: 0 | OP24: 0 | OQ24: 0 | OR24: 0 | OS24: 0 | OT24: 0 | OU24: 0 | OV24: 0 | OW24: 0 | OX24: 0 | OY24: 0 | OZ24: 0 | PA24: 0 | PB24: 0 | PC24: 0 | PD24: 0 | PE24: 0 | PF24: 0 | PG24: 0 | PH24: 0 | PI24: 0 | PJ24: 0 | PK24: 0 | PL24: 0 | PM24: 0 | PN24: 0 | PO24: 0 | PP24: 0 | PQ24: 0 | PR24: 0 | PS24: 0 | PT24: 0 | PU24: 0 | PV24: 0 | PW24: 0 | PX24: 0 | PY24: 0 | PZ24: 0 | QA24: 0 | QB24: 0 | QC24: =SUM(E24:QB24)-(PQ24+PS24+PU24+PV24+PX24) -> 0 | QE24: =SUM(E24:H24) -> 0.0 | QF24: =SUM(I24:BO24) -> 0.0 | QG24: =SUM(BP24:CW24) -> 0.0 | QH24: =SUM(CX24:DE24) -> 0.0 | QI24: =SUM(DF24:DT24) -> 0.0 | QJ24: =SUM(DU24:ET24) -> 0.0 | QK24: =SUM(EU24:FY24) -> 0.0 | QL24: =SUM(FZ24:HD24) -> 0.0 | QM24: =SUM(HE24:HF24) -> 0.0 | QN24: =SUM(HG24:HL24) -> 0.0 | QO24: =SUM(HM24:HR24) -> 0.0 | QP24: =SUM(HS24:IJ24) -> 0.0 | QQ24: =SUM(IK24:JA24) -> 0.0 | QR24: =SUM(JB24:JT24) -> 0.0 | QS24: =SUM(JU24:KD24) -> 0.0 | QT24: =SUM(KE24:KP24) -> 0.0 | QU24: =SUM(KQ24:MU24) -> 0.0 | QV24: =SUM(MV24:NG24) -> 0.0 | QW24: =SUM(NH24:NI24) -> 0.0 | QX24: =SUM(NJ24:NL24) -> 0.0 | QY24: =SUM(NM24:NO24) -> 0.0 | QZ24: =SUM(NP24) -> 0.0 | RA24: =SUM(NQ24) -> 0.0 | RB24: =SUM(NR24:NT24) -> 0.0 | RC24: =SUM(NU24) -> 0.0 | RD24: =SUM(NV24) -> 0.0 | RE24: =SUM(NW24:OB24) -> 0.0 | RF24: =SUM(OC24:PE24) -> 0.0 | RG24: =SUM(PF24:PG24) -> 0.0 | RH24: =SUM(PH24:PI24) -> 0.0 | RI24: =SUM(PJ24:PM24) -> 0.0 | RJ24: =SUM(PN24:PP24) -> 0.0 | RK24: =SUM(PQ24) -> 0.0 | RL24: =SUM(PR24) -> 0.0 | RM24: =SUM(PS24) -> 0.0 | RN24: =SUM(PT24:PV24) -> 0.0 | RO24: =SUM(PV24) -> 0.0 | RP24: =SUM(PV24) -> 0.0 | RQ24: =SUM(PW24) -> 0.0 | RR24: =SUM(PX24) -> 0.0 | RS24: =SUM(PY24) -> 0.0 | RT24: =SUM(PZ24) -> 0.0 | RU24: =SUM(QA24) -> 0.0 | RV24: =SUM(QB24) -> 0.0 | RW24: =SUM(QE24:RU24)-SUM(RI24:RM24)-SUM(RQ24:RT24) -> 0
D25: EN CONDICION DE DISCAPACIDAD | E25: 0 | F25: 0 | G25: 0 | H25: 0 | I25: 0 | J25: 0 | K25: 0 | L25: 0 | M25: 0 | N25: 0 | O25: 0 | P25: 0 | Q25: 0 | R25: 0 | S25: 0 | T25: 0 | U25: 0 | V25: 0 | W25: 0 | X25: 0 | Y25: 0 | Z25: 0 | AA25: 0 | AB25: 0 | AC25: 0 | AD25: 0 | AE25: 0 | AF25: 0 | AG25: 0 | AH25: 0 | AI25: 0 | AJ25: 0 | AK25: 0 | AL25: 0 | AM25: 0 | AN25: 0 | AO25: 0 | AP25: 0 | AQ25: 0 | AR25: 0 | AS25: 0 | AT25: 0 | AU25: 0 | AV25: 0 | AW25: 0 | AX25: 0 | AY25: 0 | AZ25: 0 | BA25: 0 | BB25: 0 | BC25: 0 | BD25: 0 | BE25: 0 | BF25: 0 | BG25: 0 | BH25: 0 | BI25: 0 | BJ25: 0 | BK25: 0 | BL25: 0 | BM25: 0 | BN25: 0 | BO25: 0 | BP25: 0 | BQ25: 0 | BR25: 0 | BS25: 0 | BT25: 0 | BU25: 0 | BV25: 0 | BW25: 0 | BX25: 0 | BY25: 0 | BZ25: 0 | CA25: 0 | CB25: 0 | CC25: 0 | CD25: 0 | CE25: 0 | CF25: 0 | CG25: 0 | CH25: 0 | CI25: 0 | CJ25: 0 | CK25: 0 | CL25: 0 | CM25: 0 | CN25: 0 | CO25: 0 | CP25: 0 | CQ25: 0 | CR25: 0 | CS25: 0 | CT25: 0 | CU25: 0 | CV25: 0 | CW25: 0 | CX25: 0 | CY25: 0 | CZ25: 0 | DA25: 0 | DB25: 0 | DC25: 0 | DD25: 0 | DE25: 0 | DF25: 0 | DG25: 0 | DH25: 0 | DI25: 0 | DJ25: 0 | DK25: 0 | DL25: 0 | DM25: 0 | DN25: 0 | DO25: 0 | DP25: 0 | DQ25: 0 | DR25: 0 | DS25: 0 | DT25: 0 | DU25: 0 | DV25: 0 | DW25: 0 | DX25: 0 | DY25: 0 | DZ25: 0 | EA25: 0 | EB25: 0 | EC25: 0 | ED25: 0 | EE25: 0 | EF25: 0 | EG25: 0 | EH25: 0 | EI25: 0 | EJ25: 0 | EK25: 0 | EL25: 0 | EM25: 0 | EN25: 0 | EO25: 0 | EP25: 0 | EQ25: 0 | ER25: 0 | ES25: 0 | ET25: 0 | EU25: 0 | EV25: 0 | EW25: 0 | EX25: 0 | EY25: 0 | EZ25: 0 | FA25: 0 | FB25: 0 | FC25: 0 | FD25: 0 | FE25: 0 | FF25: 0 | FG25: 0 | FH25: 0 | FI25: 0 | FJ25: 0 | FK25: 0 | FL25: 0 | FM25: 0 | FN25: 0 | FO25: 0 | FP25: 0 | FQ25: 0 | FR25: 0 | FS25: 0 | FT25: 0 | FU25: 0 | FV25: 0 | FW25: 0 | FX25: 0 | FY25: 0 | FZ25: 0 | GA25: 0 | GB25: 0 | GC25: 0 | GD25: 0 | GE25: 0 | GF25: 0 | GG25: 0 | GH25: 0 | GI25: 0 | GJ25: 0 | GK25: 0 | GL25: 0 | GM25: 0 | GN25: 0 | GO25: 0 | GP25: 0 | GQ25: 0 | GR25: 0 | GS25: 0 | GT25: 0 | GU25: 0 | GV25: 0 | GW25: 0 | GX25: 0 | GY25: 0 | GZ25: 0 | HA25: 0 | HB25: 0 | HC25: 0 | HD25: 0 | HE25: 0 | HF25: 0 | HG25: 0 | HH25: 0 | HI25: 0 | HJ25: 0 | HK25: 0 | HL25: 0 | HM25: 0 | HN25: 0 | HO25: 0 | HP25: 0 | HQ25: 0 | HR25: 0 | HS25: 0 | HT25: 0 | HU25: 0 | HV25: 0 | HW25: 0 | HX25: 0 | HY25: 0 | HZ25: 0 | IA25: 0 | IB25: 0 | IC25: 0 | ID25: 0 | IE25: 0 | IF25: 0 | IG25: 0 | IH25: 0 | II25: 0 | IJ25: 0 | IK25: 0 | IL25: 0 | IM25: 0 | IN25: 0 | IO25: 0 | IP25: 0 | IQ25: 0 | IR25: 0 | IS25: 0 | IT25: 0 | IU25: 0 | IV25: 0 | IW25: 0 | IX25: 0 | IY25: 0 | IZ25: 0 | JA25: 0 | JB25: 0 | JC25: 0 | JD25: 0 | JE25: 0 | JF25: 0 | JG25: 0 | JH25: 0 | JI25: 0 | JJ25: 0 | JK25: 0 | JL25: 0 | JM25: 0 | JN25: 0 | JO25: 0 | JP25: 0 | JQ25: 0 | JR25: 0 | JS25: 0 | JT25: 0 | JU25: 0 | JV25: 0 | JW25: 0 | JX25: 0 | JY25: 0 | JZ25: 0 | KA25: 0 | KB25: 0 | KC25: 0 | KD25: 0 | KE25: 0 | KF25: 0 | KG25: 0 | KH25: 0 | KI25: 0 | KJ25: 0 | KK25: 0 | KL25: 0 | KM25: 0 | KN25: 0 | KO25: 0 | KP25: 0 | KQ25: 0 | KR25: 0 | KS25: 0 | KT25: 0 | KU25: 0 | KV25: 0 | KW25: 0 | KX25: 0 | KY25: 0 | KZ25: 0 | LA25: 0 | LB25: 0 | LC25: 0 | LD25: 0 | LE25: 0 | LF25: 0 | LG25: 0 | LH25: 0 | LI25: 0 | LJ25: 0 | LK25: 0 | LL25: 0 | LM25: 0 | LN25: 0 | LO25: 0 | LP25: 0 | LQ25: 0 | LR25: 0 | LS25: 0 | LT25: 0 | LU25: 0 | LV25: 0 | LW25: 0 | LX25: 0 | LY25: 0 | LZ25: 0 | MA25: 0 | MB25: 0 | MC25: 0 | MD25: 0 | ME25: 0 | MF25: 0 | MG25: 0 | MH25: 0 | MI25: 0 | MJ25: 0 | MK25: 0 | ML25: 0 | MM25: 0 | MN25: 0 | MO25: 0 | MP25: 0 | MQ25: 0 | MR25: 0 | MS25: 0 | MT25: 0 | MU25: 0 | MV25: 0 | MW25: 0 | MX25: 0 | MY25: 0 | MZ25: 0 | NA25: 0 | NB25: 0 | NC25: 0 | ND25: 0 | NE25: 0 | NF25: 0 | NG25: 0 | NH25: 0 | NI25: 0 | NJ25: 0 | NK25: 0 | NL25: 0 | NM25: 0 | NN25: 0 | NO25: 0 | NP25: 0 | NQ25: 0 | NR25: 0 | NS25: 0 | NT25: 0 | NU25: 0 | NV25: 0 | NW25: 0 | NX25: 0 | NY25: 0 | NZ25: 0 | OA25: 0 | OB25: 0 | OC25: 0 | OD25: 0 | OE25: 0 | OF25: 0 | OG25: 0 | OH25: 0 | OI25: 0 | OJ25: 0 | OK25: 0 | OL25: 0 | OM25: 0 | ON25: 0 | OO25: 0 | OP25: 0 | OQ25: 0 | OR25: 0 | OS25: 0 | OT25: 0 | OU25: 0 | OV25: 0 | OW25: 0 | OX25: 0 | OY25: 0 | OZ25: 0 | PA25: 0 | PB25: 0 | PC25: 0 | PD25: 0 | PE25: 0 | PF25: 0 | PG25: 0 | PH25: 0 | PI25: 0 | PJ25: 0 | PK25: 0 | PL25: 0 | PM25: 0 | PN25: 0 | PO25: 0 | PP25: 0 | PQ25: 0 | PR25: 0 | PS25: 0 | PT25: 0 | PU25: 0 | PV25: 0 | PW25: 0 | PX25: 0 | PY25: 0 | PZ25: 0 | QA25: 0 | QB25: 0 | QC25: 0 | QE25: 0.0 | QF25: 0.0 | QG25: 0.0 | QH25: 0.0 | QI25: 0.0 | QJ25: 0.0 | QK25: 0.0 | QL25: 0.0 | QM25: 0.0 | QN25: 0.0 | QO25: 0.0 | QP25: 0.0 | QQ25: 0.0 | QR25: 0.0 | QS25: 0.0 | QT25: 0.0 | QU25: 0.0 | QV25: 0.0 | QW25: 0.0 | QX25: 0.0 | QY25: 0.0 | QZ25: 0.0 | RA25: 0.0 | RB25: 0.0 | RC25: 0.0 | RD25: 0.0 | RE25: 0.0 | RF25: 0.0 | RG25: 0.0 | RH25: 0.0 | RI25: 0.0 | RJ25: 0.0 | RK25: 0.0 | RL25: 0.0 | RM25: 0.0 | RN25: 0.0 | RO25: 0.0 | RP25: 0.0 | RQ25: 0.0 | RR25: 0.0 | RS25: 0.0 | RT25: 0.0 | RU25: 0.0 | RV25: 0.0 | RW25: 0
D26: VICTIMAS DEL CONFLICTO ARMADO | E26: 0 | F26: 0 | G26: 0 | H26: 0 | I26: 0 | J26: 0 | K26: 0 | L26: 0 | M26: 0 | N26: 0 | O26: 0 | P26: 0 | Q26: 0 | R26: 0 | S26: 0 | T26: 0 | U26: 0 | V26: 0 | W26: 0 | X26: 0 | Y26: 0 | Z26: 0 | AA26: 0 | AB26: 0 | AC26: 0 | AD26: 0 | AE26: 0 | AF26: 0 | AG26: 0 | AH26: 0 | AI26: 0 | AJ26: 0 | AK26: 0 | AL26: 0 | AM26: 0 | AN26: 0 | AO26: 0 | AP26: 0 | AQ26: 0 | AR26: 0 | AS26: 0 | AT26: 0 | AU26: 0 | AV26: 0 | AW26: 0 | AX26: 0 | AY26: 0 | AZ26: 0 | BA26: 0 | BB26: 0 | BC26: 0 | BD26: 0 | BE26: 0 | BF26: 0 | BG26: 0 | BH26: 0 | BI26: 0 | BJ26: 0 | BK26: 0 | BL26: 0 | BM26: 0 | BN26: 0 | BO26: 0 | BP26: 0 | BQ26: 0 | BR26: 0 | BS26: 0 | BT26: 0 | BU26: 0 | BV26: 0 | BW26: 0 | BX26: 0 | BY26: 0 | BZ26: 0 | CA26: 0 | CB26: 0 | CC26: 0 | CD26: 0 | CE26: 0 | CF26: 0 | CG26: 0 | CH26: 0 | CI26: 0 | CJ26: 0 | CK26: 0 | CL26: 0 | CM26: 0 | CN26: 0 | CO26: 0 | CP26: 0 | CQ26: 0 | CR26: 0 | CS26: 0 | CT26: 0 | CU26: 0 | CV26: 0 | CW26: 0 | CX26: 0 | CY26: 0 | CZ26: 0 | DA26: 0 | DB26: 0 | DC26: 0 | DD26: 0 | DE26: 0 | DF26: 0 | DG26: 0 | DH26: 0 | DI26: 0 | DJ26: 0 | DK26: 0 | DL26: 0 | DM26: 0 | DN26: 0 | DO26: 0 | DP26: 0 | DQ26: 0 | DR26: 0 | DS26: 0 | DT26: 0 | DU26: 0 | DV26: 0 | DW26: 0 | DX26: 0 | DY26: 0 | DZ26: 0 | EA26: 0 | EB26: 0 | EC26: 0 | ED26: 0 | EE26: 0 | EF26: 0 | EG26: 0 | EH26: 0 | EI26: 0 | EJ26: 0 | EK26: 0 | EL26: 0 | EM26: 0 | EN26: 0 | EO26: 0 | EP26: 0 | EQ26: 0 | ER26: 0 | ES26: 0 | ET26: 0 | EU26: 0 | EV26: 0 | EW26: 0 | EX26: 0 | EY26: 0 | EZ26: 0 | FA26: 0 | FB26: 0 | FC26: 0 | FD26: 0 | FE26: 0 | FF26: 0 | FG26: 0 | FH26: 0 | FI26: 0 | FJ26: 0 | FK26: 0 | FL26: 0 | FM26: 0 | FN26: 0 | FO26: 0 | FP26: 0 | FQ26: 0 | FR26: 0 | FS26: 0 | FT26: 0 | FU26: 0 | FV26: 0 | FW26: 0 | FX26: 0 | FY26: 0 | FZ26: 0 | GA26: 0 | GB26: 0 | GC26: 0 | GD26: 0 | GE26: 0 | GF26: 0 | GG26: 0 | GH26: 0 | GI26: 0 | GJ26: 0 | GK26: 0 | GL26: 0 | GM26: 0 | GN26: 0 | GO26: 0 | GP26: 0 | GQ26: 0 | GR26: 0 | GS26: 0 | GT26: 0 | GU26: 0 | GV26: 0 | GW26: 0 | GX26: 0 | GY26: 0 | GZ26: 0 | HA26: 0 | HB26: 0 | HC26: 0 | HD26: 0 | HE26: 0 | HF26: 0 | HG26: 0 | HH26: 0 | HI26: 0 | HJ26: 0 | HK26: 0 | HL26: 0 | HM26: 0 | HN26: 0 | HO26: 0 | HP26: 0 | HQ26: 0 | HR26: 0 | HS26: 0 | HT26: 0 | HU26: 0 | HV26: 0 | HW26: 0 | HX26: 0 | HY26: 0 | HZ26: 0 | IA26: 0 | IB26: 0 | IC26: 0 | ID26: 0 | IE26: 0 | IF26: 0 | IG26: 0 | IH26: 0 | II26: 0 | IJ26: 0 | IK26: 0 | IL26: 0 | IM26: 0 | IN26: 0 | IO26: 0 | IP26: 0 | IQ26: 0 | IR26: 0 | IS26: 0 | IT26: 0 | IU26: 0 | IV26: 0 | IW26: 0 | IX26: 0 | IY26: 0 | IZ26: 0 | JA26: 0 | JB26: 0 | JC26: 0 | JD26: 0 | JE26: 0 | JF26: 0 | JG26: 0 | JH26: 0 | JI26: 0 | JJ26: 0 | JK26: 0 | JL26: 0 | JM26: 0 | JN26: 0 | JO26: 0 | JP26: 0 | JQ26: 0 | JR26: 0 | JS26: 0 | JT26: 0 | JU26: 0 | JV26: 0 | JW26: 0 | JX26: 0 | JY26: 0 | JZ26: 0 | KA26: 0 | KB26: 0 | KC26: 0 | KD26: 0 | KE26: 0 | KF26: 0 | KG26: 0 | KH26: 0 | KI26: 0 | KJ26: 0 | KK26: 0 | KL26: 0 | KM26: 0 | KN26: 0 | KO26: 0 | KP26: 0 | KQ26: 0 | KR26: 0 | KS26: 0 | KT26: 0 | KU26: 0 | KV26: 0 | KW26: 0 | KX26: 0 | KY26: 0 | KZ26: 0 | LA26: 0 | LB26: 0 | LC26: 0 | LD26: 0 | LE26: 0 | LF26: 0 | LG26: 0 | LH26: 0 | LI26: 0 | LJ26: 0 | LK26: 0 | LL26: 0 | LM26: 0 | LN26: 0 | LO26: 0 | LP26: 0 | LQ26: 0 | LR26: 0 | LS26: 0 | LT26: 0 | LU26: 0 | LV26: 0 | LW26: 0 | LX26: 0 | LY26: 0 | LZ26: 0 | MA26: 0 | MB26: 0 | MC26: 0 | MD26: 0 | ME26: 0 | MF26: 0 | MG26: 0 | MH26: 0 | MI26: 0 | MJ26: 0 | MK26: 0 | ML26: 0 | MM26: 0 | MN26: 0 | MO26: 0 | MP26: 0 | MQ26: 0 | MR26: 0 | MS26: 0 | MT26: 0 | MU26: 0 | MV26: 0 | MW26: 0 | MX26: 0 | MY26: 0 | MZ26: 0 | NA26: 0 | NB26: 0 | NC26: 0 | ND26: 0 | NE26: 0 | NF26: 0 | NG26: 0 | NH26: 0 | NI26: 0 | NJ26: 0 | NK26: 0 | NL26: 0 | NM26: 0 | NN26: 0 | NO26: 0 | NP26: 0 | NQ26: 0 | NR26: 0 | NS26: 0 | NT26: 0 | NU26: 0 | NV26: 0 | NW26: 0 | NX26: 0 | NY26: 0 | NZ26: 0 | OA26: 0 | OB26: 0 | OC26: 0 | OD26: 0 | OE26: 0 | OF26: 0 | OG26: 0 | OH26: 0 | OI26: 0 | OJ26: 0 | OK26: 0 | OL26: 0 | OM26: 0 | ON26: 0 | OO26: 0 | OP26: 0 | OQ26: 0 | OR26: 0 | OS26: 0 | OT26: 0 | OU26: 0 | OV26: 0 | OW26: 0 | OX26: 0 | OY26: 0 | OZ26: 0 | PA26: 0 | PB26: 0 | PC26: 0 | PD26: 0 | PE26: 0 | PF26: 0 | PG26: 0 | PH26: 0 | PI26: 0 | PJ26: 0 | PK26: 0 | PL26: 0 | PM26: 0 | PN26: 0 | PO26: 0 | PP26: 0 | PQ26: 0 | PR26: 0 | PS26: 0 | PT26: 0 | PU26: 0 | PV26: 0 | PW26: 0 | PX26: 0 | PY26: 0 | PZ26: 0 | QA26: 0 | QB26: 0 | QC26: 0 | QE26: 0.0 | QF26: 0.0 | QG26: 0.0 | QH26: 0.0 | QI26: 0.0 | QJ26: 0.0 | QK26: 0.0 | QL26: 0.0 | QM26: 0.0 | QN26: 0.0 | QO26: 0.0 | QP26: 0.0 | QQ26: 0.0 | QR26: 0.0 | QS26: 0.0 | QT26: 0.0 | QU26: 0.0 | QV26: 0.0 | QW26: 0.0 | QX26: 0.0 | QY26: 0.0 | QZ26: 0.0 | RA26: 0.0 | RB26: 0.0 | RC26: 0.0 | RD26: 0.0 | RE26: 0.0 | RF26: 0.0 | RG26: 0.0 | RH26: 0.0 | RI26: 0.0 | RJ26: 0.0 | RK26: 0.0 | RL26: 0.0 | RM26: 0.0 | RN26: 0.0 | RO26: 0.0 | RP26: 0.0 | RQ26: 0.0 | RR26: 0.0 | RS26: 0.0 | RT26: 0.0 | RU26: 0.0 | RV26: 0.0 | RW26: 0
D27: ZONAS VEREDALES | E27: 29 | F27: 2 | G27: 0 | H27: 0 | I27: 30 | J27: 1 | K27: 0 | L27: 0 | M27: 0 | N27: 0 | O27: 0 | P27: 0 | Q27: 0 | R27: 0 | S27: 0 | T27: 0 | U27: 0 | V27: 0 | W27: 0 | X27: 0 | Y27: 0 | Z27: 0 | AA27: 0 | AB27: 0 | AC27: 0 | AD27: 0 | AE27: 0 | AF27: 0 | AG27: 0 | AH27: 0 | AI27: 0 | AJ27: 0 | AK27: 0 | AL27: 0 | AM27: 0 | AN27: 0 | AO27: 0 | AP27: 0 | AQ27: 0 | AR27: 0 | AS27: 0 | AT27: 0 | AU27: 0 | AV27: 0 | AW27: 0 | AX27: 0 | AY27: 0 | AZ27: 0 | BA27: 0 | BB27: 0 | BC27: 0 | BD27: 0 | BE27: 0 | BF27: 0 | BG27: 0 | BH27: 0 | BI27: 0 | BJ27: 0 | BK27: 0 | BL27: 0 | BM27: 0 | BN27: 0 | BO27: 0 | BP27: 5 | BQ27: 3 | BR27: 6 | BS27: 0 | BT27: 0 | BU27: 0 | BV27: 0 | BW27: 0 | BX27: 0 | BY27: 0 | BZ27: 0 | CA27: 0 | CB27: 0 | CC27: 0 | CD27: 0 | CE27: 0 | CF27: 0 | CG27: 0 | CH27: 5 | CI27: 0 | CJ27: 0 | CK27: 0 | CL27: 0 | CM27: 0 | CN27: 0 | CO27: 0 | CP27: 0 | CQ27: 0 | CR27: 0 | CS27: 0 | CT27: 0 | CU27: 0 | CV27: 0 | CW27: 0 | CX27: 3 | CY27: 0 | CZ27: 0 | DA27: 0 | DB27: 0 | DC27: 0 | DD27: 0 | DE27: 13 | DF27: 5 | DG27: 3 | DH27: 6 | DI27: 0 | DJ27: 0 | DK27: 0 | DL27: 0 | DM27: 0 | DN27: 0 | DO27: 0 | DP27: 0 | DQ27: 0 | DR27: 0 | DS27: 0 | DT27: 0 | DU27: 0 | DV27: 0 | DW27: 0 | DX27: 0 | DY27: 0 | DZ27: 0 | EA27: 0 | EB27: 0 | EC27: 0 | ED27: 0 | EE27: 0 | EF27: 0 | EG27: 0 | EH27: 0 | EI27: 0 | EJ27: 0 | EK27: 0 | EL27: 0 | EM27: 8 | EN27: 0 | EO27: 0 | EP27: 0 | EQ27: 0 | ER27: 0 | ES27: 0 | ET27: 13 | EU27: 0 | EV27: 0 | EW27: 0 | EX27: 0 | EY27: 0 | EZ27: 0 | FA27: 0 | FB27: 0 | FC27: 0 | FD27: 0 | FE27: 0 | FF27: 0 | FG27: 0 | FH27: 0 | FI27: 0 | FJ27: 0 | FK27: 0 | FL27: 0 | FM27: 0 | FN27: 0 | FO27: 0 | FP27: 0 | FQ27: 0 | FR27: 0 | FS27: 0 | FT27: 0 | FU27: 0 | FV27: 0 | FW27: 0 | FX27: 0 | FY27: 0 | FZ27: 0 | GA27: 0 | GB27: 0 | GC27: 0 | GD27: 0 | GE27: 0 | GF27: 0 | GG27: 0 | GH27: 0 | GI27: 0 | GJ27: 0 | GK27: 0 | GL27: 0 | GM27: 0 | GN27: 0 | GO27: 0 | GP27: 0 | GQ27: 0 | GR27: 0 | GS27: 0 | GT27: 0 | GU27: 0 | GV27: 0 | GW27: 0 | GX27: 0 | GY27: 0 | GZ27: 0 | HA27: 0 | HB27: 0 | HC27: 0 | HD27: 0 | HE27: 5 | HF27: 5 | HG27: 5 | HH27: 5 | HI27: 7 | HJ27: 0 | HK27: 1 | HL27: 0 | HM27: 0 | HN27: 0 | HO27: 0 | HP27: 0 | HQ27: 0 | HR27: 0 | HS27: 8 | HT27: 0 | HU27: 0 | HV27: 0 | HW27: 0 | HX27: 0 | HY27: 0 | HZ27: 0 | IA27: 0 | IB27: 0 | IC27: 0 | ID27: 13 | IE27: 0 | IF27: 0 | IG27: 0 | IH27: 0 | II27: 0 | IJ27: 0 | IK27: 0 | IL27: 1 | IM27: 0 | IN27: 0 | IO27: 1 | IP27: 1 | IQ27: 0 | IR27: 1 | IS27: 0 | IT27: 1 | IU27: 0 | IV27: 1 | IW27: 0 | IX27: 0 | IY27: 2 | IZ27: 1 | JA27: 0 | JB27: 8 | JC27: 0 | JD27: 0 | JE27: 0 | JF27: 0 | JG27: 0 | JH27: 0 | JI27: 0 | JJ27: 0 | JK27: 0 | JL27: 0 | JM27: 0 | JN27: 0 | JO27: 0 | JP27: 0 | JQ27: 0 | JR27: 1 | JS27: 0 | JT27: 0 | JU27: 8 | JV27: 0 | JW27: 0 | JX27: 0 | JY27: 0 | JZ27: 0 | KA27: 0 | KB27: 0 | KC27: 0 | KD27: 0 | KE27: 8 | KF27: 0 | KG27: 0 | KH27: 0 | KI27: 0 | KJ27: 0 | KK27: 0 | KL27: 0 | KM27: 13 | KN27: 0 | KO27: 0 | KP27: 0 | KQ27: 0 | KR27: 0 | KS27: 0 | KT27: 0 | KU27: 0 | KV27: 1 | KW27: 0 | KX27: 0 | KY27: 0 | KZ27: 0 | LA27: 2 | LB27: 1 | LC27: 0 | LD27: 1 | LE27: 0 | LF27: 0 | LG27: 0 | LH27: 0 | LI27: 0 | LJ27: 1 | LK27: 0 | LL27: 0 | LM27: 0 | LN27: 0 | LO27: 4 | LP27: 3 | LQ27: 4 | LR27: 1 | LS27: 2 | LT27: 0 | LU27: 0 | LV27: 0 | LW27: 0 | LX27: 0 | LY27: 0 | LZ27: 0 | MA27: 0 | MB27: 0 | MC27: 0 | MD27: 1 | ME27: 0 | MF27: 0 | MG27: 0 | MH27: 0 | MI27: 0 | MJ27: 0 | MK27: 0 | ML27: 0 | MM27: 0 | MN27: 0 | MO27: 0 | MP27: 0 | MQ27: 0 | MR27: 0 | MS27: 0 | MT27: 0 | MU27: 0 | MV27: 0 | MW27: 0 | MX27: 0 | MY27: 0 | MZ27: 0 | NA27: 0 | NB27: 3 | NC27: 0 | ND27: 2 | NE27: 0 | NF27: 0 | NG27: 0 | NH27: 10 | NI27: 13 | NJ27: 6 | NK27: 6 | NL27: 5 | NM27: 0 | NN27: 0 | NO27: 7 | NP27: 43 | NQ27: 12 | NR27: 0 | NS27: 0 | NT27: 41 | NU27: 63 | NV27: 111 | NW27: 0 | NX27: 0 | NY27: 0 | NZ27: 0 | OA27: 0 | OB27: 0 | OC27: 1 | OD27: 0 | OE27: 0 | OF27: 1 | OG27: 2 | OH27: 0 | OI27: 1 | OJ27: 0 | OK27: 0 | OL27: 0 | OM27: 0 | ON27: 0 | OO27: 1 | OP27: 1 | OQ27: 0 | OR27: 0 | OS27: 0 | OT27: 0 | OU27: 0 | OV27: 1 | OW27: 0 | OX27: 1 | OY27: 0 | OZ27: 0 | PA27: 0 | PB27: 0 | PC27: 0 | PD27: 0 | PE27: 0 | PF27: 0 | PG27: 0 | PH27: 0 | PI27: 0 | PJ27: 0 | PK27: 0 | PL27: 0 | PM27: 0 | PN27: 0 | PO27: 1 | PP27: 0 | PQ27: 0 | PR27: 0 | PS27: 0 | PT27: 0 | PU27: 0 | PV27: 0 | PW27: 0 | PX27: 0 | PY27: 0 | PZ27: 0 | QA27: 0 | QB27: 0 | QC27: 581 | QD27: =CONCATENATE($G$2,$B$8) -> 11 | QE27: =SUM(E27:H27) -> 31.0 | QF27: =SUM(I27:BN27) -> 31.0 | QG27: =SUM(BP27:CW27) -> 19.0 | QH27: =SUM(CX27:DE27) -> 16.0 | QI27: =SUM(DF27:DT27) -> 14.0 | QJ27: =SUM(DU27:ET27) -> 21.0 | QK27: =SUM(EU27:FY27) -> 0.0 | QL27: =SUM(FZ27:HD27) -> 0.0 | QM27: =SUM(HE27:HF27) -> 10.0 | QN27: =SUM(HG27:HL27) -> 18.0 | QO27: =SUM(HR27:II27) -> 21.0 | QP27: 21.0 | QQ27: =SUM(IK27:JA27) -> 9.0 | QR27: =SUM(JB27:JT27) -> 9.0 | QS27: =SUM(JU27:KD27) -> 8.0 | QT27: =SUM(KE27:KP27) -> 21.0 | QU27: =SUM(KQ27:MU27) -> 21.0 | QV27: =SUM(MV27:NG27) -> 5.0 | QW27: =SUM(NH27:NL27) -> 40.0 | QX27: =SUM(NM27:NO27) -> 7.0 | QY27: 7.0 | QZ27: =SUM(NP27) -> 43.0 | RA27: 12.0 | RB27: =SUM(NS27:NT27) -> 41.0 | RC27: 104.0 | RD27: 174.0 | RE27: =SUM(NZ27:OB27) -> 0.0 | RF27: =SUM(OC27:PE27) -> 9.0 | RG27: =SUM(PF27:PI27) -> 0.0 | RH27: =SUM(PJ27:PP27) -> 1.0 | RI27: =PQ27 -> 0.0 | RJ27: =PR27 -> 0.0 | RK27: =SUM(PQ27) -> 0.0 | RL27: 0.0 | RM27: 0.0 | RN27: 0.0 | RO27: 0.0 | RP27: 0.0 | RQ27: 0.0 | RR27: 0.0 | RS27: 0.0 | RT27: 0.0 | RU27: 0.0 | RV27: 0.0 | RW27: =SUM(QE27:RU27)-SUM(RI27:RM27)-SUM(RQ27:RT27) -> 713
D28: FEMENINO | QC28: 0 | QE28: 0.0 | QF28: =SUM(I28:BO28) -> 0.0 | QG28: 0.0 | QH28: 0.0 | QI28: 0.0 | QJ28: 0.0 | QK28: 0.0 | QL28: 0.0 | QM28: 0.0 | QN28: 0.0 | QO28: =SUM(HM28:HR28) -> 0.0 | QP28: 0.0 | QQ28: 0.0 | QR28: 0.0 | QS28: 0.0 | QT28: 0.0 | QU28: 0.0 | QV28: 0.0 | QW28: =SUM(NH28:NI28) -> 0.0 | QX28: =SUM(NJ28:NL28) -> 0.0 | QY28: 0.0 | QZ28: 0.0 | RA28: 0.0 | RB28: =SUM(NR28:NT28) -> 0.0 | RC28: =SUM(NU28) -> 0.0 | RD28: =SUM(NV28) -> 0.0 | RE28: =SUM(NW28:OB28) -> 0.0 | RF28: =SUM(OC28:PE28) -> 0.0 | RG28: =SUM(PF28:PG28) -> 0.0 | RH28: =SUM(PH28:PI28) -> 0.0 | RI28: =SUM(PJ28:PM28) -> 0.0 | RJ28: =SUM(PN28:PP28) -> 0.0 | RK28: =SUM(PQ28) -> 0.0 | RL28: =SUM(PR28) -> 0.0 | RM28: =SUM(PS28) -> 0.0 | RN28: =SUM(PT28:PV28) -> 0.0 | RO28: =SUM(PV28) -> 0.0 | RP28: =SUM(PV28) -> 0.0 | RQ28: =SUM(PW28) -> 0.0 | RR28: =SUM(PX28) -> 0.0 | RS28: =SUM(PY28) -> 0.0 | RT28: =SUM(PZ28) -> 0.0 | RU28: =SUM(QA28) -> 0.0 | RV28: =SUM(QB28) -> 0.0 | RW28: =SUM(QE28:RU28)-SUM(RI28:RM28)-SUM(RQ28:RT28) -> 0
D29: MASCULINO | QC29: 0 | QE29: 0.0 | QF29: 0.0 | QG29: 0.0 | QH29: 0.0 | QI29: 0.0 | QJ29: 0.0 | QK29: 0.0 | QL29: 0.0 | QM29: 0.0 | QN29: 0.0 | QO29: 0.0 | QP29: 0.0 | QQ29: 0.0 | QR29: 0.0 | QS29: 0.0 | QT29: 0.0 | QU29: 0.0 | QV29: 0.0 | QW29: 0.0 | QX29: 0.0 | QY29: 0.0 | QZ29: 0.0 | RA29: 0.0 | RB29: 0.0 | RC29: 0.0 | RD29: 0.0 | RE29: 0.0 | RF29: 0.0 | RG29: 0.0 | RH29: 0.0 | RI29: 0.0 | RJ29: 0.0 | RK29: 0.0 | RL29: 0.0 | RM29: 0.0 | RN29: 0.0 | RO29: 0.0 | RP29: 0.0 | RQ29: 0.0 | RR29: 0.0 | RS29: 0.0 | RT29: 0.0 | RU29: 0.0 | RV29: 0.0 | RW29: 0
D30: OTRO | QC30: 0 | QE30: 0.0 | QF30: 0.0 | QG30: 0.0 | QH30: 0.0 | QI30: 0.0 | QJ30: 0.0 | QK30: 0.0 | QL30: 0.0 | QM30: 0.0 | QN30: 0.0 | QO30: 0.0 | QP30: 0.0 | QQ30: 0.0 | QR30: 0.0 | QS30: 0.0 | QT30: 0.0 | QU30: 0.0 | QV30: 0.0 | QW30: 0.0 | QX30: 0.0 | QY30: 0.0 | QZ30: 0.0 | RA30: 0.0 | RB30: 0.0 | RC30: 0.0 | RD30: 0.0 | RE30: 0.0 | RF30: 0.0 | RG30: 0.0 | RH30: 0.0 | RI30: 0.0 | RJ30: 0.0 | RK30: 0.0 | RL30: 0.0 | RM30: 0.0 | RN30: 0.0 | RO30: 0.0 | RP30: 0.0 | RQ30: 0.0 | RR30: 0.0 | RS30: 0.0 | RT30: 0.0 | RU30: 0.0 | RV30: 0.0 | RW30: 0
D31: TOTAL GENERO | E31: =SUM(E28:E30) -> 0 | F31: =SUM(F28:F30) -> 0 | G31: 0 | H31: 0 | I31: 0 | J31: 0 | K31: 0 | L31: 0 | M31: 0 | N31: 0 | O31: 0 | P31: 0 | Q31: 0 | R31: 0 | S31: 0 | T31: 0 | U31: 0 | V31: 0 | W31: 0 | X31: 0 | Y31: 0 | Z31: 0 | AA31: 0 | AB31: 0 | AC31: 0 | AD31: 0 | AE31: 0 | AF31: 0 | AG31: 0 | AH31: 0 | AI31: 0 | AJ31: 0 | AK31: 0 | AL31: 0 | AM31: 0 | AN31: 0 | AO31: 0 | AP31: 0 | AQ31: 0 | AR31: 0 | AS31: 0 | AT31: 0 | AU31: 0 | AV31: 0 | AW31: 0 | AX31: 0 | AY31: 0 | AZ31: 0 | BA31: 0 | BB31: 0 | BC31: 0 | BD31: 0 | BE31: 0 | BF31: 0 | BG31: 0 | BH31: 0 | BI31: 0 | BJ31: 0 | BK31: 0 | BL31: 0 | BM31: 0 | BN31: 0 | BO31: 0 | BP31: 0 | BQ31: 0 | BR31: =SUM(BR28:BR30) -> 0 | BS31: 0 | BT31: 0 | BU31: 0 | BV31: 0 | BW31: 0 | BX31: 0 | BY31: 0 | BZ31: 0 | CA31: 0 | CB31: 0 | CC31: 0 | CD31: 0 | CE31: 0 | CF31: 0 | CG31: 0 | CH31: 0 | CI31: 0 | CJ31: 0 | CK31: 0 | CL31: 0 | CM31: 0 | CN31: 0 | CO31: 0 | CP31: 0 | CQ31: 0 | CR31: 0 | CS31: 0 | CT31: 0 | CU31: 0 | CV31: 0 | CW31: 0 | CX31: 0 | CY31: 0 | CZ31: 0 | DA31: 0 | DB31: 0 | DC31: 0 | DD31: 0 | DE31: 0 | DF31: 0 | DG31: 0 | DH31: 0 | DI31: 0 | DJ31: 0 | DK31: 0 | DL31: 0 | DM31: 0 | DN31: 0 | DO31: 0 | DP31: 0 | DQ31: 0 | DR31: 0 | DS31: 0 | DT31: 0 | DU31: 0 | DV31: 0 | DW31: 0 | DX31: 0 | DY31: 0 | DZ31: 0 | EA31: 0 | EB31: 0 | EC31: 0 | ED31: =SUM(ED28:ED30) -> 0 | EE31: 0 | EF31: 0 | EG31: 0 | EH31: 0 | EI31: 0 | EJ31: 0 | EK31: 0 | EL31: 0 | EM31: 0 | EN31: 0 | EO31: 0 | EP31: 0 | EQ31: 0 | ER31: 0 | ES31: 0 | ET31: 0 | EU31: 0 | EV31: 0 | EW31: 0 | EX31: 0 | EY31: 0 | EZ31: 0 | FA31: 0 | FB31: 0 | FC31: 0 | FD31: 0 | FE31: 0 | FF31: 0 | FG31: 0 | FH31: 0 | FI31: 0 | FJ31: 0 | FK31: 0 | FL31: 0 | FM31: 0 | FN31: 0 | FO31: 0 | FP31: 0 | FQ31: 0 | FR31: 0 | FS31: 0 | FT31: 0 | FU31: 0 | FV31: 0 | FW31: 0 | FX31: 0 | FY31: 0 | FZ31: 0 | GA31: 0 | GB31: 0 | GC31: 0 | GD31: 0 | GE31: 0 | GF31: 0 | GG31: 0 | GH31: 0 | GI31: 0 | GJ31: 0 | GK31: 0 | GL31: 0 | GM31: 0 | GN31: 0 | GO31: 0 | GP31: =SUM(GP28:GP30) -> 0 | GQ31: 0 | GR31: 0 | GS31: 0 | GT31: 0 | GU31: 0 | GV31: 0 | GW31: 0 | GX31: 0 | GY31: 0 | GZ31: 0 | HA31: 0 | HB31: 0 | HC31: 0 | HD31: 0 | HE31: 0 | HF31: 0 | HG31: 0 | HH31: 0 | HI31: 0 | HJ31: 0 | HK31: 0 | HL31: 0 | HM31: 0 | HN31: 0 | HO31: 0 | HP31: 0 | HQ31: 0 | HR31: 0 | HS31: 0 | HT31: 0 | HU31: 0 | HV31: 0 | HW31: 0 | HX31: 0 | HY31: 0 | HZ31: 0 | IA31: 0 | IB31: 0 | IC31: 0 | ID31: 0 | IE31: 0 | IF31: 0 | IG31: 0 | IH31: 0 | II31: 0 | IJ31: 0 | IK31: 0 | IL31: 0 | IM31: 0 | IN31: 0 | IO31: 0 | IP31: 0 | IQ31: 0 | IR31: 0 | IS31: 0 | IT31: 0 | IU31: 0 | IV31: 0 | IW31: 0 | IX31: 0 | IY31: 0 | IZ31: 0 | JA31: 0 | JB31: =SUM(JB28:JB30) -> 0 | JC31: 0 | JD31: 0 | JE31: 0 | JF31: 0 | JG31: 0 | JH31: 0 | JI31: 0 | JJ31: 0 | JK31: 0 | JL31: 0 | JM31: 0 | JN31: 0 | JO31: 0 | JP31: 0 | JQ31: 0 | JR31: 0 | JS31: 0 | JT31: 0 | JU31: 0 | JV31: 0 | JW31: 0 | JX31: 0 | JY31: 0 | JZ31: 0 | KA31: 0 | KB31: 0 | KC31: 0 | KD31: 0 | KE31: 0 | KF31: 0 | KG31: 0 | KH31: 0 | KI31: 0 | KJ31: 0 | KK31: 0 | KL31: 0 | KM31: 0 | KN31: 0 | KO31: 0 | KP31: 0 | KQ31: 0 | KR31: 0 | KS31: 0 | KT31: 0 | KU31: 0 | KV31: 0 | KW31: 0 | KX31: 0 | KY31: 0 | KZ31: 0 | LA31: 0 | LB31: 0 | LC31: 0 | LD31: 0 | LE31: 0 | LF31: 0 | LG31: 0 | LH31: 0 | LI31: 0 | LJ31: 0 | LK31: 0 | LL31: 0 | LM31: 0 | LN31: =SUM(LN28:LN30) -> 0 | LO31: 0 | LP31: 0 | LQ31: 0 | LR31: 0 | LS31: 0 | LT31: 0 | LU31: 0 | LV31: 0 | LW31: 0 | LX31: 0 | LY31: 0 | LZ31: 0 | MA31: 0 | MB31: 0 | MC31: 0 | MD31: 0 | ME31: 0 | MF31: 0 | MG31: 0 | MH31: 0 | MI31: 0 | MJ31: 0 | MK31: 0 | ML31: 0 | MM31: 0 | MN31: 0 | MO31: 0 | MP31: 0 | MQ31: 0 | MR31: 0 | MS31: 0 | MT31: 0 | MU31: 0 | MV31: 0 | MW31: 0 | MX31: 0 | MY31: 0 | MZ31: 0 | NA31: 0 | NB31: 0 | NC31: 0 | ND31: 0 | NE31: 0 | NF31: 0 | NG31: 0 | NH31: 0 | NI31: 0 | NJ31: 0 | NK31: 0 | NL31: 0 | NM31: 0 | NN31: 0 | NO31: 0 | NP31: 0 | NQ31: 0 | NR31: 0 | NS31: 0 | NT31: 0 | NU31: 0 | NV31: 0 | NW31: 0 | NX31: 0 | NY31: 0 | NZ31: =SUM(NZ28:NZ30) -> 0 | OA31: 0 | OB31: 0 | OC31: 0 | OD31: 0 | OE31: 0 | OF31: 0 | OG31: 0 | OH31: 0 | OI31: 0 | OJ31: 0 | OK31: 0 | OL31: 0 | OM31: 0 | ON31: 0 | OO31: 0 | OP31: 0 | OQ31: 0 | OR31: 0 | OS31: 0 | OT31: 0 | OU31: 0 | OV31: 0 | OW31: 0 | OX31: 0 | OY31: 0 | OZ31: 0 | PA31: 0 | PB31: 0 | PC31: 0 | PD31: 0 | PE31: 0 | PF31: 0 | PG31: 0 | PH31: 0 | PI31: 0 | PJ31: 0 | PK31: 0 | PL31: 0 | PM31: 0 | PN31: 0 | PO31: 0 | PP31: 0 | PQ31: 0 | PR31: 0 | PS31: 0 | PT31: 0 | PU31: 0 | PV31: 0 | PW31: 0 | PX31: 0 | PY31: 0 | PZ31: 0 | QA31: 0 | QB31: 0 | QC31: 0 | QE31: =SUM(QE28:QE30) -> 0.0 | QF31: =SUM(QF28:QF30) -> 0.0 | QG31: =SUM(QG28:QG30) -> 0.0 | QH31: =SUM(QH28:QH30) -> 0.0 | QI31: =SUM(QI28:QI30) -> 0.0 | QJ31: =SUM(QJ28:QJ30) -> 0.0 | QK31: =SUM(QK28:QK30) -> 0.0 | QL31: =SUM(QL28:QL30) -> 0.0 | QM31: =SUM(QM28:QM30) -> 0.0 | QN31: =SUM(QN28:QN30) -> 0.0 | QO31: =SUM(QO28:QO30) -> 0.0 | QP31: 0.0 | QQ31: =SUM(QQ28:QQ30) -> 0.0 | QR31: =SUM(QR28:QR30) -> 0.0 | QS31: =SUM(QS28:QS30) -> 0.0 | QT31: =SUM(QT28:QT30) -> 0.0 | QU31: =SUM(QU28:QU30) -> 0.0 | QV31: =SUM(QV28:QV30) -> 0.0 | QW31: =SUM(QW28:QW30) -> 0.0 | QX31: =SUM(QX28:QX30) -> 0.0 | QY31: 0.0 | QZ31: =SUM(QZ28:QZ30) -> 0.0 | RA31: =SUM(RA28:RA30) -> 0.0 | RB31: 0.0 | RC31: =SUM(RC28:RC30) -> 0.0 | RD31: 0.0 | RE31: =SUM(RE28:RE30) -> 0.0 | RF31: =SUM(RF28:RF30) -> 0.0 | RG31: =SUM(RG28:RG30) -> 0.0 | RH31: =SUM(RH28:RH30) -> 0.0 | RI31: =SUM(RI28:RI30) -> 0.0 | RJ31: =SUM(RJ28:RJ30) -> 0.0 | RK31: 0.0 | RL31: =SUM(RL28:RL30) -> 0.0 | RM31: 0.0 | RN31: =SUM(RN28:RN30) -> 0.0 | RO31: =SUM(RO28:RO30) -> 0.0 | RP31: =SUM(RP28:RP30) -> 0.0 | RQ31: =SUM(RQ28:RQ30) -> 0.0 | RR31: =SUM(RR28:RR30) -> 0.0 | RS31: =SUM(RS28:RS30) -> 0.0 | RT31: =SUM(RT28:RT30) -> 0.0 | RU31: =SUM(RU28:RU30) -> 0.0 | RV31: =SUM(RV28:RV30) -> 0.0 | RW31: 0
D32: CONTRIBUTIVO | QC32: =SUM(E32:QB32)-(PQ32+PS32+PU32+PV32+PX32) -> 0 | QE32: =SUM(E32:H32) -> 0.0 | QF32: =SUM(I32:BO32) -> 0.0 | QG32: =SUM(BP32:CW32) -> 0.0 | QH32: =SUM(CX32:DE32) -> 0.0 | QI32: =SUM(DF32:DT32) -> 0.0 | QJ32: =SUM(DU32:ET32) -> 0.0 | QK32: =SUM(EU32:FY32) -> 0.0 | QL32: =SUM(FZ32:HD32) -> 0.0 | QM32: =SUM(HE32:HF32) -> 0.0 | QN32: =SUM(HG32:HL32) -> 0.0 | QO32: =SUM(HM32:HR32) -> 0.0 | QP32: =SUM(HS32:IJ32) -> 0.0 | QQ32: =SUM(IK32:JA32) -> 0.0 | QR32: =SUM(JB32:JT32) -> 0.0 | QS32: =SUM(JU32:KD32) -> 0.0 | QT32: =SUM(KE32:KP32) -> 0.0 | QU32: =SUM(KQ32:MU32) -> 0.0 | QV32: =SUM(MV32:NG32) -> 0.0 | QW32: =SUM(NH32:NI32) -> 0.0 | QX32: =SUM(NJ32:NL32) -> 0.0 | QY32: =SUM(NM32:NO32) -> 0.0 | QZ32: =SUM(NP32) -> 0.0 | RA32: =SUM(NQ32) -> 0.0 | RB32: =SUM(NR32:NT32) -> 0.0 | RC32: =SUM(NU32) -> 0.0 | RD32: =SUM(NV32) -> 0.0 | RE32: =SUM(NW32:OB32) -> 0.0 | RF32: =SUM(OC32:PE32) -> 0.0 | RG32: =SUM(PF32:PG32) -> 0.0 | RH32: =SUM(PH32:PI32) -> 0.0 | RI32: =SUM(PJ32:PM32) -> 0.0 | RJ32: =SUM(PN32:PP32) -> 0.0 | RK32: =SUM(PQ32) -> 0.0 | RL32: =SUM(PR32) -> 0.0 | RM32: =SUM(PS32) -> 0.0 | RN32: =SUM(PT32:PV32) -> 0.0 | RO32: =SUM(PV32) -> 0.0 | RP32: =SUM(PV32) -> 0.0 | RQ32: =SUM(PW32) -> 0.0 | RR32: =SUM(PX32) -> 0.0 | RS32: =SUM(PY32) -> 0.0 | RT32: =SUM(PZ32) -> 0.0 | RU32: =SUM(QA32) -> 0.0 | RV32: =SUM(QB32) -> 0.0 | RW32: =SUM(QE32:RU32)-SUM(RI32:RM32)-SUM(RQ32:RT32) -> 0
D33: SUBSIDIADO | QC33: 0 | QE33: 0.0 | QF33: 0.0 | QG33: 0.0 | QH33: 0.0 | QI33: 0.0 | QJ33: 0.0 | QK33: 0.0 | QL33: 0.0 | QM33: 0.0 | QN33: 0.0 | QO33: 0.0 | QP33: 0.0 | QQ33: 0.0 | QR33: 0.0 | QS33: 0.0 | QT33: 0.0 | QU33: 0.0 | QV33: 0.0 | QW33: 0.0 | QX33: 0.0 | QY33: 0.0 | QZ33: 0.0 | RA33: 0.0 | RB33: 0.0 | RC33: 0.0 | RD33: 0.0 | RE33: 0.0 | RF33: 0.0 | RG33: 0.0 | RH33: 0.0 | RI33: 0.0 | RJ33: 0.0 | RK33: 0.0 | RL33: 0.0 | RM33: 0.0 | RN33: 0.0 | RO33: 0.0 | RP33: 0.0 | RQ33: 0.0 | RR33: 0.0 | RS33: 0.0 | RT33: 0.0 | RU33: 0.0 | RV33: 0.0 | RW33: 0
D34: POBRE NO ASEGURADO | QC34: 0 | QE34: 0.0 | QF34: 0.0 | QG34: 0.0 | QH34: 0.0 | QI34: 0.0 | QJ34: 0.0 | QK34: 0.0 | QL34: 0.0 | QM34: 0.0 | QN34: 0.0 | QO34: 0.0 | QP34: 0.0 | QQ34: 0.0 | QR34: 0.0 | QS34: 0.0 | QT34: 0.0 | QU34: 0.0 | QV34: 0.0 | QW34: 0.0 | QX34: 0.0 | QY34: 0.0 | QZ34: 0.0 | RA34: 0.0 | RB34: 0.0 | RC34: 0.0 | RD34: 0.0 | RE34: 0.0 | RF34: 0.0 | RG34: 0.0 | RH34: 0.0 | RI34: 0.0 | RJ34: 0.0 | RK34: 0.0 | RL34: 0.0 | RM34: 0.0 | RN34: 0.0 | RO34: 0.0 | RP34: 0.0 | RQ34: 0.0 | RR34: 0.0 | RS34: 0.0 | RT34: 0.0 | RU34: 0.0 | RV34: 0.0 | RW34: 0
D35: REGIMEN ESPECIAL | QC35: 0 | QE35: 0.0 | QF35: 0.0 | QG35: 0.0 | QH35: 0.0 | QI35: 0.0 | QJ35: 0.0 | QK35: 0.0 | QL35: 0.0 | QM35: 0.0 | QN35: 0.0 | QO35: 0.0 | QP35: 0.0 | QQ35: 0.0 | QR35: 0.0 | QS35: 0.0 | QT35: 0.0 | QU35: 0.0 | QV35: 0.0 | QW35: 0.0 | QX35: 0.0 | QY35: 0.0 | QZ35: 0.0 | RA35: 0.0 | RB35: 0.0 | RC35: 0.0 | RD35: 0.0 | RE35: 0.0 | RF35: 0.0 | RG35: 0.0 | RH35: 0.0 | RI35: 0.0 | RJ35: 0.0 | RK35: 0.0 | RL35: 0.0 | RM35: 0.0 | RN35: 0.0 | RO35: 0.0 | RP35: 0.0 | RQ35: 0.0 | RR35: 0.0 | RS35: 0.0 | RT35: 0.0 | RU35: 0.0 | RV35: 0.0 | RW35: 0
D36: TOTAL REGIMEN | E36: =SUM(E32:E35) -> 0 | F36: 0 | G36: 0 | H36: 0 | I36: 0 | J36: 0 | K36: 0 | L36: 0 | M36: 0 | N36: 0 | O36: 0 | P36: 0 | Q36: 0 | R36: 0 | S36: 0 | T36: 0 | U36: 0 | V36: 0 | W36: 0 | X36: 0 | Y36: 0 | Z36: 0 | AA36: 0 | AB36: 0 | AC36: 0 | AD36: 0 | AE36: 0 | AF36: 0 | AG36: 0 | AH36: 0 | AI36: 0 | AJ36: 0 | AK36: 0 | AL36: 0 | AM36: 0 | AN36: 0 | AO36: 0 | AP36: 0 | AQ36: 0 | AR36: 0 | AS36: 0 | AT36: 0 | AU36: 0 | AV36: 0 | AW36: 0 | AX36: 0 | AY36: 0 | AZ36: 0 | BA36: 0 | BB36: 0 | BC36: 0 | BD36: 0 | BE36: 0 | BF36: 0 | BG36: 0 | BH36: 0 | BI36: 0 | BJ36: 0 | BK36: 0 | BL36: 0 | BM36: 0 | BN36: 0 | BO36: 0 | BP36: 0 | BQ36: =SUM(BQ32:BQ35) -> 0 | BR36: 0 | BS36: 0 | BT36: 0 | BU36: 0 | BV36: 0 | BW36: 0 | BX36: 0 | BY36: 0 | BZ36: 0 | CA36: 0 | CB36: 0 | CC36: 0 | CD36: 0 | CE36: 0 | CF36: 0 | CG36: 0 | CH36: 0 | CI36: 0 | CJ36: 0 | CK36: 0 | CL36: 0 | CM36: 0 | CN36: 0 | CO36: 0 | CP36: 0 | CQ36: 0 | CR36: 0 | CS36: 0 | CT36: 0 | CU36: 0 | CV36: 0 | CW36: 0 | CX36: 0 | CY36: 0 | CZ36: 0 | DA36: 0 | DB36: 0 | DC36: 0 | DD36: 0 | DE36: 0 | DF36: 0 | DG36: 0 | DH36: 0 | DI36: 0 | DJ36: 0 | DK36: 0 | DL36: 0 | DM36: 0 | DN36: 0 | DO36: 0 | DP36: 0 | DQ36: 0 | DR36: 0 | DS36: 0 | DT36: 0 | DU36: 0 | DV36: 0 | DW36: 0 | DX36: 0 | DY36: 0 | DZ36: 0 | EA36: 0 | EB36: 0 | EC36: =SUM(EC32:EC35) -> 0 | ED36: 0 | EE36: 0 | EF36: 0 | EG36: 0 | EH36: 0 | EI36: 0 | EJ36: 0 | EK36: 0 | EL36: 0 | EM36: 0 | EN36: 0 | EO36: 0 | EP36: 0 | EQ36: 0 | ER36: 0 | ES36: 0 | ET36: 0 | EU36: 0 | EV36: 0 | EW36: 0 | EX36: 0 | EY36: 0 | EZ36: 0 | FA36: 0 | FB36: 0 | FC36: 0 | FD36: 0 | FE36: 0 | FF36: 0 | FG36: 0 | FH36: 0 | FI36: 0 | FJ36: 0 | FK36: 0 | FL36: 0 | FM36: 0 | FN36: 0 | FO36: 0 | FP36: 0 | FQ36: 0 | FR36: 0 | FS36: 0 | FT36: 0 | FU36: 0 | FV36: 0 | FW36: 0 | FX36: 0 | FY36: 0 | FZ36: 0 | GA36: 0 | GB36: 0 | GC36: 0 | GD36: 0 | GE36: 0 | GF36: 0 | GG36: 0 | GH36: 0 | GI36: 0 | GJ36: 0 | GK36: 0 | GL36: 0 | GM36: 0 | GN36: 0 | GO36: =SUM(GO32:GO35) -> 0 | GP36: 0 | GQ36: 0 | GR36: 0 | GS36: 0 | GT36: 0 | GU36: 0 | GV36: 0 | GW36: 0 | GX36: 0 | GY36: 0 | GZ36: 0 | HA36: 0 | HB36: 0 | HC36: 0 | HD36: 0 | HE36: 0 | HF36: 0 | HG36: 0 | HH36: 0 | HI36: 0 | HJ36: 0 | HK36: 0 | HL36: 0 | HM36: 0 | HN36: 0 | HO36: 0 | HP36: 0 | HQ36: 0 | HR36: 0 | HS36: 0 | HT36: 0 | HU36: 0 | HV36: 0 | HW36: 0 | HX36: 0 | HY36: 0 | HZ36: 0 | IA36: 0 | IB36: 0 | IC36: 0 | ID36: 0 | IE36: 0 | IF36: 0 | IG36: 0 | IH36: 0 | II36: 0 | IJ36: 0 | IK36: 0 | IL36: 0 | IM36: 0 | IN36: 0 | IO36: 0 | IP36: 0 | IQ36: 0 | IR36: 0 | IS36: 0 | IT36: 0 | IU36: 0 | IV36: 0 | IW36: 0 | IX36: 0 | IY36: 0 | IZ36: 0 | JA36: =SUM(JA32:JA35) -> 0 | JB36: 0 | JC36: 0 | JD36: 0 | JE36: 0 | JF36: 0 | JG36: 0 | JH36: 0 | JI36: 0 | JJ36: 0 | JK36: 0 | JL36: 0 | JM36: 0 | JN36: 0 | JO36: 0 | JP36: 0 | JQ36: 0 | JR36: 0 | JS36: 0 | JT36: 0 | JU36: 0 | JV36: 0 | JW36: 0 | JX36: 0 | JY36: 0 | JZ36: 0 | KA36: 0 | KB36: 0 | KC36: 0 | KD36: 0 | KE36: 0 | KF36: 0 | KG36: 0 | KH36: 0 | KI36: 0 | KJ36: 0 | KK36: 0 | KL36: 0 | KM36: 0 | KN36: 0 | KO36: 0 | KP36: 0 | KQ36: 0 | KR36: 0 | KS36: 0 | KT36: 0 | KU36: 0 | KV36: 0 | KW36: 0 | KX36: 0 | KY36: 0 | KZ36: 0 | LA36: 0 | LB36: 0 | LC36: 0 | LD36: 0 | LE36: 0 | LF36: 0 | LG36: 0 | LH36: 0 | LI36: 0 | LJ36: 0 | LK36: 0 | LL36: 0 | LM36: =SUM(LM32:LM35) -> 0 | LN36: 0 | LO36: 0 | LP36: 0 | LQ36: 0 | LR36: 0 | LS36: 0 | LT36: 0 | LU36: 0 | LV36: 0 | LW36: 0 | LX36: 0 | LY36: 0 | LZ36: 0 | MA36: 0 | MB36: 0 | MC36: 0 | MD36: 0 | ME36: 0 | MF36: 0 | MG36: 0 | MH36: 0 | MI36: 0 | MJ36: 0 | MK36: 0 | ML36: 0 | MM36: 0 | MN36: 0 | MO36: 0 | MP36: 0 | MQ36: 0 | MR36: 0 | MS36: 0 | MT36: 0 | MU36: 0 | MV36: 0 | MW36: 0 | MX36: 0 | MY36: 0 | MZ36: 0 | NA36: 0 | NB36: 0 | NC36: 0 | ND36: 0 | NE36: 0 | NF36: 0 | NG36: 0 | NH36: 0 | NI36: 0 | NJ36: 0 | NK36: 0 | NL36: 0 | NM36: 0 | NN36: 0 | NO36: 0 | NP36: 0 | NQ36: 0 | NR36: 0 | NS36: 0 | NT36: 0 | NU36: 0 | NV36: 0 | NW36: 0 | NX36: 0 | NY36: =SUM(NY32:NY35) -> 0 | NZ36: 0 | OA36: 0 | OB36: 0 | OC36: 0 | OD36: 0 | OE36: 0 | OF36: 0 | OG36: 0 | OH36: 0 | OI36: 0 | OJ36: 0 | OK36: 0 | OL36: 0 | OM36: 0 | ON36: 0 | OO36: 0 | OP36: 0 | OQ36: 0 | OR36: 0 | OS36: 0 | OT36: 0 | OU36: 0 | OV36: 0 | OW36: 0 | OX36: 0 | OY36: 0 | OZ36: 0 | PA36: 0 | PB36: 0 | PC36: 0 | PD36: 0 | PE36: 0 | PF36: 0 | PG36: 0 | PH36: 0 | PI36: 0 | PJ36: 0 | PK36: 0 | PL36: 0 | PM36: 0 | PN36: 0 | PO36: 0 | PP36: 0 | PQ36: 0 | PR36: 0 | PS36: 0 | PT36: 0 | PU36: 0 | PV36: 0 | PW36: 0 | PX36: 0 | PY36: 0 | PZ36: 0 | QA36: 0 | QB36: 0 | QC36: 0 | QE36: =SUM(QE32:QE35) -> 0.0 | QF36: =SUM(QF32:QF35) -> 0.0 | QG36: =SUM(QG32:QG35) -> 0.0 | QH36: =SUM(QH32:QH35) -> 0.0 | QI36: =SUM(QI32:QI35) -> 0.0 | QJ36: =SUM(QJ32:QJ35) -> 0.0 | QK36: =SUM(QK32:QK35) -> 0.0 | QL36: =SUM(QL32:QL35) -> 0.0 | QM36: =SUM(QM32:QM35) -> 0.0 | QN36: =SUM(QN32:QN35) -> 0.0 | QO36: =SUM(QO32:QO35) -> 0.0 | QP36: 0.0 | QQ36: =SUM(QQ32:QQ35) -> 0.0 | QR36: =SUM(QR32:QR35) -> 0.0 | QS36: =SUM(QS32:QS35) -> 0.0 | QT36: =SUM(QT32:QT35) -> 0.0 | QU36: =SUM(QU32:QU35) -> 0.0 | QV36: =SUM(QV32:QV35) -> 0.0 | QW36: =SUM(QW32:QW35) -> 0.0 | QX36: =SUM(QX32:QX35) -> 0.0 | QY36: 0.0 | QZ36: =SUM(QZ32:QZ35) -> 0.0 | RA36: =SUM(RA32:RA35) -> 0.0 | RB36: 0.0 | RC36: =SUM(RC32:RC35) -> 0.0 | RD36: 0.0 | RE36: =SUM(RE32:RE35) -> 0.0 | RF36: =SUM(RF32:RF35) -> 0.0 | RG36: =SUM(RG32:RG35) -> 0.0 | RH36: =SUM(RH32:RH35) -> 0.0 | RI36: =SUM(RI32:RI35) -> 0.0 | RJ36: =SUM(RJ32:RJ35) -> 0.0 | RK36: 0.0 | RL36: =SUM(RL32:RL35) -> 0.0 | RM36: 0.0 | RN36: =SUM(RN32:RN35) -> 0.0 | RO36: =SUM(RO32:RO35) -> 0.0 | RP36: =SUM(RP32:RP35) -> 0.0 | RQ36: =SUM(RQ32:RQ35) -> 0.0 | RR36: =SUM(RR32:RR35) -> 0.0 | RS36: =SUM(RS32:RS35) -> 0.0 | RT36: =SUM(RT32:RT35) -> 0.0 | RU36: =SUM(RU32:RU35) -> 0.0 | RV36: =SUM(RV32:RV35) -> 0.0 | RW36: 0
D37: INDIGENA | QC37: =SUM(E37:QB37)-(PQ37+PS37+PU37+PV37+PX37) -> 0 | QE37: =SUM(E37:H37) -> 0.0 | QF37: =SUM(I37:BO37) -> 0.0 | QG37: =SUM(BP37:CW37) -> 0.0 | QH37: =SUM(CX37:DE37) -> 0.0 | QI37: =SUM(DF37:DT37) -> 0.0 | QJ37: =SUM(DU37:ET37) -> 0.0 | QK37: =SUM(EU37:FY37) -> 0.0 | QL37: =SUM(FZ37:HD37) -> 0.0 | QM37: =SUM(HE37:HF37) -> 0.0 | QN37: =SUM(HG37:HL37) -> 0.0 | QO37: =SUM(HM37:HR37) -> 0.0 | QP37: =SUM(HS37:IJ37) -> 0.0 | QQ37: =SUM(IK37:JA37) -> 0.0 | QR37: =SUM(JB37:JT37) -> 0.0 | QS37: =SUM(JU37:KD37) -> 0.0 | QT37: =SUM(KE37:KP37) -> 0.0 | QU37: =SUM(KQ37:MU37) -> 0.0 | QV37: =SUM(MV37:NG37) -> 0.0 | QW37: =SUM(NH37:NI37) -> 0.0 | QX37: =SUM(NJ37:NL37) -> 0.0 | QY37: =SUM(NM37:NO37) -> 0.0 | QZ37: =SUM(NP37) -> 0.0 | RA37: =SUM(NQ37) -> 0.0 | RB37: =SUM(NR37:NT37) -> 0.0 | RC37: =SUM(NU37) -> 0.0 | RD37: =SUM(NV37) -> 0.0 | RE37: =SUM(NW37:OB37) -> 0.0 | RF37: =SUM(OC37:PE37) -> 0.0 | RG37: =SUM(PF37:PG37) -> 0.0 | RH37: =SUM(PH37:PI37) -> 0.0 | RI37: =SUM(PJ37:PM37) -> 0.0 | RJ37: =SUM(PN37:PP37) -> 0.0 | RK37: =SUM(PQ37) -> 0.0 | RL37: =SUM(PR37) -> 0.0 | RM37: =SUM(PS37) -> 0.0 | RN37: =SUM(PT37:PV37) -> 0.0 | RO37: =SUM(PV37) -> 0.0 | RP37: =SUM(PV37) -> 0.0 | RQ37: =SUM(PW37) -> 0.0 | RR37: =SUM(PX37) -> 0.0 | RS37: =SUM(PY37) -> 0.0 | RT37: =SUM(PZ37) -> 0.0 | RU37: =SUM(QA37) -> 0.0 | RV37: =SUM(QB37) -> 0.0 | RW37: =SUM(QE37:RU37)-SUM(RI37:RM37)-SUM(RQ37:RT37) -> 0
D38: ROM (GITANO) | QC38: 0 | QE38: 0.0 | QF38: 0.0 | QG38: 0.0 | QH38: 0.0 | QI38: 0.0 | QJ38: 0.0 | QK38: 0.0 | QL38: 0.0 | QM38: 0.0 | QN38: 0.0 | QO38: 0.0 | QP38: 0.0 | QQ38: 0.0 | QR38: 0.0 | QS38: 0.0 | QT38: 0.0 | QU38: 0.0 | QV38: 0.0 | QW38: 0.0 | QX38: 0.0 | QY38: 0.0 | QZ38: 0.0 | RA38: 0.0 | RB38: 0.0 | RC38: 0.0 | RD38: 0.0 | RE38: 0.0 | RF38: 0.0 | RG38: 0.0 | RH38: 0.0 | RI38: 0.0 | RJ38: 0.0 | RK38: 0.0 | RL38: 0.0 | RM38: 0.0 | RN38: 0.0 | RO38: 0.0 | RP38: 0.0 | RQ38: 0.0 | RR38: 0.0 | RS38: 0.0 | RT38: 0.0 | RU38: 0.0 | RV38: 0.0 | RW38: 0
D39: RAIZAL | QC39: 0 | QE39: 0.0 | QF39: 0.0 | QG39: 0.0 | QH39: 0.0 | QI39: 0.0 | QJ39: 0.0 | QK39: 0.0 | QL39: 0.0 | QM39: 0.0 | QN39: 0.0 | QO39: 0.0 | QP39: 0.0 | QQ39: 0.0 | QR39: 0.0 | QS39: 0.0 | QT39: 0.0 | QU39: 0.0 | QV39: 0.0 | QW39: 0.0 | QX39: 0.0 | QY39: 0.0 | QZ39: 0.0 | RA39: 0.0 | RB39: 0.0 | RC39: 0.0 | RD39: 0.0 | RE39: 0.0 | RF39: 0.0 | RG39: 0.0 | RH39: 0.0 | RI39: 0.0 | RJ39: 0.0 | RK39: 0.0 | RL39: 0.0 | RM39: 0.0 | RN39: 0.0 | RO39: 0.0 | RP39: 0.0 | RQ39: 0.0 | RR39: 0.0 | RS39: 0.0 | RT39: 0.0 | RU39: 0.0 | RV39: 0.0 | RW39: 0
D40: PALENQUERO | QC40: 0 | QE40: 0.0 | QF40: 0.0 | QG40: 0.0 | QH40: 0.0 | QI40: 0.0 | QJ40: 0.0 | QK40: 0.0 | QL40: 0.0 | QM40: 0.0 | QN40: 0.0 | QO40: 0.0 | QP40: 0.0 | QQ40: 0.0 | QR40: 0.0 | QS40: 0.0 | QT40: 0.0 | QU40: 0.0 | QV40: 0.0 | QW40: 0.0 | QX40: 0.0 | QY40: 0.0 | QZ40: 0.0 | RA40: 0.0 | RB40: 0.0 | RC40: 0.0 | RD40: 0.0 | RE40: 0.0 | RF40: 0.0 | RG40: 0.0 | RH40: 0.0 | RI40: 0.0 | RJ40: 0.0 | RK40: 0.0 | RL40: 0.0 | RM40: 0.0 | RN40: 0.0 | RO40: 0.0 | RP40: 0.0 | RQ40: 0.0 | RR40: 0.0 | RS40: 0.0 | RT40: 0.0 | RU40: 0.0 | RV40: 0.0 | RW40: 0
D41: NEGRO(A), MULATO (A), AFROCOLOMBIANO (A) | QC41: 0 | QE41: 0.0 | QF41: 0.0 | QG41: 0.0 | QH41: 0.0 | QI41: 0.0 | QJ41: 0.0 | QK41: 0.0 | QL41: 0.0 | QM41: 0.0 | QN41: 0.0 | QO41: 0.0 | QP41: 0.0 | QQ41: 0.0 | QR41: 0.0 | QS41: 0.0 | QT41: 0.0 | QU41: 0.0 | QV41: 0.0 | QW41: 0.0 | QX41: 0.0 | QY41: 0.0 | QZ41: 0.0 | RA41: 0.0 | RB41: 0.0 | RC41: 0.0 | RD41: 0.0 | RE41: 0.0 | RF41: 0.0 | RG41: 0.0 | RH41: 0.0 | RI41: 0.0 | RJ41: 0.0 | RK41: 0.0 | RL41: 0.0 | RM41: 0.0 | RN41: 0.0 | RO41: 0.0 | RP41: 0.0 | RQ41: 0.0 | RR41: 0.0 | RS41: 0.0 | RT41: 0.0 | RU41: 0.0 | RV41: 0.0 | RW41: 0
D42: SIN PERTENENCIA ETNICA | QC42: 0 | QE42: 0.0 | QF42: 0.0 | QG42: 0.0 | QH42: 0.0 | QI42: 0.0 | QJ42: 0.0 | QK42: 0.0 | QL42: 0.0 | QM42: 0.0 | QN42: 0.0 | QO42: 0.0 | QP42: 0.0 | QQ42: 0.0 | QR42: 0.0 | QS42: 0.0 | QT42: 0.0 | QU42: 0.0 | QV42: 0.0 | QW42: 0.0 | QX42: 0.0 | QY42: 0.0 | QZ42: 0.0 | RA42: 0.0 | RB42: 0.0 | RC42: 0.0 | RD42: 0.0 | RE42: 0.0 | RF42: 0.0 | RG42: 0.0 | RH42: 0.0 | RI42: 0.0 | RJ42: 0.0 | RK42: 0.0 | RL42: 0.0 | RM42: 0.0 | RN42: 0.0 | RO42: 0.0 | RP42: 0.0 | RQ42: 0.0 | RR42: 0.0 | RS42: 0.0 | RT42: 0.0 | RU42: 0.0 | RV42: 0.0 | RW42: 0
D43: TOTAL ETNICOS | E43: =SUM(E37:E42) -> 0 | F43: 0 | G43: 0 | H43: 0 | I43: 0 | J43: 0 | K43: 0 | L43: 0 | M43: 0 | N43: 0 | O43: 0 | P43: 0 | Q43: 0 | R43: 0 | S43: 0 | T43: 0 | U43: 0 | V43: 0 | W43: 0 | X43: 0 | Y43: 0 | Z43: 0 | AA43: 0 | AB43: 0 | AC43: 0 | AD43: 0 | AE43: 0 | AF43: 0 | AG43: 0 | AH43: 0 | AI43: 0 | AJ43: 0 | AK43: 0 | AL43: 0 | AM43: 0 | AN43: 0 | AO43: 0 | AP43: 0 | AQ43: 0 | AR43: 0 | AS43: 0 | AT43: 0 | AU43: 0 | AV43: 0 | AW43: 0 | AX43: 0 | AY43: 0 | AZ43: 0 | BA43: 0 | BB43: 0 | BC43: 0 | BD43: 0 | BE43: 0 | BF43: 0 | BG43: 0 | BH43: 0 | BI43: 0 | BJ43: 0 | BK43: 0 | BL43: 0 | BM43: 0 | BN43: 0 | BO43: 0 | BP43: 0 | BQ43: =SUM(BQ37:BQ42) -> 0 | BR43: 0 | BS43: 0 | BT43: 0 | BU43: 0 | BV43: 0 | BW43: 0 | BX43: 0 | BY43: 0 | BZ43: 0 | CA43: 0 | CB43: 0 | CC43: 0 | CD43: 0 | CE43: 0 | CF43: 0 | CG43: 0 | CH43: 0 | CI43: 0 | CJ43: 0 | CK43: 0 | CL43: 0 | CM43: 0 | CN43: 0 | CO43: 0 | CP43: 0 | CQ43: 0 | CR43: 0 | CS43: 0 | CT43: 0 | CU43: 0 | CV43: 0 | CW43: 0 | CX43: 0 | CY43: 0 | CZ43: 0 | DA43: 0 | DB43: 0 | DC43: 0 | DD43: 0 | DE43: 0 | DF43: 0 | DG43: 0 | DH43: 0 | DI43: 0 | DJ43: 0 | DK43: 0 | DL43: 0 | DM43: 0 | DN43: 0 | DO43: 0 | DP43: 0 | DQ43: 0 | DR43: 0 | DS43: 0 | DT43: 0 | DU43: 0 | DV43: 0 | DW43: 0 | DX43: 0 | DY43: 0 | DZ43: 0 | EA43: 0 | EB43: 0 | EC43: =SUM(EC37:EC42) -> 0 | ED43: 0 | EE43: 0 | EF43: 0 | EG43: 0 | EH43: 0 | EI43: 0 | EJ43: 0 | EK43: 0 | EL43: 0 | EM43: 0 | EN43: 0 | EO43: 0 | EP43: 0 | EQ43: 0 | ER43: 0 | ES43: 0 | ET43: 0 | EU43: 0 | EV43: 0 | EW43: 0 | EX43: 0 | EY43: 0 | EZ43: 0 | FA43: 0 | FB43: 0 | FC43: 0 | FD43: 0 | FE43: 0 | FF43: 0 | FG43: 0 | FH43: 0 | FI43: 0 | FJ43: 0 | FK43: 0 | FL43: 0 | FM43: 0 | FN43: 0 | FO43: 0 | FP43: 0 | FQ43: 0 | FR43: 0 | FS43: 0 | FT43: 0 | FU43: 0 | FV43: 0 | FW43: 0 | FX43: 0 | FY43: 0 | FZ43: 0 | GA43: 0 | GB43: 0 | GC43: 0 | GD43: 0 | GE43: 0 | GF43: 0 | GG43: 0 | GH43: 0 | GI43: 0 | GJ43: 0 | GK43: 0 | GL43: 0 | GM43: 0 | GN43: 0 | GO43: =SUM(GO37:GO42) -> 0 | GP43: 0 | GQ43: 0 | GR43: 0 | GS43: 0 | GT43: 0 | GU43: 0 | GV43: 0 | GW43: 0 | GX43: 0 | GY43: 0 | GZ43: 0 | HA43: 0 | HB43: 0 | HC43: 0 | HD43: 0 | HE43: 0 | HF43: 0 | HG43: 0 | HH43: 0 | HI43: 0 | HJ43: 0 | HK43: 0 | HL43: 0 | HM43: 0 | HN43: 0 | HO43: 0 | HP43: 0 | HQ43: 0 | HR43: 0 | HS43: 0 | HT43: 0 | HU43: 0 | HV43: 0 | HW43: 0 | HX43: 0 | HY43: 0 | HZ43: 0 | IA43: 0 | IB43: 0 | IC43: 0 | ID43: 0 | IE43: 0 | IF43: 0 | IG43: 0 | IH43: 0 | II43: 0 | IJ43: 0 | IK43: 0 | IL43: 0 | IM43: 0 | IN43: 0 | IO43: 0 | IP43: 0 | IQ43: 0 | IR43: 0 | IS43: 0 | IT43: 0 | IU43: 0 | IV43: 0 | IW43: 0 | IX43: 0 | IY43: 0 | IZ43: 0 | JA43: =SUM(JA37:JA42) -> 0 | JB43: 0 | JC43: 0 | JD43: 0 | JE43: 0 | JF43: 0 | JG43: 0 | JH43: 0 | JI43: 0 | JJ43: 0 | JK43: 0 | JL43: 0 | JM43: 0 | JN43: 0 | JO43: 0 | JP43: 0 | JQ43: 0 | JR43: 0 | JS43: 0 | JT43: 0 | JU43: 0 | JV43: 0 | JW43: 0 | JX43: 0 | JY43: 0 | JZ43: 0 | KA43: 0 | KB43: 0 | KC43: 0 | KD43: 0 | KE43: 0 | KF43: 0 | KG43: 0 | KH43: 0 | KI43: 0 | KJ43: 0 | KK43: 0 | KL43: 0 | KM43: 0 | KN43: 0 | KO43: 0 | KP43: 0 | KQ43: 0 | KR43: 0 | KS43: 0 | KT43: 0 | KU43: 0 | KV43: 0 | KW43: 0 | KX43: 0 | KY43: 0 | KZ43: 0 | LA43: 0 | LB43: 0 | LC43: 0 | LD43: 0 | LE43: 0 | LF43: 0 | LG43: 0 | LH43: 0 | LI43: 0 | LJ43: 0 | LK43: 0 | LL43: 0 | LM43: =SUM(LM37:LM42) -> 0 | LN43: 0 | LO43: 0 | LP43: 0 | LQ43: 0 | LR43: 0 | LS43: 0 | LT43: 0 | LU43: 0 | LV43: 0 | LW43: 0 | LX43: 0 | LY43: 0 | LZ43: 0 | MA43: 0 | MB43: 0 | MC43: 0 | MD43: 0 | ME43: 0 | MF43: 0 | MG43: 0 | MH43: 0 | MI43: 0 | MJ43: 0 | MK43: 0 | ML43: 0 | MM43: 0 | MN43: 0 | MO43: 0 | MP43: 0 | MQ43: 0 | MR43: 0 | MS43: 0 | MT43: 0 | MU43: 0 | MV43: 0 | MW43: 0 | MX43: 0 | MY43: 0 | MZ43: 0 | NA43: 0 | NB43: 0 | NC43: 0 | ND43: 0 | NE43: 0 | NF43: 0 | NG43: 0 | NH43: 0 | NI43: 0 | NJ43: 0 | NK43: 0 | NL43: 0 | NM43: 0 | NN43: 0 | NO43: 0 | NP43: 0 | NQ43: 0 | NR43: 0 | NS43: 0 | NT43: 0 | NU43: 0 | NV43: 0 | NW43: 0 | NX43: 0 | NY43: =SUM(NY37:NY42) -> 0 | NZ43: 0 | OA43: 0 | OB43: 0 | OC43: 0 | OD43: 0 | OE43: 0 | OF43: 0 | OG43: 0 | OH43: 0 | OI43: 0 | OJ43: 0 | OK43: 0 | OL43: 0 | OM43: 0 | ON43: 0 | OO43: 0 | OP43: 0 | OQ43: 0 | OR43: 0 | OS43: 0 | OT43: 0 | OU43: 0 | OV43: 0 | OW43: 0 | OX43: 0 | OY43: 0 | OZ43: 0 | PA43: 0 | PB43: 0 | PC43: 0 | PD43: 0 | PE43: 0 | PF43: 0 | PG43: 0 | PH43: 0 | PI43: 0 | PJ43: 0 | PK43: 0 | PL43: 0 | PM43: 0 | PN43: 0 | PO43: 0 | PP43: 0 | PQ43: 0 | PR43: 0 | PS43: 0 | PT43: 0 | PU43: 0 | PV43: 0 | PW43: 0 | PX43: 0 | PY43: 0 | PZ43: 0 | QA43: 0 | QB43: 0 | QC43: 0 | QE43: =SUM(QE37:QE42) -> 0.0 | QF43: =SUM(QF37:QF42) -> 0.0 | QG43: =SUM(QG37:QG42) -> 0.0 | QH43: =SUM(QH37:QH42) -> 0.0 | QI43: =SUM(QI37:QI42) -> 0.0 | QJ43: =SUM(QJ37:QJ42) -> 0.0 | QK43: =SUM(QK37:QK42) -> 0.0 | QL43: =SUM(QL37:QL42) -> 0.0 | QM43: =SUM(QM37:QM42) -> 0.0 | QN43: =SUM(QN37:QN42) -> 0.0 | QO43: =SUM(QO37:QO42) -> 0.0 | QP43: 0.0 | QQ43: =SUM(QQ37:QQ42) -> 0.0 | QR43: =SUM(QR37:QR42) -> 0.0 | QS43: =SUM(QS37:QS42) -> 0.0 | QT43: =SUM(QT37:QT42) -> 0.0 | QU43: =SUM(QU37:QU42) -> 0.0 | QV43: =SUM(QV37:QV42) -> 0.0 | QW43: =SUM(QW37:QW42) -> 0.0 | QX43: =SUM(QX37:QX42) -> 0.0 | QY43: 0.0 | QZ43: =SUM(QZ37:QZ42) -> 0.0 | RA43: =SUM(RA37:RA42) -> 0.0 | RB43: 0.0 | RC43: =SUM(RC37:RC42) -> 0.0 | RD43: 0.0 | RE43: =SUM(RE37:RE42) -> 0.0 | RF43: =SUM(RF37:RF42) -> 0.0 | RG43: =SUM(RG37:RG42) -> 0.0 | RH43: =SUM(RH37:RH42) -> 0.0 | RI43: =SUM(RI37:RI42) -> 0.0 | RJ43: =SUM(RJ37:RJ42) -> 0.0 | RK43: 0.0 | RL43: =SUM(RL37:RL42) -> 0.0 | RM43: 0.0 | RN43: =SUM(RN37:RN42) -> 0.0 | RO43: =SUM(RO37:RO42) -> 0.0 | RP43: =SUM(RP37:RP42) -> 0.0 | RQ43: =SUM(RQ37:RQ42) -> 0.0 | RR43: =SUM(RR37:RR42) -> 0.0 | RS43: =SUM(RS37:RS42) -> 0.0 | RT43: =SUM(RT37:RT42) -> 0.0 | RU43: =SUM(RU37:RU42) -> 0.0 | RV43: =SUM(RV37:RV42) -> 0.0 | RW43: 0
D44: EN SITUACION DE DESPLAZAMIENTO | QC44: =SUM(E44:QB44)-(PQ44+PS44+PU44+PV44+PX44) -> 0 | QE44: =SUM(E44:H44) -> 0.0 | QF44: =SUM(I44:BO44) -> 0.0 | QG44: =SUM(BP44:CW44) -> 0.0 | QH44: =SUM(CX44:DE44) -> 0.0 | QI44: =SUM(DF44:DT44) -> 0.0 | QJ44: =SUM(DU44:ET44) -> 0.0 | QK44: =SUM(EU44:FY44) -> 0.0 | QL44: =SUM(FZ44:HD44) -> 0.0 | QM44: =SUM(HE44:HF44) -> 0.0 | QN44: =SUM(HG44:HL44) -> 0.0 | QO44: =SUM(HM44:HR44) -> 0.0 | QP44: =SUM(HS44:IJ44) -> 0.0 | QQ44: =SUM(IK44:JA44) -> 0.0 | QR44: =SUM(JB44:JT44) -> 0.0 | QS44: =SUM(JU44:KD44) -> 0.0 | QT44: =SUM(KE44:KP44) -> 0.0 | QU44: =SUM(KQ44:MU44) -> 0.0 | QV44: =SUM(MV44:NG44) -> 0.0 | QW44: =SUM(NH44:NI44) -> 0.0 | QX44: =SUM(NJ44:NL44) -> 0.0 | QY44: =SUM(NM44:NO44) -> 0.0 | QZ44: =SUM(NP44) -> 0.0 | RA44: =SUM(NQ44) -> 0.0 | RB44: =SUM(NR44:NT44) -> 0.0 | RC44: =SUM(NU44) -> 0.0 | RD44: =SUM(NV44) -> 0.0 | RE44: =SUM(NW44:OB44) -> 0.0 | RF44: =SUM(OC44:PE44) -> 0.0 | RG44: =SUM(PF44:PG44) -> 0.0 | RH44: =SUM(PH44:PI44) -> 0.0 | RI44: =SUM(PJ44:PM44) -> 0.0 | RJ44: =SUM(PN44:PP44) -> 0.0 | RK44: =SUM(PQ44) -> 0.0 | RL44: =SUM(PR44) -> 0.0 | RM44: =SUM(PS44) -> 0.0 | RN44: =SUM(PT44:PV44) -> 0.0 | RO44: =SUM(PV44) -> 0.0 | RP44: =SUM(PV44) -> 0.0 | RQ44: =SUM(PW44) -> 0.0 | RR44: =SUM(PX44) -> 0.0 | RS44: =SUM(PY44) -> 0.0 | RT44: =SUM(PZ44) -> 0.0 | RU44: =SUM(QA44) -> 0.0 | RV44: =SUM(QB44) -> 0.0 | RW44: =SUM(QE44:RU44)-SUM(RI44:RM44)-SUM(RQ44:RT44) -> 0
D45: EN CONDICION DE DISCAPACIDAD | QC45: 0 | QE45: 0.0 | QF45: 0.0 | QG45: 0.0 | QH45: 0.0 | QI45: 0.0 | QJ45: 0.0 | QK45: 0.0 | QL45: 0.0 | QM45: 0.0 | QN45: 0.0 | QO45: 0.0 | QP45: 0.0 | QQ45: 0.0 | QR45: 0.0 | QS45: 0.0 | QT45: 0.0 | QU45: 0.0 | QV45: 0.0 | QW45: 0.0 | QX45: 0.0 | QY45: 0.0 | QZ45: 0.0 | RA45: 0.0 | RB45: 0.0 | RC45: 0.0 | RD45: 0.0 | RE45: 0.0 | RF45: 0.0 | RG45: 0.0 | RH45: 0.0 | RI45: 0.0 | RJ45: 0.0 | RK45: 0.0 | RL45: 0.0 | RM45: 0.0 | RN45: 0.0 | RO45: 0.0 | RP45: 0.0 | RQ45: 0.0 | RR45: 0.0 | RS45: 0.0 | RT45: 0.0 | RU45: 0.0 | RV45: 0.0 | RW45: 0
D46: VICTIMAS DEL CONFLICTO ARMADO | QC46: 0 | QE46: 0.0 | QF46: 0.0 | QG46: 0.0 | QH46: 0.0 | QI46: 0.0 | QJ46: 0.0 | QK46: 0.0 | QL46: 0.0 | QM46: 0.0 | QN46: 0.0 | QO46: 0.0 | QP46: 0.0 | QQ46: 0.0 | QR46: 0.0 | QS46: 0.0 | QT46: 0.0 | QU46: 0.0 | QV46: 0.0 | QW46: 0.0 | QX46: 0.0 | QY46: 0.0 | QZ46: 0.0 | RA46: 0.0 | RB46: 0.0 | RC46: 0.0 | RD46: 0.0 | RE46: 0.0 | RF46: 0.0 | RG46: 0.0 | RH46: 0.0 | RI46: 0.0 | RJ46: 0.0 | RK46: 0.0 | RL46: 0.0 | RM46: 0.0 | RN46: 0.0 | RO46: 0.0 | RP46: 0.0 | RQ46: 0.0 | RR46: 0.0 | RS46: 0.0 | RT46: 0.0 | RU46: 0.0 | RV46: 0.0 | RW46: 0
D47: ZONAS VEREDALES | QC47: 0 | QD47: =CONCATENATE($G$2,$B$28) -> 11 | QE47: =SUM(E47:H47) -> 0.0 | QF47: =SUM(I47:BN47) -> 0.0 | QG47: =SUM(BP47:CW47) -> 0.0 | QH47: =SUM(CX47:DE47) -> 0.0 | QI47: =SUM(DF47:DT47) -> 0.0 | QJ47: =SUM(DU47:ET47) -> 0.0 | QK47: =SUM(EU47:FY47) -> 0.0 | QL47: =SUM(FZ47:HD47) -> 0.0 | QM47: =SUM(HE47:HF47) -> 0.0 | QN47: =SUM(HG47:HL47) -> 0.0 | QO47: =SUM(HR47:II47) -> 0.0 | QP47: 0.0 | QQ47: =SUM(IK47:JA47) -> 0.0 | QR47: =SUM(JB47:JT47) -> 0.0 | QS47: =SUM(JU47:KD47) -> 0.0 | QT47: =SUM(KE47:KP47) -> 0.0 | QU47: =SUM(KQ47:MU47) -> 0.0 | QV47: =SUM(MV47:NG47) -> 0.0 | QW47: =SUM(NH47:NL47) -> 0.0 | QX47: =SUM(NM47:NO47) -> 0.0 | QY47: 0.0 | QZ47: =SUM(NP47) -> 0.0 | RA47: 0.0 | RB47: =SUM(NS47:NT47) -> 0.0 | RC47: 0.0 | RD47: 0.0 | RE47: =SUM(NZ47:OB47) -> 0.0 | RF47: =SUM(OC47:PE47) -> 0.0 | RG47: =SUM(PF47:PI47) -> 0.0 | RH47: =SUM(PJ47:PP47) -> 0.0 | RI47: =PQ47 -> 0.0 | RJ47: =PR47 -> 0.0 | RK47: =SUM(PQ47) -> 0.0 | RL47: 0.0 | RM47: 0.0 | RN47: 0.0 | RO47: 0.0 | RP47: 0.0 | RQ47: 0.0 | RR47: 0.0 | RS47: 0.0 | RT47: 0.0 | RU47: 0.0 | RV47: 0.0 | RW47: =SUM(QE47:RU47)-SUM(RI47:RM47)-SUM(RQ47:RT47) -> 0
D48: FEMENINO | QC48: =SUM(E48:QB48)-(PQ48+PS48+PU48+PV48+PX48) -> 0 | QE48: =SUM(E48:H48) -> 0.0 | QF48: =SUM(I48:BO48) -> 0.0 | QG48: =SUM(BP48:CW48) -> 0.0 | QH48: =SUM(CX48:DE48) -> 0.0 | QI48: =SUM(DF48:DT48) -> 0.0 | QJ48: =SUM(DU48:ET48) -> 0.0 | QK48: =SUM(EU48:FY48) -> 0.0 | QL48: =SUM(FZ48:HD48) -> 0.0 | QM48: =SUM(HE48:HF48) -> 0.0 | QN48: =SUM(HG48:HL48) -> 0.0 | QO48: =SUM(HM48:HR48) -> 0.0 | QP48: =SUM(HS48:IJ48) -> 0.0 | QQ48: =SUM(IK48:JA48) -> 0.0 | QR48: =SUM(JB48:JT48) -> 0.0 | QS48: =SUM(JU48:KD48) -> 0.0 | QT48: =SUM(KE48:KP48) -> 0.0 | QU48: =SUM(KQ48:MU48) -> 0.0 | QV48: =SUM(MV48:NG48) -> 0.0 | QW48: =SUM(NH48:NI48) -> 0.0 | QX48: =SUM(NJ48:NL48) -> 0.0 | QY48: =SUM(NM48:NO48) -> 0.0 | QZ48: =SUM(NP48) -> 0.0 | RA48: 0.0 | RB48: =SUM(NR48:NT48) -> 0.0 | RC48: =SUM(NU48) -> 0.0 | RD48: =SUM(NV48) -> 0.0 | RE48: =SUM(NW48:OB48) -> 0.0 | RF48: =SUM(OC48:PE48) -> 0.0 | RG48: =SUM(PF48:PG48) -> 0.0 | RH48: =SUM(PH48:PI48) -> 0.0 | RI48: =SUM(PJ48:PM48) -> 0.0 | RJ48: =SUM(PN48:PP48) -> 0.0 | RK48: =SUM(PQ48) -> 0.0 | RL48: =SUM(PR48) -> 0.0 | RM48: =SUM(PS48) -> 0.0 | RN48: =SUM(PT48:PV48) -> 0.0 | RO48: =SUM(PV48) -> 0.0 | RP48: =SUM(PV48) -> 0.0 | RQ48: =SUM(PW48) -> 0.0 | RR48: =SUM(PX48) -> 0.0 | RS48: =SUM(PY48) -> 0.0 | RT48: =SUM(PZ48) -> 0.0 | RU48: =SUM(QA48) -> 0.0 | RV48: =SUM(QB48) -> 0.0 | RW48: =SUM(QE48:RU48)-SUM(RI48:RM48)-SUM(RQ48:RT48) -> 0
D49: MASCULINO | QC49: =SUM(E49:QB49)-(PQ49+PS49+PU49+PV49+PX49) -> 0 | QE49: 0.0 | QF49: 0.0 | QG49: 0.0 | QH49: 0.0 | QI49: 0.0 | QJ49: 0.0 | QK49: 0.0 | QL49: 0.0 | QM49: 0.0 | QN49: 0.0 | QO49: 0.0 | QP49: 0.0 | QQ49: 0.0 | QR49: 0.0 | QS49: 0.0 | QT49: 0.0 | QU49: 0.0 | QV49: 0.0 | QW49: 0.0 | QX49: 0.0 | QY49: =SUM(NM49:NO49) -> 0.0 | QZ49: 0.0 | RA49: 0.0 | RB49: 0.0 | RC49: 0.0 | RD49: 0.0 | RE49: 0.0 | RF49: 0.0 | RG49: 0.0 | RH49: 0.0 | RI49: 0.0 | RJ49: 0.0 | RK49: 0.0 | RL49: 0.0 | RM49: 0.0 | RN49: 0.0 | RO49: 0.0 | RP49: 0.0 | RQ49: 0.0 | RR49: 0.0 | RS49: 0.0 | RT49: 0.0 | RU49: 0.0 | RV49: 0.0 | RW49: 0
D50: OTRO | QC50: 0 | QE50: 0.0 | QF50: 0.0 | QG50: 0.0 | QH50: 0.0 | QI50: 0.0 | QJ50: 0.0 | QK50: 0.0 | QL50: 0.0 | QM50: 0.0 | QN50: 0.0 | QO50: 0.0 | QP50: 0.0 | QQ50: 0.0 | QR50: 0.0 | QS50: 0.0 | QT50: 0.0 | QU50: 0.0 | QV50: 0.0 | QW50: 0.0 | QX50: 0.0 | QY50: 0.0 | QZ50: 0.0 | RA50: 0.0 | RB50: 0.0 | RC50: 0.0 | RD50: 0.0 | RE50: 0.0 | RF50: 0.0 | RG50: 0.0 | RH50: 0.0 | RI50: 0.0 | RJ50: 0.0 | RK50: 0.0 | RL50: 0.0 | RM50: 0.0 | RN50: 0.0 | RO50: 0.0 | RP50: 0.0 | RQ50: 0.0 | RR50: 0.0 | RS50: 0.0 | RT50: 0.0 | RU50: 0.0 | RV50: 0.0 | RW50: 0
D51: TOTAL GENERO | E51: =SUM(E48:E50) -> 0 | F51: 0 | G51: 0 | H51: 0 | I51: 0 | J51: 0 | K51: 0 | L51: 0 | M51: 0 | N51: 0 | O51: 0 | P51: 0 | Q51: 0 | R51: 0 | S51: 0 | T51: 0 | U51: 0 | V51: 0 | W51: 0 | X51: 0 | Y51: 0 | Z51: 0 | AA51: 0 | AB51: 0 | AC51: 0 | AD51: 0 | AE51: 0 | AF51: 0 | AG51: 0 | AH51: 0 | AI51: 0 | AJ51: 0 | AK51: 0 | AL51: 0 | AM51: 0 | AN51: 0 | AO51: 0 | AP51: 0 | AQ51: 0 | AR51: 0 | AS51: 0 | AT51: 0 | AU51: 0 | AV51: 0 | AW51: 0 | AX51: 0 | AY51: 0 | AZ51: 0 | BA51: 0 | BB51: 0 | BC51: 0 | BD51: 0 | BE51: 0 | BF51: 0 | BG51: 0 | BH51: 0 | BI51: 0 | BJ51: 0 | BK51: 0 | BL51: 0 | BM51: 0 | BN51: 0 | BO51: 0 | BP51: 0 | BQ51: =SUM(BQ48:BQ50) -> 0 | BR51: 0 | BS51: 0 | BT51: 0 | BU51: 0 | BV51: 0 | BW51: 0 | BX51: 0 | BY51: 0 | BZ51: 0 | CA51: 0 | CB51: 0 | CC51: 0 | CD51: 0 | CE51: 0 | CF51: 0 | CG51: 0 | CH51: 0 | CI51: 0 | CJ51: 0 | CK51: 0 | CL51: 0 | CM51: 0 | CN51: 0 | CO51: 0 | CP51: 0 | CQ51: 0 | CR51: 0 | CS51: 0 | CT51: 0 | CU51: 0 | CV51: 0 | CW51: 0 | CX51: 0 | CY51: 0 | CZ51: 0 | DA51: 0 | DB51: 0 | DC51: 0 | DD51: 0 | DE51: 0 | DF51: 0 | DG51: 0 | DH51: 0 | DI51: 0 | DJ51: 0 | DK51: 0 | DL51: 0 | DM51: 0 | DN51: 0 | DO51: 0 | DP51: 0 | DQ51: 0 | DR51: 0 | DS51: 0 | DT51: 0 | DU51: 0 | DV51: 0 | DW51: 0 | DX51: 0 | DY51: 0 | DZ51: 0 | EA51: 0 | EB51: 0 | EC51: =SUM(EC48:EC50) -> 0 | ED51: 0 | EE51: 0 | EF51: 0 | EG51: 0 | EH51: 0 | EI51: 0 | EJ51: 0 | EK51: 0 | EL51: 0 | EM51: 0 | EN51: 0 | EO51: 0 | EP51: 0 | EQ51: 0 | ER51: 0 | ES51: 0 | ET51: 0 | EU51: 0 | EV51: 0 | EW51: 0 | EX51: 0 | EY51: 0 | EZ51: 0 | FA51: 0 | FB51: 0 | FC51: 0 | FD51: 0 | FE51: 0 | FF51: 0 | FG51: 0 | FH51: 0 | FI51: 0 | FJ51: 0 | FK51: 0 | FL51: 0 | FM51: 0 | FN51: 0 | FO51: 0 | FP51: 0 | FQ51: 0 | FR51: 0 | FS51: 0 | FT51: 0 | FU51: 0 | FV51: 0 | FW51: 0 | FX51: 0 | FY51: 0 | FZ51: 0 | GA51: 0 | GB51: 0 | GC51: 0 | GD51: 0 | GE51: 0 | GF51: 0 | GG51: 0 | GH51: 0 | GI51: 0 | GJ51: 0 | GK51: 0 | GL51: 0 | GM51: 0 | GN51: 0 | GO51: =SUM(GO48:GO50) -> 0 | GP51: 0 | GQ51: 0 | GR51: 0 | GS51: 0 | GT51: 0 | GU51: 0 | GV51: 0 | GW51: 0 | GX51: 0 | GY51: 0 | GZ51: 0 | HA51: 0 | HB51: 0 | HC51: 0 | HD51: 0 | HE51: 0 | HF51: 0 | HG51: 0 | HH51: 0 | HI51: 0 | HJ51: 0 | HK51: 0 | HL51: 0 | HM51: 0 | HN51: 0 | HO51: 0 | HP51: 0 | HQ51: 0 | HR51: 0 | HS51: 0 | HT51: 0 | HU51: 0 | HV51: 0 | HW51: 0 | HX51: 0 | HY51: 0 | HZ51: 0 | IA51: 0 | IB51: 0 | IC51: 0 | ID51: 0 | IE51: 0 | IF51: 0 | IG51: 0 | IH51: 0 | II51: 0 | IJ51: 0 | IK51: 0 | IL51: 0 | IM51: 0 | IN51: 0 | IO51: 0 | IP51: 0 | IQ51: 0 | IR51: 0 | IS51: 0 | IT51: 0 | IU51: 0 | IV51: 0 | IW51: 0 | IX51: 0 | IY51: 0 | IZ51: 0 | JA51: =SUM(JA48:JA50) -> 0 | JB51: 0 | JC51: 0 | JD51: 0 | JE51: 0 | JF51: 0 | JG51: 0 | JH51: 0 | JI51: 0 | JJ51: 0 | JK51: 0 | JL51: 0 | JM51: 0 | JN51: 0 | JO51: 0 | JP51: 0 | JQ51: 0 | JR51: 0 | JS51: 0 | JT51: 0 | JU51: 0 | JV51: 0 | JW51: 0 | JX51: 0 | JY51: 0 | JZ51: 0 | KA51: 0 | KB51: 0 | KC51: 0 | KD51: 0 | KE51: 0 | KF51: 0 | KG51: 0 | KH51: 0 | KI51: 0 | KJ51: 0 | KK51: 0 | KL51: 0 | KM51: 0 | KN51: 0 | KO51: 0 | KP51: 0 | KQ51: 0 | KR51: 0 | KS51: 0 | KT51: 0 | KU51: 0 | KV51: 0 | KW51: 0 | KX51: 0 | KY51: 0 | KZ51: 0 | LA51: 0 | LB51: 0 | LC51: 0 | LD51: 0 | LE51: 0 | LF51: 0 | LG51: 0 | LH51: 0 | LI51: 0 | LJ51: 0 | LK51: 0 | LL51: 0 | LM51: =SUM(LM48:LM50) -> 0 | LN51: 0 | LO51: 0 | LP51: 0 | LQ51: 0 | LR51: 0 | LS51: 0 | LT51: 0 | LU51: 0 | LV51: 0 | LW51: 0 | LX51: 0 | LY51: 0 | LZ51: 0 | MA51: 0 | MB51: 0 | MC51: 0 | MD51: 0 | ME51: 0 | MF51: 0 | MG51: 0 | MH51: 0 | MI51: 0 | MJ51: 0 | MK51: 0 | ML51: 0 | MM51: 0 | MN51: 0 | MO51: 0 | MP51: 0 | MQ51: 0 | MR51: 0 | MS51: 0 | MT51: 0 | MU51: 0 | MV51: 0 | MW51: 0 | MX51: 0 | MY51: 0 | MZ51: 0 | NA51: 0 | NB51: 0 | NC51: 0 | ND51: 0 | NE51: 0 | NF51: 0 | NG51: 0 | NH51: 0 | NI51: 0 | NJ51: 0 | NK51: 0 | NL51: 0 | NM51: 0 | NN51: 0 | NO51: 0 | NP51: 0 | NQ51: 0 | NR51: 0 | NS51: 0 | NT51: 0 | NU51: 0 | NV51: 0 | NW51: 0 | NX51: 0 | NY51: =SUM(NY48:NY50) -> 0 | NZ51: 0 | OA51: 0 | OB51: 0 | OC51: 0 | OD51: 0 | OE51: 0 | OF51: 0 | OG51: 0 | OH51: 0 | OI51: 0 | OJ51: 0 | OK51: 0 | OL51: 0 | OM51: 0 | ON51: 0 | OO51: 0 | OP51: 0 | OQ51: 0 | OR51: 0 | OS51: 0 | OT51: 0 | OU51: 0 | OV51: 0 | OW51: 0 | OX51: 0 | OY51: 0 | OZ51: 0 | PA51: 0 | PB51: 0 | PC51: 0 | PD51: 0 | PE51: 0 | PF51: 0 | PG51: 0 | PH51: 0 | PI51: 0 | PJ51: 0 | PK51: 0 | PL51: 0 | PM51: 0 | PN51: 0 | PO51: 0 | PP51: 0 | PQ51: 0 | PR51: 0 | PS51: 0 | PT51: 0 | PU51: 0 | PV51: 0 | PW51: 0 | PX51: 0 | PY51: 0 | PZ51: 0 | QA51: 0 | QB51: 0 | QC51: 0 | QE51: =SUM(QE48:QE50) -> 0.0 | QF51: =SUM(QF48:QF50) -> 0.0 | QG51: =SUM(QG48:QG50) -> 0.0 | QH51: =SUM(QH48:QH50) -> 0.0 | QI51: =SUM(QI48:QI50) -> 0.0 | QJ51: =SUM(QJ48:QJ50) -> 0.0 | QK51: =SUM(QK48:QK50) -> 0.0 | QL51: =SUM(QL48:QL50) -> 0.0 | QM51: =SUM(QM48:QM50) -> 0.0 | QN51: =SUM(QN48:QN50) -> 0.0 | QO51: =SUM(QO48:QO50) -> 0.0 | QP51: 0.0 | QQ51: =SUM(QQ48:QQ50) -> 0.0 | QR51: =SUM(QR48:QR50) -> 0.0 | QS51: =SUM(QS48:QS50) -> 0.0 | QT51: =SUM(QT48:QT50) -> 0.0 | QU51: =SUM(QU48:QU50) -> 0.0 | QV51: =SUM(QV48:QV50) -> 0.0 | QW51: =SUM(QW48:QW50) -> 0.0 | QX51: =SUM(QX48:QX50) -> 0.0 | QY51: 0.0 | QZ51: =SUM(QZ48:QZ50) -> 0.0 | RA51: =SUM(RA48:RA50) -> 0.0 | RB51: 0.0 | RC51: =SUM(RC48:RC50) -> 0.0 | RD51: 0.0 | RE51: =SUM(RE48:RE50) -> 0.0 | RF51: =SUM(RF48:RF50) -> 0.0 | RG51: =SUM(RG48:RG50) -> 0.0 | RH51: =SUM(RH48:RH50) -> 0.0 | RI51: =SUM(RI48:RI50) -> 0.0 | RJ51: =SUM(RJ48:RJ50) -> 0.0 | RK51: 0.0 | RL51: =SUM(RL48:RL50) -> 0.0 | RM51: 0.0 | RN51: =SUM(RN48:RN50) -> 0.0 | RO51: =SUM(RO48:RO50) -> 0.0 | RP51: =SUM(RP48:RP50) -> 0.0 | RQ51: =SUM(RQ48:RQ50) -> 0.0 | RR51: =SUM(RR48:RR50) -> 0.0 | RS51: =SUM(RS48:RS50) -> 0.0 | RT51: =SUM(RT48:RT50) -> 0.0 | RU51: =SUM(RU48:RU50) -> 0.0 | RV51: =SUM(RV48:RV50) -> 0.0 | RW51: 0
D52: CONTRIBUTIVO | QC52: =SUM(E52:QB52)-(PQ52+PS52+PU52+PV52+PX52) -> 0 | QE52: =SUM(E52:H52) -> 0.0 | QF52: =SUM(I52:BO52) -> 0.0 | QG52: =SUM(BP52:CW52) -> 0.0 | QH52: =SUM(CX52:DE52) -> 0.0 | QI52: =SUM(DF52:DT52) -> 0.0 | QJ52: =SUM(DU52:ET52) -> 0.0 | QK52: =SUM(EU52:FY52) -> 0.0 | QL52: =SUM(FZ52:HD52) -> 0.0 | QM52: =SUM(HE52:HF52) -> 0.0 | QN52: =SUM(HG52:HL52) -> 0.0 | QO52: =SUM(HM52:HR52) -> 0.0 | QP52: =SUM(HS52:IJ52) -> 0.0 | QQ52: =SUM(IK52:JA52) -> 0.0 | QR52: =SUM(JB52:JT52) -> 0.0 | QS52: =SUM(JU52:KD52) -> 0.0 | QT52: =SUM(KE52:KP52) -> 0.0 | QU52: =SUM(KQ52:MU52) -> 0.0 | QV52: =SUM(MV52:NG52) -> 0.0 | QW52: =SUM(NH52:NI52) -> 0.0 | QX52: =SUM(NJ52:NL52) -> 0.0 | QY52: =SUM(NM52:NO52) -> 0.0 | QZ52: =SUM(NP52) -> 0.0 | RA52: =SUM(NQ52) -> 0.0 | RB52: =SUM(NR52:NT52) -> 0.0 | RC52: =SUM(NU52) -> 0.0 | RD52: =SUM(NV52) -> 0.0 | RE52: =SUM(NW52:OB52) -> 0.0 | RF52: =SUM(OC52:PE52) -> 0.0 | RG52: =SUM(PF52:PG52) -> 0.0 | RH52: =SUM(PH52:PI52) -> 0.0 | RI52: =SUM(PJ52:PM52) -> 0.0 | RJ52: =SUM(PN52:PP52) -> 0.0 | RK52: =SUM(PQ52) -> 0.0 | RL52: =SUM(PR52) -> 0.0 | RM52: =SUM(PS52) -> 0.0 | RN52: =SUM(PT52:PV52) -> 0.0 | RO52: =SUM(PV52) -> 0.0 | RP52: =SUM(PV52) -> 0.0 | RQ52: =SUM(PW52) -> 0.0 | RR52: =SUM(PX52) -> 0.0 | RS52: =SUM(PY52) -> 0.0 | RT52: =SUM(PZ52) -> 0.0 | RU52: =SUM(QA52) -> 0.0 | RV52: =SUM(QB52) -> 0.0 | RW52: =SUM(QE52:RU52)-SUM(RI52:RM52)-SUM(RQ52:RT52) -> 0
D53: SUBSIDIADO | QC53: 0 | QE53: 0.0 | QF53: 0.0 | QG53: 0.0 | QH53: 0.0 | QI53: 0.0 | QJ53: 0.0 | QK53: 0.0 | QL53: 0.0 | QM53: 0.0 | QN53: 0.0 | QO53: 0.0 | QP53: 0.0 | QQ53: 0.0 | QR53: 0.0 | QS53: 0.0 | QT53: 0.0 | QU53: 0.0 | QV53: 0.0 | QW53: 0.0 | QX53: 0.0 | QY53: 0.0 | QZ53: 0.0 | RA53: 0.0 | RB53: 0.0 | RC53: 0.0 | RD53: 0.0 | RE53: 0.0 | RF53: 0.0 | RG53: 0.0 | RH53: 0.0 | RI53: 0.0 | RJ53: 0.0 | RK53: 0.0 | RL53: 0.0 | RM53: 0.0 | RN53: 0.0 | RO53: 0.0 | RP53: 0.0 | RQ53: 0.0 | RR53: 0.0 | RS53: 0.0 | RT53: 0.0 | RU53: 0.0 | RV53: 0.0 | RW53: 0
D54: POBRE NO ASEGURADO | QC54: 0 | QE54: 0.0 | QF54: 0.0 | QG54: 0.0 | QH54: 0.0 | QI54: 0.0 | QJ54: 0.0 | QK54: 0.0 | QL54: 0.0 | QM54: 0.0 | QN54: 0.0 | QO54: 0.0 | QP54: 0.0 | QQ54: 0.0 | QR54: 0.0 | QS54: 0.0 | QT54: 0.0 | QU54: 0.0 | QV54: 0.0 | QW54: 0.0 | QX54: 0.0 | QY54: 0.0 | QZ54: 0.0 | RA54: 0.0 | RB54: 0.0 | RC54: 0.0 | RD54: 0.0 | RE54: 0.0 | RF54: 0.0 | RG54: 0.0 | RH54: 0.0 | RI54: 0.0 | RJ54: 0.0 | RK54: 0.0 | RL54: 0.0 | RM54: 0.0 | RN54: 0.0 | RO54: 0.0 | RP54: 0.0 | RQ54: 0.0 | RR54: 0.0 | RS54: 0.0 | RT54: 0.0 | RU54: 0.0 | RV54: 0.0 | RW54: 0
D55: REGIMEN ESPECIAL | QC55: 0 | QE55: 0.0 | QF55: 0.0 | QG55: 0.0 | QH55: 0.0 | QI55: 0.0 | QJ55: 0.0 | QK55: 0.0 | QL55: 0.0 | QM55: 0.0 | QN55: 0.0 | QO55: 0.0 | QP55: 0.0 | QQ55: 0.0 | QR55: 0.0 | QS55: 0.0 | QT55: 0.0 | QU55: 0.0 | QV55: 0.0 | QW55: 0.0 | QX55: 0.0 | QY55: 0.0 | QZ55: 0.0 | RA55: 0.0 | RB55: 0.0 | RC55: 0.0 | RD55: 0.0 | RE55: 0.0 | RF55: 0.0 | RG55: 0.0 | RH55: 0.0 | RI55: 0.0 | RJ55: 0.0 | RK55: 0.0 | RL55: 0.0 | RM55: 0.0 | RN55: 0.0 | RO55: 0.0 | RP55: 0.0 | RQ55: 0.0 | RR55: 0.0 | RS55: 0.0 | RT55: 0.0 | RU55: 0.0 | RV55: 0.0 | RW55: 0
D56: TOTAL REGIMEN | E56: =SUM(E52:E55) -> 0 | F56: 0 | G56: 0 | H56: 0 | I56: 0 | J56: 0 | K56: 0 | L56: 0 | M56: 0 | N56: 0 | O56: 0 | P56: 0 | Q56: 0 | R56: 0 | S56: 0 | T56: 0 | U56: 0 | V56: 0 | W56: 0 | X56: 0 | Y56: 0 | Z56: 0 | AA56: 0 | AB56: 0 | AC56: 0 | AD56: 0 | AE56: 0 | AF56: 0 | AG56: 0 | AH56: 0 | AI56: 0 | AJ56: 0 | AK56: 0 | AL56: 0 | AM56: 0 | AN56: 0 | AO56: 0 | AP56: 0 | AQ56: 0 | AR56: 0 | AS56: 0 | AT56: 0 | AU56: 0 | AV56: 0 | AW56: 0 | AX56: 0 | AY56: 0 | AZ56: 0 | BA56: 0 | BB56: 0 | BC56: 0 | BD56: 0 | BE56: 0 | BF56: 0 | BG56: 0 | BH56: 0 | BI56: 0 | BJ56: 0 | BK56: 0 | BL56: 0 | BM56: 0 | BN56: 0 | BO56: 0 | BP56: 0 | BQ56: =SUM(BQ52:BQ55) -> 0 | BR56: 0 | BS56: 0 | BT56: 0 | BU56: 0 | BV56: 0 | BW56: 0 | BX56: 0 | BY56: 0 | BZ56: 0 | CA56: 0 | CB56: 0 | CC56: 0 | CD56: 0 | CE56: 0 | CF56: 0 | CG56: 0 | CH56: 0 | CI56: 0 | CJ56: 0 | CK56: 0 | CL56: 0 | CM56: 0 | CN56: 0 | CO56: 0 | CP56: 0 | CQ56: 0 | CR56: 0 | CS56: 0 | CT56: 0 | CU56: 0 | CV56: 0 | CW56: 0 | CX56: 0 | CY56: 0 | CZ56: 0 | DA56: 0 | DB56: 0 | DC56: 0 | DD56: 0 | DE56: 0 | DF56: 0 | DG56: 0 | DH56: 0 | DI56: 0 | DJ56: 0 | DK56: 0 | DL56: 0 | DM56: 0 | DN56: 0 | DO56: 0 | DP56: 0 | DQ56: 0 | DR56: 0 | DS56: 0 | DT56: 0 | DU56: 0 | DV56: 0 | DW56: 0 | DX56: 0 | DY56: 0 | DZ56: 0 | EA56: 0 | EB56: 0 | EC56: =SUM(EC52:EC55) -> 0 | ED56: 0 | EE56: 0 | EF56: 0 | EG56: 0 | EH56: 0 | EI56: 0 | EJ56: 0 | EK56: 0 | EL56: 0 | EM56: 0 | EN56: 0 | EO56: 0 | EP56: 0 | EQ56: 0 | ER56: 0 | ES56: 0 | ET56: 0 | EU56: 0 | EV56: 0 | EW56: 0 | EX56: 0 | EY56: 0 | EZ56: 0 | FA56: 0 | FB56: 0 | FC56: 0 | FD56: 0 | FE56: 0 | FF56: 0 | FG56: 0 | FH56: 0 | FI56: 0 | FJ56: 0 | FK56: 0 | FL56: 0 | FM56: 0 | FN56: 0 | FO56: 0 | FP56: 0 | FQ56: 0 | FR56: 0 | FS56: 0 | FT56: 0 | FU56: 0 | FV56: 0 | FW56: 0 | FX56: 0 | FY56: 0 | FZ56: 0 | GA56: 0 | GB56: 0 | GC56: 0 | GD56: 0 | GE56: 0 | GF56: 0 | GG56: 0 | GH56: 0 | GI56: 0 | GJ56: 0 | GK56: 0 | GL56: 0 | GM56: 0 | GN56: 0 | GO56: =SUM(GO52:GO55) -> 0 | GP56: 0 | GQ56: 0 | GR56: 0 | GS56: 0 | GT56: 0 | GU56: 0 | GV56: 0 | GW56: 0 | GX56: 0 | GY56: 0 | GZ56: 0 | HA56: 0 | HB56: 0 | HC56: 0 | HD56: 0 | HE56: 0 | HF56: 0 | HG56: 0 | HH56: 0 | HI56: 0 | HJ56: 0 | HK56: 0 | HL56: 0 | HM56: 0 | HN56: 0 | HO56: 0 | HP56: 0 | HQ56: 0 | HR56: 0 | HS56: 0 | HT56: 0 | HU56: 0 | HV56: 0 | HW56: 0 | HX56: 0 | HY56: 0 | HZ56: 0 | IA56: 0 | IB56: 0 | IC56: 0 | ID56: 0 | IE56: 0 | IF56: 0 | IG56: 0 | IH56: 0 | II56: 0 | IJ56: 0 | IK56: 0 | IL56: 0 | IM56: 0 | IN56: 0 | IO56: 0 | IP56: 0 | IQ56: 0 | IR56: 0 | IS56: 0 | IT56: 0 | IU56: 0 | IV56: 0 | IW56: 0 | IX56: 0 | IY56: 0 | IZ56: 0 | JA56: =SUM(JA52:JA55) -> 0 | JB56: 0 | JC56: 0 | JD56: 0 | JE56: 0 | JF56: 0 | JG56: 0 | JH56: 0 | JI56: 0 | JJ56: 0 | JK56: 0 | JL56: 0 | JM56: 0 | JN56: 0 | JO56: 0 | JP56: 0 | JQ56: 0 | JR56: 0 | JS56: 0 | JT56: 0 | JU56: 0 | JV56: 0 | JW56: 0 | JX56: 0 | JY56: 0 | JZ56: 0 | KA56: 0 | KB56: 0 | KC56: 0 | KD56: 0 | KE56: 0 | KF56: 0 | KG56: 0 | KH56: 0 | KI56: 0 | KJ56: 0 | KK56: 0 | KL56: 0 | KM56: 0 | KN56: 0 | KO56: 0 | KP56: 0 | KQ56: 0 | KR56: 0 | KS56: 0 | KT56: 0 | KU56: 0 | KV56: 0 | KW56: 0 | KX56: 0 | KY56: 0 | KZ56: 0 | LA56: 0 | LB56: 0 | LC56: 0 | LD56: 0 | LE56: 0 | LF56: 0 | LG56: 0 | LH56: 0 | LI56: 0 | LJ56: 0 | LK56: 0 | LL56: 0 | LM56: =SUM(LM52:LM55) -> 0 | LN56: 0 | LO56: 0 | LP56: 0 | LQ56: 0 | LR56: 0 | LS56: 0 | LT56: 0 | LU56: 0 | LV56: 0 | LW56: 0 | LX56: 0 | LY56: 0 | LZ56: 0 | MA56: 0 | MB56: 0 | MC56: 0 | MD56: 0 | ME56: 0 | MF56: 0 | MG56: 0 | MH56: 0 | MI56: 0 | MJ56: 0 | MK56: 0 | ML56: 0 | MM56: 0 | MN56: 0 | MO56: 0 | MP56: 0 | MQ56: 0 | MR56: 0 | MS56: 0 | MT56: 0 | MU56: 0 | MV56: 0 | MW56: 0 | MX56: 0 | MY56: 0 | MZ56: 0 | NA56: 0 | NB56: 0 | NC56: 0 | ND56: 0 | NE56: 0 | NF56: 0 | NG56: 0 | NH56: 0 | NI56: 0 | NJ56: 0 | NK56: 0 | NL56: 0 | NM56: 0 | NN56: 0 | NO56: 0 | NP56: 0 | NQ56: 0 | NR56: 0 | NS56: 0 | NT56: 0 | NU56: 0 | NV56: 0 | NW56: 0 | NX56: 0 | NY56: =SUM(NY52:NY55) -> 0 | NZ56: 0 | OA56: 0 | OB56: 0 | OC56: 0 | OD56: 0 | OE56: 0 | OF56: 0 | OG56: 0 | OH56: 0 | OI56: 0 | OJ56: 0 | OK56: 0 | OL56: 0 | OM56: 0 | ON56: 0 | OO56: 0 | OP56: 0 | OQ56: 0 | OR56: 0 | OS56: 0 | OT56: 0 | OU56: 0 | OV56: 0 | OW56: 0 | OX56: 0 | OY56: 0 | OZ56: 0 | PA56: 0 | PB56: 0 | PC56: 0 | PD56: 0 | PE56: 0 | PF56: 0 | PG56: 0 | PH56: 0 | PI56: 0 | PJ56: 0 | PK56: 0 | PL56: 0 | PM56: 0 | PN56: 0 | PO56: 0 | PP56: 0 | PQ56: 0 | PR56: 0 | PS56: 0 | PT56: 0 | PU56: 0 | PV56: 0 | PW56: 0 | PX56: 0 | PY56: 0 | PZ56: 0 | QA56: 0 | QB56: 0 | QC56: 0 | QE56: =SUM(QE52:QE55) -> 0.0 | QF56: =SUM(QF52:QF55) -> 0.0 | QG56: =SUM(QG52:QG55) -> 0.0 | QH56: =SUM(QH52:QH55) -> 0.0 | QI56: =SUM(QI52:QI55) -> 0.0 | QJ56: =SUM(QJ52:QJ55) -> 0.0 | QK56: =SUM(QK52:QK55) -> 0.0 | QL56: =SUM(QL52:QL55) -> 0.0 | QM56: =SUM(QM52:QM55) -> 0.0 | QN56: =SUM(QN52:QN55) -> 0.0 | QO56: =SUM(QO52:QO55) -> 0.0 | QP56: 0.0 | QQ56: =SUM(QQ52:QQ55) -> 0.0 | QR56: =SUM(QR52:QR55) -> 0.0 | QS56: =SUM(QS52:QS55) -> 0.0 | QT56: =SUM(QT52:QT55) -> 0.0 | QU56: =SUM(QU52:QU55) -> 0.0 | QV56: =SUM(QV52:QV55) -> 0.0 | QW56: =SUM(QW52:QW55) -> 0.0 | QX56: =SUM(QX52:QX55) -> 0.0 | QY56: 0.0 | QZ56: =SUM(QZ52:QZ55) -> 0.0 | RA56: =SUM(RA52:RA55) -> 0.0 | RB56: 0.0 | RC56: =SUM(RC52:RC55) -> 0.0 | RD56: 0.0 | RE56: =SUM(RE52:RE55) -> 0.0 | RF56: =SUM(RF52:RF55) -> 0.0 | RG56: =SUM(RG52:RG55) -> 0.0 | RH56: =SUM(RH52:RH55) -> 0.0 | RI56: =SUM(RI52:RI55) -> 0.0 | RJ56: =SUM(RJ52:RJ55) -> 0.0 | RK56: 0.0 | RL56: =SUM(RL52:RL55) -> 0.0 | RM56: 0.0 | RN56: =SUM(RN52:RN55) -> 0.0 | RO56: =SUM(RO52:RO55) -> 0.0 | RP56: =SUM(RP52:RP55) -> 0.0 | RQ56: =SUM(RQ52:RQ55) -> 0.0 | RR56: =SUM(RR52:RR55) -> 0.0 | RS56: =SUM(RS52:RS55) -> 0.0 | RT56: =SUM(RT52:RT55) -> 0.0 | RU56: =SUM(RU52:RU55) -> 0.0 | RV56: =SUM(RV52:RV55) -> 0.0 | RW56: 0
D57: INDIGENA | QC57: =SUM(E57:QB57)-(PQ57+PS57+PU57+PV57+PX57) -> 0 | QE57: =SUM(E57:H57) -> 0.0 | QF57: =SUM(I57:BO57) -> 0.0 | QG57: =SUM(BP57:CW57) -> 0.0 | QH57: =SUM(CX57:DE57) -> 0.0 | QI57: =SUM(DF57:DT57) -> 0.0 | QJ57: =SUM(DU57:ET57) -> 0.0 | QK57: =SUM(EU57:FY57) -> 0.0 | QL57: =SUM(FZ57:HD57) -> 0.0 | QM57: =SUM(HE57:HF57) -> 0.0 | QN57: =SUM(HG57:HL57) -> 0.0 | QO57: =SUM(HM57:HR57) -> 0.0 | QP57: =SUM(HS57:IJ57) -> 0.0 | QQ57: =SUM(IK57:JA57) -> 0.0 | QR57: =SUM(JB57:JT57) -> 0.0 | QS57: =SUM(JU57:KD57) -> 0.0 | QT57: =SUM(KE57:KP57) -> 0.0 | QU57: =SUM(KQ57:MU57) -> 0.0 | QV57: =SUM(MV57:NG57) -> 0.0 | QW57: =SUM(NH57:NI57) -> 0.0 | QX57: =SUM(NJ57:NL57) -> 0.0 | QY57: =SUM(NM57:NO57) -> 0.0 | QZ57: =SUM(NP57) -> 0.0 | RA57: =SUM(NQ57) -> 0.0 | RB57: =SUM(NR57:NT57) -> 0.0 | RC57: =SUM(NU57) -> 0.0 | RD57: =SUM(NV57) -> 0.0 | RE57: =SUM(NW57:OB57) -> 0.0 | RF57: =SUM(OC57:PE57) -> 0.0 | RG57: =SUM(PF57:PG57) -> 0.0 | RH57: =SUM(PH57:PI57) -> 0.0 | RI57: =SUM(PJ57:PM57) -> 0.0 | RJ57: =SUM(PN57:PP57) -> 0.0 | RK57: =SUM(PQ57) -> 0.0 | RL57: =SUM(PR57) -> 0.0 | RM57: =SUM(PS57) -> 0.0 | RN57: =SUM(PT57:PV57) -> 0.0 | RO57: =SUM(PV57) -> 0.0 | RP57: =SUM(PV57) -> 0.0 | RQ57: =SUM(PW57) -> 0.0 | RR57: =SUM(PX57) -> 0.0 | RS57: =SUM(PY57) -> 0.0 | RT57: =SUM(PZ57) -> 0.0 | RU57: =SUM(QA57) -> 0.0 | RV57: =SUM(QB57) -> 0.0 | RW57: =SUM(QE57:RU57)-SUM(RI57:RM57)-SUM(RQ57:RT57) -> 0
D58: ROM (GITANO) | QC58: 0 | QE58: 0.0 | QF58: 0.0 | QG58: 0.0 | QH58: 0.0 | QI58: 0.0 | QJ58: 0.0 | QK58: 0.0 | QL58: 0.0 | QM58: 0.0 | QN58: 0.0 | QO58: 0.0 | QP58: 0.0 | QQ58: 0.0 | QR58: 0.0 | QS58: 0.0 | QT58: 0.0 | QU58: 0.0 | QV58: 0.0 | QW58: 0.0 | QX58: 0.0 | QY58: 0.0 | QZ58: 0.0 | RA58: 0.0 | RB58: 0.0 | RC58: 0.0 | RD58: 0.0 | RE58: 0.0 | RF58: 0.0 | RG58: 0.0 | RH58: 0.0 | RI58: 0.0 | RJ58: 0.0 | RK58: 0.0 | RL58: 0.0 | RM58: 0.0 | RN58: 0.0 | RO58: 0.0 | RP58: 0.0 | RQ58: 0.0 | RR58: 0.0 | RS58: 0.0 | RT58: 0.0 | RU58: 0.0 | RV58: 0.0 | RW58: 0
D59: RAIZAL | QC59: 0 | QE59: 0.0 | QF59: 0.0 | QG59: 0.0 | QH59: 0.0 | QI59: 0.0 | QJ59: 0.0 | QK59: 0.0 | QL59: 0.0 | QM59: 0.0 | QN59: 0.0 | QO59: 0.0 | QP59: 0.0 | QQ59: 0.0 | QR59: 0.0 | QS59: 0.0 | QT59: 0.0 | QU59: 0.0 | QV59: 0.0 | QW59: 0.0 | QX59: 0.0 | QY59: 0.0 | QZ59: 0.0 | RA59: 0.0 | RB59: 0.0 | RC59: 0.0 | RD59: 0.0 | RE59: 0.0 | RF59: 0.0 | RG59: 0.0 | RH59: 0.0 | RI59: 0.0 | RJ59: 0.0 | RK59: 0.0 | RL59: 0.0 | RM59: 0.0 | RN59: 0.0 | RO59: 0.0 | RP59: 0.0 | RQ59: 0.0 | RR59: 0.0 | RS59: 0.0 | RT59: 0.0 | RU59: 0.0 | RV59: 0.0 | RW59: 0
D60: PALENQUERO | QC60: 0 | QE60: 0.0 | QF60: 0.0 | QG60: 0.0 | QH60: 0.0 | QI60: 0.0 | QJ60: 0.0 | QK60: 0.0 | QL60: 0.0 | QM60: 0.0 | QN60: 0.0 | QO60: 0.0 | QP60: 0.0 | QQ60: 0.0 | QR60: 0.0 | QS60: 0.0 | QT60: 0.0 | QU60: 0.0 | QV60: 0.0 | QW60: 0.0 | QX60: 0.0 | QY60: 0.0 | QZ60: 0.0 | RA60: 0.0 | RB60: 0.0 | RC60: 0.0 | RD60: 0.0 | RE60: 0.0 | RF60: 0.0 | RG60: 0.0 | RH60: 0.0 | RI60: 0.0 | RJ60: 0.0 | RK60: 0.0 | RL60: 0.0 | RM60: 0.0 | RN60: 0.0 | RO60: 0.0 | RP60: 0.0 | RQ60: 0.0 | RR60: 0.0 | RS60: 0.0 | RT60: 0.0 | RU60: 0.0 | RV60: 0.0 | RW60: 0
D61: NEGRO(A), MULATO (A), AFROCOLOMBIANO (A) | QC61: 0 | QE61: 0.0 | QF61: 0.0 | QG61: 0.0 | QH61: 0.0 | QI61: 0.0 | QJ61: 0.0 | QK61: 0.0 | QL61: 0.0 | QM61: 0.0 | QN61: 0.0 | QO61: 0.0 | QP61: 0.0 | QQ61: 0.0 | QR61: 0.0 | QS61: 0.0 | QT61: 0.0 | QU61: 0.0 | QV61: 0.0 | QW61: 0.0 | QX61: 0.0 | QY61: 0.0 | QZ61: 0.0 | RA61: 0.0 | RB61: 0.0 | RC61: 0.0 | RD61: 0.0 | RE61: 0.0 | RF61: 0.0 | RG61: 0.0 | RH61: 0.0 | RI61: 0.0 | RJ61: 0.0 | RK61: 0.0 | RL61: 0.0 | RM61: 0.0 | RN61: 0.0 | RO61: 0.0 | RP61: 0.0 | RQ61: 0.0 | RR61: 0.0 | RS61: 0.0 | RT61: 0.0 | RU61: 0.0 | RV61: 0.0 | RW61: 0
D62: SIN PERTENENCIA ETNICA | QC62: 0 | QE62: 0.0 | QF62: 0.0 | QG62: 0.0 | QH62: 0.0 | QI62: 0.0 | QJ62: 0.0 | QK62: 0.0 | QL62: 0.0 | QM62: 0.0 | QN62: 0.0 | QO62: 0.0 | QP62: 0.0 | QQ62: 0.0 | QR62: 0.0 | QS62: 0.0 | QT62: 0.0 | QU62: 0.0 | QV62: 0.0 | QW62: 0.0 | QX62: 0.0 | QY62: 0.0 | QZ62: 0.0 | RA62: 0.0 | RB62: 0.0 | RC62: 0.0 | RD62: 0.0 | RE62: 0.0 | RF62: 0.0 | RG62: 0.0 | RH62: 0.0 | RI62: 0.0 | RJ62: 0.0 | RK62: 0.0 | RL62: 0.0 | RM62: 0.0 | RN62: 0.0 | RO62: 0.0 | RP62: 0.0 | RQ62: 0.0 | RR62: 0.0 | RS62: 0.0 | RT62: 0.0 | RU62: 0.0 | RV62: 0.0 | RW62: 0
D63: TOTAL ETNICOS | E63: =SUM(E57:E62) -> 0 | F63: 0 | G63: 0 | H63: 0 | I63: 0 | J63: 0 | K63: 0 | L63: 0 | M63: 0 | N63: 0 | O63: 0 | P63: 0 | Q63: 0 | R63: 0 | S63: 0 | T63: 0 | U63: 0 | V63: 0 | W63: 0 | X63: 0 | Y63: 0 | Z63: 0 | AA63: 0 | AB63: 0 | AC63: 0 | AD63: 0 | AE63: 0 | AF63: 0 | AG63: 0 | AH63: 0 | AI63: 0 | AJ63: 0 | AK63: 0 | AL63: 0 | AM63: 0 | AN63: 0 | AO63: 0 | AP63: 0 | AQ63: 0 | AR63: 0 | AS63: 0 | AT63: 0 | AU63: 0 | AV63: 0 | AW63: 0 | AX63: 0 | AY63: 0 | AZ63: 0 | BA63: 0 | BB63: 0 | BC63: 0 | BD63: 0 | BE63: 0 | BF63: 0 | BG63: 0 | BH63: 0 | BI63: 0 | BJ63: 0 | BK63: 0 | BL63: 0 | BM63: 0 | BN63: 0 | BO63: 0 | BP63: 0 | BQ63: =SUM(BQ57:BQ62) -> 0 | BR63: 0 | BS63: 0 | BT63: 0 | BU63: 0 | BV63: 0 | BW63: 0 | BX63: 0 | BY63: 0 | BZ63: 0 | CA63: 0 | CB63: 0 | CC63: 0 | CD63: 0 | CE63: 0 | CF63: 0 | CG63: 0 | CH63: 0 | CI63: 0 | CJ63: 0 | CK63: 0 | CL63: 0 | CM63: 0 | CN63: 0 | CO63: 0 | CP63: 0 | CQ63: 0 | CR63: 0 | CS63: 0 | CT63: 0 | CU63: 0 | CV63: 0 | CW63: 0 | CX63: 0 | CY63: 0 | CZ63: 0 | DA63: 0 | DB63: 0 | DC63: 0 | DD63: 0 | DE63: 0 | DF63: 0 | DG63: 0 | DH63: 0 | DI63: 0 | DJ63: 0 | DK63: 0 | DL63: 0 | DM63: 0 | DN63: 0 | DO63: 0 | DP63: 0 | DQ63: 0 | DR63: 0 | DS63: 0 | DT63: 0 | DU63: 0 | DV63: 0 | DW63: 0 | DX63: 0 | DY63: 0 | DZ63: 0 | EA63: 0 | EB63: 0 | EC63: =SUM(EC57:EC62) -> 0 | ED63: 0 | EE63: 0 | EF63: 0 | EG63: 0 | EH63: 0 | EI63: 0 | EJ63: 0 | EK63: 0 | EL63: 0 | EM63: 0 | EN63: 0 | EO63: 0 | EP63: 0 | EQ63: 0 | ER63: 0 | ES63: 0 | ET63: 0 | EU63: 0 | EV63: 0 | EW63: 0 | EX63: 0 | EY63: 0 | EZ63: 0 | FA63: 0 | FB63: 0 | FC63: 0 | FD63: 0 | FE63: 0 | FF63: 0 | FG63: 0 | FH63: 0 | FI63: 0 | FJ63: 0 | FK63: 0 | FL63: 0 | FM63: 0 | FN63: 0 | FO63: 0 | FP63: 0 | FQ63: 0 | FR63: 0 | FS63: 0 | FT63: 0 | FU63: 0 | FV63: 0 | FW63: 0 | FX63: 0 | FY63: 0 | FZ63: 0 | GA63: 0 | GB63: 0 | GC63: 0 | GD63: 0 | GE63: 0 | GF63: 0 | GG63: 0 | GH63: 0 | GI63: 0 | GJ63: 0 | GK63: 0 | GL63: 0 | GM63: 0 | GN63: 0 | GO63: =SUM(GO57:GO62) -> 0 | GP63: 0 | GQ63: 0 | GR63: 0 | GS63: 0 | GT63: 0 | GU63: 0 | GV63: 0 | GW63: 0 | GX63: 0 | GY63: 0 | GZ63: 0 | HA63: 0 | HB63: 0 | HC63: 0 | HD63: 0 | HE63: 0 | HF63: 0 | HG63: 0 | HH63: 0 | HI63: 0 | HJ63: 0 | HK63: 0 | HL63: 0 | HM63: 0 | HN63: 0 | HO63: 0 | HP63: 0 | HQ63: 0 | HR63: 0 | HS63: 0 | HT63: 0 | HU63: 0 | HV63: 0 | HW63: 0 | HX63: 0 | HY63: 0 | HZ63: 0 | IA63: 0 | IB63: 0 | IC63: 0 | ID63: 0 | IE63: 0 | IF63: 0 | IG63: 0 | IH63: 0 | II63: 0 | IJ63: 0 | IK63: 0 | IL63: 0 | IM63: 0 | IN63: 0 | IO63: 0 | IP63: 0 | IQ63: 0 | IR63: 0 | IS63: 0 | IT63: 0 | IU63: 0 | IV63: 0 | IW63: 0 | IX63: 0 | IY63: 0 | IZ63: 0 | JA63: =SUM(JA57:JA62) -> 0 | JB63: 0 | JC63: 0 | JD63: 0 | JE63: 0 | JF63: 0 | JG63: 0 | JH63: 0 | JI63: 0 | JJ63: 0 | JK63: 0 | JL63: 0 | JM63: 0 | JN63: 0 | JO63: 0 | JP63: 0 | JQ63: 0 | JR63: 0 | JS63: 0 | JT63: 0 | JU63: 0 | JV63: 0 | JW63: 0 | JX63: 0 | JY63: 0 | JZ63: 0 | KA63: 0 | KB63: 0 | KC63: 0 | KD63: 0 | KE63: 0 | KF63: 0 | KG63: 0 | KH63: 0 | KI63: 0 | KJ63: 0 | KK63: 0 | KL63: 0 | KM63: 0 | KN63: 0 | KO63: 0 | KP63: 0 | KQ63: 0 | KR63: 0 | KS63: 0 | KT63: 0 | KU63: 0 | KV63: 0 | KW63: 0 | KX63: 0 | KY63: 0 | KZ63: 0 | LA63: 0 | LB63: 0 | LC63: 0 | LD63: 0 | LE63: 0 | LF63: 0 | LG63: 0 | LH63: 0 | LI63: 0 | LJ63: 0 | LK63: 0 | LL63: 0 | LM63: =SUM(LM57:LM62) -> 0 | LN63: 0 | LO63: 0 | LP63: 0 | LQ63: 0 | LR63: 0 | LS63: 0 | LT63: 0 | LU63: 0 | LV63: 0 | LW63: 0 | LX63: 0 | LY63: 0 | LZ63: 0 | MA63: 0 | MB63: 0 | MC63: 0 | MD63: 0 | ME63: 0 | MF63: 0 | MG63: 0 | MH63: 0 | MI63: 0 | MJ63: 0 | MK63: 0 | ML63: 0 | MM63: 0 | MN63: 0 | MO63: 0 | MP63: 0 | MQ63: 0 | MR63: 0 | MS63: 0 | MT63: 0 | MU63: 0 | MV63: 0 | MW63: 0 | MX63: 0 | MY63: 0 | MZ63: 0 | NA63: 0 | NB63: 0 | NC63: 0 | ND63: 0 | NE63: 0 | NF63: 0 | NG63: 0 | NH63: 0 | NI63: 0 | NJ63: 0 | NK63: 0 | NL63: 0 | NM63: 0 | NN63: 0 | NO63: 0 | NP63: 0 | NQ63: 0 | NR63: 0 | NS63: 0 | NT63: 0 | NU63: 0 | NV63: 0 | NW63: 0 | NX63: 0 | NY63: =SUM(NY57:NY62) -> 0 | NZ63: 0 | OA63: 0 | OB63: 0 | OC63: 0 | OD63: 0 | OE63: 0 | OF63: 0 | OG63: 0 | OH63: 0 | OI63: 0 | OJ63: 0 | OK63: 0 | OL63: 0 | OM63: 0 | ON63: 0 | OO63: 0 | OP63: 0 | OQ63: 0 | OR63: 0 | OS63: 0 | OT63: 0 | OU63: 0 | OV63: 0 | OW63: 0 | OX63: 0 | OY63: 0 | OZ63: 0 | PA63: 0 | PB63: 0 | PC63: 0 | PD63: 0 | PE63: 0 | PF63: 0 | PG63: 0 | PH63: 0 | PI63: 0 | PJ63: 0 | PK63: 0 | PL63: 0 | PM63: 0 | PN63: 0 | PO63: 0 | PP63: 0 | PQ63: 0 | PR63: 0 | PS63: 0 | PT63: 0 | PU63: 0 | PV63: 0 | PW63: 0 | PX63: 0 | PY63: 0 | PZ63: 0 | QA63: 0 | QB63: 0 | QC63: 0 | QE63: =SUM(QE57:QE62) -> 0.0 | QF63: =SUM(QF57:QF62) -> 0.0 | QG63: =SUM(QG57:QG62) -> 0.0 | QH63: =SUM(QH57:QH62) -> 0.0 | QI63: =SUM(QI57:QI62) -> 0.0 | QJ63: =SUM(QJ57:QJ62) -> 0.0 | QK63: =SUM(QK57:QK62) -> 0.0 | QL63: =SUM(QL57:QL62) -> 0.0 | QM63: =SUM(QM57:QM62) -> 0.0 | QN63: =SUM(QN57:QN62) -> 0.0 | QO63: =SUM(QO57:QO62) -> 0.0 | QP63: 0.0 | QQ63: =SUM(QQ57:QQ62) -> 0.0 | QR63: =SUM(QR57:QR62) -> 0.0 | QS63: =SUM(QS57:QS62) -> 0.0 | QT63: =SUM(QT57:QT62) -> 0.0 | QU63: =SUM(QU57:QU62) -> 0.0 | QV63: =SUM(QV57:QV62) -> 0.0 | QW63: =SUM(QW57:QW62) -> 0.0 | QX63: =SUM(QX57:QX62) -> 0.0 | QY63: 0.0 | QZ63: =SUM(QZ57:QZ62) -> 0.0 | RA63: =SUM(RA57:RA62) -> 0.0 | RB63: 0.0 | RC63: =SUM(RC57:RC62) -> 0.0 | RD63: 0.0 | RE63: =SUM(RE57:RE62) -> 0.0 | RF63: =SUM(RF57:RF62) -> 0.0 | RG63: =SUM(RG57:RG62) -> 0.0 | RH63: =SUM(RH57:RH62) -> 0.0 | RI63: =SUM(RI57:RI62) -> 0.0 | RJ63: =SUM(RJ57:RJ62) -> 0.0 | RK63: 0.0 | RL63: =SUM(RL57:RL62) -> 0.0 | RM63: 0.0 | RN63: =SUM(RN57:RN62) -> 0.0 | RO63: =SUM(RO57:RO62) -> 0.0 | RP63: =SUM(RP57:RP62) -> 0.0 | RQ63: =SUM(RQ57:RQ62) -> 0.0 | RR63: =SUM(RR57:RR62) -> 0.0 | RS63: =SUM(RS57:RS62) -> 0.0 | RT63: =SUM(RT57:RT62) -> 0.0 | RU63: =SUM(RU57:RU62) -> 0.0 | RV63: =SUM(RV57:RV62) -> 0.0 | RW63: 0
D64: EN SITUACION DE DESPLAZAMIENTO | QC64: 0 | QE64: =SUM(E64:H64) -> 0.0 | QF64: =SUM(I64:BO64) -> 0.0 | QG64: =SUM(BP64:CW64) -> 0.0 | QH64: =SUM(CX64:DE64) -> 0.0 | QI64: =SUM(DF64:DT64) -> 0.0 | QJ64: =SUM(DU64:ET64) -> 0.0 | QK64: =SUM(EU64:FY64) -> 0.0 | QL64: =SUM(FZ64:HD64) -> 0.0 | QM64: =SUM(HE64:HF64) -> 0.0 | QN64: =SUM(HG64:HL64) -> 0.0 | QO64: =SUM(HM64:HR64) -> 0.0 | QP64: =SUM(HS64:IJ64) -> 0.0 | QQ64: =SUM(IK64:JA64) -> 0.0 | QR64: =SUM(JB64:JT64) -> 0.0 | QS64: =SUM(JU64:KD64) -> 0.0 | QT64: =SUM(KE64:KP64) -> 0.0 | QU64: =SUM(KQ64:MU64) -> 0.0 | QV64: =SUM(MV64:NG64) -> 0.0 | QW64: =SUM(NH64:NI64) -> 0.0 | QX64: =SUM(NJ64:NL64) -> 0.0 | QY64: 0.0 | QZ64: =SUM(NP64) -> 0.0 | RA64: =SUM(NQ64) -> 0.0 | RB64: =SUM(NR64:NT64) -> 0.0 | RC64: =SUM(NU64) -> 0.0 | RD64: =SUM(NV64) -> 0.0 | RE64: =SUM(NW64:OB64) -> 0.0 | RF64: =SUM(OC64:PE64) -> 0.0 | RG64: =SUM(PF64:PG64) -> 0.0 | RH64: =SUM(PH64:PI64) -> 0.0 | RI64: =SUM(PJ64:PM64) -> 0.0 | RJ64: =SUM(PN64:PP64) -> 0.0 | RK64: =SUM(PQ64) -> 0.0 | RL64: =SUM(PR64) -> 0.0 | RM64: =SUM(PS64) -> 0.0 | RN64: =SUM(PT64:PV64) -> 0.0 | RO64: =SUM(PV64) -> 0.0 | RP64: =SUM(PV64) -> 0.0 | RQ64: =SUM(PW64) -> 0.0 | RR64: =SUM(PX64) -> 0.0 | RS64: =SUM(PY64) -> 0.0 | RT64: =SUM(PZ64) -> 0.0 | RU64: =SUM(QA64) -> 0.0 | RV64: =SUM(QB64) -> 0.0 | RW64: =SUM(QE64:RU64)-SUM(RI64:RM64)-SUM(RQ64:RT64) -> 0
D65: EN CONDICION DE DISCAPACIDAD | QC65: 0 | QE65: 0.0 | QF65: 0.0 | QG65: 0.0 | QH65: 0.0 | QI65: 0.0 | QJ65: 0.0 | QK65: 0.0 | QL65: 0.0 | QM65: 0.0 | QN65: 0.0 | QO65: 0.0 | QP65: 0.0 | QQ65: 0.0 | QR65: 0.0 | QS65: 0.0 | QT65: 0.0 | QU65: 0.0 | QV65: 0.0 | QW65: 0.0 | QX65: 0.0 | QY65: 0.0 | QZ65: 0.0 | RA65: 0.0 | RB65: 0.0 | RC65: 0.0 | RD65: 0.0 | RE65: 0.0 | RF65: 0.0 | RG65: 0.0 | RH65: 0.0 | RI65: 0.0 | RJ65: 0.0 | RK65: 0.0 | RL65: 0.0 | RM65: 0.0 | RN65: 0.0 | RO65: 0.0 | RP65: 0.0 | RQ65: 0.0 | RR65: 0.0 | RS65: 0.0 | RT65: 0.0 | RU65: 0.0 | RV65: 0.0 | RW65: 0
D66: VICTIMAS DEL CONFLICTO ARMADO | QC66: 0 | QE66: 0.0 | QF66: 0.0 | QG66: 0.0 | QH66: 0.0 | QI66: 0.0 | QJ66: 0.0 | QK66: 0.0 | QL66: 0.0 | QM66: 0.0 | QN66: 0.0 | QO66: 0.0 | QP66: 0.0 | QQ66: 0.0 | QR66: 0.0 | QS66: 0.0 | QT66: 0.0 | QU66: 0.0 | QV66: 0.0 | QW66: 0.0 | QX66: 0.0 | QY66: 0.0 | QZ66: 0.0 | RA66: 0.0 | RB66: 0.0 | RC66: 0.0 | RD66: 0.0 | RE66: 0.0 | RF66: 0.0 | RG66: 0.0 | RH66: 0.0 | RI66: 0.0 | RJ66: 0.0 | RK66: 0.0 | RL66: 0.0 | RM66: 0.0 | RN66: 0.0 | RO66: 0.0 | RP66: 0.0 | RQ66: 0.0 | RR66: 0.0 | RS66: 0.0 | RT66: 0.0 | RU66: 0.0 | RV66: 0.0 | RW66: 0
D67: ZONAS VEREDALES | QC67: 0 | QD67: =CONCATENATE($G$2,#REF!) ->  | QE67: =SUM(E67:H67) -> 0.0 | QF67: =SUM(I67:BN67) -> 0.0 | QG67: =SUM(BP67:CW67) -> 0.0 | QH67: =SUM(CX67:DE67) -> 0.0 | QI67: =SUM(DF67:DT67) -> 0.0 | QJ67: =SUM(DU67:ET67) -> 0.0 | QK67: =SUM(EU67:FY67) -> 0.0 | QL67: =SUM(FZ67:HD67) -> 0.0 | QM67: =SUM(HE67:HF67) -> 0.0 | QN67: =SUM(HG67:HL67) -> 0.0 | QO67: =SUM(HR67:II67) -> 0.0 | QP67: =SUM(HS67:IJ67) -> 0.0 | QQ67: =SUM(IK67:JA67) -> 0.0 | QR67: =SUM(JB67:JT67) -> 0.0 | QS67: =SUM(JU67:KD67) -> 0.0 | QT67: =SUM(KE67:KP67) -> 0.0 | QU67: =SUM(KQ67:MU67) -> 0.0 | QV67: =SUM(MV67:NG67) -> 0.0 | QW67: =SUM(NH67:NL67) -> 0.0 | QX67: =SUM(NM67:NO67) -> 0.0 | QY67: 0.0 | QZ67: =SUM(NP67) -> 0.0 | RA67: 0.0 | RB67: =SUM(NS67:NT67) -> 0.0 | RC67: =SUM(NT67:NU67) -> 0.0 | RD67: =SUM(NU67:NV67) -> 0.0 | RE67: =SUM(NZ67:OB67) -> 0.0 | RF67: =SUM(OC67:PE67) -> 0.0 | RG67: =SUM(PF67:PI67) -> 0.0 | RH67: =SUM(PJ67:PP67) -> 0.0 | RI67: =PQ67 -> 0.0 | RJ67: =PR67 -> 0.0 | RK67: =SUM(PQ67) -> 0.0 | RL67: 0.0 | RM67: 0.0 | RN67: 0.0 | RO67: 0.0 | RP67: 0.0 | RQ67: 0.0 | RR67: 0.0 | RS67: 0.0 | RT67: 0.0 | RU67: 0.0 | RV67: 0.0 | RW67: =SUM(QE67:RU67)-SUM(RI67:RM67)-SUM(RQ67:RT67) -> 0
A68: TOTALES | D68: FEMENINO | E68: =SUMIF($D$8:$D$67,$D68,E$8:E$67) -> 3,369 | F68: 68 | G68: 12 | H68: 6 | I68: 3,401 | J68: 101 | K68: 1 | L68: 1 | M68: 0 | N68: 0 | O68: =SUMIF($D$8:$D$67,$D68,O$8:O$67) -> 20 | P68: 56 | Q68: 2 | R68: 4 | S68: 21 | T68: 5 | U68: 2 | V68: 15 | W68: 2 | X68: 1 | Y68: =SUMIF($D$8:$D$67,$D68,Y$8:Y$67) -> 11 | Z68: 0 | AA68: 3 | AB68: 9 | AC68: 0 | AD68: 0 | AE68: 0 | AF68: 0 | AG68: 0 | AH68: 0 | AI68: =SUMIF($D$8:$D$67,$D68,AI$8:AI$67) -> 0 | AJ68: 0 | AK68: 0 | AL68: 0 | AM68: 0 | AN68: 0 | AO68: 0 | AP68: 0 | AQ68: 0 | AR68: 0 | AS68: =SUMIF($D$8:$D$67,$D68,AS$8:AS$67) -> 0 | AT68: 0 | AU68: 0 | AV68: 0 | AW68: 0 | AX68: 0 | AY68: 0 | AZ68: 13 | BA68: 0 | BB68: 1 | BC68: =SUMIF($D$8:$D$67,$D68,BC$8:BC$67) -> 0 | BD68: 3 | BE68: 0 | BF68: 0 | BG68: 0 | BH68: 12 | BI68: 2 | BJ68: 0 | BK68: 0 | BL68: 297 | BM68: =SUMIF($D$8:$D$67,$D68,BM$8:BM$67) -> 61 | BN68: 38 | BO68: 0 | BP68: 2,258 | BQ68: 2,203 | BR68: 2,424 | BS68: 2 | BT68: 20 | BU68: 61 | BV68: 3 | BW68: =SUMIF($D$8:$D$67,$D68,BW$8:BW$67) -> 4 | BX68: 18 | BY68: 4 | BZ68: 2 | CA68: 14 | CB68: 2 | CC68: 1 | CD68: 10 | CE68: 1 | CF68: 1 | CG68: =SUMIF($D$8:$D$67,$D68,CG$8:CG$67) -> 7 | CH68: 2,221 | CI68: 174 | CJ68: 52 | CK68: 26 | CL68: 40 | CM68: 0 | CN68: 0 | CO68: 36 | CP68: 0 | CQ68: =SUMIF($D$8:$D$67,$D68,CQ$8:CQ$67) -> 0 | CR68: 27 | CS68: 0 | CT68: 0 | CU68: 1 | CV68: 0 | CW68: 0 | CX68: 31 | CY68: 7 | CZ68: 0 | DA68: =SUMIF($D$8:$D$67,$D68,DA$8:DA$67) -> 2 | DB68: 1 | DC68: 0 | DD68: 0 | DE68: 3,334 | DF68: 2,257 | DG68: 2,199 | DH68: 2,426 | DI68: 2 | DJ68: 0 | DK68: =SUMIF($D$8:$D$67,$D68,DK$8:DK$67) -> 0 | DL68: 0 | DM68: 0 | DN68: 0 | DO68: 0 | DP68: 0 | DQ68: 0 | DR68: 0 | DS68: 0 | DT68: 0 | DU68: =SUMIF($D$8:$D$67,$D68,DU$8:DU$67) -> 0 | DV68: 0 | DW68: 0 | DX68: 2 | DY68: 21 | DZ68: 58 | EA68: 2 | EB68: 4 | EC68: 19 | ED68: 5 | EE68: =SUMIF($D$8:$D$67,$D68,EE$8:EE$67) -> 1 | EF68: 15 | EG68: 2 | EH68: 1 | EI68: 11 | EJ68: 0 | EK68: 2 | EL68: 9 | EM68: 2,245 | EN68: 183 | EO68: =SUMIF($D$8:$D$67,$D68,EO$8:EO$67) -> 53 | EP68: 30 | EQ68: 35 | ER68: 0 | ES68: 0 | ET68: 3,346 | EU68: 1 | EV68: 1 | EW68: 0 | EX68: 0 | EY68: =SUMIF($D$8:$D$67,$D68,EY$8:EY$67) -> 0 | EZ68: 0 | FA68: 0 | FB68: 0 | FC68: 0 | FD68: 0 | FE68: 1 | FF68: 0 | FG68: 0 | FH68: 0 | FI68: =SUMIF($D$8:$D$67,$D68,FI$8:FI$67) -> 0 | FJ68: 0 | FK68: 0 | FL68: 0 | FM68: 7 | FN68: 0 | FO68: 0 | FP68: 0 | FQ68: 0 | FR68: 0 | FS68: =SUMIF($D$8:$D$67,$D68,FS$8:FS$67) -> 0 | FT68: 16 | FU68: 0 | FV68: 0 | FW68: 0 | FX68: 0 | FY68: 6 | FZ68: 0 | GA68: 0 | GB68: 0 | GC68: =SUMIF($D$8:$D$67,$D68,GC$8:GC$67) -> 0 | GD68: 0 | GE68: 0 | GF68: 0 | GG68: 0 | GH68: 0 | GI68: 0 | GJ68: 0 | GK68: 0 | GL68: 0 | GM68: =SUMIF($D$8:$D$67,$D68,GM$8:GM$67) -> 0 | GN68: 0 | GO68: 0 | GP68: 0 | GQ68: 0 | GR68: 0 | GS68: 0 | GT68: 0 | GU68: 0 | GV68: 0 | GW68: =SUMIF($D$8:$D$67,$D68,GW$8:GW$67) -> 0 | GX68: 0 | GY68: 0 | GZ68: 0 | HA68: 0 | HB68: 0 | HC68: 0 | HD68: 0 | HE68: 2,521 | HF68: 2,440 | HG68: =SUMIF($D$8:$D$67,$D68,HG$8:HG$67) -> 403 | HH68: 2,451 | HI68: 2,575 | HJ68: 43 | HK68: 50 | HL68: 153 | HM68: 2,255 | HN68: 0 | HO68: 0 | HP68: 0 | HQ68: =SUMIF($D$8:$D$67,$D68,HQ$8:HQ$67) -> 0 | HR68: 0 | HS68: 2,609 | HT68: 28 | HU68: 18 | HV68: 12 | HW68: 4 | HX68: 2 | HY68: 1 | HZ68: 0 | IA68: =SUMIF($D$8:$D$67,$D68,IA$8:IA$67) -> 0 | IB68: 0 | IC68: 0 | ID68: 3,515 | IE68: 50 | IF68: 28 | IG68: 7 | IH68: 10 | II68: 3 | IJ68: 0 | IK68: =SUMIF($D$8:$D$67,$D68,IK$8:IK$67) -> 19 | IL68: 217 | IM68: 28 | IN68: 68 | IO68: 89 | IP68: 105 | IQ68: 111 | IR68: 99 | IS68: 76 | IT68: 82 | IU68: =SUMIF($D$8:$D$67,$D68,IU$8:IU$67) -> 74 | IV68: 77 | IW68: 97 | IX68: 70 | IY68: 651 | IZ68: 317 | JA68: 234 | JB68: 2,420 | JC68: 171 | JD68: 49 | JE68: =SUMIF($D$8:$D$67,$D68,JE$8:JE$67) -> 33 | JF68: 34 | JG68: 10 | JH68: 6 | JI68: 6 | JJ68: 5 | JK68: 3 | JL68: 6 | JM68: 6 | JN68: 29 | JO68: =SUMIF($D$8:$D$67,$D68,JO$8:JO$67) -> 80 | JP68: 1,689 | JQ68: 762 | JR68: 472 | JS68: 340 | JT68: 0 | JU68: 2,722 | JV68: 51 | JW68: 51 | JX68: 40 | JY68: =SUMIF($D$8:$D$67,$D68,JY$8:JY$67) -> 46 | JZ68: 30 | KA68: 10 | KB68: 8 | KC68: 7 | KD68: 1 | KE68: 2,634 | KF68: 48 | KG68: 51 | KH68: 40 | KI68: =SUMIF($D$8:$D$67,$D68,KI$8:KI$67) -> 49 | KJ68: 29 | KK68: 9 | KL68: 2 | KM68: 3,479 | KN68: 42 | KO68: 37 | KP68: 0 | KQ68: 7 | KR68: 0 | KS68: =SUMIF($D$8:$D$67,$D68,KS$8:KS$67) -> 0 | KT68: 0 | KU68: 19 | KV68: 97 | KW68: 31 | KX68: 0 | KY68: 3 | KZ68: 1 | LA68: 1,921 | LB68: 879 | LC68: =SUMIF($D$8:$D$67,$D68,LC$8:LC$67) -> 373 | LD68: 257 | LE68: 138 | LF68: 17 | LG68: 0 | LH68: 0 | LI68: 0 | LJ68: 595 | LK68: 291 | LL68: 92 | LM68: =SUMIF($D$8:$D$67,$D68,LM$8:LM$67) -> 24 | LN68: 5 | LO68: 2,240 | LP68: 1,513 | LQ68: 1,815 | LR68: 1,140 | LS68: 816 | LT68: 173 | LU68: 0 | LV68: 0 | LW68: =SUMIF($D$8:$D$67,$D68,LW$8:LW$67) -> 0 | LX68: 0 | LY68: 0 | LZ68: 0 | MA68: 0 | MB68: 0 | MC68: 0 | MD68: 0 | ME68: 0 | MF68: 0 | MG68: =SUMIF($D$8:$D$67,$D68,MG$8:MG$67) -> 0 | MH68: 0 | MI68: 0 | MJ68: 0 | MK68: 0 | ML68: 4 | MM68: 3 | MN68: 0 | MO68: 2 | MP68: 4 | MQ68: =SUMIF($D$8:$D$67,$D68,MQ$8:MQ$67) -> 3 | MR68: 1 | MS68: 1 | MT68: 0 | MU68: 1 | MV68: 29 | MW68: 49 | MX68: 69 | MY68: 5 | MZ68: 1 | NA68: =SUMIF($D$8:$D$67,$D68,NA$8:NA$67) -> 0 | NB68: 1,280 | NC68: 838 | ND68: 1,542 | NE68: 508 | NF68: 382 | NG68: 237 | NH68: 3,456 | NI68: 3,570 | NJ68: 1,798 | NK68: =SUMIF($D$8:$D$67,$D68,NK$8:NK$67) -> 1,605 | NL68: 2,877 | NM68: 36 | NN68: 20 | NO68: 211 | NP68: 30,293 | NQ68: 6,438 | NR68: 4 | NS68: 0 | NT68: 918 | NU68: =SUMIF($D$8:$D$67,$D68,NU$8:NU$67) -> 951 | NV68: 13,480 | NW68: 0 | NX68: 0 | NY68: 0 | NZ68: 0 | OA68: 0 | OB68: 1 | OC68: 1,550 | OD68: 343 | OE68: =SUMIF($D$8:$D$67,$D68,OE$8:OE$67) -> 0 | OF68: 649 | OG68: 551 | OH68: 0 | OI68: 601 | OJ68: 510 | OK68: 0 | OL68: 502 | OM68: 393 | ON68: 2 | OO68: =SUMIF($D$8:$D$67,$D68,OO$8:OO$67) -> 440 | OP68: 346 | OQ68: 0 | OR68: 425 | OS68: 281 | OT68: 1 | OU68: 468 | OV68: 271 | OW68: 0 | OX68: 339 | OY68: =SUMIF($D$8:$D$67,$D68,OY$8:OY$67) -> 228 | OZ68: 0 | PA68: 179 | PB68: 202 | PC68: 1 | PD68: 47 | PE68: 0 | PF68: 0 | PG68: 0 | PH68: 0 | PI68: =SUMIF($D$8:$D$67,$D68,PI$8:PI$67) -> 0 | PJ68: 0 | PK68: 0 | PL68: 0 | PM68: 0 | PN68: 585 | PO68: 206 | PP68: 155 | PQ68: 155 | PR68: 182 | PS68: =SUMIF($D$8:$D$67,$D68,PS$8:PS$67) -> 51 | PT68: 1 | PU68: 0 | PV68: 1 | PW68: 36 | PX68: 24 | PY68: 0 | PZ68: 0 | QA68: 8 | QB68: 1 | QC68: =SUM(E68:QB68)-(PQ68+PS68+PU68+PV68+PX68) -> 163,150 | QE68: =SUMIF($D$8:$D$67,$D68,QE$8:QE$67) -> 3,455.0 | QF68: 4,082.0 | QG68: 9,612.0 | QH68: 3,375.0 | QI68: 6,884.0 | QJ68: 6,044.0 | QK68: 32.0 | QL68: 0.0 | QM68: 4,961.0 | QN68: 5,675.0 | QO68: =SUMIF($D$8:$D$67,$D68,QO$8:QO$67) -> 2,255.0 | QP68: 6,287.0 | QQ68: 2,414.0 | QR68: 6,121.0 | QS68: 2,966.0 | QT68: 6,420.0 | QU68: 12,466.0 | QV68: 4,940.0 | QW68: 7,026.0 | QX68: 6,280.0 | QY68: =SUMIF($D$8:$D$67,$D68,QY$8:QY$67) -> 267.0 | QZ68: 30,293.0 | RA68: 6,438.0 | RB68: 922.0 | RC68: 951.0 | RD68: 13,480.0 | RE68: 1.0 | RF68: 8,329.0 | RG68: 0.0 | RH68: 0.0 | RI68: =SUMIF($D$8:$D$67,$D68,RI$8:RI$67) -> 0.0 | RJ68: 946.0 | RK68: 155.0 | RL68: 182.0 | RM68: 51.0 | RN68: 2.0 | RO68: 1.0 | RP68: 1.0 | RQ68: 36.0 | RR68: 24.0 | RS68: 0.0 | RT68: 0.0 | RU68: 8.0 | RV68: 1.0 | RW68: 161,988
D69: MASCULINO | E69: 3,161 | F69: 93 | G69: 10 | H69: 4 | I69: 3,114 | J69: 109 | K69: 1 | L69: 0 | M69: 1 | N69: 2 | O69: 24 | P69: 39 | Q69: 4 | R69: 8 | S69: 15 | T69: 3 | U69: 7 | V69: 4 | W69: 1 | X69: 1 | Y69: 5 | Z69: 1 | AA69: 2 | AB69: 4 | AC69: 0 | AD69: 0 | AE69: 0 | AF69: 0 | AG69: 0 | AH69: 0 | AI69: 0 | AJ69: 0 | AK69: 0 | AL69: 0 | AM69: 0 | AN69: 0 | AO69: 0 | AP69: 0 | AQ69: 0 | AR69: 0 | AS69: 0 | AT69: 0 | AU69: 0 | AV69: 0 | AW69: 0 | AX69: 0 | AY69: 0 | AZ69: 1 | BA69: 0 | BB69: 0 | BC69: 0 | BD69: 0 | BE69: 0 | BF69: 0 | BG69: 0 | BH69: 2 | BI69: 0 | BJ69: 0 | BK69: 0 | BL69: 274 | BM69: 44 | BN69: 25 | BO69: 7 | BP69: 2,396 | BQ69: 2,226 | BR69: 2,475 | BS69: 10 | BT69: 24 | BU69: 41 | BV69: 4 | BW69: 8 | BX69: 15 | BY69: 3 | BZ69: 7 | CA69: 5 | CB69: 0 | CC69: 1 | CD69: 5 | CE69: 0 | CF69: 3 | CG69: 4 | CH69: 2,230 | CI69: 207 | CJ69: 50 | CK69: 22 | CL69: 39 | CM69: 0 | CN69: 0 | CO69: 31 | CP69: 1 | CQ69: 0 | CR69: 23 | CS69: 0 | CT69: 0 | CU69: 7 | CV69: 0 | CW69: 0 | CX69: 23 | CY69: 3 | CZ69: 0 | DA69: 0 | DB69: 2 | DC69: 0 | DD69: 0 | DE69: 3,586 | DF69: 2,389 | DG69: 2,228 | DH69: 2,469 | DI69: 7 | DJ69: 0 | DK69: 0 | DL69: 0 | DM69: 0 | DN69: 0 | DO69: 0 | DP69: 0 | DQ69: 0 | DR69: 0 | DS69: 0 | DT69: 0 | DU69: 0 | DV69: 0 | DW69: 0 | DX69: 4 | DY69: 24 | DZ69: 39 | EA69: 4 | EB69: 8 | EC69: 13 | ED69: 3 | EE69: 7 | EF69: 3 | EG69: 1 | EH69: 1 | EI69: 4 | EJ69: 0 | EK69: 3 | EL69: 4 | EM69: 2,242 | EN69: 211 | EO69: 54 | EP69: 26 | EQ69: 34 | ER69: 0 | ES69: 0 | ET69: 3,600 | EU69: 1 | EV69: 0 | EW69: 4 | EX69: 0 | EY69: 0 | EZ69: 0 | FA69: 0 | FB69: 0 | FC69: 1 | FD69: 0 | FE69: 0 | FF69: 0 | FG69: 0 | FH69: 0 | FI69: 0 | FJ69: 0 | FK69: 0 | FL69: 0 | FM69: 10 | FN69: 2 | FO69: 1 | FP69: 0 | FQ69: 0 | FR69: 0 | FS69: 0 | FT69: 11 | FU69: 0 | FV69: 0 | FW69: 0 | FX69: 1 | FY69: 5 | FZ69: 0 | GA69: 0 | GB69: 0 | GC69: 0 | GD69: 0 | GE69: 0 | GF69: 0 | GG69: 0 | GH69: 0 | GI69: 0 | GJ69: 0 | GK69: 0 | GL69: 0 | GM69: 0 | GN69: 0 | GO69: 0 | GP69: 0 | GQ69: 0 | GR69: 0 | GS69: 0 | GT69: 0 | GU69: 0 | GV69: 0 | GW69: 0 | GX69: 0 | GY69: 0 | GZ69: 0 | HA69: 0 | HB69: 0 | HC69: 0 | HD69: 0 | HE69: 2,613 | HF69: 2,487 | HG69: 486 | HH69: 2,498 | HI69: 2,682 | HJ69: 48 | HK69: 52 | HL69: 145 | HM69: 2,251 | HN69: 0 | HO69: 0 | HP69: 0 | HQ69: 0 | HR69: 0 | HS69: 2,732 | HT69: 26 | HU69: 16 | HV69: 6 | HW69: 8 | HX69: 4 | HY69: 3 | HZ69: 0 | IA69: 0 | IB69: 0 | IC69: 0 | ID69: 3,785 | IE69: 47 | IF69: 28 | IG69: 14 | IH69: 5 | II69: 9 | IJ69: 2 | IK69: 17 | IL69: 163 | IM69: 44 | IN69: 74 | IO69: 102 | IP69: 86 | IQ69: 125 | IR69: 110 | IS69: 102 | IT69: 111 | IU69: 94 | IV69: 75 | IW69: 92 | IX69: 65 | IY69: 323 | IZ69: 203 | JA69: 107 | JB69: 2,389 | JC69: 195 | JD69: 51 | JE69: 18 | JF69: 37 | JG69: 8 | JH69: 5 | JI69: 4 | JJ69: 7 | JK69: 4 | JL69: 6 | JM69: 8 | JN69: 20 | JO69: 59 | JP69: 1,578 | JQ69: 889 | JR69: 450 | JS69: 265 | JT69: 0 | JU69: 2,838 | JV69: 53 | JW69: 44 | JX69: 37 | JY69: 44 | JZ69: 31 | KA69: 26 | KB69: 9 | KC69: 5 | KD69: 2 | KE69: 2,762 | KF69: 50 | KG69: 43 | KH69: 33 | KI69: 48 | KJ69: 30 | KK69: 22 | KL69: 1 | KM69: 3,745 | KN69: 47 | KO69: 20 | KP69: 0 | KQ69: 7 | KR69: 0 | KS69: 0 | KT69: 2 | KU69: 27 | KV69: 0 | KW69: 0 | KX69: 0 | KY69: 0 | KZ69: 0 | LA69: 1 | LB69: 0 | LC69: 0 | LD69: 0 | LE69: 0 | LF69: 0 | LG69: 0 | LH69: 0 | LI69: 0 | LJ69: 0 | LK69: 0 | LL69: 0 | LM69: 0 | LN69: 0 | LO69: 0 | LP69: 0 | LQ69: 0 | LR69: 0 | LS69: 0 | LT69: 0 | LU69: 0 | LV69: 0 | LW69: 0 | LX69: 21 | LY69: 1 | LZ69: 0 | MA69: 0 | MB69: 1 | MC69: 269 | MD69: 52 | ME69: 23 | MF69: 4 | MG69: 0 | MH69: 1 | MI69: 0 | MJ69: 0 | MK69: 0 | ML69: 8 | MM69: 0 | MN69: 0 | MO69: 0 | MP69: 1 | MQ69: 7 | MR69: 0 | MS69: 0 | MT69: 0 | MU69: 1 | MV69: 0 | MW69: 0 | MX69: 0 | MY69: 0 | MZ69: 0 | NA69: 0 | NB69: 0 | NC69: 0 | ND69: 1 | NE69: 0 | NF69: 0 | NG69: 0 | NH69: 3,554 | NI69: 3,726 | NJ69: 1,965 | NK69: 1,572 | NL69: 2,825 | NM69: 43 | NN69: 27 | NO69: 288 | NP69: 20,177 | NQ69: 2 | NR69: 5 | NS69: 0 | NT69: 1,111 | NU69: 778 | NV69: 8,724 | NW69: 0 | NX69: 0 | NY69: 0 | NZ69: 0 | OA69: 0 | OB69: 1 | OC69: 6 | OD69: 0 | OE69: 0 | OF69: 1 | OG69: 3 | OH69: 0 | OI69: 3 | OJ69: 0 | OK69: 0 | OL69: 4 | OM69: 0 | ON69: 0 | OO69: 1 | OP69: 1 | OQ69: 0 | OR69: 3 | OS69: 0 | OT69: 0 | OU69: 1 | OV69: 0 | OW69: 0 | OX69: 0 | OY69: 2 | OZ69: 0 | PA69: 0 | PB69: 0 | PC69: 0 | PD69: 0 | PE69: 0 | PF69: 0 | PG69: 0 | PH69: 0 | PI69: 0 | PJ69: 0 | PK69: 0 | PL69: 0 | PM69: 0 | PN69: 562 | PO69: 221 | PP69: 127 | PQ69: 127 | PR69: 203 | PS69: 50 | PT69: 2 | PU69: 1 | PV69: 1 | PW69: 6 | PX69: 2 | PY69: 2 | PZ69: 1 | QA69: 0 | QB69: 0 | QC69: =SUM(E69:QB69)-(PQ69+PS69+PU69+PV69+PX69) -> 117,928 | QE69: 3,268.0 | QF69: 3,698.0 | QG69: 9,837.0 | QH69: 3,614.0 | QI69: 7,093.0 | QJ69: 6,285.0 | QK69: 36.0 | QL69: 0.0 | QM69: 5,100.0 | QN69: 5,911.0 | QO69: 2,251.0 | QP69: 6,685.0 | QQ69: 1,893.0 | QR69: 5,993.0 | QS69: 3,089.0 | QT69: 6,801.0 | QU69: 426.0 | QV69: 1.0 | QW69: 7,280.0 | QX69: 6,362.0 | QY69: 358.0 | QZ69: 20,177.0 | RA69: 2.0 | RB69: 1,116.0 | RC69: 778.0 | RD69: 8,724.0 | RE69: 1.0 | RF69: 25.0 | RG69: 0.0 | RH69: 0.0 | RI69: 0.0 | RJ69: 910.0 | RK69: 127.0 | RL69: 203.0 | RM69: 50.0 | RN69: 4.0 | RO69: 1.0 | RP69: 1.0 | RQ69: 6.0 | RR69: 2.0 | RS69: 2.0 | RT69: 1.0 | RU69: 0.0 | RV69: 0.0 | RW69: 116,810
D70: OTRO | E70: 1 | F70: 0 | G70: 0 | H70: 0 | I70: 1 | J70: 0 | K70: 0 | L70: 0 | M70: 0 | N70: 0 | O70: 0 | P70: 0 | Q70: 0 | R70: 0 | S70: 0 | T70: 0 | U70: 0 | V70: 0 | W70: 0 | X70: 0 | Y70: 0 | Z70: 0 | AA70: 0 | AB70: 0 | AC70: 0 | AD70: 0 | AE70: 0 | AF70: 0 | AG70: 0 | AH70: 0 | AI70: 0 | AJ70: 0 | AK70: 0 | AL70: 0 | AM70: 0 | AN70: 0 | AO70: 0 | AP70: 0 | AQ70: 0 | AR70: 0 | AS70: 0 | AT70: 0 | AU70: 0 | AV70: 0 | AW70: 0 | AX70: 0 | AY70: 0 | AZ70: 0 | BA70: 0 | BB70: 0 | BC70: 0 | BD70: 0 | BE70: 0 | BF70: 0 | BG70: 0 | BH70: 0 | BI70: 0 | BJ70: 0 | BK70: 0 | BL70: 0 | BM70: 0 | BN70: 0 | BO70: 0 | BP70: 0 | BQ70: 0 | BR70: 0 | BS70: 0 | BT70: 0 | BU70: 0 | BV70: 0 | BW70: 0 | BX70: 0 | BY70: 0 | BZ70: 0 | CA70: 0 | CB70: 0 | CC70: 0 | CD70: 0 | CE70: 0 | CF70: 0 | CG70: 0 | CH70: 0 | CI70: 0 | CJ70: 0 | CK70: 0 | CL70: 0 | CM70: 0 | CN70: 0 | CO70: 0 | CP70: 0 | CQ70: 0 | CR70: 0 | CS70: 0 | CT70: 0 | CU70: 0 | CV70: 0 | CW70: 0 | CX70: 0 | CY70: 0 | CZ70: 0 | DA70: 0 | DB70: 0 | DC70: 0 | DD70: 0 | DE70: 0 | DF70: 0 | DG70: 0 | DH70: 0 | DI70: 0 | DJ70: 0 | DK70: 0 | DL70: 0 | DM70: 0 | DN70: 0 | DO70: 0 | DP70: 0 | DQ70: 0 | DR70: 0 | DS70: 0 | DT70: 0 | DU70: 0 | DV70: 0 | DW70: 0 | DX70: 0 | DY70: 0 | DZ70: 0 | EA70: 0 | EB70: 0 | EC70: 0 | ED70: 0 | EE70: 0 | EF70: 0 | EG70: 0 | EH70: 0 | EI70: 0 | EJ70: 0 | EK70: 0 | EL70: 0 | EM70: 0 | EN70: 0 | EO70: 0 | EP70: 0 | EQ70: 0 | ER70: 0 | ES70: 0 | ET70: 0 | EU70: 0 | EV70: 0 | EW70: 0 | EX70: 0 | EY70: 0 | EZ70: 0 | FA70: 0 | FB70: 0 | FC70: 0 | FD70: 0 | FE70: 0 | FF70: 0 | FG70: 0 | FH70: 0 | FI70: 0 | FJ70: 0 | FK70: 0 | FL70: 0 | FM70: 0 | FN70: 0 | FO70: 0 | FP70: 0 | FQ70: 0 | FR70: 0 | FS70: 0 | FT70: 0 | FU70: 0 | FV70: 0 | FW70: 0 | FX70: 0 | FY70: 0 | FZ70: 0 | GA70: 0 | GB70: 0 | GC70: 0 | GD70: 0 | GE70: 0 | GF70: 0 | GG70: 0 | GH70: 0 | GI70: 0 | GJ70: 0 | GK70: 0 | GL70: 0 | GM70: 0 | GN70: 0 | GO70: 0 | GP70: 0 | GQ70: 0 | GR70: 0 | GS70: 0 | GT70: 0 | GU70: 0 | GV70: 0 | GW70: 0 | GX70: 0 | GY70: 0 | GZ70: 0 | HA70: 0 | HB70: 0 | HC70: 0 | HD70: 0 | HE70: 0 | HF70: 0 | HG70: 0 | HH70: 0 | HI70: 0 | HJ70: 0 | HK70: 0 | HL70: 1 | HM70: 0 | HN70: 0 | HO70: 0 | HP70: 0 | HQ70: 0 | HR70: 0 | HS70: 0 | HT70: 0 | HU70: 0 | HV70: 0 | HW70: 0 | HX70: 0 | HY70: 0 | HZ70: 0 | IA70: 0 | IB70: 0 | IC70: 0 | ID70: 0 | IE70: 0 | IF70: 0 | IG70: 0 | IH70: 0 | II70: 0 | IJ70: 0 | IK70: 0 | IL70: 0 | IM70: 0 | IN70: 0 | IO70: 0 | IP70: 0 | IQ70: 0 | IR70: 0 | IS70: 0 | IT70: 0 | IU70: 0 | IV70: 0 | IW70: 0 | IX70: 0 | IY70: 0 | IZ70: 0 | JA70: 0 | JB70: 0 | JC70: 0 | JD70: 0 | JE70: 0 | JF70: 0 | JG70: 0 | JH70: 0 | JI70: 0 | JJ70: 0 | JK70: 0 | JL70: 0 | JM70: 0 | JN70: 0 | JO70: 0 | JP70: 0 | JQ70: 1 | JR70: 0 | JS70: 0 | JT70: 0 | JU70: 0 | JV70: 0 | JW70: 1 | JX70: 0 | JY70: 0 | JZ70: 0 | KA70: 0 | KB70: 0 | KC70: 0 | KD70: 0 | KE70: 0 | KF70: 0 | KG70: 1 | KH70: 0 | KI70: 0 | KJ70: 0 | KK70: 0 | KL70: 0 | KM70: 0 | KN70: 0 | KO70: 0 | KP70: 0 | KQ70: 0 | KR70: 0 | KS70: 0 | KT70: 0 | KU70: 0 | KV70: 0 | KW70: 0 | KX70: 0 | KY70: 0 | KZ70: 0 | LA70: 0 | LB70: 0 | LC70: 0 | LD70: 0 | LE70: 0 | LF70: 0 | LG70: 0 | LH70: 0 | LI70: 0 | LJ70: 0 | LK70: 0 | LL70: 0 | LM70: 0 | LN70: 0 | LO70: 0 | LP70: 0 | LQ70: 0 | LR70: 0 | LS70: 0 | LT70: 0 | LU70: 0 | LV70: 0 | LW70: 0 | LX70: 0 | LY70: 0 | LZ70: 0 | MA70: 0 | MB70: 0 | MC70: 0 | MD70: 0 | ME70: 0 | MF70: 0 | MG70: 0 | MH70: 0 | MI70: 0 | MJ70: 0 | MK70: 0 | ML70: 0 | MM70: 0 | MN70: 0 | MO70: 0 | MP70: 0 | MQ70: 0 | MR70: 0 | MS70: 0 | MT70: 0 | MU70: 0 | MV70: 0 | MW70: 0 | MX70: 0 | MY70: 0 | MZ70: 0 | NA70: 0 | NB70: 0 | NC70: 0 | ND70: 0 | NE70: 0 | NF70: 0 | NG70: 0 | NH70: 0 | NI70: 1 | NJ70: 0 | NK70: 0 | NL70: 0 | NM70: 0 | NN70: 0 | NO70: 0 | NP70: 2 | NQ70: 0 | NR70: 0 | NS70: 0 | NT70: 0 | NU70: 0 | NV70: 1 | NW70: 0 | NX70: 0 | NY70: 0 | NZ70: 0 | OA70: 0 | OB70: 0 | OC70: 0 | OD70: 0 | OE70: 0 | OF70: 0 | OG70: 0 | OH70: 0 | OI70: 0 | OJ70: 0 | OK70: 0 | OL70: 0 | OM70: 0 | ON70: 0 | OO70: 0 | OP70: 0 | OQ70: 0 | OR70: 0 | OS70: 0 | OT70: 0 | OU70: 0 | OV70: 0 | OW70: 0 | OX70: 0 | OY70: 0 | OZ70: 0 | PA70: 0 | PB70: 0 | PC70: 0 | PD70: 0 | PE70: 0 | PF70: 0 | PG70: 0 | PH70: 0 | PI70: 0 | PJ70: 0 | PK70: 0 | PL70: 0 | PM70: 0 | PN70: 0 | PO70: 0 | PP70: 0 | PQ70: 0 | PR70: 0 | PS70: 0 | PT70: 0 | PU70: 0 | PV70: 0 | PW70: 0 | PX70: 0 | PY70: 0 | PZ70: 0 | QA70: 0 | QB70: 0 | QC70: 10 | QE70: 1.0 | QF70: 1.0 | QG70: 0.0 | QH70: 0.0 | QI70: 0.0 | QJ70: 0.0 | QK70: 0.0 | QL70: 0.0 | QM70: 0.0 | QN70: 1.0 | QO70: 0.0 | QP70: 0.0 | QQ70: 0.0 | QR70: 1.0 | QS70: 1.0 | QT70: 1.0 | QU70: 0.0 | QV70: 0.0 | QW70: 1.0 | QX70: 0.0 | QY70: 0.0 | QZ70: 2.0 | RA70: 0.0 | RB70: 0.0 | RC70: 0.0 | RD70: 1.0 | RE70: 0.0 | RF70: 0.0 | RG70: 0.0 | RH70: 0.0 | RI70: 0.0 | RJ70: 0.0 | RK70: 0.0 | RL70: 0.0 | RM70: 0.0 | RN70: 0.0 | RO70: 0.0 | RP70: 0.0 | RQ70: 0.0 | RR70: 0.0 | RS70: 0.0 | RT70: 0.0 | RU70: 0.0 | RV70: 0.0 | RW70: 10
D71: TOTAL GENERO | E71: =SUM(E68:E70) -> 6,531 | F71: =SUM(F68:F70) -> 161 | G71: 22 | H71: 10 | I71: 6,516 | J71: 210 | K71: 2 | L71: 1 | M71: 1 | N71: 2 | O71: 44 | P71: 95 | Q71: 6 | R71: 12 | S71: 36 | T71: 8 | U71: 9 | V71: 19 | W71: 3 | X71: 2 | Y71: 16 | Z71: 1 | AA71: 5 | AB71: 13 | AC71: 0 | AD71: 0 | AE71: 0 | AF71: 0 | AG71: 0 | AH71: 0 | AI71: 0 | AJ71: 0 | AK71: 0 | AL71: 0 | AM71: 0 | AN71: 0 | AO71: 0 | AP71: 0 | AQ71: 0 | AR71: 0 | AS71: 0 | AT71: 0 | AU71: 0 | AV71: 0 | AW71: 0 | AX71: 0 | AY71: 0 | AZ71: 14 | BA71: 0 | BB71: 1 | BC71: 0 | BD71: 3 | BE71: 0 | BF71: 0 | BG71: 0 | BH71: 14 | BI71: 2 | BJ71: 0 | BK71: 0 | BL71: 571 | BM71: 105 | BN71: 63 | BO71: 7 | BP71: 4,654 | BQ71: 4,429 | BR71: =SUM(BR68:BR70) -> 4,899 | BS71: 12 | BT71: 44 | BU71: 102 | BV71: 7 | BW71: 12 | BX71: 33 | BY71: 7 | BZ71: 9 | CA71: 19 | CB71: 2 | CC71: 2 | CD71: 15 | CE71: 1 | CF71: 4 | CG71: 11 | CH71: 4,451 | CI71: 381 | CJ71: 102 | CK71: 48 | CL71: 79 | CM71: 0 | CN71: 0 | CO71: 67 | CP71: 1 | CQ71: 0 | CR71: 50 | CS71: 0 | CT71: 0 | CU71: 8 | CV71: 0 | CW71: 0 | CX71: 54 | CY71: 10 | CZ71: 0 | DA71: 2 | DB71: 3 | DC71: 0 | DD71: 0 | DE71: 6,920 | DF71: 4,646 | DG71: 4,427 | DH71: 4,895 | DI71: 9 | DJ71: 0 | DK71: 0 | DL71: 0 | DM71: 0 | DN71: 0 | DO71: 0 | DP71: 0 | DQ71: 0 | DR71: 0 | DS71: 0 | DT71: 0 | DU71: 0 | DV71: 0 | DW71: 0 | DX71: 6 | DY71: 45 | DZ71: 97 | EA71: 6 | EB71: 12 | EC71: 32 | ED71: =SUM(ED68:ED70) -> 8 | EE71: 8 | EF71: 18 | EG71: 3 | EH71: 2 | EI71: 15 | EJ71: 0 | EK71: 5 | EL71: 13 | EM71: 4,487 | EN71: 394 | EO71: 107 | EP71: 56 | EQ71: 69 | ER71: 0 | ES71: 0 | ET71: 6,946 | EU71: 2 | EV71: 1 | EW71: 4 | EX71: 0 | EY71: 0 | EZ71: 0 | FA71: 0 | FB71: 0 | FC71: 1 | FD71: 0 | FE71: 1 | FF71: 0 | FG71: 0 | FH71: 0 | FI71: 0 | FJ71: 0 | FK71: 0 | FL71: 0 | FM71: 17 | FN71: 2 | FO71: 1 | FP71: 0 | FQ71: 0 | FR71: 0 | FS71: 0 | FT71: 27 | FU71: 0 | FV71: 0 | FW71: 0 | FX71: 1 | FY71: 11 | FZ71: 0 | GA71: 0 | GB71: 0 | GC71: 0 | GD71: 0 | GE71: 0 | GF71: 0 | GG71: 0 | GH71: 0 | GI71: 0 | GJ71: 0 | GK71: 0 | GL71: 0 | GM71: 0 | GN71: 0 | GO71: 0 | GP71: =SUM(GP68:GP70) -> 0 | GQ71: 0 | GR71: 0 | GS71: 0 | GT71: 0 | GU71: 0 | GV71: 0 | GW71: 0 | GX71: 0 | GY71: 0 | GZ71: 0 | HA71: 0 | HB71: 0 | HC71: 0 | HD71: 0 | HE71: 5,134 | HF71: 4,927 | HG71: 889 | HH71: 4,949 | HI71: 5,257 | HJ71: 91 | HK71: 102 | HL71: 299 | HM71: 4,506 | HN71: 0 | HO71: 0 | HP71: 0 | HQ71: 0 | HR71: 0 | HS71: 5,341 | HT71: 54 | HU71: 34 | HV71: 18 | HW71: 12 | HX71: 6 | HY71: 4 | HZ71: 0 | IA71: 0 | IB71: 0 | IC71: 0 | ID71: 7,300 | IE71: 97 | IF71: 56 | IG71: 21 | IH71: 15 | II71: 12 | IJ71: 2 | IK71: 36 | IL71: 380 | IM71: 72 | IN71: 142 | IO71: 191 | IP71: 191 | IQ71: 236 | IR71: 209 | IS71: 178 | IT71: 193 | IU71: 168 | IV71: 152 | IW71: 189 | IX71: 135 | IY71: 974 | IZ71: 520 | JA71: 341 | JB71: =SUM(JB68:JB70) -> 4,809 | JC71: 366 | JD71: 100 | JE71: 51 | JF71: 71 | JG71: 18 | JH71: 11 | JI71: 10 | JJ71: 12 | JK71: 7 | JL71: 12 | JM71: 14 | JN71: 49 | JO71: 139 | JP71: 3,267 | JQ71: 1,652 | JR71: 922 | JS71: 605 | JT71: 0 | JU71: 5,560 | JV71: 104 | JW71: 96 | JX71: 77 | JY71: 90 | JZ71: 61 | KA71: 36 | KB71: 17 | KC71: 12 | KD71: 3 | KE71: 5,396 | KF71: 98 | KG71: 95 | KH71: 73 | KI71: 97 | KJ71: 59 | KK71: 31 | KL71: 3 | KM71: 7,224 | KN71: 89 | KO71: 57 | KP71: 0 | KQ71: 14 | KR71: 0 | KS71: 0 | KT71: 2 | KU71: 46 | KV71: 97 | KW71: 31 | KX71: 0 | KY71: 3 | KZ71: 1 | LA71: 1,922 | LB71: 879 | LC71: 373 | LD71: 257 | LE71: 138 | LF71: 17 | LG71: 0 | LH71: 0 | LI71: 0 | LJ71: 595 | LK71: 291 | LL71: 92 | LM71: 24 | LN71: =SUM(LN68:LN70) -> 5 | LO71: 2,240 | LP71: 1,513 | LQ71: 1,815 | LR71: 1,140 | LS71: 816 | LT71: 173 | LU71: 0 | LV71: 0 | LW71: 0 | LX71: 21 | LY71: 1 | LZ71: 0 | MA71: 0 | MB71: 1 | MC71: 269 | MD71: 52 | ME71: 23 | MF71: 4 | MG71: 0 | MH71: 1 | MI71: 0 | MJ71: 0 | MK71: 0 | ML71: 12 | MM71: 3 | MN71: 0 | MO71: 2 | MP71: 5 | MQ71: 10 | MR71: 1 | MS71: 1 | MT71: 0 | MU71: 2 | MV71: 29 | MW71: 49 | MX71: 69 | MY71: 5 | MZ71: 1 | NA71: 0 | NB71: 1,280 | NC71: 838 | ND71: 1,543 | NE71: 508 | NF71: 382 | NG71: 237 | NH71: 7,010 | NI71: 7,297 | NJ71: 3,763 | NK71: 3,177 | NL71: 5,702 | NM71: 79 | NN71: 47 | NO71: 499 | NP71: 50,472 | NQ71: 6,440 | NR71: 9 | NS71: 0 | NT71: 2,029 | NU71: 1,729 | NV71: 22,205 | NW71: 0 | NX71: 0 | NY71: 0 | NZ71: =SUM(NZ68:NZ70) -> 0 | OA71: 0 | OB71: 2 | OC71: 1,556 | OD71: 343 | OE71: 0 | OF71: 650 | OG71: 554 | OH71: 0 | OI71: 604 | OJ71: 510 | OK71: 0 | OL71: 506 | OM71: 393 | ON71: 2 | OO71: 441 | OP71: 347 | OQ71: 0 | OR71: 428 | OS71: 281 | OT71: 1 | OU71: 469 | OV71: 271 | OW71: 0 | OX71: 339 | OY71: 230 | OZ71: 0 | PA71: 179 | PB71: 202 | PC71: 1 | PD71: 47 | PE71: 0 | PF71: 0 | PG71: 0 | PH71: 0 | PI71: 0 | PJ71: 0 | PK71: 0 | PL71: 0 | PM71: 0 | PN71: 1,147 | PO71: 427 | PP71: 282 | PQ71: 282 | PR71: 385 | PS71: 101 | PT71: 3 | PU71: 1 | PV71: 2 | PW71: 42 | PX71: 26 | PY71: 2 | PZ71: 1 | QA71: 8 | QB71: 1 | QC71: =SUM(QC68:QC70) -> 281,088 | QE71: =SUM(QE68:QE70) -> 6,724.0 | QF71: =SUM(QF68:QF70) -> 7,781.0 | QG71: 19,449.0 | QH71: 6,989.0 | QI71: 13,977.0 | QJ71: 12,329.0 | QK71: 68.0 | QL71: 0.0 | QM71: 10,061.0 | QN71: 11,587.0 | QO71: =SUM(QO68:QO70) -> 4,506.0 | QP71: 12,972.0 | QQ71: 4,307.0 | QR71: 12,115.0 | QS71: 6,056.0 | QT71: 13,222.0 | QU71: 12,892.0 | QV71: 4,941.0 | QW71: 14,307.0 | QX71: 12,642.0 | QY71: 625.0 | QZ71: 50,472.0 | RA71: 6,440.0 | RB71: =SUM(RB68:RB70) -> 2,038.0 | RC71: 1,729.0 | RD71: 22,205.0 | RE71: 2.0 | RF71: 8,354.0 | RG71: 0.0 | RH71: 0.0 | RI71: 0.0 | RJ71: 1,856.0 | RK71: =SUM(RK68:RK70) -> 282.0 | RL71: 385.0 | RM71: 101.0 | RN71: 6.0 | RO71: 2.0 | RP71: 2.0 | RQ71: 42.0 | RR71: 26.0 | RS71: 2.0 | RT71: 1.0 | RU71: 8.0 | RV71: 1.0 | RW71: 278,808
D72: CONTRIBUTIVO | E72: =SUMIF($D$8:$D$67,$D72,E$8:E$67) -> 4,943 | F72: 116 | G72: 1 | H72: 2 | I72: 4,942 | J72: 133 | K72: 2 | L72: 0 | M72: 0 | N72: 1 | O72: =SUMIF($D$8:$D$67,$D72,O$8:O$67) -> 10 | P72: 17 | Q72: 0 | R72: 1 | S72: 8 | T72: 2 | U72: 2 | V72: 1 | W72: 1 | X72: 0 | Y72: =SUMIF($D$8:$D$67,$D72,Y$8:Y$67) -> 2 | Z72: 0 | AA72: 1 | AB72: 1 | AC72: 0 | AD72: 0 | AE72: 0 | AF72: 0 | AG72: 0 | AH72: 0 | AI72: =SUMIF($D$8:$D$67,$D72,AI$8:AI$67) -> 0 | AJ72: 0 | AK72: 0 | AL72: 0 | AM72: 0 | AN72: 0 | AO72: 0 | AP72: 0 | AQ72: 0 | AR72: 0 | AS72: =SUMIF($D$8:$D$67,$D72,AS$8:AS$67) -> 0 | AT72: 0 | AU72: 0 | AV72: 0 | AW72: 0 | AX72: 0 | AY72: 0 | AZ72: 13 | BA72: 0 | BB72: 0 | BC72: =SUMIF($D$8:$D$67,$D72,BC$8:BC$67) -> 0 | BD72: 1 | BE72: 0 | BF72: 0 | BG72: 0 | BH72: 10 | BI72: 1 | BJ72: 0 | BK72: 0 | BL72: 233 | BM72: =SUMIF($D$8:$D$67,$D72,BM$8:BM$67) -> 53 | BN72: 36 | BO72: 6 | BP72: 3,223 | BQ72: 3,076 | BR72: 3,467 | BS72: 1 | BT72: 10 | BU72: 19 | BV72: 1 | BW72: =SUMIF($D$8:$D$67,$D72,BW$8:BW$67) -> 1 | BX72: 7 | BY72: 2 | BZ72: 2 | CA72: 2 | CB72: 1 | CC72: 0 | CD72: 0 | CE72: 0 | CF72: 0 | CG72: =SUMIF($D$8:$D$67,$D72,CG$8:CG$67) -> 1 | CH72: 3,222 | CI72: 173 | CJ72: 33 | CK72: 19 | CL72: 28 | CM72: 0 | CN72: 0 | CO72: 52 | CP72: 0 | CQ72: =SUMIF($D$8:$D$67,$D72,CQ$8:CQ$67) -> 0 | CR72: 19 | CS72: 0 | CT72: 0 | CU72: 3 | CV72: 0 | CW72: 0 | CX72: 27 | CY72: 5 | CZ72: 0 | DA72: =SUMIF($D$8:$D$67,$D72,DA$8:DA$67) -> 1 | DB72: 0 | DC72: 0 | DD72: 0 | DE72: 5,357 | DF72: 3,217 | DG72: 3,076 | DH72: 3,462 | DI72: 0 | DJ72: 0 | DK72: =SUMIF($D$8:$D$67,$D72,DK$8:DK$67) -> 0 | DL72: 0 | DM72: 0 | DN72: 0 | DO72: 0 | DP72: 0 | DQ72: 0 | DR72: 0 | DS72: 0 | DT72: 0 | DU72: =SUMIF($D$8:$D$67,$D72,DU$8:DU$67) -> 0 | DV72: 0 | DW72: 0 | DX72: 3 | DY72: 10 | DZ72: 17 | EA72: 0 | EB72: 1 | EC72: 6 | ED72: 2 | EE72: =SUMIF($D$8:$D$67,$D72,EE$8:EE$67) -> 1 | EF72: 1 | EG72: 1 | EH72: 0 | EI72: 1 | EJ72: 0 | EK72: 0 | EL72: 1 | EM72: 3,236 | EN72: 177 | EO72: =SUMIF($D$8:$D$67,$D72,EO$8:EO$67) -> 34 | EP72: 20 | EQ72: 25 | ER72: 0 | ES72: 0 | ET72: 5,381 | EU72: 2 | EV72: 1 | EW72: 2 | EX72: 0 | EY72: =SUMIF($D$8:$D$67,$D72,EY$8:EY$67) -> 0 | EZ72: 0 | FA72: 0 | FB72: 0 | FC72: 1 | FD72: 0 | FE72: 1 | FF72: 0 | FG72: 0 | FH72: 0 | FI72: =SUMIF($D$8:$D$67,$D72,FI$8:FI$67) -> 0 | FJ72: 0 | FK72: 0 | FL72: 0 | FM72: 12 | FN72: 2 | FO72: 0 | FP72: 0 | FQ72: 0 | FR72: 0 | FS72: =SUMIF($D$8:$D$67,$D72,FS$8:FS$67) -> 0 | FT72: 20 | FU72: 0 | FV72: 0 | FW72: 0 | FX72: 0 | FY72: 6 | FZ72: 0 | GA72: 0 | GB72: 0 | GC72: =SUMIF($D$8:$D$67,$D72,GC$8:GC$67) -> 0 | GD72: 0 | GE72: 0 | GF72: 0 | GG72: 0 | GH72: 0 | GI72: 0 | GJ72: 0 | GK72: 0 | GL72: 0 | GM72: =SUMIF($D$8:$D$67,$D72,GM$8:GM$67) -> 0 | GN72: 0 | GO72: 0 | GP72: 0 | GQ72: 0 | GR72: 0 | GS72: 0 | GT72: 0 | GU72: 0 | GV72: 0 | GW72: =SUMIF($D$8:$D$67,$D72,GW$8:GW$67) -> 0 | GX72: 0 | GY72: 0 | GZ72: 0 | HA72: 0 | HB72: 0 | HC72: 0 | HD72: 0 | HE72: 3,743 | HF72: 3,613 | HG72: =SUMIF($D$8:$D$67,$D72,HG$8:HG$67) -> 521 | HH72: 3,565 | HI72: 3,773 | HJ72: 3 | HK72: 10 | HL72: 21 | HM72: 3,384 | HN72: 0 | HO72: 0 | HP72: 0 | HQ72: =SUMIF($D$8:$D$67,$D72,HQ$8:HQ$67) -> 0 | HR72: 0 | HS72: 3,764 | HT72: 14 | HU72: 7 | HV72: 3 | HW72: 3 | HX72: 0 | HY72: 0 | HZ72: 0 | IA72: =SUMIF($D$8:$D$67,$D72,IA$8:IA$67) -> 0 | IB72: 0 | IC72: 0 | ID72: 5,660 | IE72: 37 | IF72: 18 | IG72: 5 | IH72: 7 | II72: 4 | IJ72: 1 | IK72: =SUMIF($D$8:$D$67,$D72,IK$8:IK$67) -> 16 | IL72: 263 | IM72: 49 | IN72: 89 | IO72: 116 | IP72: 119 | IQ72: 139 | IR72: 143 | IS72: 120 | IT72: 126 | IU72: =SUMIF($D$8:$D$67,$D72,IU$8:IU$67) -> 109 | IV72: 105 | IW72: 109 | IX72: 74 | IY72: 695 | IZ72: 375 | JA72: 228 | JB72: 3,565 | JC72: 186 | JD72: 42 | JE72: =SUMIF($D$8:$D$67,$D72,JE$8:JE$67) -> 24 | JF72: 32 | JG72: 6 | JH72: 3 | JI72: 4 | JJ72: 4 | JK72: 1 | JL72: 7 | JM72: 10 | JN72: 30 | JO72: =SUMIF($D$8:$D$67,$D72,JO$8:JO$67) -> 102 | JP72: 2,658 | JQ72: 1,353 | JR72: 728 | JS72: 486 | JT72: 0 | JU72: 3,939 | JV72: 16 | JW72: 9 | JX72: 4 | JY72: =SUMIF($D$8:$D$67,$D72,JY$8:JY$67) -> 8 | JZ72: 3 | KA72: 2 | KB72: 0 | KC72: 1 | KD72: 1 | KE72: 3,791 | KF72: 13 | KG72: 8 | KH72: 4 | KI72: =SUMIF($D$8:$D$67,$D72,KI$8:KI$67) -> 20 | KJ72: 1 | KK72: 2 | KL72: 0 | KM72: 5,626 | KN72: 40 | KO72: 18 | KP72: 0 | KQ72: 8 | KR72: 0 | KS72: =SUMIF($D$8:$D$67,$D72,KS$8:KS$67) -> 0 | KT72: 0 | KU72: 12 | KV72: 53 | KW72: 10 | KX72: 0 | KY72: 1 | KZ72: 0 | LA72: 1,488 | LB72: 653 | LC72: =SUMIF($D$8:$D$67,$D72,LC$8:LC$67) -> 303 | LD72: 214 | LE72: 123 | LF72: 12 | LG72: 0 | LH72: 0 | LI72: 0 | LJ72: 464 | LK72: 231 | LL72: 71 | LM72: =SUMIF($D$8:$D$67,$D72,LM$8:LM$67) -> 18 | LN72: 5 | LO72: 1,769 | LP72: 1,218 | LQ72: 1,450 | LR72: 957 | LS72: 675 | LT72: 136 | LU72: 0 | LV72: 0 | LW72: =SUMIF($D$8:$D$67,$D72,LW$8:LW$67) -> 0 | LX72: 12 | LY72: 1 | LZ72: 0 | MA72: 0 | MB72: 0 | MC72: 178 | MD72: 0 | ME72: 0 | MF72: 0 | MG72: =SUMIF($D$8:$D$67,$D72,MG$8:MG$67) -> 0 | MH72: 0 | MI72: 0 | MJ72: 0 | MK72: 0 | ML72: 10 | MM72: 1 | MN72: 0 | MO72: 2 | MP72: 2 | MQ72: =SUMIF($D$8:$D$67,$D72,MQ$8:MQ$67) -> 6 | MR72: 0 | MS72: 1 | MT72: 0 | MU72: 2 | MV72: 13 | MW72: 21 | MX72: 32 | MY72: 2 | MZ72: 1 | NA72: =SUMIF($D$8:$D$67,$D72,NA$8:NA$67) -> 0 | NB72: 1,054 | NC72: 542 | ND72: 1,235 | NE72: 419 | NF72: 317 | NG72: 210 | NH72: 5,107 | NI72: 5,452 | NJ72: 2,541 | NK72: =SUMIF($D$8:$D$67,$D72,NK$8:NK$67) -> 2,213 | NL72: 4,318 | NM72: 37 | NN72: 27 | NO72: 344 | NP72: 38,394 | NQ72: 5,022 | NR72: 2 | NS72: 0 | NT72: 1,397 | NU72: =SUMIF($D$8:$D$67,$D72,NU$8:NU$67) -> 1,129 | NV72: 16,280 | NW72: 0 | NX72: 0 | NY72: 0 | NZ72: 0 | OA72: 0 | OB72: 0 | OC72: 1,236 | OD72: 290 | OE72: =SUMIF($D$8:$D$67,$D72,OE$8:OE$67) -> 0 | OF72: 504 | OG72: 447 | OH72: 0 | OI72: 488 | OJ72: 406 | OK72: 0 | OL72: 398 | OM72: 307 | ON72: 2 | OO72: =SUMIF($D$8:$D$67,$D72,OO$8:OO$67) -> 345 | OP72: 274 | OQ72: 0 | OR72: 311 | OS72: 212 | OT72: 1 | OU72: 350 | OV72: 220 | OW72: 0 | OX72: 255 | OY72: =SUMIF($D$8:$D$67,$D72,OY$8:OY$67) -> 174 | OZ72: 0 | PA72: 122 | PB72: 167 | PC72: 1 | PD72: 33 | PE72: 0 | PF72: 0 | PG72: 0 | PH72: 0 | PI72: =SUMIF($D$8:$D$67,$D72,PI$8:PI$67) -> 0 | PJ72: 0 | PK72: 0 | PL72: 0 | PM72: 0 | PN72: 893 | PO72: 335 | PP72: 215 | PQ72: 215 | PR72: 265 | PS72: =SUMIF($D$8:$D$67,$D72,PS$8:PS$67) -> 65 | PT72: 1 | PU72: 1 | PV72: 1 | PW72: 32 | PX72: 16 | PY72: 2 | PZ72: 1 | QA72: 0 | QB72: 0 | QC72: =SUM(E72:QB72)-(PQ72+PS72+PU72+PV72+PX72) -> 206,270 | QE72: =SUMIF($D$8:$D$67,$D72,QE$8:QE$67) -> 5,062.0 | QF72: 5,477.0 | QG72: 13,362.0 | QH72: 5,390.0 | QI72: 9,755.0 | QJ72: 8,917.0 | QK72: 47.0 | QL72: 0.0 | QM72: 7,356.0 | QN72: 7,893.0 | QO72: =SUMIF($D$8:$D$67,$D72,QO$8:QO$67) -> 3,384.0 | QP72: 9,523.0 | QQ72: 2,875.0 | QR72: 9,241.0 | QS72: 3,983.0 | QT72: 9,523.0 | QU72: 10,086.0 | QV72: 3,846.0 | QW72: 10,559.0 | QX72: 9,072.0 | QY72: =SUMIF($D$8:$D$67,$D72,QY$8:QY$67) -> 408.0 | QZ72: 38,394.0 | RA72: 5,022.0 | RB72: 1,399.0 | RC72: 1,129.0 | RD72: 16,280.0 | RE72: 0.0 | RF72: 6,543.0 | RG72: 0.0 | RH72: 0.0 | RI72: =SUMIF($D$8:$D$67,$D72,RI$8:RI$67) -> 0.0 | RJ72: 1,443.0 | RK72: 215.0 | RL72: 265.0 | RM72: 65.0 | RN72: 3.0 | RO72: 1.0 | RP72: 1.0 | RQ72: 32.0 | RR72: 16.0 | RS72: 2.0 | RT72: 1.0 | RU72: 0.0 | RV72: 0.0 | RW72: 204,531
D73: SUBSIDIADO | E73: 938 | F73: 26 | G73: 3 | H73: 3 | I73: 952 | J73: 11 | K73: 0 | L73: 0 | M73: 1 | N73: 0 | O73: 11 | P73: 29 | Q73: 0 | R73: 3 | S73: 10 | T73: 2 | U73: 0 | V73: 3 | W73: 0 | X73: 1 | Y73: 2 | Z73: 0 | AA73: 2 | AB73: 2 | AC73: 0 | AD73: 0 | AE73: 0 | AF73: 0 | AG73: 0 | AH73: 0 | AI73: 0 | AJ73: 0 | AK73: 0 | AL73: 0 | AM73: 0 | AN73: 0 | AO73: 0 | AP73: 0 | AQ73: 0 | AR73: 0 | AS73: 0 | AT73: 0 | AU73: 0 | AV73: 0 | AW73: 0 | AX73: 0 | AY73: 0 | AZ73: 0 | BA73: 0 | BB73: 1 | BC73: 0 | BD73: 2 | BE73: 0 | BF73: 0 | BG73: 0 | BH73: 2 | BI73: 1 | BJ73: 0 | BK73: 0 | BL73: 208 | BM73: 21 | BN73: 12 | BO73: 1 | BP73: 969 | BQ73: 956 | BR73: 1,036 | BS73: 2 | BT73: 11 | BU73: 32 | BV73: 0 | BW73: 4 | BX73: 9 | BY73: 2 | BZ73: 0 | CA73: 2 | CB73: 0 | CC73: 1 | CD73: 2 | CE73: 0 | CF73: 2 | CG73: 1 | CH73: 946 | CI73: 114 | CJ73: 23 | CK73: 10 | CL73: 16 | CM73: 0 | CN73: 0 | CO73: 8 | CP73: 0 | CQ73: 0 | CR73: 6 | CS73: 0 | CT73: 0 | CU73: 1 | CV73: 0 | CW73: 0 | CX73: 14 | CY73: 2 | CZ73: 0 | DA73: 0 | DB73: 0 | DC73: 0 | DD73: 0 | DE73: 961 | DF73: 969 | DG73: 954 | DH73: 1,036 | DI73: 2 | DJ73: 0 | DK73: 0 | DL73: 0 | DM73: 0 | DN73: 0 | DO73: 0 | DP73: 0 | DQ73: 0 | DR73: 0 | DS73: 0 | DT73: 0 | DU73: 0 | DV73: 0 | DW73: 0 | DX73: 1 | DY73: 11 | DZ73: 29 | EA73: 0 | EB73: 3 | EC73: 10 | ED73: 2 | EE73: 0 | EF73: 2 | EG73: 0 | EH73: 1 | EI73: 2 | EJ73: 0 | EK73: 2 | EL73: 2 | EM73: 953 | EN73: 115 | EO73: 23 | EP73: 12 | EQ73: 13 | ER73: 0 | ES73: 0 | ET73: 963 | EU73: 0 | EV73: 0 | EW73: 2 | EX73: 0 | EY73: 0 | EZ73: 0 | FA73: 0 | FB73: 0 | FC73: 0 | FD73: 0 | FE73: 0 | FF73: 0 | FG73: 0 | FH73: 0 | FI73: 0 | FJ73: 0 | FK73: 0 | FL73: 0 | FM73: 5 | FN73: 0 | FO73: 0 | FP73: 0 | FQ73: 0 | FR73: 0 | FS73: 0 | FT73: 5 | FU73: 0 | FV73: 0 | FW73: 0 | FX73: 1 | FY73: 1 | FZ73: 0 | GA73: 0 | GB73: 0 | GC73: 0 | GD73: 0 | GE73: 0 | GF73: 0 | GG73: 0 | GH73: 0 | GI73: 0 | GJ73: 0 | GK73: 0 | GL73: 0 | GM73: 0 | GN73: 0 | GO73: 0 | GP73: 0 | GQ73: 0 | GR73: 0 | GS73: 0 | GT73: 0 | GU73: 0 | GV73: 0 | GW73: 0 | GX73: 0 | GY73: 0 | GZ73: 0 | HA73: 0 | HB73: 0 | HC73: 0 | HD73: 0 | HE73: 942 | HF73: 939 | HG73: 197 | HH73: 964 | HI73: 1,112 | HJ73: 5 | HK73: 20 | HL73: 26 | HM73: 781 | HN73: 0 | HO73: 0 | HP73: 0 | HQ73: 0 | HR73: 0 | HS73: 1,120 | HT73: 8 | HU73: 2 | HV73: 1 | HW73: 3 | HX73: 0 | HY73: 2 | HZ73: 0 | IA73: 0 | IB73: 0 | IC73: 0 | ID73: 985 | IE73: 16 | IF73: 7 | IG73: 4 | IH73: 3 | II73: 1 | IJ73: 0 | IK73: 16 | IL73: 87 | IM73: 17 | IN73: 25 | IO73: 33 | IP73: 34 | IQ73: 37 | IR73: 28 | IS73: 20 | IT73: 31 | IU73: 19 | IV73: 18 | IW73: 45 | IX73: 46 | IY73: 157 | IZ73: 87 | JA73: 71 | JB73: 949 | JC73: 111 | JD73: 20 | JE73: 6 | JF73: 12 | JG73: 2 | JH73: 2 | JI73: 0 | JJ73: 1 | JK73: 1 | JL73: 0 | JM73: 0 | JN73: 4 | JO73: 14 | JP73: 185 | JQ73: 65 | JR73: 44 | JS73: 29 | JT73: 0 | JU73: 1,127 | JV73: 14 | JW73: 6 | JX73: 7 | JY73: 14 | JZ73: 5 | KA73: 3 | KB73: 2 | KC73: 4 | KD73: 0 | KE73: 1,124 | KF73: 14 | KG73: 8 | KH73: 7 | KI73: 18 | KJ73: 7 | KK73: 3 | KL73: 0 | KM73: 975 | KN73: 15 | KO73: 8 | KP73: 0 | KQ73: 4 | KR73: 0 | KS73: 0 | KT73: 1 | KU73: 8 | KV73: 29 | KW73: 13 | KX73: 0 | KY73: 2 | KZ73: 1 | LA73: 285 | LB73: 155 | LC73: 48 | LD73: 33 | LE73: 13 | LF73: 5 | LG73: 0 | LH73: 0 | LI73: 0 | LJ73: 62 | LK73: 38 | LL73: 12 | LM73: 6 | LN73: 0 | LO73: 259 | LP73: 161 | LQ73: 205 | LR73: 117 | LS73: 97 | LT73: 28 | LU73: 0 | LV73: 0 | LW73: 0 | LX73: 6 | LY73: 0 | LZ73: 0 | MA73: 0 | MB73: 0 | MC73: 52 | MD73: 8 | ME73: 5 | MF73: 1 | MG73: 0 | MH73: 0 | MI73: 0 | MJ73: 0 | MK73: 0 | ML73: 2 | MM73: 2 | MN73: 0 | MO73: 0 | MP73: 2 | MQ73: 4 | MR73: 1 | MS73: 0 | MT73: 0 | MU73: 0 | MV73: 13 | MW73: 17 | MX73: 27 | MY73: 3 | MZ73: 0 | NA73: 0 | NB73: 169 | NC73: 165 | ND73: 200 | NE73: 68 | NF73: 43 | NG73: 17 | NH73: 1,379 | NI73: 1,407 | NJ73: 817 | NK73: 693 | NL73: 1,055 | NM73: 16 | NN73: 10 | NO73: 90 | NP73: 8,154 | NQ73: 923 | NR73: 2 | NS73: 0 | NT73: 302 | NU73: 319 | NV73: 3,883 | NW73: 0 | NX73: 0 | NY73: 0 | NZ73: 0 | OA73: 0 | OB73: 1 | OC73: 203 | OD73: 28 | OE73: 0 | OF73: 73 | OG73: 60 | OH73: 0 | OI73: 58 | OJ73: 54 | OK73: 0 | OL73: 59 | OM73: 51 | ON73: 0 | OO73: 46 | OP73: 37 | OQ73: 0 | OR73: 73 | OS73: 38 | OT73: 0 | OU73: 63 | OV73: 26 | OW73: 0 | OX73: 52 | OY73: 29 | OZ73: 0 | PA73: 22 | PB73: 19 | PC73: 0 | PD73: 10 | PE73: 0 | PF73: 0 | PG73: 0 | PH73: 0 | PI73: 0 | PJ73: 0 | PK73: 0 | PL73: 0 | PM73: 0 | PN73: 148 | PO73: 58 | PP73: 38 | PQ73: 38 | PR73: 100 | PS73: 29 | PT73: 1 | PU73: 0 | PV73: 0 | PW73: 7 | PX73: 7 | PY73: 0 | PZ73: 0 | QA73: 8 | QB73: 1 | QC73: 48,011 | QE73: 970.0 | QF73: 1,277.0 | QG73: 4,153.0 | QH73: 977.0 | QI73: 2,961.0 | QJ73: 2,144.0 | QK73: 14.0 | QL73: 0.0 | QM73: 1,881.0 | QN73: 2,324.0 | QO73: 781.0 | QP73: 2,152.0 | QQ73: 771.0 | QR73: 1,445.0 | QS73: 1,182.0 | QT73: 2,179.0 | QU73: 1,665.0 | QV73: 722.0 | QW73: 2,786.0 | QX73: 2,565.0 | QY73: 116.0 | QZ73: 8,154.0 | RA73: 923.0 | RB73: 304.0 | RC73: 319.0 | RD73: 3,883.0 | RE73: 1.0 | RF73: 1,001.0 | RG73: 0.0 | RH73: 0.0 | RI73: 0.0 | RJ73: 244.0 | RK73: 38.0 | RL73: 100.0 | RM73: 29.0 | RN73: 1.0 | RO73: 0.0 | RP73: 0.0 | RQ73: 7.0 | RR73: 7.0 | RS73: 0.0 | RT73: 0.0 | RU73: 8.0 | RV73: 1.0 | RW73: 47,659
D74: POBRE NO ASEGURADO | E74: 341 | F74: 12 | G74: 18 | H74: 5 | I74: 346 | J74: 27 | K74: 0 | L74: 1 | M74: 0 | N74: 1 | O74: 23 | P74: 47 | Q74: 6 | R74: 8 | S74: 18 | T74: 4 | U74: 7 | V74: 15 | W74: 2 | X74: 1 | Y74: 11 | Z74: 1 | AA74: 2 | AB74: 10 | AC74: 0 | AD74: 0 | AE74: 0 | AF74: 0 | AG74: 0 | AH74: 0 | AI74: 0 | AJ74: 0 | AK74: 0 | AL74: 0 | AM74: 0 | AN74: 0 | AO74: 0 | AP74: 0 | AQ74: 0 | AR74: 0 | AS74: 0 | AT74: 0 | AU74: 0 | AV74: 0 | AW74: 0 | AX74: 0 | AY74: 0 | AZ74: 0 | BA74: 0 | BB74: 0 | BC74: 0 | BD74: 0 | BE74: 0 | BF74: 0 | BG74: 0 | BH74: 2 | BI74: 0 | BJ74: 0 | BK74: 0 | BL74: 126 | BM74: 31 | BN74: 13 | BO74: 0 | BP74: 345 | BQ74: 262 | BR74: 267 | BS74: 9 | BT74: 23 | BU74: 46 | BV74: 6 | BW74: 7 | BX74: 17 | BY74: 3 | BZ74: 7 | CA74: 15 | CB74: 1 | CC74: 1 | CD74: 12 | CE74: 1 | CF74: 2 | CG74: 9 | CH74: 155 | CI74: 89 | CJ74: 44 | CK74: 19 | CL74: 33 | CM74: 0 | CN74: 0 | CO74: 4 | CP74: 1 | CQ74: 0 | CR74: 25 | CS74: 0 | CT74: 0 | CU74: 4 | CV74: 0 | CW74: 0 | CX74: 3 | CY74: 2 | CZ74: 0 | DA74: 1 | DB74: 2 | DC74: 0 | DD74: 0 | DE74: 332 | DF74: 344 | DG74: 262 | DH74: 268 | DI74: 7 | DJ74: 0 | DK74: 0 | DL74: 0 | DM74: 0 | DN74: 0 | DO74: 0 | DP74: 0 | DQ74: 0 | DR74: 0 | DS74: 0 | DT74: 0 | DU74: 0 | DV74: 0 | DW74: 0 | DX74: 2 | DY74: 24 | DZ74: 48 | EA74: 6 | EB74: 8 | EC74: 16 | ED74: 4 | EE74: 7 | EF74: 15 | EG74: 2 | EH74: 1 | EI74: 11 | EJ74: 0 | EK74: 3 | EL74: 10 | EM74: 158 | EN74: 97 | EO74: 48 | EP74: 24 | EQ74: 29 | ER74: 0 | ES74: 0 | ET74: 331 | EU74: 0 | EV74: 0 | EW74: 0 | EX74: 0 | EY74: 0 | EZ74: 0 | FA74: 0 | FB74: 0 | FC74: 0 | FD74: 0 | FE74: 0 | FF74: 0 | FG74: 0 | FH74: 0 | FI74: 0 | FJ74: 0 | FK74: 0 | FL74: 0 | FM74: 0 | FN74: 0 | FO74: 1 | FP74: 0 | FQ74: 0 | FR74: 0 | FS74: 0 | FT74: 0 | FU74: 0 | FV74: 0 | FW74: 0 | FX74: 0 | FY74: 2 | FZ74: 0 | GA74: 0 | GB74: 0 | GC74: 0 | GD74: 0 | GE74: 0 | GF74: 0 | GG74: 0 | GH74: 0 | GI74: 0 | GJ74: 0 | GK74: 0 | GL74: 0 | GM74: 0 | GN74: 0 | GO74: 0 | GP74: 0 | GQ74: 0 | GR74: 0 | GS74: 0 | GT74: 0 | GU74: 0 | GV74: 0 | GW74: 0 | GX74: 0 | GY74: 0 | GZ74: 0 | HA74: 0 | HB74: 0 | HC74: 0 | HD74: 0 | HE74: 314 | HF74: 221 | HG74: 147 | HH74: 266 | HI74: 205 | HJ74: 82 | HK74: 72 | HL74: 251 | HM74: 238 | HN74: 0 | HO74: 0 | HP74: 0 | HQ74: 0 | HR74: 0 | HS74: 295 | HT74: 32 | HU74: 25 | HV74: 14 | HW74: 6 | HX74: 6 | HY74: 2 | HZ74: 0 | IA74: 0 | IB74: 0 | IC74: 0 | ID74: 376 | IE74: 41 | IF74: 30 | IG74: 12 | IH74: 4 | II74: 7 | IJ74: 1 | IK74: 2 | IL74: 20 | IM74: 4 | IN74: 24 | IO74: 34 | IP74: 30 | IQ74: 44 | IR74: 27 | IS74: 28 | IT74: 28 | IU74: 30 | IV74: 19 | IW74: 28 | IX74: 15 | IY74: 97 | IZ74: 41 | JA74: 31 | JB74: 147 | JC74: 64 | JD74: 36 | JE74: 21 | JF74: 25 | JG74: 10 | JH74: 6 | JI74: 6 | JJ74: 7 | JK74: 5 | JL74: 5 | JM74: 3 | JN74: 13 | JO74: 23 | JP74: 327 | JQ74: 148 | JR74: 89 | JS74: 61 | JT74: 0 | JU74: 326 | JV74: 74 | JW74: 80 | JX74: 66 | JY74: 68 | JZ74: 53 | KA74: 31 | KB74: 15 | KC74: 7 | KD74: 2 | KE74: 322 | KF74: 71 | KG74: 78 | KH74: 62 | KI74: 59 | KJ74: 51 | KK74: 25 | KL74: 3 | KM74: 355 | KN74: 31 | KO74: 28 | KP74: 0 | KQ74: 2 | KR74: 0 | KS74: 0 | KT74: 1 | KU74: 25 | KV74: 13 | KW74: 7 | KX74: 0 | KY74: 0 | KZ74: 0 | LA74: 115 | LB74: 48 | LC74: 7 | LD74: 5 | LE74: 1 | LF74: 0 | LG74: 0 | LH74: 0 | LI74: 0 | LJ74: 16 | LK74: 5 | LL74: 1 | LM74: 0 | LN74: 0 | LO74: 119 | LP74: 56 | LQ74: 99 | LR74: 24 | LS74: 14 | LT74: 3 | LU74: 0 | LV74: 0 | LW74: 0 | LX74: 3 | LY74: 0 | LZ74: 0 | MA74: 0 | MB74: 1 | MC74: 28 | MD74: 1 | ME74: 1 | MF74: 0 | MG74: 0 | MH74: 0 | MI74: 0 | MJ74: 0 | MK74: 0 | ML74: 0 | MM74: 0 | MN74: 0 | MO74: 0 | MP74: 1 | MQ74: 0 | MR74: 0 | MS74: 0 | MT74: 0 | MU74: 0 | MV74: 2 | MW74: 11 | MX74: 10 | MY74: 0 | MZ74: 0 | NA74: 0 | NB74: 31 | NC74: 107 | ND74: 72 | NE74: 8 | NF74: 8 | NG74: 3 | NH74: 338 | NI74: 203 | NJ74: 310 | NK74: 172 | NL74: 117 | NM74: 23 | NN74: 8 | NO74: 35 | NP74: 446 | NQ74: 340 | NR74: 3 | NS74: 0 | NT74: 207 | NU74: 136 | NV74: 985 | NW74: 0 | NX74: 0 | NY74: 0 | NZ74: 0 | OA74: 0 | OB74: 0 | OC74: 54 | OD74: 11 | OE74: 0 | OF74: 34 | OG74: 15 | OH74: 0 | OI74: 24 | OJ74: 16 | OK74: 0 | OL74: 28 | OM74: 12 | ON74: 0 | OO74: 16 | OP74: 5 | OQ74: 0 | OR74: 17 | OS74: 6 | OT74: 0 | OU74: 19 | OV74: 8 | OW74: 0 | OX74: 10 | OY74: 1 | OZ74: 0 | PA74: 16 | PB74: 1 | PC74: 0 | PD74: 2 | PE74: 0 | PF74: 0 | PG74: 0 | PH74: 0 | PI74: 0 | PJ74: 0 | PK74: 0 | PL74: 0 | PM74: 0 | PN74: 32 | PO74: 6 | PP74: 3 | PQ74: 3 | PR74: 13 | PS74: 4 | PT74: 1 | PU74: 0 | PV74: 1 | PW74: 3 | PX74: 3 | PY74: 0 | PZ74: 0 | QA74: 0 | QB74: 0 | QC74: 15,029 | QE74: 376.0 | QF74: 702.0 | QG74: 1,407.0 | QH74: 340.0 | QI74: 881.0 | QJ74: 844.0 | QK74: 3.0 | QL74: 0.0 | QM74: 535.0 | QN74: 1,023.0 | QO74: 238.0 | QP74: 851.0 | QQ74: 502.0 | QR74: 996.0 | QS74: 722.0 | QT74: 1,085.0 | QU74: 596.0 | QV74: 252.0 | QW74: 541.0 | QX74: 599.0 | QY74: 66.0 | QZ74: 446.0 | RA74: 340.0 | RB74: 210.0 | RC74: 136.0 | RD74: 985.0 | RE74: 0.0 | RF74: 295.0 | RG74: 0.0 | RH74: 0.0 | RI74: 0.0 | RJ74: 41.0 | RK74: 3.0 | RL74: 13.0 | RM74: 4.0 | RN74: 2.0 | RO74: 1.0 | RP74: 1.0 | RQ74: 3.0 | RR74: 3.0 | RS74: 0.0 | RT74: 0.0 | RU74: 0.0 | RV74: 0.0 | RW74: 14,975
D75: REGIMEN ESPECIAL | E75: 309 | F75: 7 | G75: 0 | H75: 0 | I75: 276 | J75: 39 | K75: 0 | L75: 0 | M75: 0 | N75: 0 | O75: 0 | P75: 2 | Q75: 0 | R75: 0 | S75: 0 | T75: 0 | U75: 0 | V75: 0 | W75: 0 | X75: 0 | Y75: 1 | Z75: 0 | AA75: 0 | AB75: 0 | AC75: 0 | AD75: 0 | AE75: 0 | AF75: 0 | AG75: 0 | AH75: 0 | AI75: 0 | AJ75: 0 | AK75: 0 | AL75: 0 | AM75: 0 | AN75: 0 | AO75: 0 | AP75: 0 | AQ75: 0 | AR75: 0 | AS75: 0 | AT75: 0 | AU75: 0 | AV75: 0 | AW75: 0 | AX75: 0 | AY75: 0 | AZ75: 1 | BA75: 0 | BB75: 0 | BC75: 0 | BD75: 0 | BE75: 0 | BF75: 0 | BG75: 0 | BH75: 0 | BI75: 0 | BJ75: 0 | BK75: 0 | BL75: 4 | BM75: 0 | BN75: 2 | BO75: 0 | BP75: 117 | BQ75: 135 | BR75: 129 | BS75: 0 | BT75: 0 | BU75: 5 | BV75: 0 | BW75: 0 | BX75: 0 | BY75: 0 | BZ75: 0 | CA75: 0 | CB75: 0 | CC75: 0 | CD75: 1 | CE75: 0 | CF75: 0 | CG75: 0 | CH75: 128 | CI75: 5 | CJ75: 2 | CK75: 0 | CL75: 2 | CM75: 0 | CN75: 0 | CO75: 3 | CP75: 0 | CQ75: 0 | CR75: 0 | CS75: 0 | CT75: 0 | CU75: 0 | CV75: 0 | CW75: 0 | CX75: 10 | CY75: 1 | CZ75: 0 | DA75: 0 | DB75: 1 | DC75: 0 | DD75: 0 | DE75: 270 | DF75: 116 | DG75: 135 | DH75: 129 | DI75: 0 | DJ75: 0 | DK75: 0 | DL75: 0 | DM75: 0 | DN75: 0 | DO75: 0 | DP75: 0 | DQ75: 0 | DR75: 0 | DS75: 0 | DT75: 0 | DU75: 0 | DV75: 0 | DW75: 0 | DX75: 0 | DY75: 0 | DZ75: 3 | EA75: 0 | EB75: 0 | EC75: 0 | ED75: 0 | EE75: 0 | EF75: 0 | EG75: 0 | EH75: 0 | EI75: 1 | EJ75: 0 | EK75: 0 | EL75: 0 | EM75: 140 | EN75: 5 | EO75: 2 | EP75: 0 | EQ75: 2 | ER75: 0 | ES75: 0 | ET75: 271 | EU75: 0 | EV75: 0 | EW75: 0 | EX75: 0 | EY75: 0 | EZ75: 0 | FA75: 0 | FB75: 0 | FC75: 0 | FD75: 0 | FE75: 0 | FF75: 0 | FG75: 0 | FH75: 0 | FI75: 0 | FJ75: 0 | FK75: 0 | FL75: 0 | FM75: 0 | FN75: 0 | FO75: 0 | FP75: 0 | FQ75: 0 | FR75: 0 | FS75: 0 | FT75: 2 | FU75: 0 | FV75: 0 | FW75: 0 | FX75: 0 | FY75: 2 | FZ75: 0 | GA75: 0 | GB75: 0 | GC75: 0 | GD75: 0 | GE75: 0 | GF75: 0 | GG75: 0 | GH75: 0 | GI75: 0 | GJ75: 0 | GK75: 0 | GL75: 0 | GM75: 0 | GN75: 0 | GO75: 0 | GP75: 0 | GQ75: 0 | GR75: 0 | GS75: 0 | GT75: 0 | GU75: 0 | GV75: 0 | GW75: 0 | GX75: 0 | GY75: 0 | GZ75: 0 | HA75: 0 | HB75: 0 | HC75: 0 | HD75: 0 | HE75: 135 | HF75: 154 | HG75: 24 | HH75: 154 | HI75: 167 | HJ75: 1 | HK75: 0 | HL75: 1 | HM75: 103 | HN75: 0 | HO75: 0 | HP75: 0 | HQ75: 0 | HR75: 0 | HS75: 162 | HT75: 0 | HU75: 0 | HV75: 0 | HW75: 0 | HX75: 0 | HY75: 0 | HZ75: 0 | IA75: 0 | IB75: 0 | IC75: 0 | ID75: 279 | IE75: 3 | IF75: 1 | IG75: 0 | IH75: 1 | II75: 0 | IJ75: 0 | IK75: 2 | IL75: 10 | IM75: 2 | IN75: 4 | IO75: 8 | IP75: 8 | IQ75: 16 | IR75: 11 | IS75: 10 | IT75: 8 | IU75: 10 | IV75: 10 | IW75: 7 | IX75: 0 | IY75: 25 | IZ75: 17 | JA75: 11 | JB75: 148 | JC75: 5 | JD75: 2 | JE75: 0 | JF75: 2 | JG75: 0 | JH75: 0 | JI75: 0 | JJ75: 0 | JK75: 0 | JL75: 0 | JM75: 1 | JN75: 2 | JO75: 0 | JP75: 97 | JQ75: 86 | JR75: 61 | JS75: 29 | JT75: 0 | JU75: 168 | JV75: 0 | JW75: 1 | JX75: 0 | JY75: 0 | JZ75: 0 | KA75: 0 | KB75: 0 | KC75: 0 | KD75: 0 | KE75: 159 | KF75: 0 | KG75: 1 | KH75: 0 | KI75: 0 | KJ75: 0 | KK75: 1 | KL75: 0 | KM75: 268 | KN75: 3 | KO75: 3 | KP75: 0 | KQ75: 0 | KR75: 0 | KS75: 0 | KT75: 0 | KU75: 1 | KV75: 2 | KW75: 1 | KX75: 0 | KY75: 0 | KZ75: 0 | LA75: 34 | LB75: 23 | LC75: 15 | LD75: 5 | LE75: 1 | LF75: 0 | LG75: 0 | LH75: 0 | LI75: 0 | LJ75: 53 | LK75: 17 | LL75: 8 | LM75: 0 | LN75: 0 | LO75: 93 | LP75: 78 | LQ75: 61 | LR75: 42 | LS75: 30 | LT75: 6 | LU75: 0 | LV75: 0 | LW75: 0 | LX75: 0 | LY75: 0 | LZ75: 0 | MA75: 0 | MB75: 0 | MC75: 11 | MD75: 43 | ME75: 17 | MF75: 3 | MG75: 0 | MH75: 1 | MI75: 0 | MJ75: 0 | MK75: 0 | ML75: 0 | MM75: 0 | MN75: 0 | MO75: 0 | MP75: 0 | MQ75: 0 | MR75: 0 | MS75: 0 | MT75: 0 | MU75: 0 | MV75: 1 | MW75: 0 | MX75: 0 | MY75: 0 | MZ75: 0 | NA75: 0 | NB75: 26 | NC75: 24 | ND75: 36 | NE75: 13 | NF75: 14 | NG75: 7 | NH75: 186 | NI75: 235 | NJ75: 95 | NK75: 99 | NL75: 212 | NM75: 3 | NN75: 2 | NO75: 30 | NP75: 3,478 | NQ75: 155 | NR75: 2 | NS75: 0 | NT75: 123 | NU75: 145 | NV75: 1,057 | NW75: 0 | NX75: 0 | NY75: 0 | NZ75: 0 | OA75: 0 | OB75: 1 | OC75: 63 | OD75: 14 | OE75: 0 | OF75: 39 | OG75: 32 | OH75: 0 | OI75: 34 | OJ75: 34 | OK75: 0 | OL75: 21 | OM75: 23 | ON75: 0 | OO75: 34 | OP75: 31 | OQ75: 0 | OR75: 27 | OS75: 25 | OT75: 0 | OU75: 37 | OV75: 17 | OW75: 0 | OX75: 22 | OY75: 26 | OZ75: 0 | PA75: 19 | PB75: 15 | PC75: 0 | PD75: 2 | PE75: 0 | PF75: 0 | PG75: 0 | PH75: 0 | PI75: 0 | PJ75: 0 | PK75: 0 | PL75: 0 | PM75: 0 | PN75: 74 | PO75: 28 | PP75: 26 | PQ75: 26 | PR75: 7 | PS75: 3 | PT75: 0 | PU75: 0 | PV75: 0 | PW75: 0 | PX75: 0 | PY75: 0 | PZ75: 0 | QA75: 0 | QB75: 0 | QC75: 11,778 | QE75: 316.0 | QF75: 325.0 | QG75: 527.0 | QH75: 282.0 | QI75: 380.0 | QJ75: 424.0 | QK75: 4.0 | QL75: 0.0 | QM75: 289.0 | QN75: 347.0 | QO75: 103.0 | QP75: 446.0 | QQ75: 159.0 | QR75: 433.0 | QS75: 169.0 | QT75: 435.0 | QU75: 545.0 | QV75: 121.0 | QW75: 421.0 | QX75: 406.0 | QY75: 35.0 | QZ75: 3,478.0 | RA75: 155.0 | RB75: 125.0 | RC75: 145.0 | RD75: 1,057.0 | RE75: 1.0 | RF75: 515.0 | RG75: 0.0 | RH75: 0.0 | RI75: 0.0 | RJ75: 128.0 | RK75: 26.0 | RL75: 7.0 | RM75: 3.0 | RN75: 0.0 | RO75: 0.0 | RP75: 0.0 | RQ75: 0.0 | RR75: 0.0 | RS75: 0.0 | RT75: 0.0 | RU75: 0.0 | RV75: 0.0 | RW75: 11,643
D76: TOTAL REGIMEN | E76: =SUM(E72:E75) -> 6,531 | F76: =SUM(F72:F75) -> 161 | G76: 22 | H76: 10 | I76: 6,516 | J76: 210 | K76: 2 | L76: 1 | M76: 1 | N76: 2 | O76: 44 | P76: 95 | Q76: 6 | R76: 12 | S76: 36 | T76: 8 | U76: 9 | V76: 19 | W76: 3 | X76: 2 | Y76: 16 | Z76: 1 | AA76: 5 | AB76: 13 | AC76: 0 | AD76: 0 | AE76: 0 | AF76: 0 | AG76: 0 | AH76: 0 | AI76: 0 | AJ76: 0 | AK76: 0 | AL76: 0 | AM76: 0 | AN76: 0 | AO76: 0 | AP76: 0 | AQ76: 0 | AR76: 0 | AS76: 0 | AT76: 0 | AU76: 0 | AV76: 0 | AW76: 0 | AX76: 0 | AY76: 0 | AZ76: 14 | BA76: 0 | BB76: 1 | BC76: 0 | BD76: 3 | BE76: 0 | BF76: 0 | BG76: 0 | BH76: 14 | BI76: 2 | BJ76: 0 | BK76: 0 | BL76: 571 | BM76: 105 | BN76: 63 | BO76: 7 | BP76: 4,654 | BQ76: 4,429 | BR76: =SUM(BR72:BR75) -> 4,899 | BS76: 12 | BT76: 44 | BU76: 102 | BV76: 7 | BW76: 12 | BX76: 33 | BY76: 7 | BZ76: 9 | CA76: 19 | CB76: 2 | CC76: 2 | CD76: 15 | CE76: 1 | CF76: 4 | CG76: 11 | CH76: 4,451 | CI76: 381 | CJ76: 102 | CK76: 48 | CL76: 79 | CM76: 0 | CN76: 0 | CO76: 67 | CP76: 1 | CQ76: 0 | CR76: 50 | CS76: 0 | CT76: 0 | CU76: 8 | CV76: 0 | CW76: 0 | CX76: 54 | CY76: 10 | CZ76: 0 | DA76: 2 | DB76: 3 | DC76: 0 | DD76: 0 | DE76: 6,920 | DF76: 4,646 | DG76: 4,427 | DH76: 4,895 | DI76: 9 | DJ76: 0 | DK76: 0 | DL76: 0 | DM76: 0 | DN76: 0 | DO76: 0 | DP76: 0 | DQ76: 0 | DR76: 0 | DS76: 0 | DT76: 0 | DU76: 0 | DV76: 0 | DW76: 0 | DX76: 6 | DY76: 45 | DZ76: 97 | EA76: 6 | EB76: 12 | EC76: 32 | ED76: =SUM(ED72:ED75) -> 8 | EE76: 8 | EF76: 18 | EG76: 3 | EH76: 2 | EI76: 15 | EJ76: 0 | EK76: 5 | EL76: 13 | EM76: 4,487 | EN76: 394 | EO76: 107 | EP76: 56 | EQ76: 69 | ER76: 0 | ES76: 0 | ET76: 6,946 | EU76: 2 | EV76: 1 | EW76: 4 | EX76: 0 | EY76: 0 | EZ76: 0 | FA76: 0 | FB76: 0 | FC76: 1 | FD76: 0 | FE76: 1 | FF76: 0 | FG76: 0 | FH76: 0 | FI76: 0 | FJ76: 0 | FK76: 0 | FL76: 0 | FM76: 17 | FN76: 2 | FO76: 1 | FP76: 0 | FQ76: 0 | FR76: 0 | FS76: 0 | FT76: 27 | FU76: 0 | FV76: 0 | FW76: 0 | FX76: 1 | FY76: 11 | FZ76: 0 | GA76: 0 | GB76: 0 | GC76: 0 | GD76: 0 | GE76: 0 | GF76: 0 | GG76: 0 | GH76: 0 | GI76: 0 | GJ76: 0 | GK76: 0 | GL76: 0 | GM76: 0 | GN76: 0 | GO76: 0 | GP76: =SUM(GP72:GP75) -> 0 | GQ76: 0 | GR76: 0 | GS76: 0 | GT76: 0 | GU76: 0 | GV76: 0 | GW76: 0 | GX76: 0 | GY76: 0 | GZ76: 0 | HA76: 0 | HB76: 0 | HC76: 0 | HD76: 0 | HE76: 5,134 | HF76: 4,927 | HG76: 889 | HH76: 4,949 | HI76: 5,257 | HJ76: 91 | HK76: 102 | HL76: 299 | HM76: 4,506 | HN76: 0 | HO76: 0 | HP76: 0 | HQ76: 0 | HR76: 0 | HS76: 5,341 | HT76: 54 | HU76: 34 | HV76: 18 | HW76: 12 | HX76: 6 | HY76: 4 | HZ76: 0 | IA76: 0 | IB76: 0 | IC76: 0 | ID76: 7,300 | IE76: 97 | IF76: 56 | IG76: 21 | IH76: 15 | II76: 12 | IJ76: 2 | IK76: 36 | IL76: 380 | IM76: 72 | IN76: 142 | IO76: 191 | IP76: 191 | IQ76: 236 | IR76: 209 | IS76: 178 | IT76: 193 | IU76: 168 | IV76: 152 | IW76: 189 | IX76: 135 | IY76: 974 | IZ76: 520 | JA76: 341 | JB76: =SUM(JB72:JB75) -> 4,809 | JC76: 366 | JD76: 100 | JE76: 51 | JF76: 71 | JG76: 18 | JH76: 11 | JI76: 10 | JJ76: 12 | JK76: 7 | JL76: 12 | JM76: 14 | JN76: 49 | JO76: 139 | JP76: 3,267 | JQ76: 1,652 | JR76: 922 | JS76: 605 | JT76: 0 | JU76: 5,560 | JV76: 104 | JW76: 96 | JX76: 77 | JY76: 90 | JZ76: 61 | KA76: 36 | KB76: 17 | KC76: 12 | KD76: 3 | KE76: 5,396 | KF76: 98 | KG76: 95 | KH76: 73 | KI76: 97 | KJ76: 59 | KK76: 31 | KL76: 3 | KM76: 7,224 | KN76: 89 | KO76: 57 | KP76: 0 | KQ76: 14 | KR76: 0 | KS76: 0 | KT76: 2 | KU76: 46 | KV76: 97 | KW76: 31 | KX76: 0 | KY76: 3 | KZ76: 1 | LA76: 1,922 | LB76: 879 | LC76: 373 | LD76: 257 | LE76: 138 | LF76: 17 | LG76: 0 | LH76: 0 | LI76: 0 | LJ76: 595 | LK76: 291 | LL76: 92 | LM76: 24 | LN76: =SUM(LN72:LN75) -> 5 | LO76: 2,240 | LP76: 1,513 | LQ76: 1,815 | LR76: 1,140 | LS76: 816 | LT76: 173 | LU76: 0 | LV76: 0 | LW76: 0 | LX76: 21 | LY76: 1 | LZ76: 0 | MA76: 0 | MB76: 1 | MC76: 269 | MD76: 52 | ME76: 23 | MF76: 4 | MG76: 0 | MH76: 1 | MI76: 0 | MJ76: 0 | MK76: 0 | ML76: 12 | MM76: 3 | MN76: 0 | MO76: 2 | MP76: 5 | MQ76: 10 | MR76: 1 | MS76: 1 | MT76: 0 | MU76: 2 | MV76: 29 | MW76: 49 | MX76: 69 | MY76: 5 | MZ76: 1 | NA76: 0 | NB76: 1,280 | NC76: 838 | ND76: 1,543 | NE76: 508 | NF76: 382 | NG76: 237 | NH76: 7,010 | NI76: 7,297 | NJ76: 3,763 | NK76: 3,177 | NL76: 5,702 | NM76: 79 | NN76: 47 | NO76: 499 | NP76: 50,472 | NQ76: 6,440 | NR76: 9 | NS76: 0 | NT76: 2,029 | NU76: 1,729 | NV76: 22,205 | NW76: 0 | NX76: 0 | NY76: 0 | NZ76: =SUM(NZ72:NZ75) -> 0 | OA76: 0 | OB76: 2 | OC76: 1,556 | OD76: 343 | OE76: 0 | OF76: 650 | OG76: 554 | OH76: 0 | OI76: 604 | OJ76: 510 | OK76: 0 | OL76: 506 | OM76: 393 | ON76: 2 | OO76: 441 | OP76: 347 | OQ76: 0 | OR76: 428 | OS76: 281 | OT76: 1 | OU76: 469 | OV76: 271 | OW76: 0 | OX76: 339 | OY76: 230 | OZ76: 0 | PA76: 179 | PB76: 202 | PC76: 1 | PD76: 47 | PE76: 0 | PF76: 0 | PG76: 0 | PH76: 0 | PI76: 0 | PJ76: 0 | PK76: 0 | PL76: 0 | PM76: 0 | PN76: 1,147 | PO76: 427 | PP76: 282 | PQ76: 282 | PR76: 385 | PS76: 101 | PT76: 3 | PU76: 1 | PV76: 2 | PW76: 42 | PX76: 26 | PY76: 2 | PZ76: 1 | QA76: 8 | QB76: 1 | QC76: =SUM(QC72:QC75) -> 281,088 | QE76: =SUM(QE72:QE75) -> 6,724.0 | QF76: =SUM(QF72:QF75) -> 7,781.0 | QG76: 19,449.0 | QH76: 6,989.0 | QI76: 13,977.0 | QJ76: 12,329.0 | QK76: 68.0 | QL76: 0.0 | QM76: 10,061.0 | QN76: 11,587.0 | QO76: =SUM(QO72:QO75) -> 4,506.0 | QP76: 12,972.0 | QQ76: 4,307.0 | QR76: 12,115.0 | QS76: 6,056.0 | QT76: 13,222.0 | QU76: 12,892.0 | QV76: 4,941.0 | QW76: 14,307.0 | QX76: 12,642.0 | QY76: 625.0 | QZ76: 50,472.0 | RA76: 6,440.0 | RB76: =SUM(RB72:RB75) -> 2,038.0 | RC76: 1,729.0 | RD76: 22,205.0 | RE76: 2.0 | RF76: 8,354.0 | RG76: 0.0 | RH76: 0.0 | RI76: 0.0 | RJ76: 1,856.0 | RK76: =SUM(RK72:RK75) -> 282.0 | RL76: 385.0 | RM76: 101.0 | RN76: 6.0 | RO76: 2.0 | RP76: 2.0 | RQ76: 42.0 | RR76: 26.0 | RS76: 2.0 | RT76: 1.0 | RU76: 8.0 | RV76: 1.0 | RW76: 278,808
D77: INDIGENA | E77: =SUMIF($D$8:$D$67,$D77,E$8:E$67) -> 2 | F77: 0 | G77: 0 | H77: 0 | I77: 3 | J77: 0 | K77: 0 | L77: 0 | M77: 0 | N77: 0 | O77: =SUMIF($D$8:$D$67,$D77,O$8:O$67) -> 2 | P77: 2 | Q77: 0 | R77: 0 | S77: 1 | T77: 0 | U77: 0 | V77: 0 | W77: 0 | X77: 0 | Y77: =SUMIF($D$8:$D$67,$D77,Y$8:Y$67) -> 0 | Z77: 0 | AA77: 0 | AB77: 0 | AC77: 0 | AD77: 0 | AE77: 0 | AF77: 0 | AG77: 0 | AH77: 0 | AI77: =SUMIF($D$8:$D$67,$D77,AI$8:AI$67) -> 0 | AJ77: 0 | AK77: 0 | AL77: 0 | AM77: 0 | AN77: 0 | AO77: 0 | AP77: 0 | AQ77: 0 | AR77: 0 | AS77: =SUMIF($D$8:$D$67,$D77,AS$8:AS$67) -> 0 | AT77: 0 | AU77: 0 | AV77: 0 | AW77: 0 | AX77: 0 | AY77: 0 | AZ77: 0 | BA77: 0 | BB77: 0 | BC77: =SUMIF($D$8:$D$67,$D77,BC$8:BC$67) -> 0 | BD77: 0 | BE77: 0 | BF77: 0 | BG77: 0 | BH77: 0 | BI77: 0 | BJ77: 0 | BK77: 0 | BL77: 1 | BM77: =SUMIF($D$8:$D$67,$D77,BM$8:BM$67) -> 0 | BN77: 0 | BO77: 0 | BP77: 6 | BQ77: 4 | BR77: 14 | BS77: 0 | BT77: 2 | BU77: 2 | BV77: 0 | BW77: =SUMIF($D$8:$D$67,$D77,BW$8:BW$67) -> 0 | BX77: 1 | BY77: 0 | BZ77: 0 | CA77: 0 | CB77: 0 | CC77: 0 | CD77: 0 | CE77: 0 | CF77: 0 | CG77: =SUMIF($D$8:$D$67,$D77,CG$8:CG$67) -> 0 | CH77: 14 | CI77: 1 | CJ77: 0 | CK77: 0 | CL77: 0 | CM77: 0 | CN77: 0 | CO77: 0 | CP77: 0 | CQ77: =SUMIF($D$8:$D$67,$D77,CQ$8:CQ$67) -> 0 | CR77: 0 | CS77: 0 | CT77: 0 | CU77: 0 | CV77: 0 | CW77: 0 | CX77: 1 | CY77: 0 | CZ77: 0 | DA77: =SUMIF($D$8:$D$67,$D77,DA$8:DA$67) -> 0 | DB77: 0 | DC77: 0 | DD77: 0 | DE77: 13 | DF77: 6 | DG77: 4 | DH77: 14 | DI77: 0 | DJ77: 0 | DK77: =SUMIF($D$8:$D$67,$D77,DK$8:DK$67) -> 0 | DL77: 0 | DM77: 0 | DN77: 0 | DO77: 0 | DP77: 0 | DQ77: 0 | DR77: 0 | DS77: 0 | DT77: 0 | DU77: =SUMIF($D$8:$D$67,$D77,DU$8:DU$67) -> 0 | DV77: 0 | DW77: 0 | DX77: 0 | DY77: 2 | DZ77: 2 | EA77: 0 | EB77: 0 | EC77: 1 | ED77: 0 | EE77: =SUMIF($D$8:$D$67,$D77,EE$8:EE$67) -> 0 | EF77: 0 | EG77: 0 | EH77: 0 | EI77: 0 | EJ77: 0 | EK77: 0 | EL77: 0 | EM77: 15 | EN77: 1 | EO77: =SUMIF($D$8:$D$67,$D77,EO$8:EO$67) -> 0 | EP77: 0 | EQ77: 0 | ER77: 0 | ES77: 0 | ET77: 13 | EU77: 0 | EV77: 0 | EW77: 0 | EX77: 0 | EY77: =SUMIF($D$8:$D$67,$D77,EY$8:EY$67) -> 0 | EZ77: 0 | FA77: 0 | FB77: 0 | FC77: 0 | FD77: 0 | FE77: 0 | FF77: 0 | FG77: 0 | FH77: 0 | FI77: =SUMIF($D$8:$D$67,$D77,FI$8:FI$67) -> 0 | FJ77: 0 | FK77: 0 | FL77: 0 | FM77: 0 | FN77: 0 | FO77: 0 | FP77: 0 | FQ77: 0 | FR77: 0 | FS77: =SUMIF($D$8:$D$67,$D77,FS$8:FS$67) -> 0 | FT77: 0 | FU77: 0 | FV77: 0 | FW77: 0 | FX77: 0 | FY77: 0 | FZ77: 0 | GA77: 0 | GB77: 0 | GC77: =SUMIF($D$8:$D$67,$D77,GC$8:GC$67) -> 0 | GD77: 0 | GE77: 0 | GF77: 0 | GG77: 0 | GH77: 0 | GI77: 0 | GJ77: 0 | GK77: 0 | GL77: 0 | GM77: =SUMIF($D$8:$D$67,$D77,GM$8:GM$67) -> 0 | GN77: 0 | GO77: 0 | GP77: 0 | GQ77: 0 | GR77: 0 | GS77: 0 | GT77: 0 | GU77: 0 | GV77: 0 | GW77: =SUMIF($D$8:$D$67,$D77,GW$8:GW$67) -> 0 | GX77: 0 | GY77: 0 | GZ77: 0 | HA77: 0 | HB77: 0 | HC77: 0 | HD77: 0 | HE77: 6 | HF77: 3 | HG77: =SUMIF($D$8:$D$67,$D77,HG$8:HG$67) -> 1 | HH77: 5 | HI77: 10 | HJ77: 0 | HK77: 3 | HL77: 0 | HM77: 5 | HN77: 0 | HO77: 0 | HP77: 0 | HQ77: =SUMIF($D$8:$D$67,$D77,HQ$8:HQ$67) -> 0 | HR77: 0 | HS77: 11 | HT77: 0 | HU77: 0 | HV77: 0 | HW77: 0 | HX77: 0 | HY77: 0 | HZ77: 0 | IA77: =SUMIF($D$8:$D$67,$D77,IA$8:IA$67) -> 0 | IB77: 0 | IC77: 0 | ID77: 13 | IE77: 0 | IF77: 0 | IG77: 0 | IH77: 0 | II77: 0 | IJ77: 0 | IK77: =SUMIF($D$8:$D$67,$D77,IK$8:IK$67) -> 0 | IL77: 1 | IM77: 1 | IN77: 0 | IO77: 0 | IP77: 0 | IQ77: 0 | IR77: 0 | IS77: 0 | IT77: 0 | IU77: =SUMIF($D$8:$D$67,$D77,IU$8:IU$67) -> 0 | IV77: 0 | IW77: 0 | IX77: 0 | IY77: 2 | IZ77: 1 | JA77: 0 | JB77: 17 | JC77: 1 | JD77: 0 | JE77: =SUMIF($D$8:$D$67,$D77,JE$8:JE$67) -> 0 | JF77: 0 | JG77: 0 | JH77: 0 | JI77: 0 | JJ77: 0 | JK77: 0 | JL77: 0 | JM77: 0 | JN77: 0 | JO77: =SUMIF($D$8:$D$67,$D77,JO$8:JO$67) -> 0 | JP77: 4 | JQ77: 1 | JR77: 0 | JS77: 0 | JT77: 0 | JU77: 11 | JV77: 0 | JW77: 0 | JX77: 0 | JY77: =SUMIF($D$8:$D$67,$D77,JY$8:JY$67) -> 0 | JZ77: 0 | KA77: 0 | KB77: 0 | KC77: 0 | KD77: 0 | KE77: 11 | KF77: 0 | KG77: 0 | KH77: 0 | KI77: =SUMIF($D$8:$D$67,$D77,KI$8:KI$67) -> 1 | KJ77: 0 | KK77: 0 | KL77: 0 | KM77: 12 | KN77: 0 | KO77: 0 | KP77: 0 | KQ77: 0 | KR77: 0 | KS77: =SUMIF($D$8:$D$67,$D77,KS$8:KS$67) -> 0 | KT77: 0 | KU77: 0 | KV77: 0 | KW77: 0 | KX77: 0 | KY77: 0 | KZ77: 0 | LA77: 0 | LB77: 2 | LC77: =SUMIF($D$8:$D$67,$D77,LC$8:LC$67) -> 0 | LD77: 1 | LE77: 2 | LF77: 0 | LG77: 0 | LH77: 0 | LI77: 0 | LJ77: 2 | LK77: 1 | LL77: 0 | LM77: =SUMIF($D$8:$D$67,$D77,LM$8:LM$67) -> 0 | LN77: 0 | LO77: 2 | LP77: 0 | LQ77: 1 | LR77: 1 | LS77: 3 | LT77: 0 | LU77: 0 | LV77: 0 | LW77: =SUMIF($D$8:$D$67,$D77,LW$8:LW$67) -> 0 | LX77: 0 | LY77: 0 | LZ77: 0 | MA77: 0 | MB77: 0 | MC77: 1 | MD77: 1 | ME77: 0 | MF77: 0 | MG77: =SUMIF($D$8:$D$67,$D77,MG$8:MG$67) -> 0 | MH77: 0 | MI77: 0 | MJ77: 0 | MK77: 0 | ML77: 0 | MM77: 0 | MN77: 0 | MO77: 0 | MP77: 0 | MQ77: =SUMIF($D$8:$D$67,$D77,MQ$8:MQ$67) -> 0 | MR77: 0 | MS77: 0 | MT77: 0 | MU77: 0 | MV77: 0 | MW77: 0 | MX77: 0 | MY77: 0 | MZ77: 0 | NA77: =SUMIF($D$8:$D$67,$D77,NA$8:NA$67) -> 0 | NB77: 3 | NC77: 3 | ND77: 2 | NE77: 1 | NF77: 0 | NG77: 0 | NH77: 15 | NI77: 9 | NJ77: 11 | NK77: =SUMIF($D$8:$D$67,$D77,NK$8:NK$67) -> 6 | NL77: 16 | NM77: 1 | NN77: 0 | NO77: 3 | NP77: 28 | NQ77: 9 | NR77: 0 | NS77: 0 | NT77: 16 | NU77: =SUMIF($D$8:$D$67,$D77,NU$8:NU$67) -> 3 | NV77: 28 | NW77: 0 | NX77: 0 | NY77: 0 | NZ77: 0 | OA77: 0 | OB77: 0 | OC77: 2 | OD77: 0 | OE77: =SUMIF($D$8:$D$67,$D77,OE$8:OE$67) -> 0 | OF77: 2 | OG77: 0 | OH77: 0 | OI77: 1 | OJ77: 1 | OK77: 0 | OL77: 1 | OM77: 1 | ON77: 0 | OO77: =SUMIF($D$8:$D$67,$D77,OO$8:OO$67) -> 0 | OP77: 0 | OQ77: 0 | OR77: 0 | OS77: 0 | OT77: 0 | OU77: 0 | OV77: 0 | OW77: 0 | OX77: 0 | OY77: =SUMIF($D$8:$D$67,$D77,OY$8:OY$67) -> 2 | OZ77: 0 | PA77: 1 | PB77: 0 | PC77: 0 | PD77: 0 | PE77: 0 | PF77: 0 | PG77: 0 | PH77: 0 | PI77: =SUMIF($D$8:$D$67,$D77,PI$8:PI$67) -> 0 | PJ77: 0 | PK77: 0 | PL77: 0 | PM77: 0 | PN77: 2 | PO77: 1 | PP77: 0 | PQ77: 0 | PR77: 6 | PS77: =SUMIF($D$8:$D$67,$D77,PS$8:PS$67) -> 1 | PT77: 0 | PU77: 0 | PV77: 0 | PW77: 0 | PX77: 0 | PY77: 0 | PZ77: 0 | QA77: 0 | QB77: 0 | QC77: =SUM(E77:QB77)-(PQ77+PS77+PU77+PV77+PX77) -> 438 | QE77: =SUMIF($D$8:$D$67,$D77,QE$8:QE$67) -> 2.0 | QF77: 9.0 | QG77: 44.0 | QH77: 14.0 | QI77: 24.0 | QJ77: 34.0 | QK77: 0.0 | QL77: 0.0 | QM77: 9.0 | QN77: 19.0 | QO77: =SUMIF($D$8:$D$67,$D77,QO$8:QO$67) -> 5.0 | QP77: 24.0 | QQ77: 5.0 | QR77: 23.0 | QS77: 11.0 | QT77: 24.0 | QU77: 17.0 | QV77: 9.0 | QW77: 24.0 | QX77: 33.0 | QY77: =SUMIF($D$8:$D$67,$D77,QY$8:QY$67) -> 4.0 | QZ77: 28.0 | RA77: 9.0 | RB77: 16.0 | RC77: 3.0 | RD77: 28.0 | RE77: 0.0 | RF77: 11.0 | RG77: 0.0 | RH77: 0.0 | RI77: =SUMIF($D$8:$D$67,$D77,RI$8:RI$67) -> 0.0 | RJ77: 3.0 | RK77: 0.0 | RL77: 6.0 | RM77: 1.0 | RN77: 0.0 | RO77: 0.0 | RP77: 0.0 | RQ77: 0.0 | RR77: 0.0 | RS77: 0.0 | RT77: 0.0 | RU77: 0.0 | RV77: 0.0 | RW77: 429
D78: ROM (GITANO) | E78: 0 | F78: 0 | G78: 0 | H78: 0 | I78: 0 | J78: 0 | K78: 0 | L78: 0 | M78: 0 | N78: 0 | O78: 0 | P78: 0 | Q78: 0 | R78: 0 | S78: 0 | T78: 0 | U78: 0 | V78: 0 | W78: 0 | X78: 0 | Y78: 0 | Z78: 0 | AA78: 0 | AB78: 0 | AC78: 0 | AD78: 0 | AE78: 0 | AF78: 0 | AG78: 0 | AH78: 0 | AI78: 0 | AJ78: 0 | AK78: 0 | AL78: 0 | AM78: 0 | AN78: 0 | AO78: 0 | AP78: 0 | AQ78: 0 | AR78: 0 | AS78: 0 | AT78: 0 | AU78: 0 | AV78: 0 | AW78: 0 | AX78: 0 | AY78: 0 | AZ78: 0 | BA78: 0 | BB78: 0 | BC78: 0 | BD78: 0 | BE78: 0 | BF78: 0 | BG78: 0 | BH78: 0 | BI78: 0 | BJ78: 0 | BK78: 0 | BL78: 0 | BM78: 0 | BN78: 0 | BO78: 0 | BP78: 0 | BQ78: 1 | BR78: 0 | BS78: 0 | BT78: 0 | BU78: 0 | BV78: 0 | BW78: 0 | BX78: 0 | BY78: 0 | BZ78: 0 | CA78: 0 | CB78: 0 | CC78: 0 | CD78: 0 | CE78: 0 | CF78: 0 | CG78: 0 | CH78: 0 | CI78: 0 | CJ78: 0 | CK78: 0 | CL78: 0 | CM78: 0 | CN78: 0 | CO78: 0 | CP78: 0 | CQ78: 0 | CR78: 0 | CS78: 0 | CT78: 0 | CU78: 0 | CV78: 0 | CW78: 0 | CX78: 0 | CY78: 0 | CZ78: 0 | DA78: 0 | DB78: 0 | DC78: 0 | DD78: 0 | DE78: 0 | DF78: 0 | DG78: 1 | DH78: 0 | DI78: 0 | DJ78: 0 | DK78: 0 | DL78: 0 | DM78: 0 | DN78: 0 | DO78: 0 | DP78: 0 | DQ78: 0 | DR78: 0 | DS78: 0 | DT78: 0 | DU78: 0 | DV78: 0 | DW78: 0 | DX78: 0 | DY78: 0 | DZ78: 0 | EA78: 0 | EB78: 0 | EC78: 0 | ED78: 0 | EE78: 0 | EF78: 0 | EG78: 0 | EH78: 0 | EI78: 0 | EJ78: 0 | EK78: 0 | EL78: 0 | EM78: 0 | EN78: 0 | EO78: 0 | EP78: 0 | EQ78: 0 | ER78: 0 | ES78: 0 | ET78: 0 | EU78: 0 | EV78: 0 | EW78: 0 | EX78: 0 | EY78: 0 | EZ78: 0 | FA78: 0 | FB78: 0 | FC78: 0 | FD78: 0 | FE78: 0 | FF78: 0 | FG78: 0 | FH78: 0 | FI78: 0 | FJ78: 0 | FK78: 0 | FL78: 0 | FM78: 0 | FN78: 0 | FO78: 0 | FP78: 0 | FQ78: 0 | FR78: 0 | FS78: 0 | FT78: 0 | FU78: 0 | FV78: 0 | FW78: 0 | FX78: 0 | FY78: 0 | FZ78: 0 | GA78: 0 | GB78: 0 | GC78: 0 | GD78: 0 | GE78: 0 | GF78: 0 | GG78: 0 | GH78: 0 | GI78: 0 | GJ78: 0 | GK78: 0 | GL78: 0 | GM78: 0 | GN78: 0 | GO78: 0 | GP78: 0 | GQ78: 0 | GR78: 0 | GS78: 0 | GT78: 0 | GU78: 0 | GV78: 0 | GW78: 0 | GX78: 0 | GY78: 0 | GZ78: 0 | HA78: 0 | HB78: 0 | HC78: 0 | HD78: 0 | HE78: 0 | HF78: 1 | HG78: 0 | HH78: 1 | HI78: 0 | HJ78: 0 | HK78: 0 | HL78: 0 | HM78: 0 | HN78: 0 | HO78: 0 | HP78: 0 | HQ78: 0 | HR78: 0 | HS78: 0 | HT78: 0 | HU78: 0 | HV78: 0 | HW78: 0 | HX78: 0 | HY78: 0 | HZ78: 0 | IA78: 0 | IB78: 0 | IC78: 0 | ID78: 0 | IE78: 0 | IF78: 0 | IG78: 0 | IH78: 0 | II78: 0 | IJ78: 0 | IK78: 0 | IL78: 0 | IM78: 0 | IN78: 0 | IO78: 0 | IP78: 0 | IQ78: 0 | IR78: 0 | IS78: 0 | IT78: 0 | IU78: 0 | IV78: 0 | IW78: 0 | IX78: 0 | IY78: 0 | IZ78: 0 | JA78: 0 | JB78: 0 | JC78: 0 | JD78: 0 | JE78: 0 | JF78: 0 | JG78: 0 | JH78: 0 | JI78: 0 | JJ78: 0 | JK78: 0 | JL78: 0 | JM78: 0 | JN78: 0 | JO78: 0 | JP78: 0 | JQ78: 0 | JR78: 0 | JS78: 0 | JT78: 0 | JU78: 0 | JV78: 0 | JW78: 0 | JX78: 0 | JY78: 0 | JZ78: 0 | KA78: 0 | KB78: 0 | KC78: 0 | KD78: 0 | KE78: 0 | KF78: 0 | KG78: 0 | KH78: 0 | KI78: 0 | KJ78: 0 | KK78: 0 | KL78: 0 | KM78: 0 | KN78: 0 | KO78: 0 | KP78: 0 | KQ78: 0 | KR78: 0 | KS78: 0 | KT78: 0 | KU78: 0 | KV78: 0 | KW78: 0 | KX78: 0 | KY78: 0 | KZ78: 0 | LA78: 0 | LB78: 0 | LC78: 0 | LD78: 0 | LE78: 0 | LF78: 0 | LG78: 0 | LH78: 0 | LI78: 0 | LJ78: 0 | LK78: 0 | LL78: 0 | LM78: 0 | LN78: 0 | LO78: 0 | LP78: 0 | LQ78: 0 | LR78: 0 | LS78: 0 | LT78: 0 | LU78: 0 | LV78: 0 | LW78: 0 | LX78: 0 | LY78: 0 | LZ78: 0 | MA78: 0 | MB78: 0 | MC78: 0 | MD78: 0 | ME78: 0 | MF78: 0 | MG78: 0 | MH78: 0 | MI78: 0 | MJ78: 0 | MK78: 0 | ML78: 0 | MM78: 0 | MN78: 0 | MO78: 0 | MP78: 0 | MQ78: 0 | MR78: 0 | MS78: 0 | MT78: 0 | MU78: 0 | MV78: 0 | MW78: 0 | MX78: 0 | MY78: 0 | MZ78: 0 | NA78: 0 | NB78: 0 | NC78: 0 | ND78: 0 | NE78: 0 | NF78: 0 | NG78: 0 | NH78: 0 | NI78: 0 | NJ78: 0 | NK78: 0 | NL78: 0 | NM78: 0 | NN78: 0 | NO78: 0 | NP78: 2 | NQ78: 0 | NR78: 0 | NS78: 0 | NT78: 0 | NU78: 0 | NV78: 2 | NW78: 0 | NX78: 0 | NY78: 0 | NZ78: 0 | OA78: 0 | OB78: 0 | OC78: 0 | OD78: 0 | OE78: 0 | OF78: 0 | OG78: 0 | OH78: 0 | OI78: 0 | OJ78: 0 | OK78: 0 | OL78: 0 | OM78: 0 | ON78: 0 | OO78: 0 | OP78: 0 | OQ78: 0 | OR78: 0 | OS78: 0 | OT78: 0 | OU78: 0 | OV78: 0 | OW78: 0 | OX78: 0 | OY78: 0 | OZ78: 0 | PA78: 0 | PB78: 0 | PC78: 0 | PD78: 0 | PE78: 0 | PF78: 0 | PG78: 0 | PH78: 0 | PI78: 0 | PJ78: 0 | PK78: 0 | PL78: 0 | PM78: 0 | PN78: 0 | PO78: 0 | PP78: 0 | PQ78: 0 | PR78: 0 | PS78: 0 | PT78: 0 | PU78: 0 | PV78: 0 | PW78: 0 | PX78: 0 | PY78: 0 | PZ78: 0 | QA78: 0 | QB78: 0 | QC78: 8 | QE78: 0.0 | QF78: 0.0 | QG78: 1.0 | QH78: 0.0 | QI78: 1.0 | QJ78: 0.0 | QK78: 0.0 | QL78: 0.0 | QM78: 1.0 | QN78: 1.0 | QO78: 0.0 | QP78: 0.0 | QQ78: 0.0 | QR78: 0.0 | QS78: 0.0 | QT78: 0.0 | QU78: 0.0 | QV78: 0.0 | QW78: 0.0 | QX78: 0.0 | QY78: 0.0 | QZ78: 2.0 | RA78: 0.0 | RB78: 0.0 | RC78: 0.0 | RD78: 2.0 | RE78: 0.0 | RF78: 0.0 | RG78: 0.0 | RH78: 0.0 | RI78: 0.0 | RJ78: 0.0 | RK78: 0.0 | RL78: 0.0 | RM78: 0.0 | RN78: 0.0 | RO78: 0.0 | RP78: 0.0 | RQ78: 0.0 | RR78: 0.0 | RS78: 0.0 | RT78: 0.0 | RU78: 0.0 | RV78: 0.0 | RW78: 8
